Workbook

Sheet Instruktion
A1: Instruktion - Så här använder du verktyget | K1: Det här betyder färgerna: | N1: Snabblänkar till bladen i verktyget:
A2: Verktyget är indelat i delar, d v s blad med samma färg och nummer: | K2: Cell med värden hämtade från annan cell | N2: Bakgrund
A3: Börja med Bakgrund. Uppgifterna som du fyller i där guidar dig vidare genom resten av verktyget. | K3: Beräkning | N3: 1 Intro djuren
A4: Fyll sedan i 1 Intro djuren och 1.1 Kött. De uppgifterna behövs för att beräkna nyckeltal per djur eller kg kött i resten av verktyget | K4: Fyll i din egen siffra | N4: 1.1 Kött
A5: Sen kan du välja att fylla i en eller flera delar av verktyget. På vissa blad är det många uppgifter som ska fyllas i för att få fram bra nyckeltal. Det går dock bra att välja ut vissa delar av verktyget och att fylla i delarna efterhand. | K5: Fyll i egen siffra - frivilligt, t ex om du har tillgång till uppgift eller om du vill räkna med annat värde än det schablonvärde som visas i angränsande cell | N5: 1.2 Tillväxt & förökning
A6: Resultaten presenteras i samlad form på bladet Resultat. Där får du en överblick över alla de resultat som verktyget hittills har räknat ut åt dig. | K6: Egen uppgift, men välj värde ur rullista. | N6: 1.3 Hälsa & dödlighet
K7: Resultat/uträkning | N7: 2 Intro foder
A8: Fyll i data så noga du kan! Ju säkrare du är på den ingående datan desto mer nytta kommer du att ha av nyckeltalen. | K8: Schablonvärde | N8: 2.1 Odling foder
A9: Använd verktyget för att jämföra dig med dig själv under flera perioder. En del av nyckeltalen som du får fram är nya i och med det här verktyget. Därför kan det vara bra att ta hjälp av en rådgivare för att tolka resultaten och jämföra dig med andra som använder verktyget. Genom att använda verktyget flera perioder i rad skapar du dessutom egna medelvärden och du kommer att kunna se både snabba och långsamma förändringar på gården. | K9: Förklaringar till raden | N9: 2.2 Förluster vid lagring
K10: Plats för egna kommentarer | N10: 2.3 Inköpt foder (exkl mineral)
A11: Tips när du använder Excel: | K11: Glöm inte att fylla i värde! (Här krävs ett värde för att andra beräkningar ska fungera | N11: 2.4 Utfodrat
A12: För att ta bort siffror eller text som du har skrivit i kan du trycka på Delete. Det fungerar även om du har valt ur en lista (orange cell). Se manualen för fler tips! | K12: grå text, ev vit bakgrund: Avsnittet är inte relevant för dig baserat på svaren på ja/nej-frågor på bladet Bakgrund | N12: 2.5. Kasserat foder och spill
N13: 2.6 Bete
N14: 3 Växtnäringsutnyttjande (1)
N15: 3 Växtnäringsutnyttjande (2)
N16: 3 Växtnäringsutnyttjande (3)
N17: 4 Energi och bränsle
N18: 5 Vattenanvändning
N19: 6 Resultat
E31: Period | I31: Egen kommentar | J31: Förklaring | K31: Köttras kalv (lätt/tung) | N31: Mjölkras kalv
C32: Tillväxt | D32: Enhet | E32: 20xx | F32: 20yy | G32: Period3 | K32: låg | L32: medel | M32: hög | N32: låg | O32: medel | P32: hög
C33: Antal kalvar | D33: antal
C34: Vikt vid födsel | D34: kg | E34: 40 | F34: 40 | J34: Den vikt kalven har vid födseln | K34: 38/40 | L34: 40/44 | M34: 42/48 | N34: 37 | O34: 40 | P34: 43
C35: Levande vikt vid inköp eller insättning | D35: lev. vikt kg | E35: 500 | F35: 450 | J35: Ange en levande vikt vid specifikt tillfälle, skriv en egen kommentar om vilket tillfälle det var
C36: Uppfödningstid, dagar | D36: dagar | E36: 365 | J36: Antalet dagar från födsel till aktuellt datum då djuret slaktas/betäcks. Om cellen är röd: Fyll i värde så släcks varningen
C37: Nyckeltal: Tillväxt levande vikt/dag | D37: g/dag | E37: =IF(E36=0,0,(E35-E34)/E36)*1000 -> 1260.273973 | F37: =IF(F36=0,0,(F35-F34)/F36)*1000 -> 0 | G37: =IF(G36=0,0,(G35-G34)/G36)*1000 -> 0 | K37: Tjukalv 1000/ 1200 g per dag kvigkalv 950/ 1100 g per dag | L37: Tjurkalv 1300 / 1500 g per dag Kvigkalv 1100/1200 g per dag | M37: Tjurkalv 1500/1700 g per dag kvigklav 1250/1400 g per dag
C38: Antal stallplatser enligt djurskyddslag | D38: stallplatser | J38: Max antal djur enligt djurskyddslag, se din förprövning. Fylls i om du har tillgång till uppgiften
A58: Om projektet: Projektet Effektivare resurshantering på gård pågick 2020-2021 och genomfördes av Hushållningssällskapet på uppdrag av Jordbruksverket. Syftet med projektet var att skapa ett verktyg som genom att samla mätdata på en plats kan ge nya insikter om vilka resurser som kan användas effektivare på djurgårdar. Förutom verktyget finns en manual, en rapport, en kort borschyr, och en kortare sammanfattning av rapporten.

Sheet Bakgrund
A1: Bakgrund | J1: Det här betyder färgerna:
A2: Obligatoriskt blad | J2: Cell med värden hämtade från annan cell
A3: Börja med detta blad. | J3: Beräkning
A4: Här bestämmer du vilken period du vill räkna på samt får svar på vilka delar i verktyget som kan vara mest användbara för dig. | J4: Fyll i din egen siffra
J5: Egen uppgift, men välj värde ur rullista.
J6: Förklaringar till raden
A7: 1.1 Period | J7: Plats för egna kommentarer | R7: =IF(ISBLANK(B11),B10,B11) -> Period 1 | S7: =IF(ISBLANK(C11),C10,C11) -> Period 2 | T7: =IF(ISBLANK(D11),D10,D11) -> Period 3 | W7: intervall
A8: I verktyget kan du fylla i uppgifter för tre perioder. En period kan vara ett år (t ex 1 jan-31 dec, 1 juni-31 maj), en omgång, en säsong (t ex betesperioden) eller en del av produktionen. Välj själv! | R8: =R7 -> Period 1 | S8: =S7 -> Period 2 | T8: =T7 -> Period 3
A9: Börja med att namnge perioden du ska jobba med. Namnet kommer sedan att följa med i rubrikerna i hela verktyget | Q9: start dag | R9: =DAY(B12) -> 0 | S9: =DAY(C12) -> 0 | T9: =DAY(D12) -> 0
A10: Om perioden | B10: Period 1 | C10: Period 2 | D10: Period 3 | E10: Förklaring | F10: Egen kommentar | Q10: start månad | R10: =MONTH(B12) -> 1 | S10: =MONTH(C12) -> 1 | T10: =MONTH(D12) -> 1
A11: Periodens namn. År, omgång, säsong etc. | E11: Skriv vilken period som du vill att beräkningarna ska göras för, använd siffror och/eller bokstäver. Kan t ex vara ett år (t ex 2021), en omgång (t ex Omgång 1 2021) eller något annat (t ex Betesperioden). Det som du skriver här kommer att kopieras till de efterföljande bladen. | J11: Snabblänkar till bladen i verktyget: | Q11: slut dag | R11: =DAY(B13) -> 0 | S11: =DAY(C13) -> 0 | T11: =DAY(D13) -> 0
A12: Startdatum | E12: Här anger datum för första respektive sista dagen i perioden. Kan t ex skrivas som "01-01-21", "2021-01-01", "1 jan -21", "1 januari 2021", visas som "2021-01-01". Perioden kan vara ett kalenderår, ett odlingsår, en omgång eller liknande. Uppgifterna används på vissa platser för guida hur du ska fylla i verktyget | J12: Instruktion | Q12: slut månad | R12: =MONTH(B13) -> 1 | S12: =MONTH(C13) -> 1 | T12: =MONTH(D13) -> 1
A13: Slutdatum | J13: Bakgrund | Q13: Helt år | R13: =IF(AND(B14>350,B14<370),1,0) -> 0 | S13: =IF(AND(C14>350,C14<370),1,0) -> 0 | T13: 0
A14: Periodens längd (dagar) | B14: =R17 -> 0 | C14: =S17 -> 0 | D14: =T17 -> 0 | E14: Antal dagar i perioden. Beräknas utifrån start- och slutdatum. Om fältet är rött behöver du kontrollera så att start- och slutdatum är rätt och har rätt årtal. | J14: 1 Intro djuren | Q14: kalenderår | R14: =IF(R13=1,IF(OR(R10=1,R10=12),1,0),0) -> 0 | S14: =IF(S13=1,IF(OR(S10=1,S10=12),1,0),0) -> 0 | T14: 0
J15: 1.1 Kött | Q15: växtodlingsår | R15: =IF(R13=1,IF(AND(R10>$W15,R10<$X15),1,0),0) -> 0 | S15: =IF(S13=1,IF(AND(S10>$W15,S10<$X15),1,0),0) -> 0 | T15: 0 | W15: 4.9 | X15: 9.9
J16: 1.2 Tillväxt & förökning
J17: 1.3 Hälsa & dödlighet | R17: =_xlfn.DAYS(B13,B12)+IF(B12>1,1,0) -> 0 | S17: =_xlfn.DAYS(C13,C12)+IF(C12>1,1,0) -> 0 | T17: =_xlfn.DAYS(D13,D12)+IF(D12>1,1,0) -> 0
A18: 1.2 Guidning till verktyget | J18: 2 Intro foder
A19: Inledande frågor | J19: 2.1 Odling foder
A20: Svara på följande ja/nej-frågor. Svaren kommer att guida dig genom verktyget och används för att visa vilka delar som är användbara för just dig. | J20: 2.2 Förluster vid lagring
A21: Dina svar avgör om det står Obligatoriskt, Frivilligt eller Inte relevant i cell A2 på varje blad. Svaren används även för att "släcka" (d v s grå text och vit bakgrund) vissa tabeller och rader som inte är relevanta för dig.
A22: Om du är osäker på vad du ska svara är det bäst att välja "ja". Då visas alla avsnitt senare i verktyget som hör till frågan, och du kan själv välja om du vill fylla i avsnittet. | J22: 2.3 Inköpt foder (exkl mineral)
A23: Klicka i cellen så visas en grå ruta med pil till höger om cellen. Klicka på pilen och välj alternativ ur listan! Ändra svar genom att göra ett nytt val. Ta bort ett svar genom att radera det. | J23: 2.4 Utfodrat
A24: Generella frågor | B24: Svar (ja/nej) | C24: Förklaring till frågan och svaret | J24: 2.5. Kasserat foder och spill | AN24: Ja | AO24: Nej | AP24: Har uppföljningssystem | AQ24: Har mark | AR24: Skördar grödor | AS24: Köper foder | AT24: Säljre grödor | AU24: växtnäringbalans period1 | AV24: växtnäringbalans period2 | AW24: växtnäringbalans period3 | AX24: vatten | AY24: energi | AZ24: Nöt: hondjur | BA24: Nöt: inköp kalvar | BB24: Bete? | BC24: Smågrisa | BD24: Slaktgrisa | BE24: Klimat | BF24: vinterlamm | BG24: Intresserad av foderåtgång | BH24: Intresserad av foderförluster | BI24: Intresserad växtnäring
A25: ='Teknisk administration'!B523 -> Vill du ta fram nyckeltal om foderåtgång? | C25: =IF(ISTEXT(B25),IF(B25='Teknisk administration'!C$537,'Teknisk administration'!C523,'Teknisk administration'!D523),IF(ISTEXT(A25),'Teknisk administration'!E523,'Teknisk administration'!$B$520)) -> Ja = del 2 i verktyget (om foder) kommer att visas. Nej = del 2 i verktyget är inte relevant för dig | J25: 2.6 Bete | AN25: =IF(B25=AN$24,1,0) -> 0 | AO25: =IF(B25=AO$24,1,0) -> 0 | AQ25: =(1-$AO25)*'Teknisk administration'!J523 -> 0 | AR25: =(1-$AO25)*'Teknisk administration'!K523 -> 0 | AS25: =$AN25*'Teknisk administration'!L523 -> 0 | AT25: =(1-$AO25)*'Teknisk administration'!M523 -> 0 | AU25: =$AN25*'Teknisk administration'!N523 -> 0 | AV25: =$AN25*'Teknisk administration'!O523 -> 0 | AW25: =$AN25*'Teknisk administration'!P523 -> 0 | AX25: =(1-$AO25)*'Teknisk administration'!Q523 -> 0 | AY25: =(1-$AO25)*'Teknisk administration'!R523 -> 0 | BG25: =(1-$AO25)*'Teknisk administration'!Z523 -> 1 | BH25: =(1-$AO25)*'Teknisk administration'!AA523 -> 0 | BI25: =$AN25*'Teknisk administration'!AB523 -> 0
A26: ='Teknisk administration'!B524 -> Vill du beräkna förlusterna i foderkedjan? | C26: =IF(ISTEXT(B26),IF(B26='Teknisk administration'!C$537,'Teknisk administration'!C524,'Teknisk administration'!D524),IF(ISTEXT(A26),'Teknisk administration'!E524,'Teknisk administration'!$B$520)) -> Ja = del 2 i verktyget (om foder) kommer att visas. Nej = del 2 i verktyget är inte relevant för dig | J26: 3 Växtnäringsutnyttjande (1) | AN26: 0 | AO26: 0 | AQ26: =(1-AO26)*'Teknisk administration'!J524 -> 0 | AR26: =(1-$AO26)*'Teknisk administration'!K524 -> 0 | AS26: =AN26*'Teknisk administration'!L524 -> 0 | AT26: =(1-$AO26)*'Teknisk administration'!M524 -> 0 | AU26: =$AN26*'Teknisk administration'!N524 -> 0 | AV26: =$AN26*'Teknisk administration'!O524 -> 0 | AW26: =$AN26*'Teknisk administration'!P524 -> 0 | AX26: =(1-$AO26)*'Teknisk administration'!Q524 -> 0 | AY26: =(1-$AO26)*'Teknisk administration'!R524 -> 0 | BG26: =(1-AO26)*'Teknisk administration'!Z524 -> 0 | BH26: =(1-$AO26)*'Teknisk administration'!AA524 -> 1 | BI26: =$AN26*'Teknisk administration'!AB524 -> 0
A27: ='Teknisk administration'!B525 -> Skördar du eget foder till djuren? | C27: =IF(ISTEXT(B27),IF(B27='Teknisk administration'!C$537,'Teknisk administration'!C525,'Teknisk administration'!D525),IF(ISTEXT(A27),'Teknisk administration'!E525,'Teknisk administration'!$B$520)) -> Välj "ja" eller "nej" i den orange cellen | J27: 3 Växtnäringsutnyttjande (2) | AN27: 0 | AO27: 0 | AQ27: =(1-AO27)*'Teknisk administration'!J525 -> 1 | AR27: =(1-$AO27)*'Teknisk administration'!K525 -> 1 | AS27: =AN27*'Teknisk administration'!L525 -> 0 | AT27: =(1-$AO27)*'Teknisk administration'!M525 -> 0 | AU27: =$AN27*'Teknisk administration'!N525 -> 0 | AV27: =$AN27*'Teknisk administration'!O525 -> 0 | AW27: =$AN27*'Teknisk administration'!P525 -> 0 | AX27: =(1-$AO27)*'Teknisk administration'!Q525 -> 0 | AY27: =(1-$AO27)*'Teknisk administration'!R525 -> 0 | BG27: =(1-AO27)*'Teknisk administration'!Z525 -> 0 | BH27: =(1-$AO27)*'Teknisk administration'!AA525 -> 0 | BI27: =$AN27*'Teknisk administration'!AB525 -> 0
A28: ='Teknisk administration'!B526 -> Säljer du grödor som du har odlat? | C28: =IF(ISTEXT(B28),IF(B28='Teknisk administration'!C$537,'Teknisk administration'!C526,'Teknisk administration'!D526),IF(ISTEXT(A28),'Teknisk administration'!E526,'Teknisk administration'!$B$520)) -> Välj "ja" eller "nej" i den orange cellen | J28: 3 Växtnäringsutnyttjande (3) | AN28: 0 | AO28: 0 | AQ28: =(1-AO28)*'Teknisk administration'!J526 -> 1 | AR28: =(1-$AO28)*'Teknisk administration'!K526 -> 1 | AS28: =AN28*'Teknisk administration'!L526 -> 0 | AT28: =(1-$AO28)*'Teknisk administration'!M526 -> 1 | AU28: =$AN28*'Teknisk administration'!N526 -> 0 | AV28: =$AN28*'Teknisk administration'!O526 -> 0 | AW28: =$AN28*'Teknisk administration'!P526 -> 0 | AX28: =(1-$AO28)*'Teknisk administration'!Q526 -> 0 | AY28: =(1-$AO28)*'Teknisk administration'!R526 -> 0 | BG28: =(1-AO28)*'Teknisk administration'!Z526 -> 0 | BH28: =(1-$AO28)*'Teknisk administration'!AA526 -> 0 | BI28: =$AN28*'Teknisk administration'!AB526 -> 0
A29: ='Teknisk administration'!B527 -> Köper du annat foder än mineraler till djuren? | C29: =IF(ISTEXT(B29),IF(B29='Teknisk administration'!C$537,'Teknisk administration'!C527,'Teknisk administration'!D527),IF(ISTEXT(A29),'Teknisk administration'!E527,'Teknisk administration'!$B$520)) -> Välj "ja" eller "nej" i den orange cellen | J29: 4 Energi och bränsle | AN29: 0 | AO29: 0 | AQ29: =(1-AO29)*'Teknisk administration'!J527 -> 0 | AR29: =(1-$AO29)*'Teknisk administration'!K527 -> 0 | AS29: =AN29*'Teknisk administration'!L527 -> 0 | AT29: =(1-$AO29)*'Teknisk administration'!M527 -> 0 | AU29: =$AN29*'Teknisk administration'!N527 -> 0 | AV29: =$AN29*'Teknisk administration'!O527 -> 0 | AW29: =$AN29*'Teknisk administration'!P527 -> 0 | AX29: =(1-$AO29)*'Teknisk administration'!Q527 -> 0 | AY29: =(1-$AO29)*'Teknisk administration'!R527 -> 0 | BG29: =(1-AO29)*'Teknisk administration'!Z527 -> 0 | BH29: =(1-$AO29)*'Teknisk administration'!AA527 -> 0 | BI29: =$AN29*'Teknisk administration'!AB527 -> 0
A30: ='Teknisk administration'!B528 -> Vill du beräkna växtnäringsutnyttjandet? | C30: =IF(ISTEXT(B30),IF(B30='Teknisk administration'!C$537,'Teknisk administration'!C528,'Teknisk administration'!D528),IF(ISTEXT(A30),'Teknisk administration'!E528,'Teknisk administration'!$B$520)) -> Ja = del 3 i verktyget (om växtnäringsutnyttjande) kommer att visas. Nej = del 3 är inte relevant för dig | J30: 5 Vattenanvändning | AN30: 0 | AO30: 0 | AQ30: =(1-AO30)*'Teknisk administration'!J528 -> 0 | AR30: =(1-$AO30)*'Teknisk administration'!K528 -> 0 | AS30: =AN30*'Teknisk administration'!L528 -> 0 | AT30: =(1-$AO30)*'Teknisk administration'!M528 -> 0 | AU30: =$AN30*'Teknisk administration'!N528 -> 0 | AV30: =$AN30*'Teknisk administration'!O528 -> 0 | AW30: =$AN30*'Teknisk administration'!P528 -> 0 | AX30: =(1-$AO30)*'Teknisk administration'!Q528 -> 0 | AY30: =(1-$AO30)*'Teknisk administration'!R528 -> 0 | BG30: =(1-AO30)*'Teknisk administration'!Z528 -> 0 | BH30: =(1-$AO30)*'Teknisk administration'!AA528 -> 0 | BI30: =$AN30*'Teknisk administration'!AB528 -> 0
A31: ='Teknisk administration'!B529 -> Har du en aktuell växtnäringsbalans för perioden: | C31: =IF(ISTEXT(B31),IF(B31='Teknisk administration'!C$537,'Teknisk administration'!C529,'Teknisk administration'!D529),IF(ISTEXT(A31),'Teknisk administration'!E529,'Teknisk administration'!$B$520)) -> T ex från Greppa Näringen. Användbart om du vill beräkna växtnäringsutnyttjande | J31: 6 Resultat | AN31: 0 | AO31: 0 | AQ31: =(1-AO31)*'Teknisk administration'!J529 -> 0 | AR31: =(1-$AO31)*'Teknisk administration'!K529 -> 0 | AS31: =AN31*'Teknisk administration'!L529 -> 0 | AT31: =(1-$AO31)*'Teknisk administration'!M529 -> 0 | AU31: =$AN31*'Teknisk administration'!N529 -> 0 | AV31: =$AN31*'Teknisk administration'!O529 -> 0 | AW31: =$AN31*'Teknisk administration'!P529 -> 0 | AX31: =(1-$AO31)*'Teknisk administration'!Q529 -> 0 | AY31: =(1-$AO31)*'Teknisk administration'!R529 -> 0 | BG31: =(1-AO31)*'Teknisk administration'!Z529 -> 0 | BH31: =(1-$AO31)*'Teknisk administration'!AA529 -> 0 | BI31: =$AN31*'Teknisk administration'!AB529 -> 0
A32: ='Teknisk administration'!B530 -> - Period 1 | C32: =IF(ISTEXT(B32),IF(B32='Teknisk administration'!C$537,'Teknisk administration'!C530,'Teknisk administration'!D530),IF(ISTEXT(A32),'Teknisk administration'!E530,'Teknisk administration'!$B$520)) -> Svara ja eller nej när du ska fylla i uppgifter för period 1 | AN32: 0 | AO32: 0 | AQ32: =(1-AO32)*'Teknisk administration'!J530 -> 0 | AR32: =(1-$AO32)*'Teknisk administration'!K530 -> 0 | AS32: =AN32*'Teknisk administration'!L530 -> 0 | AT32: =(1-$AO32)*'Teknisk administration'!M530 -> 0 | AU32: =$AN32*'Teknisk administration'!N530 -> 0 | AV32: =$AN32*'Teknisk administration'!O530 -> 0 | AW32: =$AN32*'Teknisk administration'!P530 -> 0 | AX32: =(1-$AO32)*'Teknisk administration'!Q530 -> 0 | AY32: =(1-$AO32)*'Teknisk administration'!R530 -> 0 | BG32: =(1-AO32)*'Teknisk administration'!Z530 -> 0 | BH32: =(1-$AO32)*'Teknisk administration'!AA530 -> 0 | BI32: =$AN32*'Teknisk administration'!AB530 -> 0
A33: ='Teknisk administration'!B531 -> - Period 2 | C33: =IF(ISTEXT(B33),IF(B33='Teknisk administration'!C$537,'Teknisk administration'!C531,'Teknisk administration'!D531),IF(ISTEXT(A33),'Teknisk administration'!E531,'Teknisk administration'!$B$520)) -> Svara ja eller nej när du ska fylla i uppgifter för period 2 | AN33: 0 | AO33: 0 | AQ33: =(1-AO33)*'Teknisk administration'!J531 -> 0 | AR33: =(1-$AO33)*'Teknisk administration'!K531 -> 0 | AS33: =AN33*'Teknisk administration'!L531 -> 0 | AT33: =(1-$AO33)*'Teknisk administration'!M531 -> 0 | AU33: =$AN33*'Teknisk administration'!N531 -> 0 | AV33: =$AN33*'Teknisk administration'!O531 -> 0 | AW33: =$AN33*'Teknisk administration'!P531 -> 0 | AX33: =(1-$AO33)*'Teknisk administration'!Q531 -> 0 | AY33: =(1-$AO33)*'Teknisk administration'!R531 -> 0 | BG33: =(1-AO33)*'Teknisk administration'!Z531 -> 0 | BH33: =(1-$AO33)*'Teknisk administration'!AA531 -> 0 | BI33: =$AN33*'Teknisk administration'!AB531 -> 0
A34: ='Teknisk administration'!B532 -> - Period 3 | C34: =IF(ISTEXT(B34),IF(B34='Teknisk administration'!C$537,'Teknisk administration'!C532,'Teknisk administration'!D532),IF(ISTEXT(A34),'Teknisk administration'!E532,'Teknisk administration'!$B$520)) -> Svara ja eller nej när du ska fylla i uppgifter för period 3 | AN34: 0 | AO34: 0 | AQ34: =(1-AO34)*'Teknisk administration'!J532 -> 0 | AR34: =(1-$AO34)*'Teknisk administration'!K532 -> 0 | AS34: =AN34*'Teknisk administration'!L532 -> 0 | AT34: =(1-$AO34)*'Teknisk administration'!M532 -> 0 | AU34: =$AN34*'Teknisk administration'!N532 -> 0 | AV34: =$AN34*'Teknisk administration'!O532 -> 0 | AW34: =$AN34*'Teknisk administration'!P532 -> 0 | AX34: =(1-$AO34)*'Teknisk administration'!Q532 -> 0 | AY34: =(1-$AO34)*'Teknisk administration'!R532 -> 0 | BG34: =(1-AO34)*'Teknisk administration'!Z532 -> 0 | BH34: =(1-$AO34)*'Teknisk administration'!AA532 -> 0 | BI34: =$AN34*'Teknisk administration'!AB532 -> 0
A35: ='Teknisk administration'!B533 -> Är du intresserad av vattenfrågor ? | C35: =IF(ISTEXT(B35),IF(B35='Teknisk administration'!C$537,'Teknisk administration'!C533,'Teknisk administration'!D533),IF(ISTEXT(A35),'Teknisk administration'!E533,'Teknisk administration'!$B$520)) -> Välj "ja" eller "nej" i den orange cellen | AN35: 0 | AO35: 0 | AQ35: =(1-AO35)*'Teknisk administration'!J533 -> 0 | AR35: =(1-$AO35)*'Teknisk administration'!K533 -> 0 | AS35: =AN35*'Teknisk administration'!L533 -> 0 | AT35: =(1-$AO35)*'Teknisk administration'!M533 -> 0 | AU35: =$AN35*'Teknisk administration'!N533 -> 0 | AV35: =$AN35*'Teknisk administration'!O533 -> 0 | AW35: =$AN35*'Teknisk administration'!P533 -> 0 | AX35: =(1-$AO35)*'Teknisk administration'!Q533 -> 1 | AY35: =(1-$AO35)*'Teknisk administration'!R533 -> 0 | BG35: =(1-AO35)*'Teknisk administration'!Z533 -> 0 | BH35: =(1-$AO35)*'Teknisk administration'!AA533 -> 0 | BI35: =$AN35*'Teknisk administration'!AB533 -> 0
A36: ='Teknisk administration'!B534 -> Är du intresserad av energifrågor ? | C36: =IF(ISTEXT(B36),IF(B36='Teknisk administration'!C$537,'Teknisk administration'!C534,'Teknisk administration'!D534),IF(ISTEXT(A36),'Teknisk administration'!E534,'Teknisk administration'!$B$520)) -> Välj "ja" eller "nej" i den orange cellen | AN36: 0 | AO36: 0 | AQ36: =(1-AO36)*'Teknisk administration'!J534 -> 0 | AR36: =(1-$AO36)*'Teknisk administration'!K534 -> 0 | AS36: =AN36*'Teknisk administration'!L534 -> 0 | AT36: =(1-$AO36)*'Teknisk administration'!M534 -> 0 | AU36: =$AN36*'Teknisk administration'!N534 -> 0 | AV36: =$AN36*'Teknisk administration'!O534 -> 0 | AW36: =$AN36*'Teknisk administration'!P534 -> 0 | AX36: =(1-$AO36)*'Teknisk administration'!Q534 -> 0 | AY36: =(1-$AO36)*'Teknisk administration'!R534 -> 1 | BG36: =(1-AO36)*'Teknisk administration'!Z534 -> 0 | BH36: =(1-$AO36)*'Teknisk administration'!AA534 -> 0 | BI36: =$AN36*'Teknisk administration'!AB534 -> 0
AQ37: =SUM(AQ25:AQ36) -> 2 | AR37: 2 | AS37: 0 | AT37: 1 | AU37: 0 | AV37: 0 | AW37: 0 | AX37: 1 | AY37: 1 | BG37: =SUM(BG25:BG36) -> 1 | BH37: =SUM(BH25:BH36) -> 1 | BI37: =SUM(BI25:BI36) -> 0
A39: Om djuren | B39: Svar (ja/nej) | C39: Förklaring till frågan och svaret | AN39: Ja | AO39: Nej | AP39: Har uppföljningssystem | AQ39: Har mark | AR39: Skördar grödor | AS39: Köper foder | AT39: Säljre grödor | AU39: växtnäringbalans period1 | AV39: växtnäringbalans period2 | AW39: växtnäringbalans period3 | AX39: vatten | AY39: energi | AZ39: Nöt: hondjur | BA39: Nöt: inköp kalvar | BB39: Bete? | BC39: Smågrisa | BD39: Slaktgrisa | BE39: Klimat | BF39: vinterlamm | BG39: Intresserad av foderåtgång | BH39: Intresserad av foderförluster | BI39: Intresserad växtnäring | BJ39: Kolumn19 | BK39: Kolumn19 | BL39: Kolumn19 | BM39: Kolumn19 | BN39: Kolumn19 | BO39: Kolumn19 | BP39: Kolumn19 | BQ39: Kolumn19
A40: ='Teknisk administration'!B538 -> Har du hondjur som kalvar? | C40: =IF(ISTEXT(B40),IF(B40='Teknisk administration'!C$537,'Teknisk administration'!C538,'Teknisk administration'!D538),IF(ISTEXT(A40),'Teknisk administration'!E538,'Teknisk administration'!$B$520)) -> Välj "ja" eller "nej" i den orange cellen | AN40: =IF(B40=AN$39,1,0) -> 0 | AO40: =IF(B40=AO$39,1,0) -> 0 | AZ40: =(1-$AO40)*'Teknisk administration'!S538 -> 1 | BA40: =(1-$AO40)*'Teknisk administration'!T538 -> 0 | BB40: =(1-$AO40)*'Teknisk administration'!U538 -> 0
A41: ='Teknisk administration'!B539 -> Köper du in kalvar? | C41: =IF(ISTEXT(B41),IF(B41='Teknisk administration'!C$537,'Teknisk administration'!C539,'Teknisk administration'!D539),IF(ISTEXT(A41),'Teknisk administration'!E539,'Teknisk administration'!$B$520)) -> Välj "ja" eller "nej" i den orange cellen | AN41: 0 | AO41: 0 | AZ41: =(1-$AO41)*'Teknisk administration'!S539 -> 0 | BA41: =(1-$AO41)*'Teknisk administration'!T539 -> 1 | BB41: =(1-$AO41)*'Teknisk administration'!U539 -> 0
A42: ='Teknisk administration'!B540 -> Har du ett uppföljningsprogram (t ex KAP) där du kan hämta uppgifter om tillväxt etc. | C42: =IF(ISTEXT(B42),IF(B42='Teknisk administration'!C$537,'Teknisk administration'!C540,'Teknisk administration'!D540),IF(ISTEXT(A42),'Teknisk administration'!E540,'Teknisk administration'!$B$520)) -> Välj "ja" eller "nej" i den orange cellen | AN42: 0 | AO42: 0 | AZ42: =(1-$AO42)*'Teknisk administration'!S540 -> 0 | BA42: =(1-$AO42)*'Teknisk administration'!T540 -> 0 | BB42: =(1-$AO42)*'Teknisk administration'!U540 -> 0
A43: ='Teknisk administration'!B541 -> Går djuren på bete? | C43: =IF(ISTEXT(B43),IF(B43='Teknisk administration'!C$537,'Teknisk administration'!C541,'Teknisk administration'!D541),IF(ISTEXT(A43),'Teknisk administration'!E541,'Teknisk administration'!$B$520)) -> Välj "ja" eller "nej" i den orange cellen | AN43: 0 | AO43: 0 | AZ43: =(1-$AO43)*'Teknisk administration'!S541 -> 0 | BA43: =(1-$AO43)*'Teknisk administration'!T541 -> 0 | BB43: =(1-$AO43)*'Teknisk administration'!U541 -> 1
AN44: 0 | AO44: 0 | AZ44: =(1-$AO44)*'Teknisk administration'!S542 -> 0 | BA44: =(1-$AO44)*'Teknisk administration'!T542 -> 0 | BB44: =(1-$AO44)*'Teknisk administration'!U542 -> 0
AN45: 0 | AO45: 0 | AZ45: =(1-$AO45)*'Teknisk administration'!S543 -> 0 | BA45: =(1-$AO45)*'Teknisk administration'!T543 -> 0 | BB45: =(1-$AO45)*'Teknisk administration'!U543 -> 0
AZ46: =SUM(AZ40:AZ45) -> 1 | BA46: =SUM(BA40:BA45) -> 1 | BB46: =SUM(BB40:BB45) -> 1

Sheet 1 Intro djuren
A1: 1 Intro djuren
A2: Obligatoriskt blad
A3: På detta blad fyller du i uppgifter om djuren. Vissa uppgifter används på flera platser, så därför ska du fylla i dem på detta blad så förs de över till kommande blad. | I3: Det här betyder färgerna:
A4: Obligatoriska och frivilliga blad: En del blad har markerats som obligatoriska, och data som du lägger in på dem kommer automatiskt att dyka upp på flera platser där de behövs. Det finns även blad som är frivilliga eftersom de inte är relevanta för alla produktionsinriktningar. Data som du lägger in på frivilliga blad kan du behöva skriva in flera gånger, eftersom verktyget inte vet på förhand vad som kommer att vara relevant och inte för just dig. | I4: Cell med värden hämtade från annan cell
I5: Fyll i din egen siffra
A6: I tabellen nedan får du en kort beskrivning av bladen i del 1, och instruktion huruvida du behöver fylla i bladet | I6: Resultat/uträkning
A7: Del 1. Djuren | B7: Ska bladet fyllas i? | C7: Om bladet | I7: Förklaringar till raden
A8: =A1 -> 1 Intro djuren | B8: ='Teknisk administration'!G4 -> obligatoriskt | C8: Ange antal djur. Uppgifterna används på andra blad | I8: Plats för egna kommentarer
A9: =B_N_Kött -> 1.1 Kött | B9: ='Teknisk administration'!G4 -> obligatoriskt | C9: Beräknar mängd producerat kött
A10: =B_N_Tillvaxt -> 1.2 Tillväxt & förökning | B10: ='Teknisk administration'!G5 -> frivilligt | C10: Nyckeltal för tillväxt, kornas produktivitet, rekrytering | I10: Snabblänkar till bladen i verktyget:
A11: =B_N_Halsa -> 1.3 Hälsa & dödlighet | B11: ='Teknisk administration'!G5 -> frivilligt | C11: Förekomst och kostnader för sjukdomar och ohälsa. Dödlighet i olika åldersgrupper | I11: Instruktion
I12: Bakgrund
I13: 1 Intro djuren
I14: 1.1 Kött
I15: 1.2 Tillväxt & förökning
I16: 1.3 Hälsa & dödlighet
I17: 2 Intro foder
A18: Fyll i antal djur samt stallplatser i gula celler. Om en kategori inte är relavant lämnar du cellen tom. | I18: 2.1 Odling foder
A19: Ljusgrå text och vit bakgrund = kategorin är ej relevant för dig, baserat på dina svar på Ja/nej-frågorna på bladet Bakgrund | I19: 2.2 Förluster vid lagring
A20: Antal nötkreatur | B20: Enhet | C20: =Bakgrund!R$7 -> Period 1 | D20: =Bakgrund!S$7 -> Period 2 | E20: =Bakgrund!T$7 -> Period 3 | F20: Förklaring | G20: Egen kommentar | I20: 2.3 Inköpt foder (exkl mineral)
A21: Hondjur betäckta med tjur/seminerade | B21: antal | F21: Totala antalet betäckta/seminerade hondjur | I21: 2.4 Utfodrat
A22: Övriga vuxna kor i besättningen | B22: antal | F22: Vuxna kor som inte är satta i avel | I22: 2.5. Kasserat foder och spill
A23: Kor och kvigor som kalvat under året | B23: antal | F23: Totala antalet kor/kvifor som kalvat in under året | I23: 2.6 Bete
A24: Tjurar/äldre stutar och kvigor | B24: antal | F24: Antal över 2 år som inte är satta i avel | I24: 3 Växtnäringsutnyttjande (1)
A25: Ungdjur | B25: antal | F25: Antalet djur mellan 6 mån - 2 år | I25: 3 Växtnäringsutnyttjande (2) | O25: =SUM(C21+C22+C24+C25+C26+C27) -> 0 | P25: =SUM(D21+D22+D24+D25+D26+D27) -> 0 | Q25: =SUM(E21+E22+E24+E25+E26+E27) -> 0
A26: Födda kalvar | B26: antal | F26: Antalet levande födda kalvar per år, mindre än 6 månader | I26: 3 Växtnäringsutnyttjande (3)
A27: Inköpta kalvar | B27: antal | F27: Inköpta kalvar under 6 månader | I27: 4 Energi och bränsle
A28: Totalt antal djur i besättningen | B28: antal | C28: =O25 -> 0 | D28: =P25 -> 0 | E28: 0 | I28: 5 Vattenanvändning
I29: 6 Resultat
A32: Antal stallplatser enligt djurskyddslag | B32: stallplatser | F32: Max antal djur enligt djurskyddslag, se din förprövning. Fylls i om du har tillgång till uppgiften
A33: Eget mål för antal stallplatser | B33: stallplatser | F33: Så många djur som i praktiken önskas/bedöms lagom

Sheet 1.1 Kött
A1: 1.1 Kött | O1: Det här betyder färgerna:
A2: Obligatoriskt blad | T2: Snabblänkar till bladen i verktyget:
A3: Här beräknas hur mycket kött som producerats under perioden. Resurseffektiviteten uttrycks i de flesta nyckeltalen per kg kött, så därför är det viktigt att du fyller i dessa uppgifter noga så att resultaten blir så trovärdiga som möjligt. | O3: Cell med värden hämtade från annan cell | T3: Instruktion
A4: Mängden beräknas som netto, d v s sålda djur till liv och slakt minus inköpta djur. Du behöver ange antalet sålda/köpta djur på detta blad även om du redan angett det på tidigare blad. | O4: Fyll i din egen siffra | T4: Bakgrund
A5: Hänsyn kan även tas till förändring i levandelager, så om djurantalet ökat eller om man köpt in många kalvar som kommer slaktas kommande period kan man räkna med en större mängd producerat kött än vad som faktiskt sålts. | O5: Möjligt fylla i eget värde, om du har | T5: 1 Intro djuren
A6: Mängden uttrycks som kg kött (kg slaktvikt), och omräkning görs därför från levandevikt till slaktvikt för att få en gemensam räknebas. | O6: Resultat/uträkning | T6: 1.1 Kött
O7: Förklaringar till raden | T7: 1.2 Tillväxt & förökning
A8: Perioderna ligger under varandra. | O8: Plats för egna kommentarer | T8: 1.3 Hälsa & dödlighet
O9: Schablonvärde | T9: 2 Intro foder
O10: Egen uppgift, men välj värde ur rullista. | T10: 2.1 Odling foder
T11: 2.2 Förluster vid lagring
A12: =Bakgrund!$R$7 -> Period 1 | T12: 2.3 Inköpt foder (exkl mineral)
A13: ="Sålda djur " &A12 -> Sålda djur Period 1 | B13: Antal | C13: Genomsnittlig vikt per djur | E13: Slaktutbyte (%) | G13: Förklaring | J13: Egen kommentar | T13: 2.4 Utfodrat
A14: Välj lämpligt alternativ ur lista! | B14: styck | C14: Vikt | D14: Enhet | E14: Schablonvärde (%) | F14: Eget värde - Fylls i om du vill räkna med annat slaktutbyte än schablon | L14: slaktubyte | T14: 2.5. Kasserat foder och spill
D15: =IF(ISTEXT(A15),VLOOKUP(A15,Tabell28279[],2,FALSE),"") ->  | E15: =IF(ISTEXT(A15),VLOOKUP(A15,Tabell28279[],3,FALSE),"") ->  | G15: Ange antal sålda djur till slakt eller liv, och vikt vid försäljning. Döda och kasserade djur ska inte tas med. Vikten på slaktdjur kan anges som levande- eller slaktvikt - välj rätt alternativ! Ditt val styr slaktutbyte - du kan välja genella kategorier eller specificerat på kön och typ. Fyll i eget värde på slaktutbyte om schablonvärdet inte stämmer - se tabell till höger. Vikten på livdjur räknas om till slaktvikt så att mängden kött kan summeras. | L15: =IF(E15=1,1,IF(AND(F15>0,F15<1),F15,E15)) ->  | T15: 2.6 Bete
D16: =IF(ISTEXT(A16),VLOOKUP(A16,Tabell28279[],2,FALSE),"") ->  | E16: =IF(ISTEXT(A16),VLOOKUP(A16,Tabell28279[],3,FALSE),"") ->  | T16: 3 Växtnäringsutnyttjande (1)
D17: =IF(ISTEXT(A17),VLOOKUP(A17,Tabell28279[],2,FALSE),"") ->  | E17: =IF(ISTEXT(A17),VLOOKUP(A17,Tabell28279[],3,FALSE),"") ->  | T17: 3 Växtnäringsutnyttjande (2)
D18: =IF(ISTEXT(A18),VLOOKUP(A18,Tabell28279[],2,FALSE),"") ->  | E18: =IF(ISTEXT(A18),VLOOKUP(A18,Tabell28279[],3,FALSE),"") ->  | T18: 3 Växtnäringsutnyttjande (3)
D19: =IF(ISTEXT(A19),VLOOKUP(A19,Tabell28279[],2,FALSE),"") ->  | E19: =IF(ISTEXT(A19),VLOOKUP(A19,Tabell28279[],3,FALSE),"") ->  | N19: Slaktutbyte nöt, schablonvärden (kg slaktvikt av kg levandevikt) | T19: 4 Energi och bränsle
D20: =IF(ISTEXT(A20),VLOOKUP(A20,Tabell28279[],2,FALSE),"") ->  | E20: =IF(ISTEXT(A20),VLOOKUP(A20,Tabell28279[],3,FALSE),"") ->  | N20: Nöt | O20: Låg | P20: Medel | Q20: Hög | T20: 5 Vattenanvändning
D21: =IF(ISTEXT(A21),VLOOKUP(A21,Tabell28279[],2,FALSE),"") ->  | E21: =IF(ISTEXT(A21),VLOOKUP(A21,Tabell28279[],3,FALSE),"") ->  | N21: köttras tjur lätt | O21: 0.51 | P21: 0.53 | Q21: 0.55 | T21: 6 Resultat
D22: =IF(ISTEXT(A22),VLOOKUP(A22,Tabell28279[],2,FALSE),"") ->  | E22: =IF(ISTEXT(A22),VLOOKUP(A22,Tabell28279[],3,FALSE),"") ->  | N22: köttras tjur tung | O22: 0.52 | P22: 0.55 | Q22: 0.58
N23: mjölkras tjur | O23: 0.5 | P23: 0.52 | Q23: 0.53
N24: köttras stut lätt | O24: 0.5 | P24: 0.52 | Q24: 0.54
A25: ="Inköpta djur "&A12 -> Inköpta djur Period 1 | B25: Antal | C25: Genomsnittlig vikt per djur | E25: Förklaring | I25: Egen kommentar | N25: köttras stut tung | O25: 0.51 | P25: 0.54 | Q25: 0.56
A26: Välj lämpligt alternativ ur lista! | B26: styck | C26: Vikt | D26: Enhet | N26: mjölkras stut | O26: 0.49 | P26: 0.51 | Q26: 0.53
D27: =IF(ISTEXT(A27),VLOOKUP(A27,'Teknisk administration'!$Q$188:$T$192,2,FALSE),"") ->  | E27: Ange antal inköpta djur och vikt när de köptes in. Vikten på dessa djur dras ifrån vikten på sålda djur så att mängden kött (netto) kan beräknas. För att kunna göra det räknas vikten på inköpta djur om till slaktvikt (52 % slaktutbyte). | L27: =IF(ISTEXT(A27),VLOOKUP(A27,'Teknisk administration'!$Q$188:$T$192,3,FALSE),"") ->  | N27: köttras kviga tung | O27: 0.5 | P27: 0.52 | Q27: 0.54
D28: =IF(ISTEXT(A28),VLOOKUP(A28,'Teknisk administration'!$Q$188:$T$192,2,FALSE),"") ->  | L28: =IF(ISTEXT(A28),VLOOKUP(A28,'Teknisk administration'!$Q$188:$T$192,3,FALSE),"") ->  | N28: köttras kviga lätt | O28: 0.49 | P28: 0.51 | Q28: 0.53
D29: =IF(ISTEXT(A29),VLOOKUP(A29,'Teknisk administration'!$Q$188:$T$192,2,FALSE),"") ->  | L29: =IF(ISTEXT(A29),VLOOKUP(A29,'Teknisk administration'!$Q$188:$T$192,3,FALSE),"") ->  | N29: mjölkras kviga | O29: 0.48 | P29: 0.5 | Q29: 0.52
D30: =IF(ISTEXT(A30),VLOOKUP(A30,'Teknisk administration'!$Q$188:$T$192,2,FALSE),"") ->  | L30: =IF(ISTEXT(A30),VLOOKUP(A30,'Teknisk administration'!$Q$188:$T$192,3,FALSE),"") -> 
D31: =IF(ISTEXT(A31),VLOOKUP(A31,'Teknisk administration'!$Q$188:$T$192,2,FALSE),"") ->  | L31: =IF(ISTEXT(A31),VLOOKUP(A31,'Teknisk administration'!$Q$188:$T$192,3,FALSE),"") -> 
D32: =IF(ISTEXT(A32),VLOOKUP(A32,'Teknisk administration'!$Q$188:$T$192,2,FALSE),"") ->  | L32: =IF(ISTEXT(A32),VLOOKUP(A32,'Teknisk administration'!$Q$188:$T$192,3,FALSE),"") -> 
D33: =IF(ISTEXT(A33),VLOOKUP(A33,'Teknisk administration'!$Q$188:$T$192,2,FALSE),"") ->  | L33: =IF(ISTEXT(A33),VLOOKUP(A33,'Teknisk administration'!$Q$188:$T$192,3,FALSE),"") -> 
D34: =IF(ISTEXT(A34),VLOOKUP(A34,'Teknisk administration'!$Q$188:$T$192,2,FALSE),"") ->  | L34: =IF(ISTEXT(A34),VLOOKUP(A34,'Teknisk administration'!$Q$188:$T$192,3,FALSE),"") -> 
A37: Frivilligt: Fyll i denna tabell om det skett stora förändringar i levandelager djur, så inkluderas förändringen i mängden producerat kött. Det kan t ex vara aktuellt om många kalvar fötts eller köpts in aktuell period medan få djur har slaktats, eller om du föder upp i omgångar.
A38: Börja med att benämna djurslaget (t ex "tjurar"). Ange sedan hur många de var vid periodens start och vad de vägde då, samt hur många som är kvar vid periodens slut och vad de väger då.
A39: För kalvar som fötts under perioden fyller du bara i antal och vikt vid periodens slut. För djur som köpts in under perioden anger du vikt och antal när de sattes in i besättningen.
A40: ="Förändring levandelager "&A13 -> Förändring levandelager Sålda djur Period 1
A41: Djurslag, fritext (t ex kalvar, tjurar) | B41: Periodens start alt. insättning | D41: Slaktutbyte (%) | E41: kg kött vid periodens start | F41: Periodens slut | H41: Slaktutbyte (%) | I41: kg kött vid periodens slut | J41: Förändring (kg kött) | AC41: kg kött vid periodens start | AD41: kg kött vid periodens slut | AE41: Förändring (kg kött)
B42: Antal | C42: Vikt (kg levande vikt) | F42: Antal | G42: Vikt (kg levande vikt) | K42: Egen kommentar
D43: 0.52 | E43: =B43*C43*D43 -> 0 | H43: 0.52 | I43: =F43*G43*H43 -> 0 | J43: =I43-E43 -> 0 | AC43: =B43*C43*D43 -> 0 | AD43: =F43*G43*H43 -> 0 | AE43: =AD43-AC43 -> 0
D44: 0.52 | E44: =B44*C44*D44 -> 0 | H44: 0.52 | I44: =F44*G44*H44 -> 0 | J44: =I44-E44 -> 0 | AC44: 0 | AD44: 0 | AE44: 0
D45: 0.52 | E45: 0 | H45: 0.52 | I45: 0 | J45: 0 | AC45: 0 | AD45: 0 | AE45: 0
D46: 0.52 | E46: 0 | H46: 0.52 | I46: 0 | J46: 0 | AC46: 0 | AD46: 0 | AE46: 0
D47: 0.52 | E47: 0 | H47: 0.52 | I47: 0 | J47: 0 | AC47: 0 | AD47: 0 | AE47: 0
D48: 0.52 | E48: 0 | H48: 0.52 | I48: 0 | J48: 0 | AC48: 0 | AD48: 0 | AE48: 0
A49: Summa | E49: =SUM(E43:E48) -> 0 | I49: =SUM(I43:I48) -> 0 | J49: =SUM(J43:J48) -> 0 | AC49: =SUM(AC43:AC48) -> 0 | AD49: =SUM(AD43:AD48) -> 0 | AE49: =SUM(AE43:AE48) -> 0
A53: ="Totalt " &A12 -> Totalt Period 1 | B53: Enhet | C53: Sålt | D53: Inköpt | E53: Netto | F53: Förklaring
A54: Sålt minus inköpt | B54: kg kött | C54: =SUMPRODUCT(B15:B22,C15:C22,L15:L22) -> 0 | D54: =SUMPRODUCT(B27:B34,C27:C34,L27:L34) -> 0 | E54: =C54-D54 -> 0 | F54: Netto = Sålda minus inköpta djur, omräknat till slaktvikt.
A55: Ev förändring levandelager | B55: kg kött | E55: =AE49 -> 0 | F55: Netto = förändring i levandelager
E56: =SUM(E54:E55) -> 0 | F56: Netto sålda minus köpta djur och förändring i levandelager (i kg kött)
A64: =Bakgrund!$S$7 -> Period 2
A65: ="Sålda djur " &A64 -> Sålda djur Period 2 | B65: Antal | C65: Genomsnittlig vikt per djur | E65: Slaktutbyte (%) | G65: Förklaring | J65: Egen kommentar | N65: Slaktutbyte nöt, schablonvärden (kg slaktvikt av kg levandevikt)
A66: Välj lämpligt alternativ ur lista! | B66: styck | C66: Vikt | D66: Enhet | E66: Schablonvärde (%) | F66: Eget värde - Fylls i om du vill räkna med annat slaktutbyte än schablon | L66: slaktubyte | N66: Nöt | O66: Låg | P66: Medel | Q66: Hög
D67: =IF(ISTEXT(A67),VLOOKUP(A67,Tabell28279[],2,FALSE),"") ->  | E67: =IF(ISTEXT(A67),VLOOKUP(A67,Tabell28279[],3,FALSE),"") ->  | G67: Ange antal sålda djur till slakt eller liv, och vikt vid försäljning. Döda och kasserade djur ska inte tas med. Vikten på slaktdjur kan anges som levande- eller slaktvikt - välj rätt alternativ! Ditt val styr slaktutbyte - du kan välja genella kategorier eller specificerat på kön och typ. Fyll i eget värde på slaktutbyte om schablonvärdet inte stämmer - se tabell till höger. Vikten på livdjur räknas om till slaktvikt så att mängden kött kan summeras. | L67: =IF(E67=1,1,IF(AND(F67>0,F67<1),F67,E67)) ->  | N67: köttras tjur lätt | O67: 0.51 | P67: 0.53 | Q67: 0.55
D68: =IF(ISTEXT(A68),VLOOKUP(A68,Tabell28279[],2,FALSE),"") ->  | E68: =IF(ISTEXT(A68),VLOOKUP(A68,Tabell28279[],3,FALSE),"") ->  | N68: köttras tjur tung | O68: 0.52 | P68: 0.55 | Q68: 0.58
D69: =IF(ISTEXT(A69),VLOOKUP(A69,Tabell28279[],2,FALSE),"") ->  | E69: =IF(ISTEXT(A69),VLOOKUP(A69,Tabell28279[],3,FALSE),"") ->  | N69: mjölkras tjur | O69: 0.5 | P69: 0.52 | Q69: 0.53
D70: =IF(ISTEXT(A70),VLOOKUP(A70,Tabell28279[],2,FALSE),"") ->  | E70: =IF(ISTEXT(A70),VLOOKUP(A70,Tabell28279[],3,FALSE),"") ->  | N70: köttras stut lätt | O70: 0.5 | P70: 0.52 | Q70: 0.54
D71: =IF(ISTEXT(A71),VLOOKUP(A71,Tabell28279[],2,FALSE),"") ->  | E71: =IF(ISTEXT(A71),VLOOKUP(A71,Tabell28279[],3,FALSE),"") ->  | N71: köttras stut tung | O71: 0.51 | P71: 0.54 | Q71: 0.56
D72: =IF(ISTEXT(A72),VLOOKUP(A72,Tabell28279[],2,FALSE),"") ->  | E72: =IF(ISTEXT(A72),VLOOKUP(A72,Tabell28279[],3,FALSE),"") ->  | N72: mjölkras stut | O72: 0.49 | P72: 0.51 | Q72: 0.53
D73: =IF(ISTEXT(A73),VLOOKUP(A73,Tabell28279[],2,FALSE),"") ->  | E73: =IF(ISTEXT(A73),VLOOKUP(A73,Tabell28279[],3,FALSE),"") ->  | N73: köttras kviga tung | O73: 0.5 | P73: 0.52 | Q73: 0.54
D74: =IF(ISTEXT(A74),VLOOKUP(A74,Tabell28279[],2,FALSE),"") ->  | E74: =IF(ISTEXT(A74),VLOOKUP(A74,Tabell28279[],3,FALSE),"") ->  | N74: köttras kviga lätt | O74: 0.49 | P74: 0.51 | Q74: 0.53
N75: mjölkras kviga | O75: 0.48 | P75: 0.5 | Q75: 0.52
A77: ="Inköpta djur "&A64 -> Inköpta djur Period 2 | B77: Antal | C77: Genomsnittlig vikt per djur | E77: Förklaring | I77: Egen kommentar
A78: Välj lämpligt alternativ ur lista! | B78: styck | C78: Vikt | D78: Enhet
D79: =IF(ISTEXT(A79),VLOOKUP(A79,'Teknisk administration'!$Q$188:$T$192,2,FALSE),"") ->  | E79: Ange antal inköpta djur och vikt när de köptes in. Vikten på dessa djur dras ifrån vikten på sålda djur så att mängden kött (netto) kan beräknas. För att kunna göra det räknas vikten på inköpta djur om till slaktvikt (52 % slaktutbyte). | L79: =IF(ISTEXT(A79),VLOOKUP(A79,'Teknisk administration'!$Q$188:$T$192,3,FALSE),"") -> 
D80: =IF(ISTEXT(A80),VLOOKUP(A80,'Teknisk administration'!$Q$188:$T$192,2,FALSE),"") ->  | L80: =IF(ISTEXT(A80),VLOOKUP(A80,'Teknisk administration'!$Q$188:$T$192,3,FALSE),"") -> 
D81: =IF(ISTEXT(A81),VLOOKUP(A81,'Teknisk administration'!$Q$188:$T$192,2,FALSE),"") ->  | L81: =IF(ISTEXT(A81),VLOOKUP(A81,'Teknisk administration'!$Q$188:$T$192,3,FALSE),"") -> 
D82: =IF(ISTEXT(A82),VLOOKUP(A82,'Teknisk administration'!$Q$188:$T$192,2,FALSE),"") ->  | L82: =IF(ISTEXT(A82),VLOOKUP(A82,'Teknisk administration'!$Q$188:$T$192,3,FALSE),"") -> 
D83: =IF(ISTEXT(A83),VLOOKUP(A83,'Teknisk administration'!$Q$188:$T$192,2,FALSE),"") ->  | L83: =IF(ISTEXT(A83),VLOOKUP(A83,'Teknisk administration'!$Q$188:$T$192,3,FALSE),"") -> 
D84: =IF(ISTEXT(A84),VLOOKUP(A84,'Teknisk administration'!$Q$188:$T$192,2,FALSE),"") ->  | L84: =IF(ISTEXT(A84),VLOOKUP(A84,'Teknisk administration'!$Q$188:$T$192,3,FALSE),"") -> 
D85: =IF(ISTEXT(A85),VLOOKUP(A85,'Teknisk administration'!$Q$188:$T$192,2,FALSE),"") ->  | L85: =IF(ISTEXT(A85),VLOOKUP(A85,'Teknisk administration'!$Q$188:$T$192,3,FALSE),"") -> 
D86: =IF(ISTEXT(A86),VLOOKUP(A86,'Teknisk administration'!$Q$188:$T$192,2,FALSE),"") ->  | L86: =IF(ISTEXT(A86),VLOOKUP(A86,'Teknisk administration'!$Q$188:$T$192,3,FALSE),"") -> 
A89: Frivilligt: Fyll i denna tabell om det skett stora förändringar i levandelager djur, så inkluderas förändringen i mängden producerat kött. Det kan t ex vara aktuellt om många kalvar fötts eller köpts in aktuell period medan få djur har slaktats, eller om du föder upp i omgångar.
A90: Börja med att benäma djurslaget (t ex "tjurar"). Ange sedan hur många de var vid periodens start och vad de vägde då, samt hur många som är kvar vid periodens slut och vad de väger då.
A91: För kalvar som fötts under perioden fyller du bara i antal och vikt vid periodens slut. För djur som köpts in under perioden anger du vikt och antal när de sattes in i besättningen.
A92: ="Förändring levandelager "&A65 -> Förändring levandelager Sålda djur Period 2
A93: Djurslag, fritext (t ex kalvar, tjurar) | B93: Periodens start alt. insättning | D93: Slaktutbyte (%) | E93: kg kött vid periodens start | F93: Periodens slut | H93: Slaktutbyte (%) | I93: kg kött vid periodens slut | J93: Förändring (kg kött)
B94: Antal | C94: Vikt (kg levande vikt) | F94: Antal | G94: Vikt (kg levande vikt) | K94: Egen kommentar
D95: 0.52 | E95: =B95*C95*D95 -> 0 | H95: 0.52 | I95: =F95*G95*H95 -> 0 | J95: =I95-E95 -> 0 | AC95: =B95*C95*D95 -> 0 | AD95: =F95*G95*H95 -> 0 | AE95: =AD95-AC95 -> 0
D96: 0.52 | E96: =B96*C96*D96 -> 0 | H96: 0.52 | I96: =F96*G96*H96 -> 0 | J96: =I96-E96 -> 0 | AC96: 0 | AD96: 0 | AE96: 0
D97: 0.52 | E97: 0 | H97: 0.52 | I97: 0 | J97: 0 | AC97: 0 | AD97: 0 | AE97: 0
D98: 0.52 | E98: 0 | H98: 0.52 | I98: 0 | J98: 0 | AC98: 0 | AD98: 0 | AE98: 0
D99: 0.52 | E99: 0 | H99: 0.52 | I99: 0 | J99: 0 | AC99: 0 | AD99: 0 | AE99: 0
D100: 0.52 | E100: 0 | H100: 0.52 | I100: 0 | J100: 0 | AC100: 0 | AD100: 0 | AE100: 0
A101: Summa | E101: =SUM(E95:E100) -> 0 | I101: =SUM(I95:I100) -> 0 | J101: =SUM(J95:J100) -> 0 | AC101: =SUM(AC95:AC100) -> 0 | AD101: =SUM(AD95:AD100) -> 0 | AE101: =SUM(AE95:AE100) -> 0
A105: ="Totalt " &A64 -> Totalt Period 2 | B105: Enhet | C105: Sålt | D105: Inköpt | E105: Netto | F105: Förklaring
A106: Sålt minus inköpt | B106: kg kött | C106: =SUMPRODUCT(B67:B74,C67:C74,L67:L74) -> 0 | D106: =SUMPRODUCT(B79:B86,C79:C86,L79:L86) -> 0 | E106: =C106-D106 -> 0 | F106: Netto = Sålda minus inköpta djur, omräknat till slaktvikt.
A107: Ev förändring levandelager | B107: kg kött | E107: =AE101 -> 0 | F107: Netto = förändring i levandelager
E108: =SUM(E106:E107) -> 0 | F108: Netto sålda minus köpta djur och förändring i levandelager (i kg kött)
A115: =Bakgrund!$T$7 -> Period 3
A116: ="Sålda djur " &A115 -> Sålda djur Period 3 | B116: Antal | C116: Genomsnittlig vikt per djur | E116: Slaktutbyte (%) | G116: Förklaring | J116: Egen kommentar | N116: Slaktutbyte nöt, schablonvärden (kg slaktvikt av kg levandevikt)
A117: Välj lämpligt alternativ ur lista! | B117: styck | C117: Vikt | D117: Enhet | E117: Schablonvärde (%) | F117: Eget värde - Fylls i om du vill räkna med annat slaktutbyte än schablon | L117: slaktubyte | N117: Nöt | O117: Låg | P117: Medel | Q117: Hög
D118: =IF(ISTEXT(A118),VLOOKUP(A118,Tabell28279[],2,FALSE),"") ->  | E118: =IF(ISTEXT(A118),VLOOKUP(A118,Tabell28279[],3,FALSE),"") ->  | G118: Ange antal sålda djur till slakt eller liv, och vikt vid försäljning. Döda och kasserade djur ska inte tas med. Vikten på slaktdjur kan anges som levande- eller slaktvikt - välj rätt alternativ! Ditt val styr slaktutbyte - du kan välja genella kategorier eller specificerat på kön och typ. Fyll i eget värde på slaktutbyte om schablonvärdet inte stämmer - se tabell till höger. Vikten på livdjur räknas om till slaktvikt så att mängden kött kan summeras. | L118: =IF(E118=1,1,IF(AND(F118>0,F118<1),F118,E118)) ->  | N118: köttras tjur lätt | O118: 0.51 | P118: 0.53 | Q118: 0.55
D119: =IF(ISTEXT(A119),VLOOKUP(A119,Tabell28279[],2,FALSE),"") ->  | E119: =IF(ISTEXT(A119),VLOOKUP(A119,Tabell28279[],3,FALSE),"") ->  | N119: köttras tjur tung | O119: 0.52 | P119: 0.55 | Q119: 0.58
D120: =IF(ISTEXT(A120),VLOOKUP(A120,Tabell28279[],2,FALSE),"") ->  | E120: =IF(ISTEXT(A120),VLOOKUP(A120,Tabell28279[],3,FALSE),"") ->  | N120: mjölkras tjur | O120: 0.5 | P120: 0.52 | Q120: 0.53
D121: =IF(ISTEXT(A121),VLOOKUP(A121,Tabell28279[],2,FALSE),"") ->  | E121: =IF(ISTEXT(A121),VLOOKUP(A121,Tabell28279[],3,FALSE),"") ->  | N121: köttras stut lätt | O121: 0.5 | P121: 0.52 | Q121: 0.54
D122: =IF(ISTEXT(A122),VLOOKUP(A122,Tabell28279[],2,FALSE),"") ->  | E122: =IF(ISTEXT(A122),VLOOKUP(A122,Tabell28279[],3,FALSE),"") ->  | N122: köttras stut tung | O122: 0.51 | P122: 0.54 | Q122: 0.56
D123: =IF(ISTEXT(A123),VLOOKUP(A123,Tabell28279[],2,FALSE),"") ->  | E123: =IF(ISTEXT(A123),VLOOKUP(A123,Tabell28279[],3,FALSE),"") ->  | N123: mjölkras stut | O123: 0.49 | P123: 0.51 | Q123: 0.53
D124: =IF(ISTEXT(A124),VLOOKUP(A124,Tabell28279[],2,FALSE),"") ->  | E124: =IF(ISTEXT(A124),VLOOKUP(A124,Tabell28279[],3,FALSE),"") ->  | N124: köttras kviga tung | O124: 0.5 | P124: 0.52 | Q124: 0.54
D125: =IF(ISTEXT(A125),VLOOKUP(A125,Tabell28279[],2,FALSE),"") ->  | E125: =IF(ISTEXT(A125),VLOOKUP(A125,Tabell28279[],3,FALSE),"") ->  | N125: köttras kviga lätt | O125: 0.49 | P125: 0.51 | Q125: 0.53
N126: mjölkras kviga | O126: 0.48 | P126: 0.5 | Q126: 0.52
A128: ="Inköpta djur "&A115 -> Inköpta djur Period 3 | B128: Antal | C128: Genomsnittlig vikt per djur | E128: Förklaring | I128: Egen kommentar
A129: Välj lämpligt alternativ ur lista! | B129: styck | C129: Vikt | D129: Enhet
D130: =IF(ISTEXT(A130),VLOOKUP(A130,'Teknisk administration'!$Q$188:$T$192,2,FALSE),"") ->  | E130: Ange antal inköpta djur och vikt när de köptes in. Vikten på dessa djur dras ifrån vikten på sålda djur så att mängden kött (netto) kan beräknas. För att kunna göra det räknas vikten på inköpta djur om till slaktvikt (52 % slaktutbyte). | L130: =IF(ISTEXT(A130),VLOOKUP(A130,'Teknisk administration'!$Q$188:$T$192,3,FALSE),"") -> 
D131: =IF(ISTEXT(A131),VLOOKUP(A131,'Teknisk administration'!$Q$188:$T$192,2,FALSE),"") ->  | L131: =IF(ISTEXT(A131),VLOOKUP(A131,'Teknisk administration'!$Q$188:$T$192,3,FALSE),"") -> 
D132: =IF(ISTEXT(A132),VLOOKUP(A132,'Teknisk administration'!$Q$188:$T$192,2,FALSE),"") ->  | L132: =IF(ISTEXT(A132),VLOOKUP(A132,'Teknisk administration'!$Q$188:$T$192,3,FALSE),"") -> 
D133: =IF(ISTEXT(A133),VLOOKUP(A133,'Teknisk administration'!$Q$188:$T$192,2,FALSE),"") ->  | L133: =IF(ISTEXT(A133),VLOOKUP(A133,'Teknisk administration'!$Q$188:$T$192,3,FALSE),"") -> 
D134: =IF(ISTEXT(A134),VLOOKUP(A134,'Teknisk administration'!$Q$188:$T$192,2,FALSE),"") ->  | L134: =IF(ISTEXT(A134),VLOOKUP(A134,'Teknisk administration'!$Q$188:$T$192,3,FALSE),"") -> 
D135: =IF(ISTEXT(A135),VLOOKUP(A135,'Teknisk administration'!$Q$188:$T$192,2,FALSE),"") ->  | L135: =IF(ISTEXT(A135),VLOOKUP(A135,'Teknisk administration'!$Q$188:$T$192,3,FALSE),"") -> 
D136: =IF(ISTEXT(A136),VLOOKUP(A136,'Teknisk administration'!$Q$188:$T$192,2,FALSE),"") ->  | L136: =IF(ISTEXT(A136),VLOOKUP(A136,'Teknisk administration'!$Q$188:$T$192,3,FALSE),"") -> 
D137: =IF(ISTEXT(A137),VLOOKUP(A137,'Teknisk administration'!$Q$188:$T$192,2,FALSE),"") ->  | L137: =IF(ISTEXT(A137),VLOOKUP(A137,'Teknisk administration'!$Q$188:$T$192,3,FALSE),"") -> 
A139: Frivilligt: Fyll i denna tabell om det skett stora förändringar i levandelager djur, så inkluderas förändringen i mängden producerat kött. Det kan t ex vara aktuellt om många kalvar fötts eller köpts in aktuell period medan få djur har slaktats, eller om du föder upp i omgångar.
A140: Börja med att benäma djurslaget (t ex "tjurar"). Ange sedan hur många de var vid periodens start och vad de vägde då, samt hur många som är kvar vid periodens slut och vad de väger då.
A141: För kalvar som fötts under perioden fyller du bara i antal och vikt vid periodens slut. För djur som köpts in under perioden anger du vikt och antal när de sattes in i besättningen.
A142: ="Förändring levandelager "&A115 -> Förändring levandelager Period 3
A143: Djurslag, fritext (t ex kalvar, tjurar) | B143: Periodens start alt. insättning | D143: Slaktutbyte (%) | E143: kg kött vid periodens start | F143: Periodens slut | H143: Slaktutbyte (%) | I143: kg kött vid periodens slut | J143: Förändring (kg kött)
B144: Antal | C144: Vikt (kg levande vikt) | F144: Antal | G144: Vikt (kg levande vikt) | K144: Egen kommentar
D145: 0.52 | E145: =B145*C145*D145 -> 0 | H145: 0.52 | I145: =F145*G145*H145 -> 0 | J145: =I145-E145 -> 0 | AC145: =B145*C145*D145 -> 0 | AD145: =F145*G145*H145 -> 0 | AE145: =AD145-AC145 -> 0
D146: 0.52 | E146: =B146*C146*D146 -> 0 | H146: 0.52 | I146: =F146*G146*H146 -> 0 | J146: =I146-E146 -> 0 | AC146: 0 | AD146: 0 | AE146: 0
D147: 0.52 | E147: 0 | H147: 0.52 | I147: 0 | J147: 0 | AC147: 0 | AD147: 0 | AE147: 0
D148: 0.52 | E148: 0 | H148: 0.52 | I148: 0 | J148: 0 | AC148: 0 | AD148: 0 | AE148: 0
D149: 0.52 | E149: 0 | H149: 0.52 | I149: 0 | J149: 0 | AC149: 0 | AD149: 0 | AE149: 0
D150: 0.52 | E150: 0 | H150: 0.52 | I150: 0 | J150: 0 | AC150: 0 | AD150: 0 | AE150: 0
A151: Summa | E151: =SUM(E145:E150) -> 0 | I151: =SUM(I145:I150) -> 0 | J151: =SUM(J145:J150) -> 0 | AC151: =SUM(AC145:AC150) -> 0 | AD151: =SUM(AD145:AD150) -> 0 | AE151: =SUM(AE145:AE150) -> 0
A155: ="Totalt " &A115 -> Totalt Period 3 | B155: Enhet | C155: Sålt | D155: Inköpt | E155: Netto | F155: Förklaring
A156: Sålt minus inköpt | B156: kg kött | C156: =SUMPRODUCT(B118:B125,C118:C125,L118:L125) -> 0 | D156: =SUMPRODUCT(B130:B137,C130:C137,L130:L137) -> 0 | E156: =C156-D156 -> 0 | F156: Netto = Sålda minus inköpta djur, omräknat till slaktvikt.
A157: Ev förändring levandelager | B157: kg kött | E157: =AE151 -> 0 | F157: Netto = förändring i levandelager
E158: =SUM(E156:E157) -> 0 | F158: Netto sålda minus köpta djur och förändring i levandelager (i kg kött)

Sheet 1.2 Tillväxt & förökning
A1: 1.2 Tillväxt & förökning | AN1: Det här betyder färgerna:
A2: Bladet är frivilligt att fylla i | AN2: Cell med värden hämtade från annan cell
A3: ="Här beräknar du nyckeltal för "&IF(Bakgrund!AZ46>0,"kornas produktivitet (kalvar/betäckt hondjur, fertilitet, rekrytering) och ","")&"ungnötens tillväxt." & IF(Bakgrund!AZ46=0," Eftersom du sagt att du saknar hondjur som kalvar (ja/nej-frågorna på Bakgrund) är texten under rubriken '"&A7&"' ljusgrå för att indikera att du ska hoppa över det avsnittet","") -> Här beräknar du nyckeltal för kornas produktivitet (kalvar/betäckt hondjur, fertilitet, rekrytering) och ungnötens tillväxt. | AN3: Fyll i din egen siffra
AN4: Resultat/uträkning
AN5: Schablonvärde
AN6: Förklaringar till raden
A7: Dikor och rekrytering | AN7: Plats för egna kommentarer
AN8: Glöm inte att fylla i värde! (Här krävs ett värde för att andra beräkningar ska fungera
A9: Avvanda kalvar/betäckt hondjur | B9: Enhet | C9: =Bakgrund!R7 -> Period 1 | D9: =Bakgrund!S7 -> Period 2 | E9: =Bakgrund!T7 -> Period 3 | F9: Egen kommentar | I9: Förklaring
A10: Antal avvanda kalvar | B10: antal | I10: Antalet födda kalvar som avvants från moder | M10: Diko | AN10: Snabblänkar till bladen i verktyget:
A11: Antal hondjur betäckta med tjur/seminerade | B11: antal | C11: ='1 Intro djuren'!C21 -> 0 | D11: ='1 Intro djuren'!D21 -> 0 | E11: ='1 Intro djuren'!E21 -> 0 | I11: Totala antalet hondjur som är betäckta/seminerade under året | M11: låg | N11: medel | O11: hög | AN11: Instruktion
A12: Nyckeltal: Avvanda kalvar per betäckt hondjur | B12: % | C12: =IF(C11=0,0,C10/C11) -> 0 | D12: 0 | E12: =IF(E11=0,0,E10/E11) -> 0 | I12: Avser hur stor % av födda kalvar som avvänjs | M12: 0.9 | N12: 0.95 | O12: 0.98 | AN12: Bakgrund
AN13: 1 Intro djuren
AN14: 1.1 Kött
AN15: 1.2 Tillväxt & förökning
M16: Diko | AN16: 1.3 Hälsa & dödlighet
A17: Fertilitet | B17: Enhet | C17: =Bakgrund!R7 -> Period 1 | D17: =Bakgrund!S7 -> Period 2 | E17: =Bakgrund!T7 -> Period 3 | F17: Egen kommentar | I17: Förklaring | M17: låg | N17: medel | O17: hög | AN17: 2 Intro foder
A18: Betäcknings-/semineringsålder | B18: månader | I18: Det antal månader som kvigan är vid betäckning eller seminering | M18: 15 | N18: 17 | O18: 21 | AN18: 2.1 Odling foder
A19: Inkalvningsålder | B19: månader | C19: =IF(ISNUMBER(C18),C18+9,0) -> 0 | D19: =IF(ISNUMBER(D18),D18+9,0) -> 0 | E19: 0 | I19: Ålder på kvigan vid inkalvning (betäckning/semineringsålder + 9 månader) | AN19: 2.2 Förluster vid lagring
A20: Antalet kor och kvigor som kalvat under året | B20: antal | C20: =SUM('1 Intro djuren'!C23) -> 0 | D20: =SUM('1 Intro djuren'!D23) -> 0 | E20: =SUM('1 Intro djuren'!E23) -> 0 | I20: Totalt antal kalvningar i besättningen | AN20: 2.3 Inköpt foder (exkl mineral)
A21: Antal hondjur betäckta med tjur/seminerade | B21: antal | C21: ='1 Intro djuren'!C21 -> 0 | D21: ='1 Intro djuren'!D21 -> 0 | E21: ='1 Intro djuren'!E21 -> 0 | I21: Antal hondjur som släppts till tjur eller seminerats | AN21: 2.4 Utfodrat
A22: Datum som första kalven föddes | B22: datum | I22: Fyll i datum, t ex som 15/4, 15 april eller 2020-04-15. Visas som "2020-04-15" | AN22: 2.5. Kasserat foder och spill
A23: Datum som sista kalven föddes | B23: datum | AN23: 2.6 Bete
A24: Kalvningsperiodens längd | B24: dagar | C24: =_xlfn.DAYS(C23,C22) -> 0 | D24: =_xlfn.DAYS(D23,D22) -> 0 | E24: 0 | I24: Dagar mellan första och sista dagen i kalvningsperioden. Cellen blir röd om periodens längd blir negativ. I så fall ska du justera datumen för första och sista kalven så släcks varningen. | M24: 45 | N24: 90 | O24: 150 | AN24: 3 Växtnäringsutnyttjande (1)
A25: Nyckeltal: Dräktighetsprocent | B25: % | C25: =IF(C21=0,0,C20/C21) -> 0 | D25: =IF(D21=0,0,D20/D21) -> 0 | E25: 0 | I25: Antalet hondjur som kalvat i % av hondjur som betäckts /seminerats | AN25: 3 Växtnäringsutnyttjande (2)
AN26: 3 Växtnäringsutnyttjande (3)
AN27: 4 Energi och bränsle
AN28: 5 Vattenanvändning
AN29: 6 Resultat
A30: Rekrytering | B30: Enhet | C30: =Bakgrund!R7 -> Period 1 | D30: =Bakgrund!S7 -> Period 2 | E30: =Bakgrund!T7 -> Period 3 | F30: Egen kommentar | I30: Förklaring
A31: Antal hondjur betäckta med tjur/seminerade | B31: antal | C31: ='1 Intro djuren'!C21 -> 0 | D31: ='1 Intro djuren'!D21 -> 0 | E31: ='1 Intro djuren'!E21 -> 0 | I31: Totala antalet hondjur i din besättning som är i avel (siffran hämtas från bladet Intro djuren) | M31: Diko | P31: Mjölk
A32: Rekryteringskvigor | B32: antal | I32: Antalet betäckta/seminerade kvigor i din besättning under året | M32: låg | N32: medel | O32: hög | P32: medel
A33: Rekryteringsprocent | B33: % | C33: =IF(C31=0,0,(C32/C31)) -> 0 | D33: =IF(D31=0,0,(D32/D31)) -> 0 | E33: =IF(E31=0,0,(E32/E31)) -> 0 | I33: Andel i % hur många djur som sätts in i besättningen | M33: 0.15 | N33: 0.25 | O33: 0.4 | P33: 0.3
A41: Kalvar i dikoproduktion
M42: Köttras kalv (lätt/tung) | P42: Mjölkras kalv
A43: Tillväxt kalv i dikoproduktion | B43: Enhet | C43: =Bakgrund!R7 -> Period 1 | D43: =Bakgrund!S7 -> Period 2 | E43: =Bakgrund!T7 -> Period 3 | F43: Egen kommentar | I43: Förklaring | M43: låg | N43: medel | O43: hög | P43: låg | Q43: medel | R43: hög
A44: Vikt vid födsel | B44: kg | I44: Genomsnittsvikt som kalvarna har vid födseln | M44: 38/40 | N44: 40/44 | O44: 42/48 | P44: 37 | Q44: 40 | R44: 43
A45: Levande vikt vid avvänjning eller försäljning | B45: lev. vikt kg | I45: Genomsnitt levande vikt vid specifikt tillfälle, skriv en egen kommentar om tillfället | M45: Tjurkalv 250/270 Kvigkalv 230/250 | N45: Tjurkalv 280/300 Kvigkalv 260/280 | O45: Tjukalv 320/340 Kvigkalv 290/320
A46: Uppfödningstid, dagar | B46: dagar | I46: Genomsnitt antal dagar från födsel till avvänjning eller försäljning av dikalvar | M46: 170 | N46: 200 | O46: 230
A47: Nyckeltal: Tillväxt levande vikt/dag | B47: g/dag | C47: =IF(C46=0,0,(((C45-C44)/C46)*1000)) -> 0 | D47: =IF(D46=0,0,(((D45-D44)/D46)*1000)) -> 0 | E47: 0 | I47: Kalvarnas genomsnittliga tillväxt g/dag. Jämför siffror i blå rutor | M47: Tjukalv 1000/1200 kvigkalv 950/1100 | N47: Tjurkalv 1300 / 1500 Kvigkalv 1100/1200 | O47: Tjurkalv 1500/1700 kvigkalv 1250/1400
A49: Avvänjningsvikt 6 månader | B49: kg | M49: 230 | N49: 280 | O49: 330
A56: Ungnöt
A57: Fyll i tabellen nedan för att beräkna ungnötens tillväxt. Obs! perioderna ligger under varandra
A58: Du kan fylla i flera rader per period om du exempelvis köper in djur med olika vikt. Fyll i eget värde i gula celler om du har uppgift. Lämnar du tomt används medelvärde enligt schablon
A59: Räcker inte raderna till? Ta bort bladets skrivskydd (Granska/Skydda), inget lösenord krävs. Högerklicka i tabellen och välj Infoga > Infoga rad ovanför
C61: Genomsnittsvikt vid insättning, kg | E61: Uppfödningstid, månader | G61: Genomsnittlig slaktvikt, kg | I61: Slaktutbyte, ungtjur % | K61: Tillväxt, g/dag
A62: Kön och ras | B62: Antal djur | C62: Eget värde | D62: Schablon | E62: Eget värde | F62: Schablon | G62: Eget värde | H62: Schablon | I62: Eget värde | J62: Schablon | K62: Beräknat | L62: Schablon | Y62: Värden som räknas med | AD62: Schablon
A63: Välj lämpligt alternativ ur listan! | C63: Använd egen data om möjligt. Insättning ca 6 mån för köttras och 2,5 mån för mjölkras. | E63: Antalet månader från insättning till slakt | K63: Genomsnittlig tillväxt per djur och dag under uppfödningstiden | T63: Ungtjur | U63: Stut/kviga | V63: Period 1 | W63: Period 2 | X63: Period 3 | Y63: Vikt vid insättning | Z63: Uppfödningstid, mån | AA63: slaktvikt | AB63: slaktutbyte% | AC63: tillväxt | AD63: Vikt vid insättning | AE63: Uppfödningstid, mån | AF63: slaktvikt | AG63: slaktutbyte% | AH63: tillväxt
A64: ="Period 1, "&period_1 -> Period 1, Period 1
D65: =IF(ISTEXT($A65),VLOOKUP($A65,'Teknisk administration'!$T$611:$Y$638,2,FALSE),"") ->  | F65: =IF(ISTEXT($A65),VLOOKUP($A65,'Teknisk administration'!$T$611:$Y$638,3,FALSE),"") ->  | H65: =IF(ISTEXT($A65),VLOOKUP($A65,'Teknisk administration'!$T$611:$Y$638,4,FALSE),"") ->  | J65: =IF(ISTEXT($A65),VLOOKUP($A65,'Teknisk administration'!$T$611:$Y$638,5,FALSE),"") ->  | K65: =IF(ISTEXT(A65),('1.2 Tillväxt & förökning'!AA65/'1.2 Tillväxt & förökning'!AB65-'1.2 Tillväxt & förökning'!Y65)/('1.2 Tillväxt & förökning'!Z65*30)*1000,0) -> 0 | L65: =IF(ISTEXT($A65),VLOOKUP($A65,'Teknisk administration'!$T$611:$Y$638,6,FALSE),"") ->  | S65: =IF(ISTEXT(A65),VLOOKUP(A65,'Teknisk administration'!$T$611:$Z$620,7,FALSE),0) -> 0 | T65: =IF(S65="ungtjur",1,0) -> 0 | U65: =IF(T65=0,1,0) -> 1 | V65: 1 | Y65: =IF(ISNUMBER('1.2 Tillväxt & förökning'!C65),'1.2 Tillväxt & förökning'!C65,AD65) -> Vikt vid insättning | Z65: =IF(ISNUMBER('1.2 Tillväxt & förökning'!E65),'1.2 Tillväxt & förökning'!E65,AE65) -> Uppfödningstid, mån | AA65: =IF(ISNUMBER('1.2 Tillväxt & förökning'!G65),'1.2 Tillväxt & förökning'!G65,AF65) -> slaktvikt | AB65: =IF(ISNUMBER('1.2 Tillväxt & förökning'!I65),'1.2 Tillväxt & förökning'!I65,AG65) -> slaktutbyte% | AC65: =IF(ISNUMBER('1.2 Tillväxt & förökning'!K65),'1.2 Tillväxt & förökning'!K65,AH65) -> 0 | AD65: =VLOOKUP('1.2 Tillväxt & förökning'!$A65&", medel",'Teknisk administration'!$G$611:$P$638,6,FALSE) -> Vikt vid insättning | AE65: =VLOOKUP('1.2 Tillväxt & förökning'!$A65&", medel",'Teknisk administration'!$G$611:$P$638,7,FALSE) -> Uppfödningstid, mån | AF65: =VLOOKUP('1.2 Tillväxt & förökning'!$A65&", medel",'Teknisk administration'!$G$611:$P$638,8,FALSE) -> slaktvikt | AG65: =VLOOKUP('1.2 Tillväxt & förökning'!$A65&", medel",'Teknisk administration'!$G$611:$P$638,9,FALSE) -> slaktutbyte% | AH65: =VLOOKUP('1.2 Tillväxt & förökning'!$A65&", medel",'Teknisk administration'!$G$611:$P$638,10,FALSE) -> Tillväxt g/dag
D66: =IF(ISTEXT($A66),VLOOKUP($A66,'Teknisk administration'!$T$611:$Y$638,2,FALSE),"") ->  | F66: =IF(ISTEXT($A66),VLOOKUP($A66,'Teknisk administration'!$T$611:$Y$638,3,FALSE),"") ->  | H66: =IF(ISTEXT($A66),VLOOKUP($A66,'Teknisk administration'!$T$611:$Y$638,4,FALSE),"") ->  | J66: =IF(ISTEXT($A66),VLOOKUP($A66,'Teknisk administration'!$T$611:$Y$638,5,FALSE),"") ->  | K66: =IF(ISTEXT(A66),('1.2 Tillväxt & förökning'!AA66/'1.2 Tillväxt & förökning'!AB66-'1.2 Tillväxt & förökning'!Y66)/('1.2 Tillväxt & förökning'!Z66*30)*1000,0) -> 0 | L66: =IF(ISTEXT($A66),VLOOKUP($A66,'Teknisk administration'!$T$611:$Y$638,6,FALSE),"") ->  | S66: =IF(ISTEXT(A66),VLOOKUP(A66,'Teknisk administration'!$T$611:$Z$620,7,FALSE),0) -> 0 | T66: 0 | U66: 1 | V66: 1 | Y66: =IF(ISNUMBER('1.2 Tillväxt & förökning'!C66),'1.2 Tillväxt & förökning'!C66,AD66) -> Vikt vid insättning | Z66: =IF(ISNUMBER('1.2 Tillväxt & förökning'!E66),'1.2 Tillväxt & förökning'!E66,AE66) -> Uppfödningstid, mån | AA66: =IF(ISNUMBER('1.2 Tillväxt & förökning'!G66),'1.2 Tillväxt & förökning'!G66,AF66) -> slaktvikt | AB66: =IF(ISNUMBER('1.2 Tillväxt & förökning'!I66),'1.2 Tillväxt & förökning'!I66,AG66) -> slaktutbyte% | AC66: =IF(ISNUMBER('1.2 Tillväxt & förökning'!K66),'1.2 Tillväxt & förökning'!K66,AH66) -> 0 | AD66: =VLOOKUP('1.2 Tillväxt & förökning'!$A66&", medel",'Teknisk administration'!$G$611:$P$638,6,FALSE) -> Vikt vid insättning | AE66: =VLOOKUP('1.2 Tillväxt & förökning'!$A66&", medel",'Teknisk administration'!$G$611:$P$638,7,FALSE) -> Uppfödningstid, mån | AF66: =VLOOKUP('1.2 Tillväxt & förökning'!$A66&", medel",'Teknisk administration'!$G$611:$P$638,8,FALSE) -> slaktvikt | AG66: =VLOOKUP('1.2 Tillväxt & förökning'!$A66&", medel",'Teknisk administration'!$G$611:$P$638,9,FALSE) -> slaktutbyte% | AH66: =VLOOKUP('1.2 Tillväxt & förökning'!$A66&", medel",'Teknisk administration'!$G$611:$P$638,10,FALSE) -> Tillväxt g/dag
D67: =IF(ISTEXT($A67),VLOOKUP($A67,'Teknisk administration'!$T$611:$Y$638,2,FALSE),"") ->  | F67: =IF(ISTEXT($A67),VLOOKUP($A67,'Teknisk administration'!$T$611:$Y$638,3,FALSE),"") ->  | H67: =IF(ISTEXT($A67),VLOOKUP($A67,'Teknisk administration'!$T$611:$Y$638,4,FALSE),"") ->  | J67: =IF(ISTEXT($A67),VLOOKUP($A67,'Teknisk administration'!$T$611:$Y$638,5,FALSE),"") ->  | K67: =IF(ISTEXT(A67),('1.2 Tillväxt & förökning'!AA67/'1.2 Tillväxt & förökning'!AB67-'1.2 Tillväxt & förökning'!Y67)/('1.2 Tillväxt & förökning'!Z67*30)*1000,0) -> 0 | L67: =IF(ISTEXT($A67),VLOOKUP($A67,'Teknisk administration'!$T$611:$Y$638,6,FALSE),"") ->  | S67: =IF(ISTEXT(A67),VLOOKUP(A67,'Teknisk administration'!$T$611:$Z$620,7,FALSE),0) -> 0 | T67: 0 | U67: 1 | V67: 1 | Y67: =IF(ISNUMBER('1.2 Tillväxt & förökning'!C67),'1.2 Tillväxt & förökning'!C67,AD67) -> Vikt vid insättning | Z67: =IF(ISNUMBER('1.2 Tillväxt & förökning'!E67),'1.2 Tillväxt & förökning'!E67,AE67) -> Uppfödningstid, mån | AA67: =IF(ISNUMBER('1.2 Tillväxt & förökning'!G67),'1.2 Tillväxt & förökning'!G67,AF67) -> slaktvikt | AB67: =IF(ISNUMBER('1.2 Tillväxt & förökning'!I67),'1.2 Tillväxt & förökning'!I67,AG67) -> slaktutbyte% | AC67: =IF(ISNUMBER('1.2 Tillväxt & förökning'!K67),'1.2 Tillväxt & förökning'!K67,AH67) -> 0 | AD67: =VLOOKUP('1.2 Tillväxt & förökning'!$A67&", medel",'Teknisk administration'!$G$611:$P$638,6,FALSE) -> Vikt vid insättning | AE67: =VLOOKUP('1.2 Tillväxt & förökning'!$A67&", medel",'Teknisk administration'!$G$611:$P$638,7,FALSE) -> Uppfödningstid, mån | AF67: =VLOOKUP('1.2 Tillväxt & förökning'!$A67&", medel",'Teknisk administration'!$G$611:$P$638,8,FALSE) -> slaktvikt | AG67: =VLOOKUP('1.2 Tillväxt & förökning'!$A67&", medel",'Teknisk administration'!$G$611:$P$638,9,FALSE) -> slaktutbyte% | AH67: =VLOOKUP('1.2 Tillväxt & förökning'!$A67&", medel",'Teknisk administration'!$G$611:$P$638,10,FALSE) -> Tillväxt g/dag
D68: =IF(ISTEXT($A68),VLOOKUP($A68,'Teknisk administration'!$T$611:$Y$638,2,FALSE),"") ->  | F68: =IF(ISTEXT($A68),VLOOKUP($A68,'Teknisk administration'!$T$611:$Y$638,3,FALSE),"") ->  | H68: =IF(ISTEXT($A68),VLOOKUP($A68,'Teknisk administration'!$T$611:$Y$638,4,FALSE),"") ->  | J68: =IF(ISTEXT($A68),VLOOKUP($A68,'Teknisk administration'!$T$611:$Y$638,5,FALSE),"") ->  | K68: =IF(ISTEXT(A68),('1.2 Tillväxt & förökning'!AA68/'1.2 Tillväxt & förökning'!AB68-'1.2 Tillväxt & förökning'!Y68)/('1.2 Tillväxt & förökning'!Z68*30)*1000,0) -> 0 | L68: =IF(ISTEXT($A68),VLOOKUP($A68,'Teknisk administration'!$T$611:$Y$638,6,FALSE),"") ->  | S68: =IF(ISTEXT(A68),VLOOKUP(A68,'Teknisk administration'!$T$611:$Z$620,7,FALSE),0) -> 0 | T68: 0 | U68: 1 | V68: 1 | Y68: =IF(ISNUMBER('1.2 Tillväxt & förökning'!C68),'1.2 Tillväxt & förökning'!C68,AD68) -> Vikt vid insättning | Z68: =IF(ISNUMBER('1.2 Tillväxt & förökning'!E68),'1.2 Tillväxt & förökning'!E68,AE68) -> Uppfödningstid, mån | AA68: =IF(ISNUMBER('1.2 Tillväxt & förökning'!G68),'1.2 Tillväxt & förökning'!G68,AF68) -> slaktvikt | AB68: =IF(ISNUMBER('1.2 Tillväxt & förökning'!I68),'1.2 Tillväxt & förökning'!I68,AG68) -> slaktutbyte% | AC68: =IF(ISNUMBER('1.2 Tillväxt & förökning'!K68),'1.2 Tillväxt & förökning'!K68,AH68) -> 0 | AD68: =VLOOKUP('1.2 Tillväxt & förökning'!$A68&", medel",'Teknisk administration'!$G$611:$P$638,6,FALSE) -> Vikt vid insättning | AE68: =VLOOKUP('1.2 Tillväxt & förökning'!$A68&", medel",'Teknisk administration'!$G$611:$P$638,7,FALSE) -> Uppfödningstid, mån | AF68: =VLOOKUP('1.2 Tillväxt & förökning'!$A68&", medel",'Teknisk administration'!$G$611:$P$638,8,FALSE) -> slaktvikt | AG68: =VLOOKUP('1.2 Tillväxt & förökning'!$A68&", medel",'Teknisk administration'!$G$611:$P$638,9,FALSE) -> slaktutbyte% | AH68: =VLOOKUP('1.2 Tillväxt & förökning'!$A68&", medel",'Teknisk administration'!$G$611:$P$638,10,FALSE) -> Tillväxt g/dag
D69: =IF(ISTEXT($A69),VLOOKUP($A69,'Teknisk administration'!$T$611:$Y$638,2,FALSE),"") ->  | F69: =IF(ISTEXT($A69),VLOOKUP($A69,'Teknisk administration'!$T$611:$Y$638,3,FALSE),"") ->  | H69: =IF(ISTEXT($A69),VLOOKUP($A69,'Teknisk administration'!$T$611:$Y$638,4,FALSE),"") ->  | J69: =IF(ISTEXT($A69),VLOOKUP($A69,'Teknisk administration'!$T$611:$Y$638,5,FALSE),"") ->  | K69: =IF(ISTEXT(A69),('1.2 Tillväxt & förökning'!AA69/'1.2 Tillväxt & förökning'!AB69-'1.2 Tillväxt & förökning'!Y69)/('1.2 Tillväxt & förökning'!Z69*30)*1000,0) -> 0 | L69: =IF(ISTEXT($A69),VLOOKUP($A69,'Teknisk administration'!$T$611:$Y$638,6,FALSE),"") ->  | S69: =IF(ISTEXT(A69),VLOOKUP(A69,'Teknisk administration'!$T$611:$Z$620,7,FALSE),0) -> 0 | T69: 0 | U69: 1 | V69: 1 | Y69: =IF(ISNUMBER('1.2 Tillväxt & förökning'!C69),'1.2 Tillväxt & förökning'!C69,AD69) -> Vikt vid insättning | Z69: =IF(ISNUMBER('1.2 Tillväxt & förökning'!E69),'1.2 Tillväxt & förökning'!E69,AE69) -> Uppfödningstid, mån | AA69: =IF(ISNUMBER('1.2 Tillväxt & förökning'!G69),'1.2 Tillväxt & förökning'!G69,AF69) -> slaktvikt | AB69: =IF(ISNUMBER('1.2 Tillväxt & förökning'!I69),'1.2 Tillväxt & förökning'!I69,AG69) -> slaktutbyte% | AC69: =IF(ISNUMBER('1.2 Tillväxt & förökning'!K69),'1.2 Tillväxt & förökning'!K69,AH69) -> 0 | AD69: =VLOOKUP('1.2 Tillväxt & förökning'!$A69&", medel",'Teknisk administration'!$G$611:$P$638,6,FALSE) -> Vikt vid insättning | AE69: =VLOOKUP('1.2 Tillväxt & förökning'!$A69&", medel",'Teknisk administration'!$G$611:$P$638,7,FALSE) -> Uppfödningstid, mån | AF69: =VLOOKUP('1.2 Tillväxt & förökning'!$A69&", medel",'Teknisk administration'!$G$611:$P$638,8,FALSE) -> slaktvikt | AG69: =VLOOKUP('1.2 Tillväxt & förökning'!$A69&", medel",'Teknisk administration'!$G$611:$P$638,9,FALSE) -> slaktutbyte% | AH69: =VLOOKUP('1.2 Tillväxt & förökning'!$A69&", medel",'Teknisk administration'!$G$611:$P$638,10,FALSE) -> Tillväxt g/dag
D70: =IF(ISTEXT($A70),VLOOKUP($A70,'Teknisk administration'!$T$611:$Y$638,2,FALSE),"") ->  | F70: =IF(ISTEXT($A70),VLOOKUP($A70,'Teknisk administration'!$T$611:$Y$638,3,FALSE),"") ->  | H70: =IF(ISTEXT($A70),VLOOKUP($A70,'Teknisk administration'!$T$611:$Y$638,4,FALSE),"") ->  | J70: =IF(ISTEXT($A70),VLOOKUP($A70,'Teknisk administration'!$T$611:$Y$638,5,FALSE),"") ->  | K70: =IF(ISTEXT(A70),('1.2 Tillväxt & förökning'!AA70/'1.2 Tillväxt & förökning'!AB70-'1.2 Tillväxt & förökning'!Y70)/('1.2 Tillväxt & förökning'!Z70*30)*1000,0) -> 0 | L70: =IF(ISTEXT($A70),VLOOKUP($A70,'Teknisk administration'!$T$611:$Y$638,6,FALSE),"") ->  | S70: =IF(ISTEXT(A70),VLOOKUP(A70,'Teknisk administration'!$T$611:$Z$620,7,FALSE),0) -> 0 | T70: 0 | U70: 1 | V70: 1 | Y70: =IF(ISNUMBER('1.2 Tillväxt & förökning'!C70),'1.2 Tillväxt & förökning'!C70,AD70) -> Vikt vid insättning | Z70: =IF(ISNUMBER('1.2 Tillväxt & förökning'!E70),'1.2 Tillväxt & förökning'!E70,AE70) -> Uppfödningstid, mån | AA70: =IF(ISNUMBER('1.2 Tillväxt & förökning'!G70),'1.2 Tillväxt & förökning'!G70,AF70) -> slaktvikt | AB70: =IF(ISNUMBER('1.2 Tillväxt & förökning'!I70),'1.2 Tillväxt & förökning'!I70,AG70) -> slaktutbyte% | AC70: =IF(ISNUMBER('1.2 Tillväxt & förökning'!K70),'1.2 Tillväxt & förökning'!K70,AH70) -> 0 | AD70: =VLOOKUP('1.2 Tillväxt & förökning'!$A70&", medel",'Teknisk administration'!$G$611:$P$638,6,FALSE) -> Vikt vid insättning | AE70: =VLOOKUP('1.2 Tillväxt & förökning'!$A70&", medel",'Teknisk administration'!$G$611:$P$638,7,FALSE) -> Uppfödningstid, mån | AF70: =VLOOKUP('1.2 Tillväxt & förökning'!$A70&", medel",'Teknisk administration'!$G$611:$P$638,8,FALSE) -> slaktvikt | AG70: =VLOOKUP('1.2 Tillväxt & förökning'!$A70&", medel",'Teknisk administration'!$G$611:$P$638,9,FALSE) -> slaktutbyte% | AH70: =VLOOKUP('1.2 Tillväxt & förökning'!$A70&", medel",'Teknisk administration'!$G$611:$P$638,10,FALSE) -> Tillväxt g/dag
D71: =IF(ISTEXT($A71),VLOOKUP($A71,'Teknisk administration'!$T$611:$Y$638,2,FALSE),"") ->  | F71: =IF(ISTEXT($A71),VLOOKUP($A71,'Teknisk administration'!$T$611:$Y$638,3,FALSE),"") ->  | H71: =IF(ISTEXT($A71),VLOOKUP($A71,'Teknisk administration'!$T$611:$Y$638,4,FALSE),"") ->  | J71: =IF(ISTEXT($A71),VLOOKUP($A71,'Teknisk administration'!$T$611:$Y$638,5,FALSE),"") ->  | K71: =IF(ISTEXT(A71),('1.2 Tillväxt & förökning'!AA71/'1.2 Tillväxt & förökning'!AB71-'1.2 Tillväxt & förökning'!Y71)/('1.2 Tillväxt & förökning'!Z71*30)*1000,0) -> 0 | L71: =IF(ISTEXT($A71),VLOOKUP($A71,'Teknisk administration'!$T$611:$Y$638,6,FALSE),"") ->  | S71: =IF(ISTEXT(A71),VLOOKUP(A71,'Teknisk administration'!$T$611:$Z$620,7,FALSE),0) -> 0 | T71: 0 | U71: 1 | V71: 1 | Y71: =IF(ISNUMBER('1.2 Tillväxt & förökning'!C71),'1.2 Tillväxt & förökning'!C71,AD71) -> Vikt vid insättning | Z71: =IF(ISNUMBER('1.2 Tillväxt & förökning'!E71),'1.2 Tillväxt & förökning'!E71,AE71) -> Uppfödningstid, mån | AA71: =IF(ISNUMBER('1.2 Tillväxt & förökning'!G71),'1.2 Tillväxt & förökning'!G71,AF71) -> slaktvikt | AB71: =IF(ISNUMBER('1.2 Tillväxt & förökning'!I71),'1.2 Tillväxt & förökning'!I71,AG71) -> slaktutbyte% | AC71: =IF(ISNUMBER('1.2 Tillväxt & förökning'!K71),'1.2 Tillväxt & förökning'!K71,AH71) -> 0 | AD71: =VLOOKUP('1.2 Tillväxt & förökning'!$A71&", medel",'Teknisk administration'!$G$611:$P$638,6,FALSE) -> Vikt vid insättning | AE71: =VLOOKUP('1.2 Tillväxt & förökning'!$A71&", medel",'Teknisk administration'!$G$611:$P$638,7,FALSE) -> Uppfödningstid, mån | AF71: =VLOOKUP('1.2 Tillväxt & förökning'!$A71&", medel",'Teknisk administration'!$G$611:$P$638,8,FALSE) -> slaktvikt | AG71: =VLOOKUP('1.2 Tillväxt & förökning'!$A71&", medel",'Teknisk administration'!$G$611:$P$638,9,FALSE) -> slaktutbyte% | AH71: =VLOOKUP('1.2 Tillväxt & förökning'!$A71&", medel",'Teknisk administration'!$G$611:$P$638,10,FALSE) -> Tillväxt g/dag
D72: =IF(ISTEXT($A72),VLOOKUP($A72,'Teknisk administration'!$T$611:$Y$638,2,FALSE),"") ->  | F72: =IF(ISTEXT($A72),VLOOKUP($A72,'Teknisk administration'!$T$611:$Y$638,3,FALSE),"") ->  | H72: =IF(ISTEXT($A72),VLOOKUP($A72,'Teknisk administration'!$T$611:$Y$638,4,FALSE),"") ->  | J72: =IF(ISTEXT($A72),VLOOKUP($A72,'Teknisk administration'!$T$611:$Y$638,5,FALSE),"") ->  | K72: =IF(ISTEXT(A72),('1.2 Tillväxt & förökning'!AA72/'1.2 Tillväxt & förökning'!AB72-'1.2 Tillväxt & förökning'!Y72)/('1.2 Tillväxt & förökning'!Z72*30)*1000,0) -> 0 | L72: =IF(ISTEXT($A72),VLOOKUP($A72,'Teknisk administration'!$T$611:$Y$638,6,FALSE),"") ->  | S72: =IF(ISTEXT(A72),VLOOKUP(A72,'Teknisk administration'!$T$611:$Z$620,7,FALSE),0) -> 0 | T72: 0 | U72: 1 | V72: 1 | Y72: =IF(ISNUMBER('1.2 Tillväxt & förökning'!C72),'1.2 Tillväxt & förökning'!C72,AD72) -> Vikt vid insättning | Z72: =IF(ISNUMBER('1.2 Tillväxt & förökning'!E72),'1.2 Tillväxt & förökning'!E72,AE72) -> Uppfödningstid, mån | AA72: =IF(ISNUMBER('1.2 Tillväxt & förökning'!G72),'1.2 Tillväxt & förökning'!G72,AF72) -> slaktvikt | AB72: =IF(ISNUMBER('1.2 Tillväxt & förökning'!I72),'1.2 Tillväxt & förökning'!I72,AG72) -> slaktutbyte% | AC72: =IF(ISNUMBER('1.2 Tillväxt & förökning'!K72),'1.2 Tillväxt & förökning'!K72,AH72) -> 0 | AD72: =VLOOKUP('1.2 Tillväxt & förökning'!$A72&", medel",'Teknisk administration'!$G$611:$P$638,6,FALSE) -> Vikt vid insättning | AE72: =VLOOKUP('1.2 Tillväxt & förökning'!$A72&", medel",'Teknisk administration'!$G$611:$P$638,7,FALSE) -> Uppfödningstid, mån | AF72: =VLOOKUP('1.2 Tillväxt & förökning'!$A72&", medel",'Teknisk administration'!$G$611:$P$638,8,FALSE) -> slaktvikt | AG72: =VLOOKUP('1.2 Tillväxt & förökning'!$A72&", medel",'Teknisk administration'!$G$611:$P$638,9,FALSE) -> slaktutbyte% | AH72: =VLOOKUP('1.2 Tillväxt & förökning'!$A72&", medel",'Teknisk administration'!$G$611:$P$638,10,FALSE) -> Tillväxt g/dag
D73: =IF(ISTEXT($A73),VLOOKUP($A73,'Teknisk administration'!$T$611:$Y$638,2,FALSE),"") ->  | F73: =IF(ISTEXT($A73),VLOOKUP($A73,'Teknisk administration'!$T$611:$Y$638,3,FALSE),"") ->  | H73: =IF(ISTEXT($A73),VLOOKUP($A73,'Teknisk administration'!$T$611:$Y$638,4,FALSE),"") ->  | J73: =IF(ISTEXT($A73),VLOOKUP($A73,'Teknisk administration'!$T$611:$Y$638,5,FALSE),"") ->  | K73: =IF(ISTEXT(A73),('1.2 Tillväxt & förökning'!AA73/'1.2 Tillväxt & förökning'!AB73-'1.2 Tillväxt & förökning'!Y73)/('1.2 Tillväxt & förökning'!Z73*30)*1000,0) -> 0 | L73: =IF(ISTEXT($A73),VLOOKUP($A73,'Teknisk administration'!$T$611:$Y$638,6,FALSE),"") ->  | S73: =IF(ISTEXT(A73),VLOOKUP(A73,'Teknisk administration'!$T$611:$Z$620,7,FALSE),0) -> 0 | T73: 0 | U73: 1 | V73: 1 | Y73: =IF(ISNUMBER('1.2 Tillväxt & förökning'!C73),'1.2 Tillväxt & förökning'!C73,AD73) -> Vikt vid insättning | Z73: =IF(ISNUMBER('1.2 Tillväxt & förökning'!E73),'1.2 Tillväxt & förökning'!E73,AE73) -> Uppfödningstid, mån | AA73: =IF(ISNUMBER('1.2 Tillväxt & förökning'!G73),'1.2 Tillväxt & förökning'!G73,AF73) -> slaktvikt | AB73: =IF(ISNUMBER('1.2 Tillväxt & förökning'!I73),'1.2 Tillväxt & förökning'!I73,AG73) -> slaktutbyte% | AC73: =IF(ISNUMBER('1.2 Tillväxt & förökning'!K73),'1.2 Tillväxt & förökning'!K73,AH73) -> 0 | AD73: =VLOOKUP('1.2 Tillväxt & förökning'!$A73&", medel",'Teknisk administration'!$G$611:$P$638,6,FALSE) -> Vikt vid insättning | AE73: =VLOOKUP('1.2 Tillväxt & förökning'!$A73&", medel",'Teknisk administration'!$G$611:$P$638,7,FALSE) -> Uppfödningstid, mån | AF73: =VLOOKUP('1.2 Tillväxt & förökning'!$A73&", medel",'Teknisk administration'!$G$611:$P$638,8,FALSE) -> slaktvikt | AG73: =VLOOKUP('1.2 Tillväxt & förökning'!$A73&", medel",'Teknisk administration'!$G$611:$P$638,9,FALSE) -> slaktutbyte% | AH73: =VLOOKUP('1.2 Tillväxt & förökning'!$A73&", medel",'Teknisk administration'!$G$611:$P$638,10,FALSE) -> Tillväxt g/dag
A75: ="Period 2, "&period_2 -> Period 2, Period 2
D76: =IF(ISTEXT($A76),VLOOKUP($A76,'Teknisk administration'!$T$611:$Y$638,2,FALSE),"") ->  | F76: =IF(ISTEXT($A76),VLOOKUP($A76,'Teknisk administration'!$T$611:$Y$638,3,FALSE),"") ->  | H76: =IF(ISTEXT($A76),VLOOKUP($A76,'Teknisk administration'!$T$611:$Y$638,4,FALSE),"") ->  | J76: =IF(ISTEXT($A76),VLOOKUP($A76,'Teknisk administration'!$T$611:$Y$638,5,FALSE),"") ->  | K76: =IF(ISTEXT(A76),('1.2 Tillväxt & förökning'!AA76/'1.2 Tillväxt & förökning'!AB76-'1.2 Tillväxt & förökning'!Y76)/('1.2 Tillväxt & förökning'!Z76*30)*1000,0) -> 0 | L76: =IF(ISTEXT($A76),VLOOKUP($A76,'Teknisk administration'!$T$611:$Y$638,6,FALSE),"") ->  | S76: =IF(ISTEXT(A76),VLOOKUP(A76,'Teknisk administration'!$T$611:$Z$620,7,FALSE),0) -> 0 | T76: =IF(S76="ungtjur",1,0) -> 0 | U76: =IF(T76=0,1,0) -> 1 | W76: 1 | Y76: =IF(ISNUMBER('1.2 Tillväxt & förökning'!C76),'1.2 Tillväxt & förökning'!C76,AD76) -> Vikt vid insättning | Z76: =IF(ISNUMBER('1.2 Tillväxt & förökning'!E76),'1.2 Tillväxt & förökning'!E76,AE76) -> Uppfödningstid, mån | AA76: =IF(ISNUMBER('1.2 Tillväxt & förökning'!G76),'1.2 Tillväxt & förökning'!G76,AF76) -> slaktvikt | AB76: =IF(ISNUMBER('1.2 Tillväxt & förökning'!I76),'1.2 Tillväxt & förökning'!I76,AG76) -> slaktutbyte% | AC76: =IF(ISNUMBER('1.2 Tillväxt & förökning'!K76),'1.2 Tillväxt & förökning'!K76,AH76) -> 0 | AD76: =VLOOKUP('1.2 Tillväxt & förökning'!$A76&", medel",'Teknisk administration'!$G$611:$P$638,6,FALSE) -> Vikt vid insättning | AE76: =VLOOKUP('1.2 Tillväxt & förökning'!$A76&", medel",'Teknisk administration'!$G$611:$P$638,7,FALSE) -> Uppfödningstid, mån | AF76: =VLOOKUP('1.2 Tillväxt & förökning'!$A76&", medel",'Teknisk administration'!$G$611:$P$638,8,FALSE) -> slaktvikt | AG76: =VLOOKUP('1.2 Tillväxt & förökning'!$A76&", medel",'Teknisk administration'!$G$611:$P$638,9,FALSE) -> slaktutbyte% | AH76: =VLOOKUP('1.2 Tillväxt & förökning'!$A76&", medel",'Teknisk administration'!$G$611:$P$638,10,FALSE) -> Tillväxt g/dag
D77: =IF(ISTEXT($A77),VLOOKUP($A77,'Teknisk administration'!$T$611:$Y$638,2,FALSE),"") ->  | F77: =IF(ISTEXT($A77),VLOOKUP($A77,'Teknisk administration'!$T$611:$Y$638,3,FALSE),"") ->  | H77: =IF(ISTEXT($A77),VLOOKUP($A77,'Teknisk administration'!$T$611:$Y$638,4,FALSE),"") ->  | J77: =IF(ISTEXT($A77),VLOOKUP($A77,'Teknisk administration'!$T$611:$Y$638,5,FALSE),"") ->  | K77: =IF(ISTEXT(A77),('1.2 Tillväxt & förökning'!AA77/'1.2 Tillväxt & förökning'!AB77-'1.2 Tillväxt & förökning'!Y77)/('1.2 Tillväxt & förökning'!Z77*30)*1000,0) -> 0 | L77: =IF(ISTEXT($A77),VLOOKUP($A77,'Teknisk administration'!$T$611:$Y$638,6,FALSE),"") ->  | S77: =IF(ISTEXT(A77),VLOOKUP(A77,'Teknisk administration'!$T$611:$Z$620,7,FALSE),0) -> 0 | T77: 0 | U77: 1 | W77: 1 | Y77: =IF(ISNUMBER('1.2 Tillväxt & förökning'!C77),'1.2 Tillväxt & förökning'!C77,AD77) -> Vikt vid insättning | Z77: =IF(ISNUMBER('1.2 Tillväxt & förökning'!E77),'1.2 Tillväxt & förökning'!E77,AE77) -> Uppfödningstid, mån | AA77: =IF(ISNUMBER('1.2 Tillväxt & förökning'!G77),'1.2 Tillväxt & förökning'!G77,AF77) -> slaktvikt | AB77: =IF(ISNUMBER('1.2 Tillväxt & förökning'!I77),'1.2 Tillväxt & förökning'!I77,AG77) -> slaktutbyte% | AC77: =IF(ISNUMBER('1.2 Tillväxt & förökning'!K77),'1.2 Tillväxt & förökning'!K77,AH77) -> 0 | AD77: =VLOOKUP('1.2 Tillväxt & förökning'!$A77&", medel",'Teknisk administration'!$G$611:$P$638,6,FALSE) -> Vikt vid insättning | AE77: =VLOOKUP('1.2 Tillväxt & förökning'!$A77&", medel",'Teknisk administration'!$G$611:$P$638,7,FALSE) -> Uppfödningstid, mån | AF77: =VLOOKUP('1.2 Tillväxt & förökning'!$A77&", medel",'Teknisk administration'!$G$611:$P$638,8,FALSE) -> slaktvikt | AG77: =VLOOKUP('1.2 Tillväxt & förökning'!$A77&", medel",'Teknisk administration'!$G$611:$P$638,9,FALSE) -> slaktutbyte% | AH77: =VLOOKUP('1.2 Tillväxt & förökning'!$A77&", medel",'Teknisk administration'!$G$611:$P$638,10,FALSE) -> Tillväxt g/dag
D78: =IF(ISTEXT($A78),VLOOKUP($A78,'Teknisk administration'!$T$611:$Y$638,2,FALSE),"") ->  | F78: =IF(ISTEXT($A78),VLOOKUP($A78,'Teknisk administration'!$T$611:$Y$638,3,FALSE),"") ->  | H78: =IF(ISTEXT($A78),VLOOKUP($A78,'Teknisk administration'!$T$611:$Y$638,4,FALSE),"") ->  | J78: =IF(ISTEXT($A78),VLOOKUP($A78,'Teknisk administration'!$T$611:$Y$638,5,FALSE),"") ->  | K78: =IF(ISTEXT(A78),('1.2 Tillväxt & förökning'!AA78/'1.2 Tillväxt & förökning'!AB78-'1.2 Tillväxt & förökning'!Y78)/('1.2 Tillväxt & förökning'!Z78*30)*1000,0) -> 0 | L78: =IF(ISTEXT($A78),VLOOKUP($A78,'Teknisk administration'!$T$611:$Y$638,6,FALSE),"") ->  | S78: =IF(ISTEXT(A78),VLOOKUP(A78,'Teknisk administration'!$T$611:$Z$620,7,FALSE),0) -> 0 | T78: 0 | U78: 1 | W78: 1 | Y78: =IF(ISNUMBER('1.2 Tillväxt & förökning'!C78),'1.2 Tillväxt & förökning'!C78,AD78) -> Vikt vid insättning | Z78: =IF(ISNUMBER('1.2 Tillväxt & förökning'!E78),'1.2 Tillväxt & förökning'!E78,AE78) -> Uppfödningstid, mån | AA78: =IF(ISNUMBER('1.2 Tillväxt & förökning'!G78),'1.2 Tillväxt & förökning'!G78,AF78) -> slaktvikt | AB78: =IF(ISNUMBER('1.2 Tillväxt & förökning'!I78),'1.2 Tillväxt & förökning'!I78,AG78) -> slaktutbyte% | AC78: =IF(ISNUMBER('1.2 Tillväxt & förökning'!K78),'1.2 Tillväxt & förökning'!K78,AH78) -> 0 | AD78: =VLOOKUP('1.2 Tillväxt & förökning'!$A78&", medel",'Teknisk administration'!$G$611:$P$638,6,FALSE) -> Vikt vid insättning | AE78: =VLOOKUP('1.2 Tillväxt & förökning'!$A78&", medel",'Teknisk administration'!$G$611:$P$638,7,FALSE) -> Uppfödningstid, mån | AF78: =VLOOKUP('1.2 Tillväxt & förökning'!$A78&", medel",'Teknisk administration'!$G$611:$P$638,8,FALSE) -> slaktvikt | AG78: =VLOOKUP('1.2 Tillväxt & förökning'!$A78&", medel",'Teknisk administration'!$G$611:$P$638,9,FALSE) -> slaktutbyte% | AH78: =VLOOKUP('1.2 Tillväxt & förökning'!$A78&", medel",'Teknisk administration'!$G$611:$P$638,10,FALSE) -> Tillväxt g/dag
D79: =IF(ISTEXT($A79),VLOOKUP($A79,'Teknisk administration'!$T$611:$Y$638,2,FALSE),"") ->  | F79: =IF(ISTEXT($A79),VLOOKUP($A79,'Teknisk administration'!$T$611:$Y$638,3,FALSE),"") ->  | H79: =IF(ISTEXT($A79),VLOOKUP($A79,'Teknisk administration'!$T$611:$Y$638,4,FALSE),"") ->  | J79: =IF(ISTEXT($A79),VLOOKUP($A79,'Teknisk administration'!$T$611:$Y$638,5,FALSE),"") ->  | K79: =IF(ISTEXT(A79),('1.2 Tillväxt & förökning'!AA79/'1.2 Tillväxt & förökning'!AB79-'1.2 Tillväxt & förökning'!Y79)/('1.2 Tillväxt & förökning'!Z79*30)*1000,0) -> 0 | L79: =IF(ISTEXT($A79),VLOOKUP($A79,'Teknisk administration'!$T$611:$Y$638,6,FALSE),"") ->  | S79: =IF(ISTEXT(A79),VLOOKUP(A79,'Teknisk administration'!$T$611:$Z$620,7,FALSE),0) -> 0 | T79: 0 | U79: 1 | W79: 1 | Y79: =IF(ISNUMBER('1.2 Tillväxt & förökning'!C79),'1.2 Tillväxt & förökning'!C79,AD79) -> Vikt vid insättning | Z79: =IF(ISNUMBER('1.2 Tillväxt & förökning'!E79),'1.2 Tillväxt & förökning'!E79,AE79) -> Uppfödningstid, mån | AA79: =IF(ISNUMBER('1.2 Tillväxt & förökning'!G79),'1.2 Tillväxt & förökning'!G79,AF79) -> slaktvikt | AB79: =IF(ISNUMBER('1.2 Tillväxt & förökning'!I79),'1.2 Tillväxt & förökning'!I79,AG79) -> slaktutbyte% | AC79: =IF(ISNUMBER('1.2 Tillväxt & förökning'!K79),'1.2 Tillväxt & förökning'!K79,AH79) -> 0 | AD79: =VLOOKUP('1.2 Tillväxt & förökning'!$A79&", medel",'Teknisk administration'!$G$611:$P$638,6,FALSE) -> Vikt vid insättning | AE79: =VLOOKUP('1.2 Tillväxt & förökning'!$A79&", medel",'Teknisk administration'!$G$611:$P$638,7,FALSE) -> Uppfödningstid, mån | AF79: =VLOOKUP('1.2 Tillväxt & förökning'!$A79&", medel",'Teknisk administration'!$G$611:$P$638,8,FALSE) -> slaktvikt | AG79: =VLOOKUP('1.2 Tillväxt & förökning'!$A79&", medel",'Teknisk administration'!$G$611:$P$638,9,FALSE) -> slaktutbyte% | AH79: =VLOOKUP('1.2 Tillväxt & förökning'!$A79&", medel",'Teknisk administration'!$G$611:$P$638,10,FALSE) -> Tillväxt g/dag
D80: =IF(ISTEXT($A80),VLOOKUP($A80,'Teknisk administration'!$T$611:$Y$638,2,FALSE),"") ->  | F80: =IF(ISTEXT($A80),VLOOKUP($A80,'Teknisk administration'!$T$611:$Y$638,3,FALSE),"") ->  | H80: =IF(ISTEXT($A80),VLOOKUP($A80,'Teknisk administration'!$T$611:$Y$638,4,FALSE),"") ->  | J80: =IF(ISTEXT($A80),VLOOKUP($A80,'Teknisk administration'!$T$611:$Y$638,5,FALSE),"") ->  | K80: =IF(ISTEXT(A80),('1.2 Tillväxt & förökning'!AA80/'1.2 Tillväxt & förökning'!AB80-'1.2 Tillväxt & förökning'!Y80)/('1.2 Tillväxt & förökning'!Z80*30)*1000,0) -> 0 | L80: =IF(ISTEXT($A80),VLOOKUP($A80,'Teknisk administration'!$T$611:$Y$638,6,FALSE),"") ->  | S80: =IF(ISTEXT(A80),VLOOKUP(A80,'Teknisk administration'!$T$611:$Z$620,7,FALSE),0) -> 0 | T80: 0 | U80: 1 | W80: 1 | Y80: =IF(ISNUMBER('1.2 Tillväxt & förökning'!C80),'1.2 Tillväxt & förökning'!C80,AD80) -> Vikt vid insättning | Z80: =IF(ISNUMBER('1.2 Tillväxt & förökning'!E80),'1.2 Tillväxt & förökning'!E80,AE80) -> Uppfödningstid, mån | AA80: =IF(ISNUMBER('1.2 Tillväxt & förökning'!G80),'1.2 Tillväxt & förökning'!G80,AF80) -> slaktvikt | AB80: =IF(ISNUMBER('1.2 Tillväxt & förökning'!I80),'1.2 Tillväxt & förökning'!I80,AG80) -> slaktutbyte% | AC80: =IF(ISNUMBER('1.2 Tillväxt & förökning'!K80),'1.2 Tillväxt & förökning'!K80,AH80) -> 0 | AD80: =VLOOKUP('1.2 Tillväxt & förökning'!$A80&", medel",'Teknisk administration'!$G$611:$P$638,6,FALSE) -> Vikt vid insättning | AE80: =VLOOKUP('1.2 Tillväxt & förökning'!$A80&", medel",'Teknisk administration'!$G$611:$P$638,7,FALSE) -> Uppfödningstid, mån | AF80: =VLOOKUP('1.2 Tillväxt & förökning'!$A80&", medel",'Teknisk administration'!$G$611:$P$638,8,FALSE) -> slaktvikt | AG80: =VLOOKUP('1.2 Tillväxt & förökning'!$A80&", medel",'Teknisk administration'!$G$611:$P$638,9,FALSE) -> slaktutbyte% | AH80: =VLOOKUP('1.2 Tillväxt & förökning'!$A80&", medel",'Teknisk administration'!$G$611:$P$638,10,FALSE) -> Tillväxt g/dag
D81: =IF(ISTEXT($A81),VLOOKUP($A81,'Teknisk administration'!$T$611:$Y$638,2,FALSE),"") ->  | F81: =IF(ISTEXT($A81),VLOOKUP($A81,'Teknisk administration'!$T$611:$Y$638,3,FALSE),"") ->  | H81: =IF(ISTEXT($A81),VLOOKUP($A81,'Teknisk administration'!$T$611:$Y$638,4,FALSE),"") ->  | J81: =IF(ISTEXT($A81),VLOOKUP($A81,'Teknisk administration'!$T$611:$Y$638,5,FALSE),"") ->  | K81: =IF(ISTEXT(A81),('1.2 Tillväxt & förökning'!AA81/'1.2 Tillväxt & förökning'!AB81-'1.2 Tillväxt & förökning'!Y81)/('1.2 Tillväxt & förökning'!Z81*30)*1000,0) -> 0 | L81: =IF(ISTEXT($A81),VLOOKUP($A81,'Teknisk administration'!$T$611:$Y$638,6,FALSE),"") ->  | S81: =IF(ISTEXT(A81),VLOOKUP(A81,'Teknisk administration'!$T$611:$Z$620,7,FALSE),0) -> 0 | T81: 0 | U81: 1 | W81: 1 | Y81: =IF(ISNUMBER('1.2 Tillväxt & förökning'!C81),'1.2 Tillväxt & förökning'!C81,AD81) -> Vikt vid insättning | Z81: =IF(ISNUMBER('1.2 Tillväxt & förökning'!E81),'1.2 Tillväxt & förökning'!E81,AE81) -> Uppfödningstid, mån | AA81: =IF(ISNUMBER('1.2 Tillväxt & förökning'!G81),'1.2 Tillväxt & förökning'!G81,AF81) -> slaktvikt | AB81: =IF(ISNUMBER('1.2 Tillväxt & förökning'!I81),'1.2 Tillväxt & förökning'!I81,AG81) -> slaktutbyte% | AC81: =IF(ISNUMBER('1.2 Tillväxt & förökning'!K81),'1.2 Tillväxt & förökning'!K81,AH81) -> 0 | AD81: =VLOOKUP('1.2 Tillväxt & förökning'!$A81&", medel",'Teknisk administration'!$G$611:$P$638,6,FALSE) -> Vikt vid insättning | AE81: =VLOOKUP('1.2 Tillväxt & förökning'!$A81&", medel",'Teknisk administration'!$G$611:$P$638,7,FALSE) -> Uppfödningstid, mån | AF81: =VLOOKUP('1.2 Tillväxt & förökning'!$A81&", medel",'Teknisk administration'!$G$611:$P$638,8,FALSE) -> slaktvikt | AG81: =VLOOKUP('1.2 Tillväxt & förökning'!$A81&", medel",'Teknisk administration'!$G$611:$P$638,9,FALSE) -> slaktutbyte% | AH81: =VLOOKUP('1.2 Tillväxt & förökning'!$A81&", medel",'Teknisk administration'!$G$611:$P$638,10,FALSE) -> Tillväxt g/dag
D82: =IF(ISTEXT($A82),VLOOKUP($A82,'Teknisk administration'!$T$611:$Y$638,2,FALSE),"") ->  | F82: =IF(ISTEXT($A82),VLOOKUP($A82,'Teknisk administration'!$T$611:$Y$638,3,FALSE),"") ->  | H82: =IF(ISTEXT($A82),VLOOKUP($A82,'Teknisk administration'!$T$611:$Y$638,4,FALSE),"") ->  | J82: =IF(ISTEXT($A82),VLOOKUP($A82,'Teknisk administration'!$T$611:$Y$638,5,FALSE),"") ->  | K82: =IF(ISTEXT(A82),('1.2 Tillväxt & förökning'!AA82/'1.2 Tillväxt & förökning'!AB82-'1.2 Tillväxt & förökning'!Y82)/('1.2 Tillväxt & förökning'!Z82*30)*1000,0) -> 0 | L82: =IF(ISTEXT($A82),VLOOKUP($A82,'Teknisk administration'!$T$611:$Y$638,6,FALSE),"") ->  | S82: =IF(ISTEXT(A82),VLOOKUP(A82,'Teknisk administration'!$T$611:$Z$620,7,FALSE),0) -> 0 | T82: 0 | U82: 1 | W82: 1 | Y82: =IF(ISNUMBER('1.2 Tillväxt & förökning'!C82),'1.2 Tillväxt & förökning'!C82,AD82) -> Vikt vid insättning | Z82: =IF(ISNUMBER('1.2 Tillväxt & förökning'!E82),'1.2 Tillväxt & förökning'!E82,AE82) -> Uppfödningstid, mån | AA82: =IF(ISNUMBER('1.2 Tillväxt & förökning'!G82),'1.2 Tillväxt & förökning'!G82,AF82) -> slaktvikt | AB82: =IF(ISNUMBER('1.2 Tillväxt & förökning'!I82),'1.2 Tillväxt & förökning'!I82,AG82) -> slaktutbyte% | AC82: =IF(ISNUMBER('1.2 Tillväxt & förökning'!K82),'1.2 Tillväxt & förökning'!K82,AH82) -> 0 | AD82: =VLOOKUP('1.2 Tillväxt & förökning'!$A82&", medel",'Teknisk administration'!$G$611:$P$638,6,FALSE) -> Vikt vid insättning | AE82: =VLOOKUP('1.2 Tillväxt & förökning'!$A82&", medel",'Teknisk administration'!$G$611:$P$638,7,FALSE) -> Uppfödningstid, mån | AF82: =VLOOKUP('1.2 Tillväxt & förökning'!$A82&", medel",'Teknisk administration'!$G$611:$P$638,8,FALSE) -> slaktvikt | AG82: =VLOOKUP('1.2 Tillväxt & förökning'!$A82&", medel",'Teknisk administration'!$G$611:$P$638,9,FALSE) -> slaktutbyte% | AH82: =VLOOKUP('1.2 Tillväxt & förökning'!$A82&", medel",'Teknisk administration'!$G$611:$P$638,10,FALSE) -> Tillväxt g/dag
A84: ="Period 3, "&period_3 -> Period 3, Period 3
D85: =IF(ISTEXT($A85),VLOOKUP($A85,'Teknisk administration'!$T$611:$Y$638,2,FALSE),"") ->  | F85: =IF(ISTEXT($A85),VLOOKUP($A85,'Teknisk administration'!$T$611:$Y$638,3,FALSE),"") ->  | H85: =IF(ISTEXT($A85),VLOOKUP($A85,'Teknisk administration'!$T$611:$Y$638,4,FALSE),"") ->  | J85: =IF(ISTEXT($A85),VLOOKUP($A85,'Teknisk administration'!$T$611:$Y$638,5,FALSE),"") ->  | K85: =IF(ISTEXT(A85),('1.2 Tillväxt & förökning'!AA85/'1.2 Tillväxt & förökning'!AB85-'1.2 Tillväxt & förökning'!Y85)/('1.2 Tillväxt & förökning'!Z85*30)*1000,0) -> 0 | L85: =IF(ISTEXT($A85),VLOOKUP($A85,'Teknisk administration'!$T$611:$Y$638,6,FALSE),"") ->  | S85: =IF(ISTEXT(A85),VLOOKUP(A85,'Teknisk administration'!$T$611:$Z$620,7,FALSE),0) -> 0 | T85: =IF(S85="ungtjur",1,0) -> 0 | U85: =IF(T85=0,1,0) -> 1 | X85: 1 | Y85: =IF(ISNUMBER('1.2 Tillväxt & förökning'!C85),'1.2 Tillväxt & förökning'!C85,AD85) -> Vikt vid insättning | Z85: =IF(ISNUMBER('1.2 Tillväxt & förökning'!E85),'1.2 Tillväxt & förökning'!E85,AE85) -> Uppfödningstid, mån | AA85: =IF(ISNUMBER('1.2 Tillväxt & förökning'!G85),'1.2 Tillväxt & förökning'!G85,AF85) -> slaktvikt | AB85: =IF(ISNUMBER('1.2 Tillväxt & förökning'!I85),'1.2 Tillväxt & förökning'!I85,AG85) -> slaktutbyte% | AC85: =IF(ISNUMBER('1.2 Tillväxt & förökning'!K85),'1.2 Tillväxt & förökning'!K85,AH85) -> 0 | AD85: =VLOOKUP('1.2 Tillväxt & förökning'!$A85&", medel",'Teknisk administration'!$G$611:$P$638,6,FALSE) -> Vikt vid insättning | AE85: =VLOOKUP('1.2 Tillväxt & förökning'!$A85&", medel",'Teknisk administration'!$G$611:$P$638,7,FALSE) -> Uppfödningstid, mån | AF85: =VLOOKUP('1.2 Tillväxt & förökning'!$A85&", medel",'Teknisk administration'!$G$611:$P$638,8,FALSE) -> slaktvikt | AG85: =VLOOKUP('1.2 Tillväxt & förökning'!$A85&", medel",'Teknisk administration'!$G$611:$P$638,9,FALSE) -> slaktutbyte% | AH85: =VLOOKUP('1.2 Tillväxt & förökning'!$A85&", medel",'Teknisk administration'!$G$611:$P$638,10,FALSE) -> Tillväxt g/dag
D86: =IF(ISTEXT($A86),VLOOKUP($A86,'Teknisk administration'!$T$611:$Y$638,2,FALSE),"") ->  | F86: =IF(ISTEXT($A86),VLOOKUP($A86,'Teknisk administration'!$T$611:$Y$638,3,FALSE),"") ->  | H86: =IF(ISTEXT($A86),VLOOKUP($A86,'Teknisk administration'!$T$611:$Y$638,4,FALSE),"") ->  | J86: =IF(ISTEXT($A86),VLOOKUP($A86,'Teknisk administration'!$T$611:$Y$638,5,FALSE),"") ->  | K86: =IF(ISTEXT(A86),('1.2 Tillväxt & förökning'!AA86/'1.2 Tillväxt & förökning'!AB86-'1.2 Tillväxt & förökning'!Y86)/('1.2 Tillväxt & förökning'!Z86*30)*1000,0) -> 0 | L86: =IF(ISTEXT($A86),VLOOKUP($A86,'Teknisk administration'!$T$611:$Y$638,6,FALSE),"") ->  | S86: =IF(ISTEXT(A86),VLOOKUP(A86,'Teknisk administration'!$T$611:$Z$620,7,FALSE),0) -> 0 | T86: 0 | U86: 1 | X86: 1 | Y86: =IF(ISNUMBER('1.2 Tillväxt & förökning'!C86),'1.2 Tillväxt & förökning'!C86,AD86) -> Vikt vid insättning | Z86: =IF(ISNUMBER('1.2 Tillväxt & förökning'!E86),'1.2 Tillväxt & förökning'!E86,AE86) -> Uppfödningstid, mån | AA86: =IF(ISNUMBER('1.2 Tillväxt & förökning'!G86),'1.2 Tillväxt & förökning'!G86,AF86) -> slaktvikt | AB86: =IF(ISNUMBER('1.2 Tillväxt & förökning'!I86),'1.2 Tillväxt & förökning'!I86,AG86) -> slaktutbyte% | AC86: =IF(ISNUMBER('1.2 Tillväxt & förökning'!K86),'1.2 Tillväxt & förökning'!K86,AH86) -> 0 | AD86: =VLOOKUP('1.2 Tillväxt & förökning'!$A86&", medel",'Teknisk administration'!$G$611:$P$638,6,FALSE) -> Vikt vid insättning | AE86: =VLOOKUP('1.2 Tillväxt & förökning'!$A86&", medel",'Teknisk administration'!$G$611:$P$638,7,FALSE) -> Uppfödningstid, mån | AF86: =VLOOKUP('1.2 Tillväxt & förökning'!$A86&", medel",'Teknisk administration'!$G$611:$P$638,8,FALSE) -> slaktvikt | AG86: =VLOOKUP('1.2 Tillväxt & förökning'!$A86&", medel",'Teknisk administration'!$G$611:$P$638,9,FALSE) -> slaktutbyte% | AH86: =VLOOKUP('1.2 Tillväxt & förökning'!$A86&", medel",'Teknisk administration'!$G$611:$P$638,10,FALSE) -> Tillväxt g/dag
D87: =IF(ISTEXT($A87),VLOOKUP($A87,'Teknisk administration'!$T$611:$Y$638,2,FALSE),"") ->  | F87: =IF(ISTEXT($A87),VLOOKUP($A87,'Teknisk administration'!$T$611:$Y$638,3,FALSE),"") ->  | H87: =IF(ISTEXT($A87),VLOOKUP($A87,'Teknisk administration'!$T$611:$Y$638,4,FALSE),"") ->  | J87: =IF(ISTEXT($A87),VLOOKUP($A87,'Teknisk administration'!$T$611:$Y$638,5,FALSE),"") ->  | K87: =IF(ISTEXT(A87),('1.2 Tillväxt & förökning'!AA87/'1.2 Tillväxt & förökning'!AB87-'1.2 Tillväxt & förökning'!Y87)/('1.2 Tillväxt & förökning'!Z87*30)*1000,0) -> 0 | L87: =IF(ISTEXT($A87),VLOOKUP($A87,'Teknisk administration'!$T$611:$Y$638,6,FALSE),"") ->  | S87: =IF(ISTEXT(A87),VLOOKUP(A87,'Teknisk administration'!$T$611:$Z$620,7,FALSE),0) -> 0 | T87: 0 | U87: 1 | X87: 1 | Y87: =IF(ISNUMBER('1.2 Tillväxt & förökning'!C87),'1.2 Tillväxt & förökning'!C87,AD87) -> Vikt vid insättning | Z87: =IF(ISNUMBER('1.2 Tillväxt & förökning'!E87),'1.2 Tillväxt & förökning'!E87,AE87) -> Uppfödningstid, mån | AA87: =IF(ISNUMBER('1.2 Tillväxt & förökning'!G87),'1.2 Tillväxt & förökning'!G87,AF87) -> slaktvikt | AB87: =IF(ISNUMBER('1.2 Tillväxt & förökning'!I87),'1.2 Tillväxt & förökning'!I87,AG87) -> slaktutbyte% | AC87: =IF(ISNUMBER('1.2 Tillväxt & förökning'!K87),'1.2 Tillväxt & förökning'!K87,AH87) -> 0 | AD87: =VLOOKUP('1.2 Tillväxt & förökning'!$A87&", medel",'Teknisk administration'!$G$611:$P$638,6,FALSE) -> Vikt vid insättning | AE87: =VLOOKUP('1.2 Tillväxt & förökning'!$A87&", medel",'Teknisk administration'!$G$611:$P$638,7,FALSE) -> Uppfödningstid, mån | AF87: =VLOOKUP('1.2 Tillväxt & förökning'!$A87&", medel",'Teknisk administration'!$G$611:$P$638,8,FALSE) -> slaktvikt | AG87: =VLOOKUP('1.2 Tillväxt & förökning'!$A87&", medel",'Teknisk administration'!$G$611:$P$638,9,FALSE) -> slaktutbyte% | AH87: =VLOOKUP('1.2 Tillväxt & förökning'!$A87&", medel",'Teknisk administration'!$G$611:$P$638,10,FALSE) -> Tillväxt g/dag
D88: =IF(ISTEXT($A88),VLOOKUP($A88,'Teknisk administration'!$T$611:$Y$638,2,FALSE),"") ->  | F88: =IF(ISTEXT($A88),VLOOKUP($A88,'Teknisk administration'!$T$611:$Y$638,3,FALSE),"") ->  | H88: =IF(ISTEXT($A88),VLOOKUP($A88,'Teknisk administration'!$T$611:$Y$638,4,FALSE),"") ->  | J88: =IF(ISTEXT($A88),VLOOKUP($A88,'Teknisk administration'!$T$611:$Y$638,5,FALSE),"") ->  | K88: =IF(ISTEXT(A88),('1.2 Tillväxt & förökning'!AA88/'1.2 Tillväxt & förökning'!AB88-'1.2 Tillväxt & förökning'!Y88)/('1.2 Tillväxt & förökning'!Z88*30)*1000,0) -> 0 | L88: =IF(ISTEXT($A88),VLOOKUP($A88,'Teknisk administration'!$T$611:$Y$638,6,FALSE),"") ->  | S88: =IF(ISTEXT(A88),VLOOKUP(A88,'Teknisk administration'!$T$611:$Z$620,7,FALSE),0) -> 0 | T88: 0 | U88: 1 | X88: 1 | Y88: =IF(ISNUMBER('1.2 Tillväxt & förökning'!C88),'1.2 Tillväxt & förökning'!C88,AD88) -> Vikt vid insättning | Z88: =IF(ISNUMBER('1.2 Tillväxt & förökning'!E88),'1.2 Tillväxt & förökning'!E88,AE88) -> Uppfödningstid, mån | AA88: =IF(ISNUMBER('1.2 Tillväxt & förökning'!G88),'1.2 Tillväxt & förökning'!G88,AF88) -> slaktvikt | AB88: =IF(ISNUMBER('1.2 Tillväxt & förökning'!I88),'1.2 Tillväxt & förökning'!I88,AG88) -> slaktutbyte% | AC88: =IF(ISNUMBER('1.2 Tillväxt & förökning'!K88),'1.2 Tillväxt & förökning'!K88,AH88) -> 0 | AD88: =VLOOKUP('1.2 Tillväxt & förökning'!$A88&", medel",'Teknisk administration'!$G$611:$P$638,6,FALSE) -> Vikt vid insättning | AE88: =VLOOKUP('1.2 Tillväxt & förökning'!$A88&", medel",'Teknisk administration'!$G$611:$P$638,7,FALSE) -> Uppfödningstid, mån | AF88: =VLOOKUP('1.2 Tillväxt & förökning'!$A88&", medel",'Teknisk administration'!$G$611:$P$638,8,FALSE) -> slaktvikt | AG88: =VLOOKUP('1.2 Tillväxt & förökning'!$A88&", medel",'Teknisk administration'!$G$611:$P$638,9,FALSE) -> slaktutbyte% | AH88: =VLOOKUP('1.2 Tillväxt & förökning'!$A88&", medel",'Teknisk administration'!$G$611:$P$638,10,FALSE) -> Tillväxt g/dag
D89: =IF(ISTEXT($A89),VLOOKUP($A89,'Teknisk administration'!$T$611:$Y$638,2,FALSE),"") ->  | F89: =IF(ISTEXT($A89),VLOOKUP($A89,'Teknisk administration'!$T$611:$Y$638,3,FALSE),"") ->  | H89: =IF(ISTEXT($A89),VLOOKUP($A89,'Teknisk administration'!$T$611:$Y$638,4,FALSE),"") ->  | J89: =IF(ISTEXT($A89),VLOOKUP($A89,'Teknisk administration'!$T$611:$Y$638,5,FALSE),"") ->  | K89: =IF(ISTEXT(A89),('1.2 Tillväxt & förökning'!AA89/'1.2 Tillväxt & förökning'!AB89-'1.2 Tillväxt & förökning'!Y89)/('1.2 Tillväxt & förökning'!Z89*30)*1000,0) -> 0 | L89: =IF(ISTEXT($A89),VLOOKUP($A89,'Teknisk administration'!$T$611:$Y$638,6,FALSE),"") ->  | S89: =IF(ISTEXT(A89),VLOOKUP(A89,'Teknisk administration'!$T$611:$Z$620,7,FALSE),0) -> 0 | T89: 0 | U89: 1 | X89: 1 | Y89: =IF(ISNUMBER('1.2 Tillväxt & förökning'!C89),'1.2 Tillväxt & förökning'!C89,AD89) -> Vikt vid insättning | Z89: =IF(ISNUMBER('1.2 Tillväxt & förökning'!E89),'1.2 Tillväxt & förökning'!E89,AE89) -> Uppfödningstid, mån | AA89: =IF(ISNUMBER('1.2 Tillväxt & förökning'!G89),'1.2 Tillväxt & förökning'!G89,AF89) -> slaktvikt | AB89: =IF(ISNUMBER('1.2 Tillväxt & förökning'!I89),'1.2 Tillväxt & förökning'!I89,AG89) -> slaktutbyte% | AC89: =IF(ISNUMBER('1.2 Tillväxt & förökning'!K89),'1.2 Tillväxt & förökning'!K89,AH89) -> 0 | AD89: =VLOOKUP('1.2 Tillväxt & förökning'!$A89&", medel",'Teknisk administration'!$G$611:$P$638,6,FALSE) -> Vikt vid insättning | AE89: =VLOOKUP('1.2 Tillväxt & förökning'!$A89&", medel",'Teknisk administration'!$G$611:$P$638,7,FALSE) -> Uppfödningstid, mån | AF89: =VLOOKUP('1.2 Tillväxt & förökning'!$A89&", medel",'Teknisk administration'!$G$611:$P$638,8,FALSE) -> slaktvikt | AG89: =VLOOKUP('1.2 Tillväxt & förökning'!$A89&", medel",'Teknisk administration'!$G$611:$P$638,9,FALSE) -> slaktutbyte% | AH89: =VLOOKUP('1.2 Tillväxt & förökning'!$A89&", medel",'Teknisk administration'!$G$611:$P$638,10,FALSE) -> Tillväxt g/dag
D90: =IF(ISTEXT($A90),VLOOKUP($A90,'Teknisk administration'!$T$611:$Y$638,2,FALSE),"") ->  | F90: =IF(ISTEXT($A90),VLOOKUP($A90,'Teknisk administration'!$T$611:$Y$638,3,FALSE),"") ->  | H90: =IF(ISTEXT($A90),VLOOKUP($A90,'Teknisk administration'!$T$611:$Y$638,4,FALSE),"") ->  | J90: =IF(ISTEXT($A90),VLOOKUP($A90,'Teknisk administration'!$T$611:$Y$638,5,FALSE),"") ->  | K90: =IF(ISTEXT(A90),('1.2 Tillväxt & förökning'!AA90/'1.2 Tillväxt & förökning'!AB90-'1.2 Tillväxt & förökning'!Y90)/('1.2 Tillväxt & förökning'!Z90*30)*1000,0) -> 0 | L90: =IF(ISTEXT($A90),VLOOKUP($A90,'Teknisk administration'!$T$611:$Y$638,6,FALSE),"") ->  | S90: =IF(ISTEXT(A90),VLOOKUP(A90,'Teknisk administration'!$T$611:$Z$620,7,FALSE),0) -> 0 | T90: 0 | U90: 1 | X90: 1 | Y90: =IF(ISNUMBER('1.2 Tillväxt & förökning'!C90),'1.2 Tillväxt & förökning'!C90,AD90) -> Vikt vid insättning | Z90: =IF(ISNUMBER('1.2 Tillväxt & förökning'!E90),'1.2 Tillväxt & förökning'!E90,AE90) -> Uppfödningstid, mån | AA90: =IF(ISNUMBER('1.2 Tillväxt & förökning'!G90),'1.2 Tillväxt & förökning'!G90,AF90) -> slaktvikt | AB90: =IF(ISNUMBER('1.2 Tillväxt & förökning'!I90),'1.2 Tillväxt & förökning'!I90,AG90) -> slaktutbyte% | AC90: =IF(ISNUMBER('1.2 Tillväxt & förökning'!K90),'1.2 Tillväxt & förökning'!K90,AH90) -> 0 | AD90: =VLOOKUP('1.2 Tillväxt & förökning'!$A90&", medel",'Teknisk administration'!$G$611:$P$638,6,FALSE) -> Vikt vid insättning | AE90: =VLOOKUP('1.2 Tillväxt & förökning'!$A90&", medel",'Teknisk administration'!$G$611:$P$638,7,FALSE) -> Uppfödningstid, mån | AF90: =VLOOKUP('1.2 Tillväxt & förökning'!$A90&", medel",'Teknisk administration'!$G$611:$P$638,8,FALSE) -> slaktvikt | AG90: =VLOOKUP('1.2 Tillväxt & förökning'!$A90&", medel",'Teknisk administration'!$G$611:$P$638,9,FALSE) -> slaktutbyte% | AH90: =VLOOKUP('1.2 Tillväxt & förökning'!$A90&", medel",'Teknisk administration'!$G$611:$P$638,10,FALSE) -> Tillväxt g/dag
D91: =IF(ISTEXT($A91),VLOOKUP($A91,'Teknisk administration'!$T$611:$Y$638,2,FALSE),"") ->  | F91: =IF(ISTEXT($A91),VLOOKUP($A91,'Teknisk administration'!$T$611:$Y$638,3,FALSE),"") ->  | H91: =IF(ISTEXT($A91),VLOOKUP($A91,'Teknisk administration'!$T$611:$Y$638,4,FALSE),"") ->  | J91: =IF(ISTEXT($A91),VLOOKUP($A91,'Teknisk administration'!$T$611:$Y$638,5,FALSE),"") ->  | K91: =IF(ISTEXT(A91),('1.2 Tillväxt & förökning'!AA91/'1.2 Tillväxt & förökning'!AB91-'1.2 Tillväxt & förökning'!Y91)/('1.2 Tillväxt & förökning'!Z91*30)*1000,0) -> 0 | L91: =IF(ISTEXT($A91),VLOOKUP($A91,'Teknisk administration'!$T$611:$Y$638,6,FALSE),"") ->  | S91: =IF(ISTEXT(A91),VLOOKUP(A91,'Teknisk administration'!$T$611:$Z$620,7,FALSE),0) -> 0 | T91: 0 | U91: 1 | X91: 1 | Y91: =IF(ISNUMBER('1.2 Tillväxt & förökning'!C91),'1.2 Tillväxt & förökning'!C91,AD91) -> Vikt vid insättning | Z91: =IF(ISNUMBER('1.2 Tillväxt & förökning'!E91),'1.2 Tillväxt & förökning'!E91,AE91) -> Uppfödningstid, mån | AA91: =IF(ISNUMBER('1.2 Tillväxt & förökning'!G91),'1.2 Tillväxt & förökning'!G91,AF91) -> slaktvikt | AB91: =IF(ISNUMBER('1.2 Tillväxt & förökning'!I91),'1.2 Tillväxt & förökning'!I91,AG91) -> slaktutbyte% | AC91: =IF(ISNUMBER('1.2 Tillväxt & förökning'!K91),'1.2 Tillväxt & förökning'!K91,AH91) -> 0 | AD91: =VLOOKUP('1.2 Tillväxt & förökning'!$A91&", medel",'Teknisk administration'!$G$611:$P$638,6,FALSE) -> Vikt vid insättning | AE91: =VLOOKUP('1.2 Tillväxt & förökning'!$A91&", medel",'Teknisk administration'!$G$611:$P$638,7,FALSE) -> Uppfödningstid, mån | AF91: =VLOOKUP('1.2 Tillväxt & förökning'!$A91&", medel",'Teknisk administration'!$G$611:$P$638,8,FALSE) -> slaktvikt | AG91: =VLOOKUP('1.2 Tillväxt & förökning'!$A91&", medel",'Teknisk administration'!$G$611:$P$638,9,FALSE) -> slaktutbyte% | AH91: =VLOOKUP('1.2 Tillväxt & förökning'!$A91&", medel",'Teknisk administration'!$G$611:$P$638,10,FALSE) -> Tillväxt g/dag
A103: Uppfödningstid ungtjurar - summering av beräkningarna ovan
B104: Enhet | C104: =Bakgrund!R7 -> Period 1 | D104: =Bakgrund!S7 -> Period 2 | E104: =Bakgrund!T7 -> Period 3 | F104: Egen kommentar | I104: Förklaring
A105: Antal | C105: =SUMPRODUCT($B$65:$B$91,V65:V91,$T$65:$T$91) -> 0 | D105: =SUMPRODUCT($B$65:$B$91,W65:W91,$T$65:$T$91) -> 0 | E105: =SUMPRODUCT($B$65:$B$91,X65:X91,$T$65:$T$91) -> 0 | I105: Summering av alla Ungtjurar (kött- och mjölkras) som du fyllt i ovan
A106: Vikt vid insättning | B106: kg | C106: =IF(C105=0,0,SUMPRODUCT($B$65:$B$91,V65:V91,$T$65:$T$91,$Y$65:$Y$91)/SUMPRODUCT($B$65:$B$91,V65:V91,$T$65:$T$91)) -> 0 | D106: =IF(D105=0,0,SUMPRODUCT($B$65:$B$91,W65:W91,$T$65:$T$91,$Y$65:$Y$91)/SUMPRODUCT($B$65:$B$91,W65:W91,$T$65:$T$91)) -> 0 | E106: =IF(E105=0,0,SUMPRODUCT($B$65:$B$91,X65:X91,$T$65:$T$91,$Y$65:$Y$91)/SUMPRODUCT($B$65:$B$91,X65:X91,$T$65:$T$91)) -> 0 | I106: Genomsnittliga värden (viktat medel) för de ungtjurar du fyllt i ovan
A107: Uppfödningstid, mån.ungtjur | B107: månader | C107: =IF(C105=0,0,SUMPRODUCT($B$65:$B$91,V65:V91,$T$65:$T$91,$Z$65:$Z$91)/SUMPRODUCT($B$65:$B$91,V65:V91,$T$65:$T$91)) -> 0 | D107: =IF(D105=0,0,SUMPRODUCT($B$65:$B$91,W65:W91,$T$65:$T$91,$Z$65:$Z$91)/SUMPRODUCT($B$65:$B$91,W65:W91,$T$65:$T$91)) -> 0 | E107: =IF(E105=0,0,SUMPRODUCT($B$65:$B$91,X65:X91,$T$65:$T$91,$Z$65:$Z$91)/SUMPRODUCT($B$65:$B$91,X65:X91,$T$65:$T$91)) -> 0
A108: Slaktvikt , ungtjur kg | B108: vikt kg | C108: =IF(C105=0,0,SUMPRODUCT($B$65:$B$91,V65:V91,$T$65:$T$91,$AA$65:$AA$91)/SUMPRODUCT($B$65:$B$91,V65:V91,$T$65:$T$91)) -> 0 | D108: =IF(D105=0,0,SUMPRODUCT($B$65:$B$91,W65:W91,$T$65:$T$91,$AA$65:$AA$91)/SUMPRODUCT($B$65:$B$91,W65:W91,$T$65:$T$91)) -> 0 | E108: =IF(E105=0,0,SUMPRODUCT($B$65:$B$91,X65:X91,$T$65:$T$91,$AA$65:$AA$91)/SUMPRODUCT($B$65:$B$91,X65:X91,$T$65:$T$91)) -> 0
A109: Slaktutbyte, ungtjur % | B109: % | C109: =IF(C105=0,0,SUMPRODUCT($B$65:$B$91,V65:V91,$T$65:$T$91,$AB$65:$AB$91)/SUMPRODUCT($B$65:$B$91,V65:V91,$T$65:$T$91)) -> 0 | D109: =IF(D105=0,0,SUMPRODUCT($B$65:$B$91,W65:W91,$T$65:$T$91,$AB$65:$AB$91)/SUMPRODUCT($B$65:$B$91,W65:W91,$T$65:$T$91)) -> 0 | E109: =IF(E105=0,0,SUMPRODUCT($B$65:$B$91,X65:X91,$T$65:$T$91,$AB$65:$AB$91)/SUMPRODUCT($B$65:$B$91,X65:X91,$T$65:$T$91)) -> 0
A110: Tillväxt levandevikt/dag | B110: g/dag | C110: =IF(C105=0,0,((C108/C109)-C106)/(C107*30)*1000) -> 0 | D110: =IF(D105=0,0,((D108/D109)-D106)/(D107*30)*1000) -> 0 | E110: 0 | I110: Genomsnittlig tillväxt per djur och dag under uppfödningstiden
A113: Uppfödningstid stutar & kvigor - summering av beräkningar ovan
B114: Enhet | C114: =Bakgrund!R7 -> Period 1 | D114: =Bakgrund!S7 -> Period 2 | E114: =Bakgrund!T7 -> Period 3 | F114: Egen kommentar | I114: Förklaring
A115: Antal | C115: =SUMPRODUCT($B$65:$B$91,V65:V91,$U$65:$U$91) -> 0 | D115: =SUMPRODUCT($B$65:$B$91,W65:W91,$U$65:$U$91) -> 0 | E115: =SUMPRODUCT($B$65:$B$91,X65:X91,$U$65:$U$91) -> 0 | I115: Summering av alla stutar och kvigor (kött- och mjölkras) som du fyllt i ovan
A116: Vikt vid insättning | B116: kg | C116: =IF(C115=0,0,SUMPRODUCT($B$65:$B$91,V65:V91,$U$65:$U$91,$Y$65:$Y$91)/SUMPRODUCT($B$65:$B$91,V65:V91,$U$65:$U$91)) -> 0 | D116: =IF(D115=0,0,SUMPRODUCT($B$65:$B$91,W65:W91,$U$65:$U$91,$Y$65:$Y$91)/SUMPRODUCT($B$65:$B$91,W65:W91,$U$65:$U$91)) -> 0 | E116: =IF(E115=0,0,SUMPRODUCT($B$65:$B$91,X65:X91,$U$65:$U$91,$Y$65:$Y$91)/SUMPRODUCT($B$65:$B$91,X65:X91,$U$65:$U$91)) -> 0 | I116: Genomsnittliga värden (viktat medel) för de stutar och kvigor som du fyllt i ovan
A117: Uppfödningstid, mån.stut/kviga | B117: månader | C117: =IF(C115=0,0,SUMPRODUCT($B$65:$B$91,V65:V91,$U$65:$U$91,$Z$65:$Z$91)/SUMPRODUCT($B$65:$B$91,V65:V91,$U$65:$U$91)) -> 0 | D117: =IF(D115=0,0,SUMPRODUCT($B$65:$B$91,W65:W91,$U$65:$U$91,$Z$65:$Z$91)/SUMPRODUCT($B$65:$B$91,W65:W91,$U$65:$U$91)) -> 0 | E117: =IF(E115=0,0,SUMPRODUCT($B$65:$B$91,X65:X91,$U$65:$U$91,$Z$65:$Z$91)/SUMPRODUCT($B$65:$B$91,X65:X91,$U$65:$U$91)) -> 0
A118: Slaktvikt , stut/kviga kg | B118: vikt kg | C118: =IF(C115=0,0,SUMPRODUCT($B$65:$B$91,V65:V91,$U$65:$U$91,$AA$65:$AA$91)/SUMPRODUCT($B$65:$B$91,V65:V91,$U$65:$U$91)) -> 0 | D118: =IF(D115=0,0,SUMPRODUCT($B$65:$B$91,W65:W91,$U$65:$U$91,$AA$65:$AA$91)/SUMPRODUCT($B$65:$B$91,W65:W91,$U$65:$U$91)) -> 0 | E118: =IF(E115=0,0,SUMPRODUCT($B$65:$B$91,X65:X91,$U$65:$U$91,$AA$65:$AA$91)/SUMPRODUCT($B$65:$B$91,X65:X91,$U$65:$U$91)) -> 0
A119: Slaktutbyte, stut/kviga % | B119: % | C119: =IF(C115=0,0,SUMPRODUCT($B$65:$B$91,V65:V91,$U$65:$U$91,$AB$65:$AB$91)/SUMPRODUCT($B$65:$B$91,V65:V91,$U$65:$U$91)) -> 0 | D119: =IF(D115=0,0,SUMPRODUCT($B$65:$B$91,W65:W91,$U$65:$U$91,$AB$65:$AB$91)/SUMPRODUCT($B$65:$B$91,W65:W91,$U$65:$U$91)) -> 0 | E119: =IF(E115=0,0,SUMPRODUCT($B$65:$B$91,X65:X91,$U$65:$U$91,$AB$65:$AB$91)/SUMPRODUCT($B$65:$B$91,X65:X91,$U$65:$U$91)) -> 0
A120: Tillväxt, levande vikt/dag | B120: g/dag | C120: =IF(C115=0,0,((C118/C119)-C116)/(C117*30)*1000) -> 0 | D120: =IF(D115=0,0,((D118/D119)-D116)/(D117*30)*1000) -> 0 | E120: 0 | I120: Genomsnittlig tillväxt per djur och dag under uppfödningstiden
A124: Nyckeltal: Tillväxt per stallplats
B125: Enhet | C125: =Bakgrund!R7 -> Period 1 | D125: =Bakgrund!S7 -> Period 2 | E125: =Bakgrund!T7 -> Period 3 | F125: Egen kommentar | I125: Förklaring
A126: Kalvar i dikoproduktion | B126: antal | C126: =C10 -> 0 | D126: =D10 -> 0 | E126: =E10 -> 0 | I126: Antal avvanda kalvar enligt tidigare uppgift
A127: Ungtjurar | B127: antal | C127: =C105 -> 0 | D127: =D105 -> 0 | E127: 0
A128: Stutar & kvigor | B128: antal | C128: =C115 -> 0 | D128: =D115 -> 0 | E128: 0
A129: Antal stallplatser enligt djurskyddslag | B129: stallplatser | C129: ='1 Intro djuren'!C32 -> 0 | D129: ='1 Intro djuren'!D32 -> 0 | E129: ='1 Intro djuren'!E32 -> 0 | I129: Hämtas från bladet Intro djuren
A130: Eget mål för antal stallplatser | B130: stallplatser | C130: ='1 Intro djuren'!C33 -> 0 | D130: ='1 Intro djuren'!D33 -> 0 | E130: ='1 Intro djuren'!E33 -> 0
A131: Tillväxt per dag i g per godkänd stallplats enligt förprövning | B131: g/dag/stallplats | C131: =IF(C129=0,0,(C$126*C$47*IF(C$46>Bakgrund!R$17,Bakgrund!R$17,C$46)+C$127*C$110*IF(C$107*30.5>Bakgrund!R$17,Bakgrund!R$17,C$107*30.5)+C$128*C$120*IF(C$117*30.5>Bakgrund!R$17,Bakgrund!R$17,C$117*30.5))/C129/Bakgrund!R$17) -> 0 | D131: =IF(D129=0,0,(D$126*D$47*IF(D$46>Bakgrund!S$17,Bakgrund!S$17,D$46)+D$127*D$110*IF(D$107*30.5>Bakgrund!S$17,Bakgrund!S$17,D$107*30.5)+D$128*D$120*IF(D$117*30.5>Bakgrund!S$17,Bakgrund!S$17,D$117*30.5))/D129/Bakgrund!S$17) -> 0 | E131: =IF(E129=0,0,(E$126*E$47*IF(E$46>Bakgrund!T$17,Bakgrund!T$17,E$46)+E$127*E$110*IF(E$107*30.5>Bakgrund!T$17,Bakgrund!T$17,E$107*30.5)+E$128*E$120*IF(E$117*30.5>Bakgrund!T$17,Bakgrund!T$17,E$117*30.5))/E129/Bakgrund!T$17) -> 0 | I131: ="Beräknas som antal ungnöt*tillväxt under perioden dividerat med antal stallplatser. Antal stallplatser hämtas från bladet "& B_N_Intro_djur&" Om det står '#DIVISION/0!' beror det på att du inte fyllt i start- och slutdatum på Bakgrund." -> Beräknas som antal ungnöt*tillväxt under perioden dividerat med antal stallplatser. Antal stallplatser hämtas från bladet 1 Intro djuren Om det står '#DIVISION/0!' beror det på att du inte fyllt i start- och slutdatum på Bakgrund.
A132: Tillväxt per dag i g per egen önskad beläggning | B132: g/dag/stallplats | C132: =IF(C130=0,0,(C$126*C$47*IF(C$46>Bakgrund!R$17,Bakgrund!R$17,C$46)+C$127*C$110*IF(C$107*30.5>Bakgrund!R$17,Bakgrund!R$17,C$107*30.5)+C$128*C$120*IF(C$117*30.5>Bakgrund!R$17,Bakgrund!R$17,C$117*30.5))/C130/Bakgrund!R$17) -> 0 | D132: =IF(D130=0,0,(D$126*D$47*IF(D$46>Bakgrund!S$17,Bakgrund!S$17,D$46)+D$127*D$110*IF(D$107*30.5>Bakgrund!S$17,Bakgrund!S$17,D$107*30.5)+D$128*D$120*IF(D$117*30.5>Bakgrund!S$17,Bakgrund!S$17,D$117*30.5))/D130/Bakgrund!S$17) -> 0 | E132: =IF(E130=0,0,(E$126*E$47*IF(E$46>Bakgrund!T$17,Bakgrund!T$17,E$46)+E$127*E$110*IF(E$107*30.5>Bakgrund!T$17,Bakgrund!T$17,E$107*30.5)+E$128*E$120*IF(E$117*30.5>Bakgrund!T$17,Bakgrund!T$17,E$117*30.5))/E130/Bakgrund!T$17) -> 0

Sheet 1.3 Hälsa & dödlighet
A1: 1.3 Hälsa & dödlighet
A2: Bladet är frivilligt att fylla i | K2: Det här betyder färgerna:
A3: Här kan du beräkna du nyckeltal för dödlighet i olika åldersgrupper, ohälsa samt kostnader för hälso- och sjukvård. | K3: Cell med värden hämtade från annan cell
K4: Fyll i din egen siffra
A5: Uppgifterna på detta blad används inte i andra beräkningar, så du kan fritt bestämma t ex vilken typ av kostnader som du vill ta upp. | K5: Egen uppgift, men välj värde ur rullista.
K6: Resultat/uträkning
K7: Schablonvärde
C8: Period | F8: Förklaring | G8: Egen kommentar | K8: Förklaringar till raden
A9: Kostnader sjukvård, även förebyggande | B9: Enhet | C9: =(Bakgrund!R7) -> Period 1 | D9: =(Bakgrund!S7) -> Period 2 | E9: =(Bakgrund!T7) -> Period 3 | K9: Plats för egna kommentarer
A10: Totalt antal djur i besättningen | B10: antal | C10: =('1 Intro djuren'!O25) -> 0 | D10: =('1 Intro djuren'!P25) -> 0 | E10: =('1 Intro djuren'!Q25) -> 0 | F10: ="Totalt antal djur både kalvar, tjurar, stutar, kvigor och kor vid en tidpunkt du väljer att jämföra tas från "&B_N_Intro_djur -> Totalt antal djur både kalvar, tjurar, stutar, kvigor och kor vid en tidpunkt du väljer att jämföra tas från 1 Intro djuren
A11: Förebyggande behandlingar | B11: kr | F11: Inköp av t.ex. vaccin, avmaskningsmedel, bolus, receptkostnad osv | K11: Snabblänkar till bladen i verktyget:
A12: Behandlingar av sjuka djur | B12: kr | F12: Kostand för behandling utförd av veterinär | K12: Instruktion
A13: Annan veterinärkostnad | B13: kr | F13: Inköp av t.ex. avmaskningsmedel, bolus, receptkostnad osv | K13: Bakgrund
A14: Total kostnad för veterinär och behandlingar | B14: kr | C14: =C11+C12+C13 -> 0 | D14: =D11+D12+D13 -> 0 | E14: =E11+E12+E13 -> 0 | K14: 1 Intro djuren
A15: Kostnad hälso- och sjukvård/djur | B15: kr/djur | C15: =IF(C10=0,0,C14/C10) -> 0 | D15: =IF(D10=0,0,D14/D10) -> 0 | E15: =IF(E10=0,0,E14/E10) -> 0 | K15: 1.1 Kött
K16: 1.2 Tillväxt & förökning | Q16: =A15 -> Kostnad hälso- och sjukvård/djur
A17: Levererad kg kött | B17: kg | C17: ='6 Resultat'!R38 -> 0 | D17: ='6 Resultat'!S38 -> 0 | E17: ='6 Resultat'!T38 -> 0 | F17: ="Antalet kg slaktvikt som skickats vidare till slakteri - siffra tas från "&B_N_Kött&" (fylls i automatiskt)" -> Antalet kg slaktvikt som skickats vidare till slakteri - siffra tas från 1.1 Kött (fylls i automatiskt) | K17: 1.3 Hälsa & dödlighet | Q17: =A17 -> Levererad kg kött
A18: Kostnad hälso- och sjukvård/kg kött | B18: kr/kg kött | C18: =IF(C17=0,0,C14/C17) -> 0 | D18: =IF(D17=0,0,D14/D17) -> 0 | E18: =IF(E17=0,0,E14/E17) -> 0 | F18: Kostnad för hälso och sjukvård per kg kött som levererats till slakteri | K18: 2 Intro foder | Q18: =A24 -> Noteringar om ohälsa/djur
K19: 2.1 Odling foder | Q19: =A32 -> Dödlighet kalv inkl avlivade
K20: 2.2 Förluster vid lagring | Q20: =A33 -> Nyckeltal: Dödlighet - Andel djur av djurproduktionen som inte går vidare som livsmedel eller till liv
A21: Sjukdomar & ohälsa | K21: 2.3 Inköpt foder (exkl mineral)
A22: Totalt antal djur i besättningen | B22: antal | C22: =('1 Intro djuren'!O25) -> 0 | D22: =('1 Intro djuren'!P25) -> 0 | E22: =('1 Intro djuren'!Q25) -> 0 | F22: ="Totalt antal djur både kalvar, tjurar, stutar, kvigor och kor vid en tidpunkt du väljer att jämföra tas från "&B_N_Intro_djur -> Totalt antal djur både kalvar, tjurar, stutar, kvigor och kor vid en tidpunkt du väljer att jämföra tas från 1 Intro djuren | K22: 2.4 Utfodrat
A23: Antal noteringar om ohälsa | B23: antal | F23: Antal djur som du noterat ohälsa för, men som inte lett till någon behandlning, t ex kortvariga hältor | K23: 2.5. Kasserat foder och spill
A24: Noteringar om ohälsa/djur | B24: % | C24: =IF(C22=0,0,C23/C22) -> 0 | D24: =IF(D22=0,0,D23/D22) -> 0 | E24: 0 | F24: % av totalt antal djur | K24: 2.6 Bete
K25: 3 Växtnäringsutnyttjande (1)
K26: 3 Växtnäringsutnyttjande (2)
A27: Dödlighet | K27: 3 Växtnäringsutnyttjande (3)
A28: Antalet djur över 6 månader i besättningen | B28: antal | C28: ='1 Intro djuren'!O25-'1 Intro djuren'!C26 -> 0 | D28: ='1 Intro djuren'!P25-'1 Intro djuren'!D26 -> 0 | E28: ='1 Intro djuren'!Q25-'1 Intro djuren'!E26 -> 0 | F28: Vuxna djur över 6 månader (kor, kvigor, tjurar och stutar) | K28: 4 Energi och bränsle
A29: Antal avlivade/självdöda kor | B29: antal | F29: Antal kor som avlivats eller självdött p.g.a. hälsoproblem/olycka | K29: 5 Vattenanvändning
A30: Antal avlivade/självdöda övriga djur över 6 månader | B30: antal | F30: Antal djur, exklusive kor, över 6 månader som avlivats eller självdött p.g.a. hälsoproblem/olycka | K30: 6 Resultat
A31: Antal döda kalvar 0-6 månader inkl fullgångna dödfödda kalvar | B31: antal | F31: Antal döda kalvar från födelse till 6 månader. Även kalvar som dött vid födelsen | H31: låg | I31: medel | J31: hög
A32: Dödlighet kalv inkl avlivade | B32: % | C32: =IF('1 Intro djuren'!C26=0,,(C31/'1 Intro djuren'!C26)) -> 0 | D32: =IF('1 Intro djuren'!D26=0,,(D31/'1 Intro djuren'!D26)) -> 0 | E32: =IF('1 Intro djuren'!E26=0,,(E31/'1 Intro djuren'!E26)) -> 0 | F32: Andelen döda eller avlivade kalvar 0-6 månader av antalet födda kalvar | H32: 0.01 | I32: 0.031 | J32: 0.06
A33: Nyckeltal: Dödlighet - Andel djur av djurproduktionen som inte går vidare som livsmedel eller till liv | B33: % | C33: =IF(C28=0,,((C30+C31+C29)/C28)) -> 0 | D33: =IF(D28=0,,((D30+D31)/D28)) -> 0 | E33: 0 | F33: Andel vuxna djur och kalvar som avlivats eller självdött och som inte kan bli livsmedel

Sheet 2 Intro foder
A1: 2 Intro foder | I1: Det här betyder färgerna:
A2: =VLOOKUP(B10,'Teknisk administration'!G4:H6,2,FALSE) -> Obligatoriskt blad | I2: Cell med värden hämtade från annan cell
A3: I del 2 fyller du i uppgifter om foder till djuren, inklusive bete och växtodling. Vissa uppgifter används på flera platser, så därför ska du fylla i dem på detta blad så förs de över till kommande blad. | I3: Fyll i din egen siffra
I4: Möjligt fylla i eget värde, om du har
I5: Resultat för nyckeltalet (cellen innehåller en formel)
A6: I tabellen nedan får du en kort beskrivning av bladen i del 2, och instruktion huruvida du behöver fylla i bladet. | I6: Förklaringar till raden
A7: ="Instruktionen stryrs av dina svar på ja/nej-frågorna på Bakgrund, så gå tillbaks till Bakgrund om du vill ändra dina svar. " & IF(Bakgrund!BG37=0,"Du svarade att du inte är intresserad av foderfrågor så därför markeras bladen som ej relevanta för dig","") -> Instruktionen stryrs av dina svar på ja/nej-frågorna på Bakgrund, så gå tillbaks till Bakgrund om du vill ändra dina svar. | I7: Plats för egna kommentarer
A8: Om du svarat att du vill ta fram nyckeltal om foderåtgång, förluster i foderkedjan och/eller växtnäringsutnyttjande kommer de blad som behöver fyllas i att markeras som obligatoriska
A9: Del 2. Foder | B9: Ska bladet fyllas i? | C9: Om bladet | I9: Snabblänkar till bladen i verktyget:
A10: =C_Foder -> 2 Intro foder | B10: =IF(AND(Bakgrund!BG37=0,Bakgrund!BH37=0),'Teknisk administration'!G6,'Teknisk administration'!G4) -> obligatoriskt | C10: Sammanställning av arealen åkermark, åkerbete och naturbete | I10: Instruktion
A11: =C_Odling_foder -> 2.1 Odling foder | B11: =IF(B10='Teknisk administration'!$G$6,'Teknisk administration'!G6,IF(Bakgrund!AR37=0,'Teknisk administration'!$G$6,IF(SUM(Bakgrund!BG37:BH37)=0,'Teknisk administration'!$G$5,'Teknisk administration'!$G$4))) -> obligatoriskt | C11: Mängden odlat foder (kg ts och MJ). Underlag för beräkna förluster i foderkedjan, kan även användas för att beräkna foderåtgång | I11: Bakgrund
A12: =C_forluster_lagring -> 2.2 Förluster vid lagring | B12: =IF(B11=inte_relevant,inte_relevant,IF(Bakgrund!BH37>0,obligatoriskt,frivilligt)) -> obligatoriskt | C12: Förluster vid lagring av odlat foder, före uttag. Underlag för att beräkna förluster i foderkedjan | I12: 1 Intro djuren
A13: =C_N_inköpt -> 2.3 Inköpt foder (exkl mineral) | B13: =IF(Bakgrund!AS37=0,inte_relevant,IF(SUM(Bakgrund!BG37:BI37)=0,'Teknisk administration'!G5,'Teknisk administration'!G4)) -> inte relevant för dig | C13: Sammanställning av mängd inköpt foder (exkl mineralfoder). Underlag för att beräkna foderåtgång, förluster och växtnäringsutnyttjande | I13: 1.1 Kött
A14: =C_N_summering -> 2.4 Utfodrat | B14: =IF(Bakgrund!BG37>0,'Teknisk administration'!G4,'Teknisk administration'!G5) -> obligatoriskt | C14: Beräknad foderåtgång (eget bärgat foder + inköpt foder). Underlag för beräkning av förluster i foderkedjan | I14: 1.2 Tillväxt & förökning
A15: ='2.5. Kasserat foder och spill'!A1 -> 2.5. Kasserat foder och spill | B15: =IF(Bakgrund!BH37>0,obligatoriskt,frivilligt) -> obligatoriskt | C15: Kasserat foder (mögligt foder, skrotbalar etc.) och spill vid utfodring | I15: 1.3 Hälsa & dödlighet
A16: =C_N_bete -> 2.6 Bete | B16: =IF(Bakgrund!BB46=0,'Teknisk administration'!G6,'Teknisk administration'!G5) -> frivilligt | C16: Beräkna mängden ts bete/hektar, djurens energibehov på betet och tillväxt | I16: 2 Intro foder
I17: 2.1 Odling foder
I18: 2.2 Förluster vid lagring
I19: 2.3 Inköpt foder (exkl mineral)
I20: 2.4 Utfodrat
A21: Fyll i areal åkermark respektive naturbetesmark i gula celler. Om en kategori inte är relavant lämnar du cellen tom. | I21: 2.5. Kasserat foder och spill
A22: Areal åkermark | B22: Enhet | C22: =Bakgrund!R$7 -> Period 1 | D22: =Bakgrund!S$7 -> Period 2 | E22: =Bakgrund!T$7 -> Period 3 | F22: Förklaring | G22: Egen kommentar | I22: 2.6 Bete
A23: Avsalugrödor | B23: hektar åker | F23: Arealer med spannmål, oljeväxter etc. som säljs och som inte används till eget foder | I23: 3 Växtnäringsutnyttjande (1)
A24: Vall (slåttervall+bete) | B24: hektar åker | F24: Vall som går till eget foder, både skördat och betat | I24: 3 Växtnäringsutnyttjande (2)
A25: Spannmål/blandsäd till bete eller grönfoder | B25: hektar åker | F25: Går till eget foder | I25: 3 Växtnäringsutnyttjande (3)
A26: Proteingrödor till ensilering | B26: hektar åker | F26: Proteingrödor som går till eget foder | I26: 4 Energi och bränsle
A27: Spannmål till tröskning | B27: hektar åker | F27: Spannmål som går till eget foder | I27: 5 Vattenanvändning
A28: Proteingrödor till tröskning | B28: hektar åker | F28: Proteingrödor som tröskas och går till eget foder | I28: 6 Resultat
A29: Träda | B29: hektar åker
A30: Övriga grödor | B30: hektar åker | F30: Ej foder, t ex salix
A31: Total åkerareal | B31: hektar åker | C31: =SUM(C23:C30) -> 0 | D31: =SUM(D23:D30) -> 0 | E31: 0 | F31: Summering av alla rader ovan. | M31: =SUM(C23:C30) -> 0 | N31: =SUM(D23:D30) -> 0 | O31: =SUM(E23:E30) -> 0
A32: Varav areal åker för egen foderproduktion | B32: hektar åker | C32: =SUM(C24:C28) -> 0 | D32: =SUM(D24:D28) -> 0 | E32: 0 | F32: summering av raderna ovan, exklusive Areal avsalugrödor, träda och övriga grödor | M32: =SUM(C24:C28) -> 0 | N32: =SUM(D24:D28) -> 0 | O32: =SUM(E24:E28) -> 0
A33: Varav areal åkermark som enbart betats | B33: hektar åker | F33: Ange här hur många hektar av åkermarken som enbart betats under perioden, d v s där det inte tagit någon vallskörd
A34: Varav areal åkermark där återväxt betats | B34: hektar åker | F34: Ange här hur många hektar av åkermarken som djuren betat återväxten efter vall- eller grönfoderskörd.
A36: Areal naturbete | B36: hektar naturbete
A37: Arealen naturbete som andel av den totala grovfoderareal | B37: % | C37: =IF(C24+C25+C36=0,0,C36/(C24+C25+C36)) -> 0 | D37: =IF(D24+D25+D36=0,0,D36/(D24+D25+D36)) -> 0 | E37: =IF(E24+E25+E36=0,0,E36/(E24+E25+E36)) -> 0 | F37: Arealen naturbete dividerat med arealen vall, spannmål/blandsäd till grönfoder och naturbete

Sheet 2.1 Odling foder
A1: 2.1 Odling foder | O1: Snabblänkar till bladen i verktyget:
A2: =VLOOKUP('2 Intro foder'!B11,'Teknisk administration'!$G$4:$H$6,2,FALSE) -> Obligatoriskt blad | M2: Det här betyder färgerna: | O2: Instruktion
A3: Här beräknar du mängden foder (MJ och kg ts) som odlats samt mängd halm som bärgas under perioden. Avsalugrödor, t ex brödspannmål, kan men behöver inte tas med. | M3: Cell med värden hämtade från annan cell | O3: Bakgrund
A4: Räcker inte raderna till? Ta bort bladets skrivskydd (Granska/Skydda), inget lösenord krävs. Högerklicka i tabellen och välj Infoga > Infoga rad ovanför | M4: Fyll i din egen siffra | O4: 1 Intro djuren
A5: Perioderna ligger under varandra på detta blad | M5: Resultat/uträkning | O5: 1.1 Kött
M6: Schablonvärde | O6: 1.2 Tillväxt & förökning
M7: Förklaringar till raden | O7: 1.3 Hälsa & dödlighet
M8: Plats för egna kommentarer | O8: 2 Intro foder
A9: =Bakgrund!R7 -> Period 1 | M9: Fyll i egen siffra - frivilligt, t ex om du har tillgång till uppgift eller om du vill räkna med annat värde än det schablonvärde som visas i angränsande cell | O9: 2.1 Odling foder
A10: Mängd vallfoder, direktutfodrad grönmassa och halm | M10: Egen uppgift, men välj värde ur rullista. | O10: 2.2 Förluster vid lagring
A11: Skördemängden kan anges med två olika alternativ: | O11: 2.3 Inköpt foder (exkl mineral)
A12: 1. Fyll i färdigt värde om du mätt skörden som lagts in (kg och ts). | O12: 2.4 Utfodrat
A13: 2. Uppskatta mängden (kg och ts) genom att beräkna volymen inlagt grovfoder och direktutfodrad grönmassa. | O13: 2.5. Kasserat foder och spill
A14: Du kan ha en kombination av alternativ under en och samma period, t ex om du inte vägt mängden vid varje skörd. | O14: 2.6 Bete
A15: Börja med att välja typ av system (plansilo, rundbal, halm etc. i den vänstraste kolumnen. Då tänds de celler du ska skriva siffror i (gula celler) eller där du ska välja ur en lista (orange celler). Övriga celler i lämnar du tomma. | O15: 3 Växtnäringsutnyttjande (1)
A16: När det gäller energi i fodret kan du antingen välja ur lista (orange cell) eller skriva in ett eget värde (ljusgul cell) | O16: 3 Växtnäringsutnyttjande (2)
A17: Du kan lägga in flera rader med samma system, t ex om du vill särkilja 1:a 2:a och 3:e skörd eller vill räkna separat för olika skriften. Om du hellre vill det kan du lägga allt på en rad. | O17: 3 Växtnäringsutnyttjande (3)
O18: 4 Energi och bränsle
O19: 5 Vattenanvändning | AQ19: Gruppering av system
O20: 6 Resultat
A21: Alternativ 1. Har vägt skörden och har ts-analys
A22: Mängden ts och MJ beräknas först när MJ/kg ts, ts-halt och kg grönmassa fyllts i.
C23: Energi - välj ur lista eller skriv eget värde | E23: TS-halt (%) | G23: Mängd | H23: Beräknad mängd foder* | AQ23: Plansilo | AR23: Torn | AS23: Storbalar (rund- och fyrkantsbalar) | AT23: Hö | AU23: Direktutfodrad grönmassa | AV23: Halm till foder
A24: System - välj alternativ ur listan! | B24: Egen kommentar | C24: Välj ur lista | D24: Eget värde (MJ/kg ts) | E24: % ts | F24: Förklaring | G24: kg grönmassa | H24: kg ts | I24: MJ | J24: Kolumn1 | K24: Kolumn2 | L24: Kolumn3 | M24: Kolumn4 | N24: Kolumn5 | O24: Kolumn6 | P24: Kolumn7 | Q24: Kolumn8 | R24: Kolumn9 | S24: Kolumn10 | T24: Kolumn11 | U24: Kolumn12 | W24: TS-halt | X24: Kolumn15 | Y24: Kolumn16 | Z24: Kolumn17 | AA24: Kolumn18 | AB24: Kolumn19 | AC24: Kolumn20 | AD24: Kolumn21 | AE24: Kolumn22 | AF24: Kolumn23 | AG24: Kolumn24 | AH24: Kolumn25 | AI24: Kolumn26 | AJ24: Kolumn27 | AK24: Kolumn28 | AL24: Kolumn29 | AM24: Kolumn30 | AN24: Kolumn31 | AO24: Kolumn32 | AP24: MJ/kg ts | AQ24: Plansilo12 | AR24: Torn13 | AS24: Storbalar (rund- och fyrkantsbalar) | AT24: Hö14 | AU24: Direktutfodrad grönmassa15 | AV24: Halm till foder
F25: =IF(ISTEXT(A25),VLOOKUP(A25,Tabell203[],17,FALSE),"") ->  | H25: =W25*G25 -> 0 | I25: =H25*IF(D25>0,D25,IF(AND(ISTEXT(A25),(OR(ISTEXT(C25),ISNUMBER(D25)))),IF(D25>0,D41,VLOOKUP(C25,INDIRECT(A25),2,FALSE)),0)) -> 0 | W25: =IF(ISTEXT(A25),IF(E25>0.000001,E25,VLOOKUP(A25,Tabell203[],2,FALSE)),0) -> 0 | AP25: =IF(AND(ISTEXT(A25),(OR(ISTEXT(C25),ISNUMBER(D25)))),IF(D25>0,D25,VLOOKUP(C25,INDIRECT(A25),2,FALSE)),0) -> 0 | AQ25: =IF(ISTEXT($A25),VLOOKUP($A25,Tabell203[],11,FALSE),0) -> 0 | AR25: =IF(ISTEXT($A25),VLOOKUP($A25,Tabell203[],12,FALSE),0) -> 0 | AS25: =IF(ISTEXT($A25),VLOOKUP($A25,Tabell203[],13,FALSE),0) -> 0 | AT25: =IF(ISTEXT($A25),VLOOKUP($A25,Tabell203[],14,FALSE),0) -> 0 | AU25: =IF(ISTEXT($A25),VLOOKUP($A25,Tabell203[],15,FALSE),0) -> 0 | AV25: =IF(AND(ISTEXT($A25),AP25>0),VLOOKUP($A25,Tabell203[],16,FALSE),0) -> 0
F26: =IF(ISTEXT(A26),VLOOKUP(A26,Tabell203[],17,FALSE),"") ->  | H26: 0 | I26: 0 | W26: =IF(ISTEXT(A26),IF(E26>0.000001,E26,VLOOKUP(A26,Tabell203[],2,FALSE)),0) -> 0 | AP26: 0 | AQ26: =IF(ISTEXT($A26),VLOOKUP($A26,Tabell203[],11,FALSE),0) -> 0 | AR26: =IF(ISTEXT($A26),VLOOKUP($A26,Tabell203[],12,FALSE),0) -> 0 | AS26: =IF(ISTEXT($A26),VLOOKUP($A26,Tabell203[],13,FALSE),0) -> 0 | AT26: =IF(ISTEXT($A26),VLOOKUP($A26,Tabell203[],14,FALSE),0) -> 0 | AU26: =IF(ISTEXT($A26),VLOOKUP($A26,Tabell203[],15,FALSE),0) -> 0 | AV26: =IF(AND(ISTEXT($A26),AP26>0),VLOOKUP($A26,Tabell203[],16,FALSE),0) -> 0
F27: =IF(ISTEXT(A27),VLOOKUP(A27,Tabell203[],17,FALSE),"") ->  | H27: 0 | I27: 0 | W27: =IF(ISTEXT(A27),IF(E27>0.000001,E27,VLOOKUP(A27,Tabell203[],2,FALSE)),0) -> 0 | AP27: 0 | AQ27: =IF(ISTEXT($A27),VLOOKUP($A27,Tabell203[],11,FALSE),0) -> 0 | AR27: =IF(ISTEXT($A27),VLOOKUP($A27,Tabell203[],12,FALSE),0) -> 0 | AS27: =IF(ISTEXT($A27),VLOOKUP($A27,Tabell203[],13,FALSE),0) -> 0 | AT27: =IF(ISTEXT($A27),VLOOKUP($A27,Tabell203[],14,FALSE),0) -> 0 | AU27: =IF(ISTEXT($A27),VLOOKUP($A27,Tabell203[],15,FALSE),0) -> 0 | AV27: =IF(AND(ISTEXT($A27),AP27>0),VLOOKUP($A27,Tabell203[],16,FALSE),0) -> 0
F28: =IF(ISTEXT(A28),VLOOKUP(A28,Tabell203[],17,FALSE),"") ->  | H28: 0 | I28: 0 | W28: =IF(ISTEXT(A28),IF(E28>0.000001,E28,VLOOKUP(A28,Tabell203[],2,FALSE)),0) -> 0 | AP28: 0 | AQ28: =IF(ISTEXT($A28),VLOOKUP($A28,Tabell203[],11,FALSE),0) -> 0 | AR28: =IF(ISTEXT($A28),VLOOKUP($A28,Tabell203[],12,FALSE),0) -> 0 | AS28: =IF(ISTEXT($A28),VLOOKUP($A28,Tabell203[],13,FALSE),0) -> 0 | AT28: =IF(ISTEXT($A28),VLOOKUP($A28,Tabell203[],14,FALSE),0) -> 0 | AU28: =IF(ISTEXT($A28),VLOOKUP($A28,Tabell203[],15,FALSE),0) -> 0 | AV28: =IF(AND(ISTEXT($A28),AP28>0),VLOOKUP($A28,Tabell203[],16,FALSE),0) -> 0
F29: =IF(ISTEXT(A29),VLOOKUP(A29,Tabell203[],17,FALSE),"") ->  | H29: 0 | I29: 0 | W29: =IF(ISTEXT(A29),IF(E29>0.000001,E29,VLOOKUP(A29,Tabell203[],2,FALSE)),0) -> 0 | AP29: 0 | AQ29: =IF(ISTEXT($A29),VLOOKUP($A29,Tabell203[],11,FALSE),0) -> 0 | AR29: =IF(ISTEXT($A29),VLOOKUP($A29,Tabell203[],12,FALSE),0) -> 0 | AS29: =IF(ISTEXT($A29),VLOOKUP($A29,Tabell203[],13,FALSE),0) -> 0 | AT29: =IF(ISTEXT($A29),VLOOKUP($A29,Tabell203[],14,FALSE),0) -> 0 | AU29: =IF(ISTEXT($A29),VLOOKUP($A29,Tabell203[],15,FALSE),0) -> 0 | AV29: =IF(AND(ISTEXT($A29),AP29>0),VLOOKUP($A29,Tabell203[],16,FALSE),0) -> 0
F30: =IF(ISTEXT(A30),VLOOKUP(A30,Tabell203[],17,FALSE),"") ->  | H30: 0 | I30: 0 | W30: =IF(ISTEXT(A30),IF(E30>0.000001,E30,VLOOKUP(A30,Tabell203[],2,FALSE)),0) -> 0 | AP30: 0 | AQ30: =IF(ISTEXT($A30),VLOOKUP($A30,Tabell203[],11,FALSE),0) -> 0 | AR30: =IF(ISTEXT($A30),VLOOKUP($A30,Tabell203[],12,FALSE),0) -> 0 | AS30: =IF(ISTEXT($A30),VLOOKUP($A30,Tabell203[],13,FALSE),0) -> 0 | AT30: =IF(ISTEXT($A30),VLOOKUP($A30,Tabell203[],14,FALSE),0) -> 0 | AU30: =IF(ISTEXT($A30),VLOOKUP($A30,Tabell203[],15,FALSE),0) -> 0 | AV30: =IF(AND(ISTEXT($A30),AP30>0),VLOOKUP($A30,Tabell203[],16,FALSE),0) -> 0
F31: =IF(ISTEXT(A31),VLOOKUP(A31,Tabell203[],17,FALSE),"") ->  | H31: 0 | I31: 0 | W31: =IF(ISTEXT(A31),IF(E31>0.000001,E31,VLOOKUP(A31,Tabell203[],2,FALSE)),0) -> 0 | AP31: 0 | AQ31: =IF(ISTEXT($A31),VLOOKUP($A31,Tabell203[],11,FALSE),0) -> 0 | AR31: =IF(ISTEXT($A31),VLOOKUP($A31,Tabell203[],12,FALSE),0) -> 0 | AS31: =IF(ISTEXT($A31),VLOOKUP($A31,Tabell203[],13,FALSE),0) -> 0 | AT31: =IF(ISTEXT($A31),VLOOKUP($A31,Tabell203[],14,FALSE),0) -> 0 | AU31: =IF(ISTEXT($A31),VLOOKUP($A31,Tabell203[],15,FALSE),0) -> 0 | AV31: =IF(AND(ISTEXT($A31),AP31>0),VLOOKUP($A31,Tabell203[],16,FALSE),0) -> 0
F32: =IF(ISTEXT(A32),VLOOKUP(A32,Tabell203[],17,FALSE),"") ->  | H32: 0 | I32: 0 | W32: =IF(ISTEXT(A32),IF(E32>0.000001,E32,VLOOKUP(A32,Tabell203[],2,FALSE)),0) -> 0 | AP32: 0 | AQ32: =IF(ISTEXT($A32),VLOOKUP($A32,Tabell203[],11,FALSE),0) -> 0 | AR32: =IF(ISTEXT($A32),VLOOKUP($A32,Tabell203[],12,FALSE),0) -> 0 | AS32: =IF(ISTEXT($A32),VLOOKUP($A32,Tabell203[],13,FALSE),0) -> 0 | AT32: =IF(ISTEXT($A32),VLOOKUP($A32,Tabell203[],14,FALSE),0) -> 0 | AU32: =IF(ISTEXT($A32),VLOOKUP($A32,Tabell203[],15,FALSE),0) -> 0 | AV32: =IF(AND(ISTEXT($A32),AP32>0),VLOOKUP($A32,Tabell203[],16,FALSE),0) -> 0
A33: Totalt | H33: =SUM(H25:H32) -> 0 | I33: =SUM(I25:I32) -> 0
H34: * All halm (foder och strö) visas i summan här, men det är bara mängden foderhalm som följer med till kommande beräkningar
A37: Alternativ 2. Har inte vägt skörden, behöver räkna ut mängden skördat | R37: ska dölja
A38: Om det står "Saknas!" eller "0" under rubriken "Beräknad mängd foder" beror det på att någon uppgift saknas. Kontrollera då att du fyllt i alla gula celler på raden samt valt något i alla orange celler på raden | R38: Beskrivning av systemet | W38: TS-halt | X38: Vilket system? 1=ja, 0=nej | AG38: Volymvikt (kg ts/m3) | AP38: Energi | AQ38: Gruppering av system
C39: Energi - välj ur lista eller skriv eget värde | E39: TS-halt (%) | G39: Antal balar eller lass grönmassa | H39: Mängd per lass grönmassa | I39: Teknik - inläggning, pressning etc. | J39: Lagrets respektive balarnas storlek | N39: Beräknad mängd foder* | X39: ='Teknisk administration'!$B$391 -> Plansilo | Y39: ='Teknisk administration'!$B$392 -> Torn | Z39: ='Teknisk administration'!$B$393 -> Rundbalar | AA39: ='Teknisk administration'!$B$394 -> Fyrkantsbalar_ensilage | AB39: ='Teknisk administration'!$B$397 -> Hö | AC39: ='Teknisk administration'!$B$396 -> Direktutfodrad_grönmassa | AD39: ='Teknisk administration'!$B$398 -> Halm | AE39: ='Teknisk administration'!$B$395 -> Fyrkantsbalar_hö | AF39: ='Teknisk administration'!$B$399 -> 0 | AG39: =X39 -> Plansilo | AH39: Torn | AI39: Rundbalar | AJ39: Fyrkantsbalar_ensilage | AK39: Hö | AL39: Direktutfodrad_grönmassa | AM39: Halm | AN39: Fyrkantsbalar_hö | AO39: 0 | AP39: MJ/kg ts | AQ39: Plansilo | AR39: Torn | AS39: Storbalar (rund- och fyrkantsbalar) | AT39: Hö | AU39: Direktutfodrad | AV39: Halm till foder
A40: System - välj alternativ ur listan! | B40: Egen kommentar | C40: Välj ur lista | D40: Eget värde (MJ/kg ts) | E40: % ts | F40: Förklaring | G40: stycken | H40: m3 | I40: välj ur listan i orange celler! | J40: Höjd (m) | K40: Bredd (m) | L40: Längd (m) | M40: Förklaring för volymberäkning | N40: Volym (m3) | O40: Volymvikt (kg ts/m3) | P40: Mängd (kg ts) | Q40: Mängd (MJ) | R40: Antal | S40: Mängd per lass | T40: Teknik | U40: rätblock | V40: cylinder | W40: TS-halt | X40: Plansilo | Y40: Torn | Z40: Rundbalar | AA40: Fyrkantsbalar | AB40: Hö | AC40: Grönfoder | AD40: Halm | AE40: Fyrkantsbalar_hö | AF40: tom | AG40: Plansilo3 | AH40: Torn4 | AI40: Rundbalar5 | AJ40: Fyrkantsbalar6 | AK40: Hö7 | AL40: Direktutfodrat | AM40: Kolumn1 | AN40: Fyrkantsbalar_hö2 | AO40: Visa ts? | AP40: MJ/kg ts | AQ40: Plansilo12 | AR40: Torn13 | AS40: Storbalar (rund- och fyrkantsbalar) | AT40: Hö14 | AU40: Direktutfodrad | AV40: Halm till foder
F41: =IF(ISTEXT(A41),VLOOKUP(A41,Tabell203[],3,FALSE),"") ->  | M41: =IF(ISTEXT(A41),VLOOKUP(A41,Tabell203[],10,FALSE),"") ->  | N41: =IF(ISTEXT(A41),IF(U41=1,J41*K41*L41,IF(V41=1,J41*(K41/2)^2*PI(),1))*IF(R41=1,G41,1)*IF(S41=1,H41,1),0) -> 0 | O41: =SUM(AG41:AN41) -> 0 | P41: =N41*O41 -> 0 | Q41: =P41*AP41 -> 0 | R41: =IF(ISTEXT(A41),VLOOKUP(A41,Tabell203[],4,FALSE),0) -> 0 | S41: =IF(ISTEXT(A41),VLOOKUP(A41,Tabell203[],6,FALSE),0) -> 0 | T41: =IF(ISTEXT(A41),VLOOKUP(A41,Tabell203[],5,FALSE),0) -> 0 | U41: =IF(ISTEXT(A41),VLOOKUP(A41,Tabell203[],8,FALSE),0) -> 0 | V41: =IF(ISTEXT(A41),VLOOKUP(A41,Tabell203[],9,FALSE),0) -> 0 | W41: =IF(ISTEXT(A41),IF(E41>0.000001,E41,VLOOKUP(A41,Tabell203[],2,FALSE)),0) -> 0 | X41: =IF($A41=X$39,1,0) -> 0 | Y41: 0 | Z41: 0 | AA41: =IF($A41=AA$39,1,0) -> 0 | AB41: 0 | AC41: 0 | AD41: 0 | AE41: 0 | AF41: 1 | AG41: =IF(X41=1,VLOOKUP(I41,Tabell220[],2,FALSE),0) -> 0 | AH41: =IF(Y41=1,IF(OR(W41<'Teknisk administration'!$P$262,W41>'Teknisk administration'!$P$263),'Teknisk administration'!$Q$262*J41^2+'Teknisk administration'!$R$262*J41+'Teknisk administration'!$S$262,'Teknisk administration'!$Q$263*J41^2+'Teknisk administration'!$R$263*J41+'Teknisk administration'!$S$263),0) -> 0 | AI41: =IF(Z41=1,VLOOKUP(I41,Tabell214[],2,FALSE)*W41+VLOOKUP(I41,Tabell214[],3,FALSE),0) -> 0 | AJ41: =IF(AA41=1,VLOOKUP(I41,Tabell215[],2,FALSE)*W41+VLOOKUP(I41,Tabell215[],3,FALSE),0) -> 0 | AK41: =IF(AB41=1,VLOOKUP(I41,Tabell216[],2,FALSE)*W41,0) -> 0 | AL41: =IF(AC41=1,'Teknisk administration'!$AP$377,0) -> 0 | AM41: =IF(AD41=1,VLOOKUP($I41,Tabell217[],2,FALSE)*$W41,0) -> 0 | AN41: =IF(AE41=1,VLOOKUP($I41,Tabell29[],2,FALSE)*$W41,0) -> 0 | AO41: =IF(ISTEXT(A41),VLOOKUP(A41,Tabell203[],7,FALSE),0) -> 0 | AP41: =IF(AND(ISTEXT(A41),(OR(ISTEXT(C41),ISNUMBER(D41)))),IF(D41>0,D41,VLOOKUP(C41,INDIRECT(A41),2,FALSE)),0) -> 0 | AQ41: =IF(ISTEXT($A41),VLOOKUP($A41,Tabell203[],11,FALSE),0) -> 0 | AR41: =IF(ISTEXT($A41),VLOOKUP($A41,Tabell203[],12,FALSE),0) -> 0 | AS41: =IF(ISTEXT($A41),VLOOKUP($A41,Tabell203[],13,FALSE),0) -> 0 | AT41: =IF(ISTEXT($A41),VLOOKUP($A41,Tabell203[],14,FALSE),0) -> 0 | AU41: =IF(ISTEXT($A41),VLOOKUP($A41,Tabell203[],15,FALSE),0) -> 0 | AV41: =IF(AND(ISTEXT($A41),AP41>0),VLOOKUP($A41,Tabell203[],16,FALSE),0) -> 0
F42: =IF(ISTEXT(A42),VLOOKUP(A42,Tabell203[],3,FALSE),"") ->  | M42: =IF(ISTEXT(A42),VLOOKUP(A42,Tabell203[],10,FALSE),"") ->  | N42: 0 | O42: 0 | P42: 0 | Q42: 0 | R42: =IF(ISTEXT(A42),VLOOKUP(A42,Tabell203[],4,FALSE),0) -> 0 | S42: =IF(ISTEXT(A42),VLOOKUP(A42,Tabell203[],6,FALSE),0) -> 0 | T42: =IF(ISTEXT(A42),VLOOKUP(A42,Tabell203[],5,FALSE),0) -> 0 | U42: =IF(ISTEXT(A42),VLOOKUP(A42,Tabell203[],8,FALSE),0) -> 0 | V42: =IF(ISTEXT(A42),VLOOKUP(A42,Tabell203[],9,FALSE),0) -> 0 | W42: =IF(ISTEXT(A42),IF(E42>0.000001,E42,VLOOKUP(A42,Tabell203[],2,FALSE)),0) -> 0 | X42: 0 | Y42: 0 | Z42: 0 | AA42: 0 | AB42: 0 | AC42: 0 | AD42: 0 | AE42: 0 | AF42: 1 | AG42: =IF(X42=1,VLOOKUP(I42,Tabell220[],2,FALSE),0) -> 0 | AH42: =IF(Y42=1,IF(OR(W42<'Teknisk administration'!$P$262,W42>'Teknisk administration'!$P$263),'Teknisk administration'!$Q$262*J42^2+'Teknisk administration'!$R$262*J42+'Teknisk administration'!$S$262,'Teknisk administration'!$Q$263*J42^2+'Teknisk administration'!$R$263*J42+'Teknisk administration'!$S$263),0) -> 0 | AI42: =IF(Z42=1,VLOOKUP(I42,Tabell214[],2,FALSE)*W42+VLOOKUP(I42,Tabell214[],3,FALSE),0) -> 0 | AJ42: =IF(AA42=1,VLOOKUP(I42,Tabell215[],2,FALSE)*W42+VLOOKUP(I42,Tabell215[],3,FALSE),0) -> 0 | AK42: =IF(AB42=1,VLOOKUP(I42,Tabell216[],2,FALSE)*W42,0) -> 0 | AL42: =IF(AC42=1,'Teknisk administration'!$AP$377,0) -> 0 | AM42: =IF(AD42=1,VLOOKUP($I42,Tabell217[],2,FALSE)*$W42,0) -> 0 | AN42: =IF(AE42=1,VLOOKUP($I42,Tabell29[],2,FALSE)*$W42,0) -> 0 | AO42: =IF(ISTEXT(A42),VLOOKUP(A42,Tabell203[],7,FALSE),0) -> 0 | AP42: 0 | AQ42: =IF(ISTEXT($A42),VLOOKUP($A42,Tabell203[],11,FALSE),0) -> 0 | AR42: =IF(ISTEXT($A42),VLOOKUP($A42,Tabell203[],12,FALSE),0) -> 0 | AS42: =IF(ISTEXT($A42),VLOOKUP($A42,Tabell203[],13,FALSE),0) -> 0 | AT42: =IF(ISTEXT($A42),VLOOKUP($A42,Tabell203[],14,FALSE),0) -> 0 | AU42: =IF(ISTEXT($A42),VLOOKUP($A42,Tabell203[],15,FALSE),0) -> 0 | AV42: =IF(AND(ISTEXT($A42),AP42>0),VLOOKUP($A42,Tabell203[],16,FALSE),0) -> 0
F43: =IF(ISTEXT(A43),VLOOKUP(A43,Tabell203[],3,FALSE),"") ->  | M43: =IF(ISTEXT(A43),VLOOKUP(A43,Tabell203[],10,FALSE),"") ->  | N43: 0 | O43: 0 | P43: 0 | Q43: 0 | R43: =IF(ISTEXT(A43),VLOOKUP(A43,Tabell203[],4,FALSE),0) -> 0 | S43: =IF(ISTEXT(A43),VLOOKUP(A43,Tabell203[],6,FALSE),0) -> 0 | T43: =IF(ISTEXT(A43),VLOOKUP(A43,Tabell203[],5,FALSE),0) -> 0 | U43: =IF(ISTEXT(A43),VLOOKUP(A43,Tabell203[],8,FALSE),0) -> 0 | V43: =IF(ISTEXT(A43),VLOOKUP(A43,Tabell203[],9,FALSE),0) -> 0 | W43: =IF(ISTEXT(A43),IF(E43>0.000001,E43,VLOOKUP(A43,Tabell203[],2,FALSE)),0) -> 0 | X43: 0 | Y43: 0 | Z43: 0 | AA43: 0 | AB43: 0 | AC43: 0 | AD43: 0 | AE43: 0 | AF43: 1 | AG43: =IF(X43=1,VLOOKUP(I43,Tabell220[],2,FALSE),0) -> 0 | AH43: =IF(Y43=1,IF(OR(W43<'Teknisk administration'!$P$262,W43>'Teknisk administration'!$P$263),'Teknisk administration'!$Q$262*J43^2+'Teknisk administration'!$R$262*J43+'Teknisk administration'!$S$262,'Teknisk administration'!$Q$263*J43^2+'Teknisk administration'!$R$263*J43+'Teknisk administration'!$S$263),0) -> 0 | AI43: =IF(Z43=1,VLOOKUP(I43,Tabell214[],2,FALSE)*W43+VLOOKUP(I43,Tabell214[],3,FALSE),0) -> 0 | AJ43: =IF(AA43=1,VLOOKUP(I43,Tabell215[],2,FALSE)*W43+VLOOKUP(I43,Tabell215[],3,FALSE),0) -> 0 | AK43: =IF(AB43=1,VLOOKUP(I43,Tabell216[],2,FALSE)*W43,0) -> 0 | AL43: =IF(AC43=1,'Teknisk administration'!$AP$377,0) -> 0 | AM43: =IF(AD43=1,VLOOKUP($I43,Tabell217[],2,FALSE)*$W43,0) -> 0 | AN43: =IF(AE43=1,VLOOKUP($I43,Tabell29[],2,FALSE)*$W43,0) -> 0 | AO43: =IF(ISTEXT(A43),VLOOKUP(A43,Tabell203[],7,FALSE),0) -> 0 | AP43: 0 | AQ43: =IF(ISTEXT($A43),VLOOKUP($A43,Tabell203[],11,FALSE),0) -> 0 | AR43: =IF(ISTEXT($A43),VLOOKUP($A43,Tabell203[],12,FALSE),0) -> 0 | AS43: =IF(ISTEXT($A43),VLOOKUP($A43,Tabell203[],13,FALSE),0) -> 0 | AT43: =IF(ISTEXT($A43),VLOOKUP($A43,Tabell203[],14,FALSE),0) -> 0 | AU43: =IF(ISTEXT($A43),VLOOKUP($A43,Tabell203[],15,FALSE),0) -> 0 | AV43: =IF(AND(ISTEXT($A43),AP43>0),VLOOKUP($A43,Tabell203[],16,FALSE),0) -> 0
F44: =IF(ISTEXT(A44),VLOOKUP(A44,Tabell203[],3,FALSE),"") ->  | M44: =IF(ISTEXT(A44),VLOOKUP(A44,Tabell203[],10,FALSE),"") ->  | N44: 0 | O44: 0 | P44: 0 | Q44: 0 | R44: =IF(ISTEXT(A44),VLOOKUP(A44,Tabell203[],4,FALSE),0) -> 0 | S44: =IF(ISTEXT(A44),VLOOKUP(A44,Tabell203[],6,FALSE),0) -> 0 | T44: =IF(ISTEXT(A44),VLOOKUP(A44,Tabell203[],5,FALSE),0) -> 0 | U44: =IF(ISTEXT(A44),VLOOKUP(A44,Tabell203[],8,FALSE),0) -> 0 | V44: =IF(ISTEXT(A44),VLOOKUP(A44,Tabell203[],9,FALSE),0) -> 0 | W44: =IF(ISTEXT(A44),IF(E44>0.000001,E44,VLOOKUP(A44,Tabell203[],2,FALSE)),0) -> 0 | X44: 0 | Y44: 0 | Z44: 0 | AA44: 0 | AB44: 0 | AC44: 0 | AD44: 0 | AE44: 0 | AF44: 1 | AG44: =IF(X44=1,VLOOKUP(I44,Tabell220[],2,FALSE),0) -> 0 | AH44: =IF(Y44=1,IF(OR(W44<'Teknisk administration'!$P$262,W44>'Teknisk administration'!$P$263),'Teknisk administration'!$Q$262*J44^2+'Teknisk administration'!$R$262*J44+'Teknisk administration'!$S$262,'Teknisk administration'!$Q$263*J44^2+'Teknisk administration'!$R$263*J44+'Teknisk administration'!$S$263),0) -> 0 | AI44: =IF(Z44=1,VLOOKUP(I44,Tabell214[],2,FALSE)*W44+VLOOKUP(I44,Tabell214[],3,FALSE),0) -> 0 | AJ44: =IF(AA44=1,VLOOKUP(I44,Tabell215[],2,FALSE)*W44+VLOOKUP(I44,Tabell215[],3,FALSE),0) -> 0 | AK44: =IF(AB44=1,VLOOKUP(I44,Tabell216[],2,FALSE)*W44,0) -> 0 | AL44: =IF(AC44=1,'Teknisk administration'!$AP$377,0) -> 0 | AM44: =IF(AD44=1,VLOOKUP($I44,Tabell217[],2,FALSE)*$W44,0) -> 0 | AN44: =IF(AE44=1,VLOOKUP($I44,Tabell29[],2,FALSE)*$W44,0) -> 0 | AO44: =IF(ISTEXT(A44),VLOOKUP(A44,Tabell203[],7,FALSE),0) -> 0 | AP44: 0 | AQ44: =IF(ISTEXT($A44),VLOOKUP($A44,Tabell203[],11,FALSE),0) -> 0 | AR44: =IF(ISTEXT($A44),VLOOKUP($A44,Tabell203[],12,FALSE),0) -> 0 | AS44: =IF(ISTEXT($A44),VLOOKUP($A44,Tabell203[],13,FALSE),0) -> 0 | AT44: =IF(ISTEXT($A44),VLOOKUP($A44,Tabell203[],14,FALSE),0) -> 0 | AU44: =IF(ISTEXT($A44),VLOOKUP($A44,Tabell203[],15,FALSE),0) -> 0 | AV44: =IF(AND(ISTEXT($A44),AP44>0),VLOOKUP($A44,Tabell203[],16,FALSE),0) -> 0
F45: =IF(ISTEXT(A45),VLOOKUP(A45,Tabell203[],3,FALSE),"") ->  | M45: =IF(ISTEXT(A45),VLOOKUP(A45,Tabell203[],10,FALSE),"") ->  | N45: 0 | O45: 0 | P45: 0 | Q45: 0 | R45: =IF(ISTEXT(A45),VLOOKUP(A45,Tabell203[],4,FALSE),0) -> 0 | S45: =IF(ISTEXT(A45),VLOOKUP(A45,Tabell203[],6,FALSE),0) -> 0 | T45: =IF(ISTEXT(A45),VLOOKUP(A45,Tabell203[],5,FALSE),0) -> 0 | U45: =IF(ISTEXT(A45),VLOOKUP(A45,Tabell203[],8,FALSE),0) -> 0 | V45: =IF(ISTEXT(A45),VLOOKUP(A45,Tabell203[],9,FALSE),0) -> 0 | W45: =IF(ISTEXT(A45),IF(E45>0.000001,E45,VLOOKUP(A45,Tabell203[],2,FALSE)),0) -> 0 | X45: 0 | Y45: 0 | Z45: 0 | AA45: 0 | AB45: 0 | AC45: 0 | AD45: 0 | AE45: 0 | AF45: 1 | AG45: =IF(X45=1,VLOOKUP(I45,Tabell220[],2,FALSE),0) -> 0 | AH45: =IF(Y45=1,IF(OR(W45<'Teknisk administration'!$P$262,W45>'Teknisk administration'!$P$263),'Teknisk administration'!$Q$262*J45^2+'Teknisk administration'!$R$262*J45+'Teknisk administration'!$S$262,'Teknisk administration'!$Q$263*J45^2+'Teknisk administration'!$R$263*J45+'Teknisk administration'!$S$263),0) -> 0 | AI45: =IF(Z45=1,VLOOKUP(I45,Tabell214[],2,FALSE)*W45+VLOOKUP(I45,Tabell214[],3,FALSE),0) -> 0 | AJ45: =IF(AA45=1,VLOOKUP(I45,Tabell215[],2,FALSE)*W45+VLOOKUP(I45,Tabell215[],3,FALSE),0) -> 0 | AK45: =IF(AB45=1,VLOOKUP(I45,Tabell216[],2,FALSE)*W45,0) -> 0 | AL45: =IF(AC45=1,'Teknisk administration'!$AP$377,0) -> 0 | AM45: =IF(AD45=1,VLOOKUP($I45,Tabell217[],2,FALSE)*$W45,0) -> 0 | AN45: =IF(AE45=1,VLOOKUP($I45,Tabell29[],2,FALSE)*$W45,0) -> 0 | AO45: =IF(ISTEXT(A45),VLOOKUP(A45,Tabell203[],7,FALSE),0) -> 0 | AP45: 0 | AQ45: =IF(ISTEXT($A45),VLOOKUP($A45,Tabell203[],11,FALSE),0) -> 0 | AR45: =IF(ISTEXT($A45),VLOOKUP($A45,Tabell203[],12,FALSE),0) -> 0 | AS45: =IF(ISTEXT($A45),VLOOKUP($A45,Tabell203[],13,FALSE),0) -> 0 | AT45: =IF(ISTEXT($A45),VLOOKUP($A45,Tabell203[],14,FALSE),0) -> 0 | AU45: =IF(ISTEXT($A45),VLOOKUP($A45,Tabell203[],15,FALSE),0) -> 0 | AV45: =IF(AND(ISTEXT($A45),AP45>0),VLOOKUP($A45,Tabell203[],16,FALSE),0) -> 0
F46: =IF(ISTEXT(A46),VLOOKUP(A46,Tabell203[],3,FALSE),"") ->  | M46: =IF(ISTEXT(A46),VLOOKUP(A46,Tabell203[],10,FALSE),"") ->  | N46: 0 | O46: 0 | P46: 0 | Q46: 0 | R46: =IF(ISTEXT(A46),VLOOKUP(A46,Tabell203[],4,FALSE),0) -> 0 | S46: =IF(ISTEXT(A46),VLOOKUP(A46,Tabell203[],6,FALSE),0) -> 0 | T46: =IF(ISTEXT(A46),VLOOKUP(A46,Tabell203[],5,FALSE),0) -> 0 | U46: =IF(ISTEXT(A46),VLOOKUP(A46,Tabell203[],8,FALSE),0) -> 0 | V46: =IF(ISTEXT(A46),VLOOKUP(A46,Tabell203[],9,FALSE),0) -> 0 | W46: =IF(ISTEXT(A46),IF(E46>0.000001,E46,VLOOKUP(A46,Tabell203[],2,FALSE)),0) -> 0 | X46: 0 | Y46: 0 | Z46: 0 | AA46: 0 | AB46: 0 | AC46: 0 | AD46: 0 | AE46: 0 | AF46: 1 | AG46: =IF(X46=1,VLOOKUP(I46,Tabell220[],2,FALSE),0) -> 0 | AH46: =IF(Y46=1,IF(OR(W46<'Teknisk administration'!$P$262,W46>'Teknisk administration'!$P$263),'Teknisk administration'!$Q$262*J46^2+'Teknisk administration'!$R$262*J46+'Teknisk administration'!$S$262,'Teknisk administration'!$Q$263*J46^2+'Teknisk administration'!$R$263*J46+'Teknisk administration'!$S$263),0) -> 0 | AI46: =IF(Z46=1,VLOOKUP(I46,Tabell214[],2,FALSE)*W46+VLOOKUP(I46,Tabell214[],3,FALSE),0) -> 0 | AJ46: =IF(AA46=1,VLOOKUP(I46,Tabell215[],2,FALSE)*W46+VLOOKUP(I46,Tabell215[],3,FALSE),0) -> 0 | AK46: =IF(AB46=1,VLOOKUP(I46,Tabell216[],2,FALSE)*W46,0) -> 0 | AL46: =IF(AC46=1,'Teknisk administration'!$AP$377,0) -> 0 | AM46: =IF(AD46=1,VLOOKUP($I46,Tabell217[],2,FALSE)*$W46,0) -> 0 | AN46: =IF(AE46=1,VLOOKUP($I46,Tabell29[],2,FALSE)*$W46,0) -> 0 | AO46: =IF(ISTEXT(A46),VLOOKUP(A46,Tabell203[],7,FALSE),0) -> 0 | AP46: 0 | AQ46: =IF(ISTEXT($A46),VLOOKUP($A46,Tabell203[],11,FALSE),0) -> 0 | AR46: =IF(ISTEXT($A46),VLOOKUP($A46,Tabell203[],12,FALSE),0) -> 0 | AS46: =IF(ISTEXT($A46),VLOOKUP($A46,Tabell203[],13,FALSE),0) -> 0 | AT46: =IF(ISTEXT($A46),VLOOKUP($A46,Tabell203[],14,FALSE),0) -> 0 | AU46: =IF(ISTEXT($A46),VLOOKUP($A46,Tabell203[],15,FALSE),0) -> 0 | AV46: =IF(AND(ISTEXT($A46),AP46>0),VLOOKUP($A46,Tabell203[],16,FALSE),0) -> 0
F47: =IF(ISTEXT(A47),VLOOKUP(A47,Tabell203[],3,FALSE),"") ->  | M47: =IF(ISTEXT(A47),VLOOKUP(A47,Tabell203[],10,FALSE),"") ->  | N47: 0 | O47: 0 | P47: 0 | Q47: 0 | R47: =IF(ISTEXT(A47),VLOOKUP(A47,Tabell203[],4,FALSE),0) -> 0 | S47: =IF(ISTEXT(A47),VLOOKUP(A47,Tabell203[],6,FALSE),0) -> 0 | T47: =IF(ISTEXT(A47),VLOOKUP(A47,Tabell203[],5,FALSE),0) -> 0 | U47: =IF(ISTEXT(A47),VLOOKUP(A47,Tabell203[],8,FALSE),0) -> 0 | V47: =IF(ISTEXT(A47),VLOOKUP(A47,Tabell203[],9,FALSE),0) -> 0 | W47: =IF(ISTEXT(A47),IF(E47>0.000001,E47,VLOOKUP(A47,Tabell203[],2,FALSE)),0) -> 0 | X47: 0 | Y47: 0 | Z47: 0 | AA47: 0 | AB47: 0 | AC47: 0 | AD47: 0 | AE47: 0 | AF47: 1 | AG47: =IF(X47=1,VLOOKUP(I47,Tabell220[],2,FALSE),0) -> 0 | AH47: =IF(Y47=1,IF(OR(W47<'Teknisk administration'!$P$262,W47>'Teknisk administration'!$P$263),'Teknisk administration'!$Q$262*J47^2+'Teknisk administration'!$R$262*J47+'Teknisk administration'!$S$262,'Teknisk administration'!$Q$263*J47^2+'Teknisk administration'!$R$263*J47+'Teknisk administration'!$S$263),0) -> 0 | AI47: =IF(Z47=1,VLOOKUP(I47,Tabell214[],2,FALSE)*W47+VLOOKUP(I47,Tabell214[],3,FALSE),0) -> 0 | AJ47: =IF(AA47=1,VLOOKUP(I47,Tabell215[],2,FALSE)*W47+VLOOKUP(I47,Tabell215[],3,FALSE),0) -> 0 | AK47: =IF(AB47=1,VLOOKUP(I47,Tabell216[],2,FALSE)*W47,0) -> 0 | AL47: =IF(AC47=1,'Teknisk administration'!$AP$377,0) -> 0 | AM47: =IF(AD47=1,VLOOKUP($I47,Tabell217[],2,FALSE)*$W47,0) -> 0 | AN47: =IF(AE47=1,VLOOKUP($I47,Tabell29[],2,FALSE)*$W47,0) -> 0 | AO47: =IF(ISTEXT(A47),VLOOKUP(A47,Tabell203[],7,FALSE),0) -> 0 | AP47: 0 | AQ47: =IF(ISTEXT($A47),VLOOKUP($A47,Tabell203[],11,FALSE),0) -> 0 | AR47: =IF(ISTEXT($A47),VLOOKUP($A47,Tabell203[],12,FALSE),0) -> 0 | AS47: =IF(ISTEXT($A47),VLOOKUP($A47,Tabell203[],13,FALSE),0) -> 0 | AT47: =IF(ISTEXT($A47),VLOOKUP($A47,Tabell203[],14,FALSE),0) -> 0 | AU47: =IF(ISTEXT($A47),VLOOKUP($A47,Tabell203[],15,FALSE),0) -> 0 | AV47: =IF(AND(ISTEXT($A47),AP47>0),VLOOKUP($A47,Tabell203[],16,FALSE),0) -> 0
F48: =IF(ISTEXT(A48),VLOOKUP(A48,Tabell203[],3,FALSE),"") ->  | M48: =IF(ISTEXT(A48),VLOOKUP(A48,Tabell203[],10,FALSE),"") ->  | N48: 0 | O48: 0 | P48: 0 | Q48: 0 | R48: =IF(ISTEXT(A48),VLOOKUP(A48,Tabell203[],4,FALSE),0) -> 0 | S48: =IF(ISTEXT(A48),VLOOKUP(A48,Tabell203[],6,FALSE),0) -> 0 | T48: =IF(ISTEXT(A48),VLOOKUP(A48,Tabell203[],5,FALSE),0) -> 0 | U48: =IF(ISTEXT(A48),VLOOKUP(A48,Tabell203[],8,FALSE),0) -> 0 | V48: =IF(ISTEXT(A48),VLOOKUP(A48,Tabell203[],9,FALSE),0) -> 0 | W48: =IF(ISTEXT(A48),IF(E48>0.000001,E48,VLOOKUP(A48,Tabell203[],2,FALSE)),0) -> 0 | X48: 0 | Y48: 0 | Z48: 0 | AA48: 0 | AB48: 0 | AC48: 0 | AD48: 0 | AE48: 0 | AF48: 1 | AG48: =IF(X48=1,VLOOKUP(I48,Tabell220[],2,FALSE),0) -> 0 | AH48: =IF(Y48=1,IF(OR(W48<'Teknisk administration'!$P$262,W48>'Teknisk administration'!$P$263),'Teknisk administration'!$Q$262*J48^2+'Teknisk administration'!$R$262*J48+'Teknisk administration'!$S$262,'Teknisk administration'!$Q$263*J48^2+'Teknisk administration'!$R$263*J48+'Teknisk administration'!$S$263),0) -> 0 | AI48: =IF(Z48=1,VLOOKUP(I48,Tabell214[],2,FALSE)*W48+VLOOKUP(I48,Tabell214[],3,FALSE),0) -> 0 | AJ48: =IF(AA48=1,VLOOKUP(I48,Tabell215[],2,FALSE)*W48+VLOOKUP(I48,Tabell215[],3,FALSE),0) -> 0 | AK48: =IF(AB48=1,VLOOKUP(I48,Tabell216[],2,FALSE)*W48,0) -> 0 | AL48: =IF(AC48=1,'Teknisk administration'!$AP$377,0) -> 0 | AM48: =IF(AD48=1,VLOOKUP($I48,Tabell217[],2,FALSE)*$W48,0) -> 0 | AN48: =IF(AE48=1,VLOOKUP($I48,Tabell29[],2,FALSE)*$W48,0) -> 0 | AO48: =IF(ISTEXT(A48),VLOOKUP(A48,Tabell203[],7,FALSE),0) -> 0 | AP48: 0 | AQ48: =IF(ISTEXT($A48),VLOOKUP($A48,Tabell203[],11,FALSE),0) -> 0 | AR48: =IF(ISTEXT($A48),VLOOKUP($A48,Tabell203[],12,FALSE),0) -> 0 | AS48: =IF(ISTEXT($A48),VLOOKUP($A48,Tabell203[],13,FALSE),0) -> 0 | AT48: =IF(ISTEXT($A48),VLOOKUP($A48,Tabell203[],14,FALSE),0) -> 0 | AU48: =IF(ISTEXT($A48),VLOOKUP($A48,Tabell203[],15,FALSE),0) -> 0 | AV48: =IF(AND(ISTEXT($A48),AP48>0),VLOOKUP($A48,Tabell203[],16,FALSE),0) -> 0
F49: =IF(ISTEXT(A49),VLOOKUP(A49,Tabell203[],3,FALSE),"") ->  | M49: =IF(ISTEXT(A49),VLOOKUP(A49,Tabell203[],10,FALSE),"") ->  | N49: 0 | O49: 0 | P49: 0 | Q49: 0 | R49: =IF(ISTEXT(A49),VLOOKUP(A49,Tabell203[],4,FALSE),0) -> 0 | S49: =IF(ISTEXT(A49),VLOOKUP(A49,Tabell203[],6,FALSE),0) -> 0 | T49: =IF(ISTEXT(A49),VLOOKUP(A49,Tabell203[],5,FALSE),0) -> 0 | U49: =IF(ISTEXT(A49),VLOOKUP(A49,Tabell203[],8,FALSE),0) -> 0 | V49: =IF(ISTEXT(A49),VLOOKUP(A49,Tabell203[],9,FALSE),0) -> 0 | W49: =IF(ISTEXT(A49),IF(E49>0.000001,E49,VLOOKUP(A49,Tabell203[],2,FALSE)),0) -> 0 | X49: 0 | Y49: 0 | Z49: 0 | AA49: 0 | AB49: 0 | AC49: 0 | AD49: 0 | AE49: 0 | AF49: 1 | AG49: =IF(X49=1,VLOOKUP(I49,Tabell220[],2,FALSE),0) -> 0 | AH49: =IF(Y49=1,IF(OR(W49<'Teknisk administration'!$P$262,W49>'Teknisk administration'!$P$263),'Teknisk administration'!$Q$262*J49^2+'Teknisk administration'!$R$262*J49+'Teknisk administration'!$S$262,'Teknisk administration'!$Q$263*J49^2+'Teknisk administration'!$R$263*J49+'Teknisk administration'!$S$263),0) -> 0 | AI49: =IF(Z49=1,VLOOKUP(I49,Tabell214[],2,FALSE)*W49+VLOOKUP(I49,Tabell214[],3,FALSE),0) -> 0 | AJ49: =IF(AA49=1,VLOOKUP(I49,Tabell215[],2,FALSE)*W49+VLOOKUP(I49,Tabell215[],3,FALSE),0) -> 0 | AK49: =IF(AB49=1,VLOOKUP(I49,Tabell216[],2,FALSE)*W49,0) -> 0 | AL49: =IF(AC49=1,'Teknisk administration'!$AP$377,0) -> 0 | AM49: =IF(AD49=1,VLOOKUP($I49,Tabell217[],2,FALSE)*$W49,0) -> 0 | AN49: =IF(AE49=1,VLOOKUP($I49,Tabell29[],2,FALSE)*$W49,0) -> 0 | AO49: =IF(ISTEXT(A49),VLOOKUP(A49,Tabell203[],7,FALSE),0) -> 0 | AP49: 0 | AQ49: =IF(ISTEXT($A49),VLOOKUP($A49,Tabell203[],11,FALSE),0) -> 0 | AR49: =IF(ISTEXT($A49),VLOOKUP($A49,Tabell203[],12,FALSE),0) -> 0 | AS49: =IF(ISTEXT($A49),VLOOKUP($A49,Tabell203[],13,FALSE),0) -> 0 | AT49: =IF(ISTEXT($A49),VLOOKUP($A49,Tabell203[],14,FALSE),0) -> 0 | AU49: =IF(ISTEXT($A49),VLOOKUP($A49,Tabell203[],15,FALSE),0) -> 0 | AV49: =IF(AND(ISTEXT($A49),AP49>0),VLOOKUP($A49,Tabell203[],16,FALSE),0) -> 0
F50: =IF(ISTEXT(A50),VLOOKUP(A50,Tabell203[],3,FALSE),"") ->  | M50: =IF(ISTEXT(A50),VLOOKUP(A50,Tabell203[],10,FALSE),"") ->  | N50: 0 | O50: 0 | P50: 0 | Q50: 0 | R50: =IF(ISTEXT(A50),VLOOKUP(A50,Tabell203[],4,FALSE),0) -> 0 | S50: =IF(ISTEXT(A50),VLOOKUP(A50,Tabell203[],6,FALSE),0) -> 0 | T50: =IF(ISTEXT(A50),VLOOKUP(A50,Tabell203[],5,FALSE),0) -> 0 | U50: =IF(ISTEXT(A50),VLOOKUP(A50,Tabell203[],8,FALSE),0) -> 0 | V50: =IF(ISTEXT(A50),VLOOKUP(A50,Tabell203[],9,FALSE),0) -> 0 | W50: =IF(ISTEXT(A50),IF(E50>0.000001,E50,VLOOKUP(A50,Tabell203[],2,FALSE)),0) -> 0 | X50: 0 | Y50: 0 | Z50: 0 | AA50: 0 | AB50: 0 | AC50: 0 | AD50: 0 | AE50: 0 | AF50: 1 | AG50: =IF(X50=1,VLOOKUP(I50,Tabell220[],2,FALSE),0) -> 0 | AH50: =IF(Y50=1,IF(OR(W50<'Teknisk administration'!$P$262,W50>'Teknisk administration'!$P$263),'Teknisk administration'!$Q$262*J50^2+'Teknisk administration'!$R$262*J50+'Teknisk administration'!$S$262,'Teknisk administration'!$Q$263*J50^2+'Teknisk administration'!$R$263*J50+'Teknisk administration'!$S$263),0) -> 0 | AI50: =IF(Z50=1,VLOOKUP(I50,Tabell214[],2,FALSE)*W50+VLOOKUP(I50,Tabell214[],3,FALSE),0) -> 0 | AJ50: =IF(AA50=1,VLOOKUP(I50,Tabell215[],2,FALSE)*W50+VLOOKUP(I50,Tabell215[],3,FALSE),0) -> 0 | AK50: =IF(AB50=1,VLOOKUP(I50,Tabell216[],2,FALSE)*W50,0) -> 0 | AL50: =IF(AC50=1,'Teknisk administration'!$AP$377,0) -> 0 | AM50: =IF(AD50=1,VLOOKUP($I50,Tabell217[],2,FALSE)*$W50,0) -> 0 | AN50: =IF(AE50=1,VLOOKUP($I50,Tabell29[],2,FALSE)*$W50,0) -> 0 | AO50: =IF(ISTEXT(A50),VLOOKUP(A50,Tabell203[],7,FALSE),0) -> 0 | AP50: 0 | AQ50: =IF(ISTEXT($A50),VLOOKUP($A50,Tabell203[],11,FALSE),0) -> 0 | AR50: =IF(ISTEXT($A50),VLOOKUP($A50,Tabell203[],12,FALSE),0) -> 0 | AS50: =IF(ISTEXT($A50),VLOOKUP($A50,Tabell203[],13,FALSE),0) -> 0 | AT50: =IF(ISTEXT($A50),VLOOKUP($A50,Tabell203[],14,FALSE),0) -> 0 | AU50: =IF(ISTEXT($A50),VLOOKUP($A50,Tabell203[],15,FALSE),0) -> 0 | AV50: =IF(AND(ISTEXT($A50),AP50>0),VLOOKUP($A50,Tabell203[],16,FALSE),0) -> 0
F51: =IF(ISTEXT(A51),VLOOKUP(A51,Tabell203[],3,FALSE),"") ->  | M51: =IF(ISTEXT(A51),VLOOKUP(A51,Tabell203[],10,FALSE),"") ->  | N51: 0 | O51: 0 | P51: 0 | Q51: 0 | R51: =IF(ISTEXT(A51),VLOOKUP(A51,Tabell203[],4,FALSE),0) -> 0 | S51: =IF(ISTEXT(A51),VLOOKUP(A51,Tabell203[],6,FALSE),0) -> 0 | T51: =IF(ISTEXT(A51),VLOOKUP(A51,Tabell203[],5,FALSE),0) -> 0 | U51: =IF(ISTEXT(A51),VLOOKUP(A51,Tabell203[],8,FALSE),0) -> 0 | V51: =IF(ISTEXT(A51),VLOOKUP(A51,Tabell203[],9,FALSE),0) -> 0 | W51: =IF(ISTEXT(A51),IF(E51>0.000001,E51,VLOOKUP(A51,Tabell203[],2,FALSE)),0) -> 0 | X51: 0 | Y51: 0 | Z51: 0 | AA51: 0 | AB51: 0 | AC51: 0 | AD51: 0 | AE51: 0 | AF51: 1 | AG51: =IF(X51=1,VLOOKUP(I51,Tabell220[],2,FALSE),0) -> 0 | AH51: =IF(Y51=1,IF(OR(W51<'Teknisk administration'!$P$262,W51>'Teknisk administration'!$P$263),'Teknisk administration'!$Q$262*J51^2+'Teknisk administration'!$R$262*J51+'Teknisk administration'!$S$262,'Teknisk administration'!$Q$263*J51^2+'Teknisk administration'!$R$263*J51+'Teknisk administration'!$S$263),0) -> 0 | AI51: =IF(Z51=1,VLOOKUP(I51,Tabell214[],2,FALSE)*W51+VLOOKUP(I51,Tabell214[],3,FALSE),0) -> 0 | AJ51: =IF(AA51=1,VLOOKUP(I51,Tabell215[],2,FALSE)*W51+VLOOKUP(I51,Tabell215[],3,FALSE),0) -> 0 | AK51: =IF(AB51=1,VLOOKUP(I51,Tabell216[],2,FALSE)*W51,0) -> 0 | AL51: =IF(AC51=1,'Teknisk administration'!$AP$377,0) -> 0 | AM51: =IF(AD51=1,VLOOKUP($I51,Tabell217[],2,FALSE)*$W51,0) -> 0 | AN51: =IF(AE51=1,VLOOKUP($I51,Tabell29[],2,FALSE)*$W51,0) -> 0 | AO51: =IF(ISTEXT(A51),VLOOKUP(A51,Tabell203[],7,FALSE),0) -> 0 | AP51: 0 | AQ51: =IF(ISTEXT($A51),VLOOKUP($A51,Tabell203[],11,FALSE),0) -> 0 | AR51: =IF(ISTEXT($A51),VLOOKUP($A51,Tabell203[],12,FALSE),0) -> 0 | AS51: =IF(ISTEXT($A51),VLOOKUP($A51,Tabell203[],13,FALSE),0) -> 0 | AT51: =IF(ISTEXT($A51),VLOOKUP($A51,Tabell203[],14,FALSE),0) -> 0 | AU51: =IF(ISTEXT($A51),VLOOKUP($A51,Tabell203[],15,FALSE),0) -> 0 | AV51: =IF(AND(ISTEXT($A51),AP51>0),VLOOKUP($A51,Tabell203[],16,FALSE),0) -> 0
F52: =IF(ISTEXT(A52),VLOOKUP(A52,Tabell203[],3,FALSE),"") ->  | M52: =IF(ISTEXT(A52),VLOOKUP(A52,Tabell203[],10,FALSE),"") ->  | N52: 0 | O52: 0 | P52: 0 | Q52: 0 | R52: =IF(ISTEXT(A52),VLOOKUP(A52,Tabell203[],4,FALSE),0) -> 0 | S52: =IF(ISTEXT(A52),VLOOKUP(A52,Tabell203[],6,FALSE),0) -> 0 | T52: =IF(ISTEXT(A52),VLOOKUP(A52,Tabell203[],5,FALSE),0) -> 0 | U52: =IF(ISTEXT(A52),VLOOKUP(A52,Tabell203[],8,FALSE),0) -> 0 | V52: =IF(ISTEXT(A52),VLOOKUP(A52,Tabell203[],9,FALSE),0) -> 0 | W52: =IF(ISTEXT(A52),IF(E52>0.000001,E52,VLOOKUP(A52,Tabell203[],2,FALSE)),0) -> 0 | X52: 0 | Y52: 0 | Z52: 0 | AA52: 0 | AB52: 0 | AC52: 0 | AD52: 0 | AE52: 0 | AF52: 1 | AG52: =IF(X52=1,VLOOKUP(I52,Tabell220[],2,FALSE),0) -> 0 | AH52: =IF(Y52=1,IF(OR(W52<'Teknisk administration'!$P$262,W52>'Teknisk administration'!$P$263),'Teknisk administration'!$Q$262*J52^2+'Teknisk administration'!$R$262*J52+'Teknisk administration'!$S$262,'Teknisk administration'!$Q$263*J52^2+'Teknisk administration'!$R$263*J52+'Teknisk administration'!$S$263),0) -> 0 | AI52: =IF(Z52=1,VLOOKUP(I52,Tabell214[],2,FALSE)*W52+VLOOKUP(I52,Tabell214[],3,FALSE),0) -> 0 | AJ52: =IF(AA52=1,VLOOKUP(I52,Tabell215[],2,FALSE)*W52+VLOOKUP(I52,Tabell215[],3,FALSE),0) -> 0 | AK52: =IF(AB52=1,VLOOKUP(I52,Tabell216[],2,FALSE)*W52,0) -> 0 | AL52: =IF(AC52=1,'Teknisk administration'!$AP$377,0) -> 0 | AM52: =IF(AD52=1,VLOOKUP($I52,Tabell217[],2,FALSE)*$W52,0) -> 0 | AN52: =IF(AE52=1,VLOOKUP($I52,Tabell29[],2,FALSE)*$W52,0) -> 0 | AO52: =IF(ISTEXT(A52),VLOOKUP(A52,Tabell203[],7,FALSE),0) -> 0 | AP52: 0 | AQ52: =IF(ISTEXT($A52),VLOOKUP($A52,Tabell203[],11,FALSE),0) -> 0 | AR52: =IF(ISTEXT($A52),VLOOKUP($A52,Tabell203[],12,FALSE),0) -> 0 | AS52: =IF(ISTEXT($A52),VLOOKUP($A52,Tabell203[],13,FALSE),0) -> 0 | AT52: =IF(ISTEXT($A52),VLOOKUP($A52,Tabell203[],14,FALSE),0) -> 0 | AU52: =IF(ISTEXT($A52),VLOOKUP($A52,Tabell203[],15,FALSE),0) -> 0 | AV52: =IF(AND(ISTEXT($A52),AP52>0),VLOOKUP($A52,Tabell203[],16,FALSE),0) -> 0
M53: Totalt mängd inlagt eller direkttfodrat | N53: =SUM(Tabell221[Volym (m3)]) -> 0 | P53: =SUM(P41:P52) -> 0 | Q53: =SUM(Q41:Q52) -> 0 | Z53: =IF(SUMPRODUCT(Z41:Z52,$G41:$G52)=0,0,SUMPRODUCT($P41:$P52,Z41:Z52)/SUMPRODUCT(Z41:Z52,$G41:$G52)) -> 0 | AA53: =IF(SUMPRODUCT(AA41:AA52,$G41:$G52)=0,0,SUMPRODUCT($P41:$P52,AA41:AA52)/SUMPRODUCT(AA41:AA52,$G41:$G52)) -> 0
A56: ="Övrigt egenproducerat foder "&A9 -> Övrigt egenproducerat foder Period 1
A57: Välj typ av ur lista och mängden bärgat foder aktuell period (enhet visas när du valt ett foder ur listan). Enhet och ts-halt hämtas från en databas. | S57: Nöt och lamm | T57: Växande grisar | U57: Suggor
A58: Typ av foder - välj ur lista | B58: Mängd | C58: Enhet och ts-halt | D58: Egen kommentar | R58: ts-halt | S58: MJ OM | T58: MJ NE | U58: MJ NE | W58: typ av foder | X58: spannmål | Y58: trindsäd | Z58: oljeväxter | AA58: rotfrukter
C59: =IF(ISTEXT(A59),VLOOKUP(A59,'Teknisk administration'!$B$323:$G$340,2,FALSE),"") ->  | R59: =IF(ISTEXT(A59),VLOOKUP(A59,'Teknisk administration'!$B$323:$G$340,3,FALSE),"") ->  | S59: =IF(ISTEXT($A59),VLOOKUP($A59,'Teknisk administration'!$B$323:$I$340,4,FALSE)*$B59*$R59,"") ->  | T59: =IF(ISTEXT($A59),VLOOKUP($A59,'Teknisk administration'!$B$323:$I$340,5,FALSE)*$B59,"") ->  | U59: =IF(ISTEXT($A59),VLOOKUP($A59,'Teknisk administration'!$B$323:$I$340,6,FALSE)*$B59,"") ->  | W59: =IF(ISTEXT(A59),VLOOKUP(A59,'Teknisk administration'!$B$323:$I$340,8,FALSE),"") ->  | X59: =IF($W59=X$58,1,0) -> 0 | Y59: 0 | Z59: 0 | AA59: 0
C60: =IF(ISTEXT(A60),VLOOKUP(A60,'Teknisk administration'!$B$323:$G$340,2,FALSE),"") ->  | R60: =IF(ISTEXT(A60),VLOOKUP(A60,'Teknisk administration'!$B$323:$G$340,3,FALSE),"") ->  | S60: =IF(ISTEXT($A60),VLOOKUP($A60,'Teknisk administration'!$B$323:$I$340,4,FALSE)*$B60*$R60,"") ->  | T60: =IF(ISTEXT($A60),VLOOKUP($A60,'Teknisk administration'!$B$323:$I$340,5,FALSE)*$B60,"") ->  | U60: =IF(ISTEXT($A60),VLOOKUP($A60,'Teknisk administration'!$B$323:$I$340,6,FALSE)*$B60,"") ->  | W60: =IF(ISTEXT(A60),VLOOKUP(A60,'Teknisk administration'!$B$323:$I$340,8,FALSE),"") ->  | X60: 0 | Y60: 0 | Z60: 0 | AA60: 0
C61: =IF(ISTEXT(A61),VLOOKUP(A61,'Teknisk administration'!$B$323:$G$340,2,FALSE),"") ->  | R61: =IF(ISTEXT(A61),VLOOKUP(A61,'Teknisk administration'!$B$323:$G$340,3,FALSE),"") ->  | S61: =IF(ISTEXT($A61),VLOOKUP($A61,'Teknisk administration'!$B$323:$I$340,4,FALSE)*$B61*$R61,"") ->  | T61: =IF(ISTEXT($A61),VLOOKUP($A61,'Teknisk administration'!$B$323:$I$340,5,FALSE)*$B61,"") ->  | U61: =IF(ISTEXT($A61),VLOOKUP($A61,'Teknisk administration'!$B$323:$I$340,6,FALSE)*$B61,"") ->  | W61: =IF(ISTEXT(A61),VLOOKUP(A61,'Teknisk administration'!$B$323:$I$340,8,FALSE),"") ->  | X61: 0 | Y61: 0 | Z61: 0 | AA61: 0
C62: =IF(ISTEXT(A62),VLOOKUP(A62,'Teknisk administration'!$B$323:$G$340,2,FALSE),"") ->  | R62: =IF(ISTEXT(A62),VLOOKUP(A62,'Teknisk administration'!$B$323:$G$340,3,FALSE),"") ->  | S62: =IF(ISTEXT($A62),VLOOKUP($A62,'Teknisk administration'!$B$323:$I$340,4,FALSE)*$B62*$R62,"") ->  | T62: =IF(ISTEXT($A62),VLOOKUP($A62,'Teknisk administration'!$B$323:$I$340,5,FALSE)*$B62,"") ->  | U62: =IF(ISTEXT($A62),VLOOKUP($A62,'Teknisk administration'!$B$323:$I$340,6,FALSE)*$B62,"") ->  | W62: =IF(ISTEXT(A62),VLOOKUP(A62,'Teknisk administration'!$B$323:$I$340,8,FALSE),"") ->  | X62: 0 | Y62: 0 | Z62: 0 | AA62: 0
C63: =IF(ISTEXT(A63),VLOOKUP(A63,'Teknisk administration'!$B$323:$G$340,2,FALSE),"") ->  | R63: =IF(ISTEXT(A63),VLOOKUP(A63,'Teknisk administration'!$B$323:$G$340,3,FALSE),"") ->  | S63: =IF(ISTEXT($A63),VLOOKUP($A63,'Teknisk administration'!$B$323:$I$340,4,FALSE)*$B63*$R63,"") ->  | T63: =IF(ISTEXT($A63),VLOOKUP($A63,'Teknisk administration'!$B$323:$I$340,5,FALSE)*$B63,"") ->  | U63: =IF(ISTEXT($A63),VLOOKUP($A63,'Teknisk administration'!$B$323:$I$340,6,FALSE)*$B63,"") ->  | W63: =IF(ISTEXT(A63),VLOOKUP(A63,'Teknisk administration'!$B$323:$I$340,8,FALSE),"") ->  | X63: 0 | Y63: 0 | Z63: 0 | AA63: 0
C64: =IF(ISTEXT(A64),VLOOKUP(A64,'Teknisk administration'!$B$323:$G$340,2,FALSE),"") ->  | R64: =IF(ISTEXT(A64),VLOOKUP(A64,'Teknisk administration'!$B$323:$G$340,3,FALSE),"") ->  | S64: =IF(ISTEXT($A64),VLOOKUP($A64,'Teknisk administration'!$B$323:$I$340,4,FALSE)*$B64*$R64,"") ->  | T64: =IF(ISTEXT($A64),VLOOKUP($A64,'Teknisk administration'!$B$323:$I$340,5,FALSE)*$B64,"") ->  | U64: =IF(ISTEXT($A64),VLOOKUP($A64,'Teknisk administration'!$B$323:$I$340,6,FALSE)*$B64,"") ->  | W64: =IF(ISTEXT(A64),VLOOKUP(A64,'Teknisk administration'!$B$323:$I$340,8,FALSE),"") ->  | X64: 0 | Y64: 0 | Z64: 0 | AA64: 0
C65: =IF(ISTEXT(A65),VLOOKUP(A65,'Teknisk administration'!$B$323:$G$340,2,FALSE),"") ->  | R65: =IF(ISTEXT(A65),VLOOKUP(A65,'Teknisk administration'!$B$323:$G$340,3,FALSE),"") ->  | S65: =IF(ISTEXT($A65),VLOOKUP($A65,'Teknisk administration'!$B$323:$I$340,4,FALSE)*$B65*$R65,"") ->  | T65: =IF(ISTEXT($A65),VLOOKUP($A65,'Teknisk administration'!$B$323:$I$340,5,FALSE)*$B65,"") ->  | U65: =IF(ISTEXT($A65),VLOOKUP($A65,'Teknisk administration'!$B$323:$I$340,6,FALSE)*$B65,"") ->  | W65: =IF(ISTEXT(A65),VLOOKUP(A65,'Teknisk administration'!$B$323:$I$340,8,FALSE),"") ->  | X65: 0 | Y65: 0 | Z65: 0 | AA65: 0
C66: =IF(ISTEXT(A66),VLOOKUP(A66,'Teknisk administration'!$B$323:$G$340,2,FALSE),"") ->  | R66: =IF(ISTEXT(A66),VLOOKUP(A66,'Teknisk administration'!$B$323:$G$340,3,FALSE),"") ->  | S66: =IF(ISTEXT($A66),VLOOKUP($A66,'Teknisk administration'!$B$323:$I$340,4,FALSE)*$B66*$R66,"") ->  | T66: =IF(ISTEXT($A66),VLOOKUP($A66,'Teknisk administration'!$B$323:$I$340,5,FALSE)*$B66,"") ->  | U66: =IF(ISTEXT($A66),VLOOKUP($A66,'Teknisk administration'!$B$323:$I$340,6,FALSE)*$B66,"") ->  | W66: =IF(ISTEXT(A66),VLOOKUP(A66,'Teknisk administration'!$B$323:$I$340,8,FALSE),"") ->  | X66: 0 | Y66: 0 | Z66: 0 | AA66: 0
C67: =IF(ISTEXT(A67),VLOOKUP(A67,'Teknisk administration'!$B$323:$G$340,2,FALSE),"") ->  | R67: =IF(ISTEXT(A67),VLOOKUP(A67,'Teknisk administration'!$B$323:$G$340,3,FALSE),"") ->  | S67: =IF(ISTEXT($A67),VLOOKUP($A67,'Teknisk administration'!$B$323:$I$340,4,FALSE)*$B67*$R67,"") ->  | T67: =IF(ISTEXT($A67),VLOOKUP($A67,'Teknisk administration'!$B$323:$I$340,5,FALSE)*$B67,"") ->  | U67: =IF(ISTEXT($A67),VLOOKUP($A67,'Teknisk administration'!$B$323:$I$340,6,FALSE)*$B67,"") ->  | W67: =IF(ISTEXT(A67),VLOOKUP(A67,'Teknisk administration'!$B$323:$I$340,8,FALSE),"") ->  | X67: 0 | Y67: 0 | Z67: 0 | AA67: 0
C68: =IF(ISTEXT(A68),VLOOKUP(A68,'Teknisk administration'!$B$323:$G$340,2,FALSE),"") ->  | R68: =IF(ISTEXT(A68),VLOOKUP(A68,'Teknisk administration'!$B$323:$G$340,3,FALSE),"") ->  | S68: =IF(ISTEXT($A68),VLOOKUP($A68,'Teknisk administration'!$B$323:$I$340,4,FALSE)*$B68*$R68,"") ->  | T68: =IF(ISTEXT($A68),VLOOKUP($A68,'Teknisk administration'!$B$323:$I$340,5,FALSE)*$B68,"") ->  | U68: =IF(ISTEXT($A68),VLOOKUP($A68,'Teknisk administration'!$B$323:$I$340,6,FALSE)*$B68,"") ->  | W68: =IF(ISTEXT(A68),VLOOKUP(A68,'Teknisk administration'!$B$323:$I$340,8,FALSE),"") ->  | X68: 0 | Y68: 0 | Z68: 0 | AA68: 0
A69: totalt, kg ts | B69: =SUMPRODUCT(B59:B68,R59:R68) -> 0 | S69: =SUM(S59:S68) -> 0 | T69: =SUM(T59:T68) -> 0 | U69: =SUM(U59:U68) -> 0
A73: =period_2 -> Period 2
A74: Mängd vallfoder, direktutfodrad grönmassa och halm
A75: Skördemängden kan anges med två olika alternativ:
A76: 1. Fyll i färdigt värde om du mätt skörden som lagts in (kg och ts).
A77: 2. Uppskatta mängden (kg och ts) genom att beräkna volymen inlagt grovfoder och direktutfodrad grönmassa.
A78: Du kan ha en kombination av alternativ under en och samma period, t ex om du inte vägt mängden vid varje skörd.
A79: Börja med att välja typ av system (plansilo, rundbal, halm etc. i den vänstraste kolumnen. Då tänds de celler du ska skriva siffror i (gula celler) eller där du ska välja ur en lista (orange celler). Övriga celler i lämnar du tomma.
A80: När det gäller energi i fodret kan du antingen välja ur lista (orange cell) eller skriva in ett eget värde (ljusgul cell)
A81: Du kan lägga in flera rader med samma system, t ex om du vill särkilja 1:a 2:a och 3:e skörd eller vill räkna separat för olika skriften. Om du hellre vill det kan du lägga allt på en rad.
A84: Alternativ 1. Har vägt skörden och har ts-analys
A85: Mängden ts och MJ beräknas först när MJ/kg ts, ts-halt och kg grönmassa fyllts i. | AQ85: Gruppering av system
C86: Energi - välj ur lista eller skriv eget värde | E86: TS-halt (%) | G86: Mängd | H86: Beräknad mängd foder* | AQ86: Plansilo | AR86: Torn | AS86: Storbalar (rund- och fyrkantsbalar) | AT86: Hö | AU86: Direktutfodrad grönmassa | AV86: Halm till foder
A87: System - välj alternativ ur listan! | B87: Egen kommentar | C87: Välj ur lista | D87: Eget värde (MJ/kg ts) | E87: % ts | F87: Förklaring | G87: kg grönmassa | H87: kg ts | I87: MJ | J87: Kolumn1 | K87: Kolumn2 | L87: Kolumn3 | M87: Kolumn4 | N87: Kolumn5 | O87: Kolumn6 | P87: Kolumn7 | Q87: Kolumn8 | R87: Kolumn9 | S87: Kolumn10 | T87: Kolumn11 | U87: Kolumn12 | W87: TS-halt | X87: Kolumn15 | Y87: Kolumn16 | Z87: Kolumn17 | AA87: Kolumn18 | AB87: Kolumn19 | AC87: Kolumn20 | AD87: Kolumn21 | AE87: Kolumn22 | AF87: Kolumn23 | AG87: Kolumn24 | AH87: Kolumn25 | AI87: Kolumn26 | AJ87: Kolumn27 | AK87: Kolumn28 | AL87: Kolumn29 | AM87: Kolumn30 | AN87: Kolumn31 | AO87: Kolumn32 | AP87: MJ/kg ts | AQ87: Plansilo12 | AR87: Torn13 | AS87: Storbalar (rund- och fyrkantsbalar) | AT87: Hö14 | AU87: Direktutfodrad grönmassa15 | AV87: Halm till foder
F88: =IF(ISTEXT(A88),VLOOKUP(A88,Tabell203[],17,FALSE),"") ->  | H88: =W88*G88 -> 0 | I88: =H88*IF(D88>0,D88,IF(AND(ISTEXT(A88),(OR(ISTEXT(C88),ISNUMBER(D88)))),IF(D88>0,D104,VLOOKUP(C88,INDIRECT(A88),2,FALSE)),0)) -> 0 | W88: =IF(ISTEXT(A88),IF(E88>0.000001,E88,VLOOKUP(A88,Tabell203[],2,FALSE)),0) -> 0 | AP88: =IF(AND(ISTEXT(A88),(OR(ISTEXT(C88),ISNUMBER(D88)))),IF(D88>0,D88,VLOOKUP(C88,INDIRECT(A88),2,FALSE)),0) -> 0 | AQ88: =IF(ISTEXT($A88),VLOOKUP($A88,Tabell203[],11,FALSE),0) -> 0 | AR88: =IF(ISTEXT($A88),VLOOKUP($A88,Tabell203[],12,FALSE),0) -> 0 | AS88: =IF(ISTEXT($A88),VLOOKUP($A88,Tabell203[],13,FALSE),0) -> 0 | AT88: =IF(ISTEXT($A88),VLOOKUP($A88,Tabell203[],14,FALSE),0) -> 0 | AU88: =IF(ISTEXT($A88),VLOOKUP($A88,Tabell203[],15,FALSE),0) -> 0 | AV88: =IF(AND(ISTEXT($A88),AP88>0),VLOOKUP($A88,Tabell203[],16,FALSE),0) -> 0
F89: =IF(ISTEXT(A89),VLOOKUP(A89,Tabell203[],17,FALSE),"") ->  | H89: 0 | I89: 0 | W89: =IF(ISTEXT(A89),IF(E89>0.000001,E89,VLOOKUP(A89,Tabell203[],2,FALSE)),0) -> 0 | AP89: 0 | AQ89: =IF(ISTEXT($A89),VLOOKUP($A89,Tabell203[],11,FALSE),0) -> 0 | AR89: =IF(ISTEXT($A89),VLOOKUP($A89,Tabell203[],12,FALSE),0) -> 0 | AS89: =IF(ISTEXT($A89),VLOOKUP($A89,Tabell203[],13,FALSE),0) -> 0 | AT89: =IF(ISTEXT($A89),VLOOKUP($A89,Tabell203[],14,FALSE),0) -> 0 | AU89: =IF(ISTEXT($A89),VLOOKUP($A89,Tabell203[],15,FALSE),0) -> 0 | AV89: =IF(AND(ISTEXT($A89),AP89>0),VLOOKUP($A89,Tabell203[],16,FALSE),0) -> 0
F90: =IF(ISTEXT(A90),VLOOKUP(A90,Tabell203[],17,FALSE),"") ->  | H90: 0 | I90: 0 | W90: =IF(ISTEXT(A90),IF(E90>0.000001,E90,VLOOKUP(A90,Tabell203[],2,FALSE)),0) -> 0 | AP90: 0 | AQ90: =IF(ISTEXT($A90),VLOOKUP($A90,Tabell203[],11,FALSE),0) -> 0 | AR90: =IF(ISTEXT($A90),VLOOKUP($A90,Tabell203[],12,FALSE),0) -> 0 | AS90: =IF(ISTEXT($A90),VLOOKUP($A90,Tabell203[],13,FALSE),0) -> 0 | AT90: =IF(ISTEXT($A90),VLOOKUP($A90,Tabell203[],14,FALSE),0) -> 0 | AU90: =IF(ISTEXT($A90),VLOOKUP($A90,Tabell203[],15,FALSE),0) -> 0 | AV90: =IF(AND(ISTEXT($A90),AP90>0),VLOOKUP($A90,Tabell203[],16,FALSE),0) -> 0
F91: =IF(ISTEXT(A91),VLOOKUP(A91,Tabell203[],17,FALSE),"") ->  | H91: 0 | I91: 0 | W91: =IF(ISTEXT(A91),IF(E91>0.000001,E91,VLOOKUP(A91,Tabell203[],2,FALSE)),0) -> 0 | AP91: 0 | AQ91: =IF(ISTEXT($A91),VLOOKUP($A91,Tabell203[],11,FALSE),0) -> 0 | AR91: =IF(ISTEXT($A91),VLOOKUP($A91,Tabell203[],12,FALSE),0) -> 0 | AS91: =IF(ISTEXT($A91),VLOOKUP($A91,Tabell203[],13,FALSE),0) -> 0 | AT91: =IF(ISTEXT($A91),VLOOKUP($A91,Tabell203[],14,FALSE),0) -> 0 | AU91: =IF(ISTEXT($A91),VLOOKUP($A91,Tabell203[],15,FALSE),0) -> 0 | AV91: =IF(AND(ISTEXT($A91),AP91>0),VLOOKUP($A91,Tabell203[],16,FALSE),0) -> 0
F92: =IF(ISTEXT(A92),VLOOKUP(A92,Tabell203[],17,FALSE),"") ->  | H92: 0 | I92: 0 | W92: =IF(ISTEXT(A92),IF(E92>0.000001,E92,VLOOKUP(A92,Tabell203[],2,FALSE)),0) -> 0 | AP92: 0 | AQ92: =IF(ISTEXT($A92),VLOOKUP($A92,Tabell203[],11,FALSE),0) -> 0 | AR92: =IF(ISTEXT($A92),VLOOKUP($A92,Tabell203[],12,FALSE),0) -> 0 | AS92: =IF(ISTEXT($A92),VLOOKUP($A92,Tabell203[],13,FALSE),0) -> 0 | AT92: =IF(ISTEXT($A92),VLOOKUP($A92,Tabell203[],14,FALSE),0) -> 0 | AU92: =IF(ISTEXT($A92),VLOOKUP($A92,Tabell203[],15,FALSE),0) -> 0 | AV92: =IF(AND(ISTEXT($A92),AP92>0),VLOOKUP($A92,Tabell203[],16,FALSE),0) -> 0
F93: =IF(ISTEXT(A93),VLOOKUP(A93,Tabell203[],17,FALSE),"") ->  | H93: 0 | I93: 0 | W93: =IF(ISTEXT(A93),IF(E93>0.000001,E93,VLOOKUP(A93,Tabell203[],2,FALSE)),0) -> 0 | AP93: 0 | AQ93: =IF(ISTEXT($A93),VLOOKUP($A93,Tabell203[],11,FALSE),0) -> 0 | AR93: =IF(ISTEXT($A93),VLOOKUP($A93,Tabell203[],12,FALSE),0) -> 0 | AS93: =IF(ISTEXT($A93),VLOOKUP($A93,Tabell203[],13,FALSE),0) -> 0 | AT93: =IF(ISTEXT($A93),VLOOKUP($A93,Tabell203[],14,FALSE),0) -> 0 | AU93: =IF(ISTEXT($A93),VLOOKUP($A93,Tabell203[],15,FALSE),0) -> 0 | AV93: =IF(AND(ISTEXT($A93),AP93>0),VLOOKUP($A93,Tabell203[],16,FALSE),0) -> 0
F94: =IF(ISTEXT(A94),VLOOKUP(A94,Tabell203[],17,FALSE),"") ->  | H94: 0 | I94: 0 | W94: =IF(ISTEXT(A94),IF(E94>0.000001,E94,VLOOKUP(A94,Tabell203[],2,FALSE)),0) -> 0 | AP94: 0 | AQ94: =IF(ISTEXT($A94),VLOOKUP($A94,Tabell203[],11,FALSE),0) -> 0 | AR94: =IF(ISTEXT($A94),VLOOKUP($A94,Tabell203[],12,FALSE),0) -> 0 | AS94: =IF(ISTEXT($A94),VLOOKUP($A94,Tabell203[],13,FALSE),0) -> 0 | AT94: =IF(ISTEXT($A94),VLOOKUP($A94,Tabell203[],14,FALSE),0) -> 0 | AU94: =IF(ISTEXT($A94),VLOOKUP($A94,Tabell203[],15,FALSE),0) -> 0 | AV94: =IF(AND(ISTEXT($A94),AP94>0),VLOOKUP($A94,Tabell203[],16,FALSE),0) -> 0
F95: =IF(ISTEXT(A95),VLOOKUP(A95,Tabell203[],17,FALSE),"") ->  | H95: 0 | I95: 0 | W95: =IF(ISTEXT(A95),IF(E95>0.000001,E95,VLOOKUP(A95,Tabell203[],2,FALSE)),0) -> 0 | AP95: 0 | AQ95: =IF(ISTEXT($A95),VLOOKUP($A95,Tabell203[],11,FALSE),0) -> 0 | AR95: =IF(ISTEXT($A95),VLOOKUP($A95,Tabell203[],12,FALSE),0) -> 0 | AS95: =IF(ISTEXT($A95),VLOOKUP($A95,Tabell203[],13,FALSE),0) -> 0 | AT95: =IF(ISTEXT($A95),VLOOKUP($A95,Tabell203[],14,FALSE),0) -> 0 | AU95: =IF(ISTEXT($A95),VLOOKUP($A95,Tabell203[],15,FALSE),0) -> 0 | AV95: =IF(AND(ISTEXT($A95),AP95>0),VLOOKUP($A95,Tabell203[],16,FALSE),0) -> 0
A96: Totalt | H96: =SUM(H88:H95) -> 0 | I96: =SUM(I88:I95) -> 0
H97: * All halm (foder och strö) visas i summan här, men det är bara mängden foderhalm som följer med till kommande beräkningar
A100: Alternativ 2. Har inte vägt skörden, behöver räkna ut mängden skördat | R100: ska dölja
A101: Om det står "Saknas!" eller "0" under rubriken "Beräknad mängd foder" beror det på att någon uppgift saknas. Kontrollera då att du fyllt i alla gula celler på raden samt valt något i alla orange celler på raden | R101: Beskrivning av systemet | W101: TS-halt | X101: Vilket system? 1=ja, 0=nej | AG101: Volymvikt (kg ts/m3) | AP101: Energi | AQ101: Gruppering av system
C102: Energi - välj ur lista eller skriv eget värde | E102: TS-halt (%) | G102: Antal balar eller lass grönmassa | H102: Mängd per lass grönmassa | I102: Teknik - inläggning, pressning etc. | J102: Lagrets respektive balarnas storlek | N102: Beräknad mängd foder* | X102: ='Teknisk administration'!$B$391 -> Plansilo | Y102: ='Teknisk administration'!$B$392 -> Torn | Z102: ='Teknisk administration'!$B$393 -> Rundbalar | AA102: ='Teknisk administration'!$B$394 -> Fyrkantsbalar_ensilage | AB102: ='Teknisk administration'!$B$397 -> Hö | AC102: ='Teknisk administration'!$B$396 -> Direktutfodrad_grönmassa | AD102: ='Teknisk administration'!$B$398 -> Halm | AE102: ='Teknisk administration'!$B$395 -> Fyrkantsbalar_hö | AF102: ='Teknisk administration'!$B$399 -> 0 | AG102: =X102 -> Plansilo | AH102: Torn | AI102: Rundbalar | AJ102: Fyrkantsbalar_ensilage | AK102: Hö | AL102: Direktutfodrad_grönmassa | AM102: Halm | AN102: Fyrkantsbalar_hö | AO102: 0 | AP102: MJ/kg ts | AQ102: Plansilo | AR102: Torn | AS102: Storbalar (rund- och fyrkantsbalar) | AT102: Hö | AU102: Direktutfodrad | AV102: Halm till foder
A103: System - välj alternativ ur listan! | B103: Egen kommentar | C103: Välj ur lista | D103: Eget värde (MJ/kg ts) | E103: % ts | F103: Förklaring | G103: stycken | H103: m3 | I103: välj ur listan i orange celler! | J103: Höjd (m) | K103: Bredd (m) | L103: Längd (m) | M103: Förklaring för volymberäkning | N103: Volym (m3) | O103: Volymvikt (kg ts/m3) | P103: Mängd (kg ts) | Q103: Mängd (MJ) | R103: Antal | S103: Mängd per lass | T103: Teknik | U103: rätblock | V103: cylinder | W103: TS-halt | X103: Plansilo | Y103: Torn | Z103: Rundbalar | AA103: Fyrkantsbalar | AB103: Hö | AC103: Grönfoder | AD103: Halm | AE103: Fyrkantsbalar_hö | AF103: tom | AG103: Plansilo3 | AH103: Torn4 | AI103: Rundbalar5 | AJ103: Fyrkantsbalar6 | AK103: Hö7 | AL103: Direktutfodrat | AM103: Kolumn1 | AN103: Fyrkantsbalar_hö2 | AO103: Visa ts? | AP103: MJ/kg ts | AQ103: Plansilo12 | AR103: Torn13 | AS103: Storbalar (rund- och fyrkantsbalar) | AT103: Hö14 | AU103: Direktutfodrad | AV103: Halm till foder
F104: =IF(ISTEXT(A104),VLOOKUP(A104,Tabell203[],3,FALSE),"") ->  | M104: =IF(ISTEXT(A104),VLOOKUP(A104,Tabell203[],10,FALSE),"") ->  | N104: =IF(ISTEXT(A104),IF(U104=1,J104*K104*L104,IF(V104=1,J104*(K104/2)^2*PI(),1))*IF(R104=1,G104,1)*IF(S104=1,H104,1),0) -> 0 | O104: =SUM(AG104:AN104) -> 0 | P104: =N104*O104 -> 0 | Q104: =P104*AP104 -> 0 | R104: =IF(ISTEXT(A104),VLOOKUP(A104,Tabell203[],4,FALSE),0) -> 0 | S104: =IF(ISTEXT(A104),VLOOKUP(A104,Tabell203[],6,FALSE),0) -> 0 | T104: =IF(ISTEXT(A104),VLOOKUP(A104,Tabell203[],5,FALSE),0) -> 0 | U104: =IF(ISTEXT(A104),VLOOKUP(A104,Tabell203[],8,FALSE),0) -> 0 | V104: =IF(ISTEXT(A104),VLOOKUP(A104,Tabell203[],9,FALSE),0) -> 0 | W104: =IF(ISTEXT(A104),IF(E104>0.000001,E104,VLOOKUP(A104,Tabell203[],2,FALSE)),0) -> 0 | X104: =IF($A104=X$39,1,0) -> 0 | Y104: 0 | Z104: 0 | AA104: 0 | AB104: 0 | AC104: 0 | AD104: 0 | AE104: 0 | AF104: 1 | AG104: =IF(X104=1,VLOOKUP(I104,Tabell220[],2,FALSE),0) -> 0 | AH104: =IF(Y104=1,IF(OR(W104<'Teknisk administration'!$P$262,W104>'Teknisk administration'!$P$263),'Teknisk administration'!$Q$262*J104^2+'Teknisk administration'!$R$262*J104+'Teknisk administration'!$S$262,'Teknisk administration'!$Q$263*J104^2+'Teknisk administration'!$R$263*J104+'Teknisk administration'!$S$263),0) -> 0 | AI104: =IF(Z104=1,VLOOKUP(I104,Tabell214[],2,FALSE)*W104+VLOOKUP(I104,Tabell214[],3,FALSE),0) -> 0 | AJ104: =IF(AA104=1,VLOOKUP(I104,Tabell215[],2,FALSE)*W104+VLOOKUP(I104,Tabell215[],3,FALSE),0) -> 0 | AK104: =IF(AB104=1,VLOOKUP(I104,Tabell216[],2,FALSE)*W104,0) -> 0 | AL104: =IF(AC104=1,'Teknisk administration'!$AP$377,0) -> 0 | AM104: =IF(AD104=1,VLOOKUP($I104,Tabell217[],2,FALSE)*$W104,0) -> 0 | AN104: =IF(AE104=1,VLOOKUP($I104,Tabell29[],2,FALSE)*$W104,0) -> 0 | AO104: =IF(ISTEXT(A104),VLOOKUP(A104,Tabell203[],7,FALSE),0) -> 0 | AP104: =IF(AND(ISTEXT(A104),(OR(ISTEXT(C104),ISNUMBER(D104)))),IF(D104>0,D104,VLOOKUP(C104,INDIRECT(A104),2,FALSE)),0) -> 0 | AQ104: =IF(ISTEXT($A104),VLOOKUP($A104,Tabell203[],11,FALSE),0) -> 0 | AR104: =IF(ISTEXT($A104),VLOOKUP($A104,Tabell203[],12,FALSE),0) -> 0 | AS104: =IF(ISTEXT($A104),VLOOKUP($A104,Tabell203[],13,FALSE),0) -> 0 | AT104: =IF(ISTEXT($A104),VLOOKUP($A104,Tabell203[],14,FALSE),0) -> 0 | AU104: =IF(ISTEXT($A104),VLOOKUP($A104,Tabell203[],15,FALSE),0) -> 0 | AV104: =IF(AND(ISTEXT($A104),AP104>0),VLOOKUP($A104,Tabell203[],16,FALSE),0) -> 0
F105: =IF(ISTEXT(A105),VLOOKUP(A105,Tabell203[],3,FALSE),"") ->  | M105: =IF(ISTEXT(A105),VLOOKUP(A105,Tabell203[],10,FALSE),"") ->  | N105: 0 | O105: 0 | P105: 0 | Q105: 0 | R105: =IF(ISTEXT(A105),VLOOKUP(A105,Tabell203[],4,FALSE),0) -> 0 | S105: =IF(ISTEXT(A105),VLOOKUP(A105,Tabell203[],6,FALSE),0) -> 0 | T105: =IF(ISTEXT(A105),VLOOKUP(A105,Tabell203[],5,FALSE),0) -> 0 | U105: =IF(ISTEXT(A105),VLOOKUP(A105,Tabell203[],8,FALSE),0) -> 0 | V105: =IF(ISTEXT(A105),VLOOKUP(A105,Tabell203[],9,FALSE),0) -> 0 | W105: =IF(ISTEXT(A105),IF(E105>0.000001,E105,VLOOKUP(A105,Tabell203[],2,FALSE)),0) -> 0 | X105: 0 | Y105: 0 | Z105: 0 | AA105: 0 | AB105: 0 | AC105: 0 | AD105: 0 | AE105: 0 | AF105: 1 | AG105: =IF(X105=1,VLOOKUP(I105,Tabell220[],2,FALSE),0) -> 0 | AH105: =IF(Y105=1,IF(OR(W105<'Teknisk administration'!$P$262,W105>'Teknisk administration'!$P$263),'Teknisk administration'!$Q$262*J105^2+'Teknisk administration'!$R$262*J105+'Teknisk administration'!$S$262,'Teknisk administration'!$Q$263*J105^2+'Teknisk administration'!$R$263*J105+'Teknisk administration'!$S$263),0) -> 0 | AI105: =IF(Z105=1,VLOOKUP(I105,Tabell214[],2,FALSE)*W105+VLOOKUP(I105,Tabell214[],3,FALSE),0) -> 0 | AJ105: =IF(AA105=1,VLOOKUP(I105,Tabell215[],2,FALSE)*W105+VLOOKUP(I105,Tabell215[],3,FALSE),0) -> 0 | AK105: =IF(AB105=1,VLOOKUP(I105,Tabell216[],2,FALSE)*W105,0) -> 0 | AL105: =IF(AC105=1,'Teknisk administration'!$AP$377,0) -> 0 | AM105: =IF(AD105=1,VLOOKUP($I105,Tabell217[],2,FALSE)*$W105,0) -> 0 | AN105: =IF(AE105=1,VLOOKUP($I105,Tabell29[],2,FALSE)*$W105,0) -> 0 | AO105: =IF(ISTEXT(A105),VLOOKUP(A105,Tabell203[],7,FALSE),0) -> 0 | AP105: 0 | AQ105: =IF(ISTEXT($A105),VLOOKUP($A105,Tabell203[],11,FALSE),0) -> 0 | AR105: =IF(ISTEXT($A105),VLOOKUP($A105,Tabell203[],12,FALSE),0) -> 0 | AS105: =IF(ISTEXT($A105),VLOOKUP($A105,Tabell203[],13,FALSE),0) -> 0 | AT105: =IF(ISTEXT($A105),VLOOKUP($A105,Tabell203[],14,FALSE),0) -> 0 | AU105: =IF(ISTEXT($A105),VLOOKUP($A105,Tabell203[],15,FALSE),0) -> 0 | AV105: =IF(AND(ISTEXT($A105),AP105>0),VLOOKUP($A105,Tabell203[],16,FALSE),0) -> 0
F106: =IF(ISTEXT(A106),VLOOKUP(A106,Tabell203[],3,FALSE),"") ->  | M106: =IF(ISTEXT(A106),VLOOKUP(A106,Tabell203[],10,FALSE),"") ->  | N106: 0 | O106: 0 | P106: 0 | Q106: 0 | R106: =IF(ISTEXT(A106),VLOOKUP(A106,Tabell203[],4,FALSE),0) -> 0 | S106: =IF(ISTEXT(A106),VLOOKUP(A106,Tabell203[],6,FALSE),0) -> 0 | T106: =IF(ISTEXT(A106),VLOOKUP(A106,Tabell203[],5,FALSE),0) -> 0 | U106: =IF(ISTEXT(A106),VLOOKUP(A106,Tabell203[],8,FALSE),0) -> 0 | V106: =IF(ISTEXT(A106),VLOOKUP(A106,Tabell203[],9,FALSE),0) -> 0 | W106: =IF(ISTEXT(A106),IF(E106>0.000001,E106,VLOOKUP(A106,Tabell203[],2,FALSE)),0) -> 0 | X106: 0 | Y106: 0 | Z106: 0 | AA106: 0 | AB106: 0 | AC106: 0 | AD106: 0 | AE106: 0 | AF106: 1 | AG106: =IF(X106=1,VLOOKUP(I106,Tabell220[],2,FALSE),0) -> 0 | AH106: =IF(Y106=1,IF(OR(W106<'Teknisk administration'!$P$262,W106>'Teknisk administration'!$P$263),'Teknisk administration'!$Q$262*J106^2+'Teknisk administration'!$R$262*J106+'Teknisk administration'!$S$262,'Teknisk administration'!$Q$263*J106^2+'Teknisk administration'!$R$263*J106+'Teknisk administration'!$S$263),0) -> 0 | AI106: =IF(Z106=1,VLOOKUP(I106,Tabell214[],2,FALSE)*W106+VLOOKUP(I106,Tabell214[],3,FALSE),0) -> 0 | AJ106: =IF(AA106=1,VLOOKUP(I106,Tabell215[],2,FALSE)*W106+VLOOKUP(I106,Tabell215[],3,FALSE),0) -> 0 | AK106: =IF(AB106=1,VLOOKUP(I106,Tabell216[],2,FALSE)*W106,0) -> 0 | AL106: =IF(AC106=1,'Teknisk administration'!$AP$377,0) -> 0 | AM106: =IF(AD106=1,VLOOKUP($I106,Tabell217[],2,FALSE)*$W106,0) -> 0 | AN106: =IF(AE106=1,VLOOKUP($I106,Tabell29[],2,FALSE)*$W106,0) -> 0 | AO106: =IF(ISTEXT(A106),VLOOKUP(A106,Tabell203[],7,FALSE),0) -> 0 | AP106: 0 | AQ106: =IF(ISTEXT($A106),VLOOKUP($A106,Tabell203[],11,FALSE),0) -> 0 | AR106: =IF(ISTEXT($A106),VLOOKUP($A106,Tabell203[],12,FALSE),0) -> 0 | AS106: =IF(ISTEXT($A106),VLOOKUP($A106,Tabell203[],13,FALSE),0) -> 0 | AT106: =IF(ISTEXT($A106),VLOOKUP($A106,Tabell203[],14,FALSE),0) -> 0 | AU106: =IF(ISTEXT($A106),VLOOKUP($A106,Tabell203[],15,FALSE),0) -> 0 | AV106: =IF(AND(ISTEXT($A106),AP106>0),VLOOKUP($A106,Tabell203[],16,FALSE),0) -> 0
F107: =IF(ISTEXT(A107),VLOOKUP(A107,Tabell203[],3,FALSE),"") ->  | M107: =IF(ISTEXT(A107),VLOOKUP(A107,Tabell203[],10,FALSE),"") ->  | N107: 0 | O107: 0 | P107: 0 | Q107: 0 | R107: =IF(ISTEXT(A107),VLOOKUP(A107,Tabell203[],4,FALSE),0) -> 0 | S107: =IF(ISTEXT(A107),VLOOKUP(A107,Tabell203[],6,FALSE),0) -> 0 | T107: =IF(ISTEXT(A107),VLOOKUP(A107,Tabell203[],5,FALSE),0) -> 0 | U107: =IF(ISTEXT(A107),VLOOKUP(A107,Tabell203[],8,FALSE),0) -> 0 | V107: =IF(ISTEXT(A107),VLOOKUP(A107,Tabell203[],9,FALSE),0) -> 0 | W107: =IF(ISTEXT(A107),IF(E107>0.000001,E107,VLOOKUP(A107,Tabell203[],2,FALSE)),0) -> 0 | X107: 0 | Y107: 0 | Z107: 0 | AA107: 0 | AB107: 0 | AC107: 0 | AD107: 0 | AE107: 0 | AF107: 1 | AG107: =IF(X107=1,VLOOKUP(I107,Tabell220[],2,FALSE),0) -> 0 | AH107: =IF(Y107=1,IF(OR(W107<'Teknisk administration'!$P$262,W107>'Teknisk administration'!$P$263),'Teknisk administration'!$Q$262*J107^2+'Teknisk administration'!$R$262*J107+'Teknisk administration'!$S$262,'Teknisk administration'!$Q$263*J107^2+'Teknisk administration'!$R$263*J107+'Teknisk administration'!$S$263),0) -> 0 | AI107: =IF(Z107=1,VLOOKUP(I107,Tabell214[],2,FALSE)*W107+VLOOKUP(I107,Tabell214[],3,FALSE),0) -> 0 | AJ107: =IF(AA107=1,VLOOKUP(I107,Tabell215[],2,FALSE)*W107+VLOOKUP(I107,Tabell215[],3,FALSE),0) -> 0 | AK107: =IF(AB107=1,VLOOKUP(I107,Tabell216[],2,FALSE)*W107,0) -> 0 | AL107: =IF(AC107=1,'Teknisk administration'!$AP$377,0) -> 0 | AM107: =IF(AD107=1,VLOOKUP($I107,Tabell217[],2,FALSE)*$W107,0) -> 0 | AN107: =IF(AE107=1,VLOOKUP($I107,Tabell29[],2,FALSE)*$W107,0) -> 0 | AO107: =IF(ISTEXT(A107),VLOOKUP(A107,Tabell203[],7,FALSE),0) -> 0 | AP107: 0 | AQ107: =IF(ISTEXT($A107),VLOOKUP($A107,Tabell203[],11,FALSE),0) -> 0 | AR107: =IF(ISTEXT($A107),VLOOKUP($A107,Tabell203[],12,FALSE),0) -> 0 | AS107: =IF(ISTEXT($A107),VLOOKUP($A107,Tabell203[],13,FALSE),0) -> 0 | AT107: =IF(ISTEXT($A107),VLOOKUP($A107,Tabell203[],14,FALSE),0) -> 0 | AU107: =IF(ISTEXT($A107),VLOOKUP($A107,Tabell203[],15,FALSE),0) -> 0 | AV107: =IF(AND(ISTEXT($A107),AP107>0),VLOOKUP($A107,Tabell203[],16,FALSE),0) -> 0
F108: =IF(ISTEXT(A108),VLOOKUP(A108,Tabell203[],3,FALSE),"") ->  | M108: =IF(ISTEXT(A108),VLOOKUP(A108,Tabell203[],10,FALSE),"") ->  | N108: 0 | O108: 0 | P108: 0 | Q108: 0 | R108: =IF(ISTEXT(A108),VLOOKUP(A108,Tabell203[],4,FALSE),0) -> 0 | S108: =IF(ISTEXT(A108),VLOOKUP(A108,Tabell203[],6,FALSE),0) -> 0 | T108: =IF(ISTEXT(A108),VLOOKUP(A108,Tabell203[],5,FALSE),0) -> 0 | U108: =IF(ISTEXT(A108),VLOOKUP(A108,Tabell203[],8,FALSE),0) -> 0 | V108: =IF(ISTEXT(A108),VLOOKUP(A108,Tabell203[],9,FALSE),0) -> 0 | W108: =IF(ISTEXT(A108),IF(E108>0.000001,E108,VLOOKUP(A108,Tabell203[],2,FALSE)),0) -> 0 | X108: 0 | Y108: 0 | Z108: 0 | AA108: 0 | AB108: 0 | AC108: 0 | AD108: 0 | AE108: 0 | AF108: 1 | AG108: =IF(X108=1,VLOOKUP(I108,Tabell220[],2,FALSE),0) -> 0 | AH108: =IF(Y108=1,IF(OR(W108<'Teknisk administration'!$P$262,W108>'Teknisk administration'!$P$263),'Teknisk administration'!$Q$262*J108^2+'Teknisk administration'!$R$262*J108+'Teknisk administration'!$S$262,'Teknisk administration'!$Q$263*J108^2+'Teknisk administration'!$R$263*J108+'Teknisk administration'!$S$263),0) -> 0 | AI108: =IF(Z108=1,VLOOKUP(I108,Tabell214[],2,FALSE)*W108+VLOOKUP(I108,Tabell214[],3,FALSE),0) -> 0 | AJ108: =IF(AA108=1,VLOOKUP(I108,Tabell215[],2,FALSE)*W108+VLOOKUP(I108,Tabell215[],3,FALSE),0) -> 0 | AK108: =IF(AB108=1,VLOOKUP(I108,Tabell216[],2,FALSE)*W108,0) -> 0 | AL108: =IF(AC108=1,'Teknisk administration'!$AP$377,0) -> 0 | AM108: =IF(AD108=1,VLOOKUP($I108,Tabell217[],2,FALSE)*$W108,0) -> 0 | AN108: =IF(AE108=1,VLOOKUP($I108,Tabell29[],2,FALSE)*$W108,0) -> 0 | AO108: =IF(ISTEXT(A108),VLOOKUP(A108,Tabell203[],7,FALSE),0) -> 0 | AP108: 0 | AQ108: =IF(ISTEXT($A108),VLOOKUP($A108,Tabell203[],11,FALSE),0) -> 0 | AR108: =IF(ISTEXT($A108),VLOOKUP($A108,Tabell203[],12,FALSE),0) -> 0 | AS108: =IF(ISTEXT($A108),VLOOKUP($A108,Tabell203[],13,FALSE),0) -> 0 | AT108: =IF(ISTEXT($A108),VLOOKUP($A108,Tabell203[],14,FALSE),0) -> 0 | AU108: =IF(ISTEXT($A108),VLOOKUP($A108,Tabell203[],15,FALSE),0) -> 0 | AV108: =IF(AND(ISTEXT($A108),AP108>0),VLOOKUP($A108,Tabell203[],16,FALSE),0) -> 0
F109: =IF(ISTEXT(A109),VLOOKUP(A109,Tabell203[],3,FALSE),"") ->  | M109: =IF(ISTEXT(A109),VLOOKUP(A109,Tabell203[],10,FALSE),"") ->  | N109: 0 | O109: 0 | P109: 0 | Q109: 0 | R109: =IF(ISTEXT(A109),VLOOKUP(A109,Tabell203[],4,FALSE),0) -> 0 | S109: =IF(ISTEXT(A109),VLOOKUP(A109,Tabell203[],6,FALSE),0) -> 0 | T109: =IF(ISTEXT(A109),VLOOKUP(A109,Tabell203[],5,FALSE),0) -> 0 | U109: =IF(ISTEXT(A109),VLOOKUP(A109,Tabell203[],8,FALSE),0) -> 0 | V109: =IF(ISTEXT(A109),VLOOKUP(A109,Tabell203[],9,FALSE),0) -> 0 | W109: =IF(ISTEXT(A109),IF(E109>0.000001,E109,VLOOKUP(A109,Tabell203[],2,FALSE)),0) -> 0 | X109: 0 | Y109: 0 | Z109: 0 | AA109: 0 | AB109: 0 | AC109: 0 | AD109: 0 | AE109: 0 | AF109: 1 | AG109: =IF(X109=1,VLOOKUP(I109,Tabell220[],2,FALSE),0) -> 0 | AH109: =IF(Y109=1,IF(OR(W109<'Teknisk administration'!$P$262,W109>'Teknisk administration'!$P$263),'Teknisk administration'!$Q$262*J109^2+'Teknisk administration'!$R$262*J109+'Teknisk administration'!$S$262,'Teknisk administration'!$Q$263*J109^2+'Teknisk administration'!$R$263*J109+'Teknisk administration'!$S$263),0) -> 0 | AI109: =IF(Z109=1,VLOOKUP(I109,Tabell214[],2,FALSE)*W109+VLOOKUP(I109,Tabell214[],3,FALSE),0) -> 0 | AJ109: =IF(AA109=1,VLOOKUP(I109,Tabell215[],2,FALSE)*W109+VLOOKUP(I109,Tabell215[],3,FALSE),0) -> 0 | AK109: =IF(AB109=1,VLOOKUP(I109,Tabell216[],2,FALSE)*W109,0) -> 0 | AL109: =IF(AC109=1,'Teknisk administration'!$AP$377,0) -> 0 | AM109: =IF(AD109=1,VLOOKUP($I109,Tabell217[],2,FALSE)*$W109,0) -> 0 | AN109: =IF(AE109=1,VLOOKUP($I109,Tabell29[],2,FALSE)*$W109,0) -> 0 | AO109: =IF(ISTEXT(A109),VLOOKUP(A109,Tabell203[],7,FALSE),0) -> 0 | AP109: 0 | AQ109: =IF(ISTEXT($A109),VLOOKUP($A109,Tabell203[],11,FALSE),0) -> 0 | AR109: =IF(ISTEXT($A109),VLOOKUP($A109,Tabell203[],12,FALSE),0) -> 0 | AS109: =IF(ISTEXT($A109),VLOOKUP($A109,Tabell203[],13,FALSE),0) -> 0 | AT109: =IF(ISTEXT($A109),VLOOKUP($A109,Tabell203[],14,FALSE),0) -> 0 | AU109: =IF(ISTEXT($A109),VLOOKUP($A109,Tabell203[],15,FALSE),0) -> 0 | AV109: =IF(AND(ISTEXT($A109),AP109>0),VLOOKUP($A109,Tabell203[],16,FALSE),0) -> 0
F110: =IF(ISTEXT(A110),VLOOKUP(A110,Tabell203[],3,FALSE),"") ->  | M110: =IF(ISTEXT(A110),VLOOKUP(A110,Tabell203[],10,FALSE),"") ->  | N110: 0 | O110: 0 | P110: 0 | Q110: 0 | R110: =IF(ISTEXT(A110),VLOOKUP(A110,Tabell203[],4,FALSE),0) -> 0 | S110: =IF(ISTEXT(A110),VLOOKUP(A110,Tabell203[],6,FALSE),0) -> 0 | T110: =IF(ISTEXT(A110),VLOOKUP(A110,Tabell203[],5,FALSE),0) -> 0 | U110: =IF(ISTEXT(A110),VLOOKUP(A110,Tabell203[],8,FALSE),0) -> 0 | V110: =IF(ISTEXT(A110),VLOOKUP(A110,Tabell203[],9,FALSE),0) -> 0 | W110: =IF(ISTEXT(A110),IF(E110>0.000001,E110,VLOOKUP(A110,Tabell203[],2,FALSE)),0) -> 0 | X110: 0 | Y110: 0 | Z110: 0 | AA110: 0 | AB110: 0 | AC110: 0 | AD110: 0 | AE110: 0 | AF110: 1 | AG110: =IF(X110=1,VLOOKUP(I110,Tabell220[],2,FALSE),0) -> 0 | AH110: =IF(Y110=1,IF(OR(W110<'Teknisk administration'!$P$262,W110>'Teknisk administration'!$P$263),'Teknisk administration'!$Q$262*J110^2+'Teknisk administration'!$R$262*J110+'Teknisk administration'!$S$262,'Teknisk administration'!$Q$263*J110^2+'Teknisk administration'!$R$263*J110+'Teknisk administration'!$S$263),0) -> 0 | AI110: =IF(Z110=1,VLOOKUP(I110,Tabell214[],2,FALSE)*W110+VLOOKUP(I110,Tabell214[],3,FALSE),0) -> 0 | AJ110: =IF(AA110=1,VLOOKUP(I110,Tabell215[],2,FALSE)*W110+VLOOKUP(I110,Tabell215[],3,FALSE),0) -> 0 | AK110: =IF(AB110=1,VLOOKUP(I110,Tabell216[],2,FALSE)*W110,0) -> 0 | AL110: =IF(AC110=1,'Teknisk administration'!$AP$377,0) -> 0 | AM110: =IF(AD110=1,VLOOKUP($I110,Tabell217[],2,FALSE)*$W110,0) -> 0 | AN110: =IF(AE110=1,VLOOKUP($I110,Tabell29[],2,FALSE)*$W110,0) -> 0 | AO110: =IF(ISTEXT(A110),VLOOKUP(A110,Tabell203[],7,FALSE),0) -> 0 | AP110: 0 | AQ110: =IF(ISTEXT($A110),VLOOKUP($A110,Tabell203[],11,FALSE),0) -> 0 | AR110: =IF(ISTEXT($A110),VLOOKUP($A110,Tabell203[],12,FALSE),0) -> 0 | AS110: =IF(ISTEXT($A110),VLOOKUP($A110,Tabell203[],13,FALSE),0) -> 0 | AT110: =IF(ISTEXT($A110),VLOOKUP($A110,Tabell203[],14,FALSE),0) -> 0 | AU110: =IF(ISTEXT($A110),VLOOKUP($A110,Tabell203[],15,FALSE),0) -> 0 | AV110: =IF(AND(ISTEXT($A110),AP110>0),VLOOKUP($A110,Tabell203[],16,FALSE),0) -> 0
F111: =IF(ISTEXT(A111),VLOOKUP(A111,Tabell203[],3,FALSE),"") ->  | M111: =IF(ISTEXT(A111),VLOOKUP(A111,Tabell203[],10,FALSE),"") ->  | N111: 0 | O111: 0 | P111: 0 | Q111: 0 | R111: =IF(ISTEXT(A111),VLOOKUP(A111,Tabell203[],4,FALSE),0) -> 0 | S111: =IF(ISTEXT(A111),VLOOKUP(A111,Tabell203[],6,FALSE),0) -> 0 | T111: =IF(ISTEXT(A111),VLOOKUP(A111,Tabell203[],5,FALSE),0) -> 0 | U111: =IF(ISTEXT(A111),VLOOKUP(A111,Tabell203[],8,FALSE),0) -> 0 | V111: =IF(ISTEXT(A111),VLOOKUP(A111,Tabell203[],9,FALSE),0) -> 0 | W111: =IF(ISTEXT(A111),IF(E111>0.000001,E111,VLOOKUP(A111,Tabell203[],2,FALSE)),0) -> 0 | X111: 0 | Y111: 0 | Z111: 0 | AA111: 0 | AB111: 0 | AC111: 0 | AD111: 0 | AE111: 0 | AF111: 1 | AG111: =IF(X111=1,VLOOKUP(I111,Tabell220[],2,FALSE),0) -> 0 | AH111: =IF(Y111=1,IF(OR(W111<'Teknisk administration'!$P$262,W111>'Teknisk administration'!$P$263),'Teknisk administration'!$Q$262*J111^2+'Teknisk administration'!$R$262*J111+'Teknisk administration'!$S$262,'Teknisk administration'!$Q$263*J111^2+'Teknisk administration'!$R$263*J111+'Teknisk administration'!$S$263),0) -> 0 | AI111: =IF(Z111=1,VLOOKUP(I111,Tabell214[],2,FALSE)*W111+VLOOKUP(I111,Tabell214[],3,FALSE),0) -> 0 | AJ111: =IF(AA111=1,VLOOKUP(I111,Tabell215[],2,FALSE)*W111+VLOOKUP(I111,Tabell215[],3,FALSE),0) -> 0 | AK111: =IF(AB111=1,VLOOKUP(I111,Tabell216[],2,FALSE)*W111,0) -> 0 | AL111: =IF(AC111=1,'Teknisk administration'!$AP$377,0) -> 0 | AM111: =IF(AD111=1,VLOOKUP($I111,Tabell217[],2,FALSE)*$W111,0) -> 0 | AN111: =IF(AE111=1,VLOOKUP($I111,Tabell29[],2,FALSE)*$W111,0) -> 0 | AO111: =IF(ISTEXT(A111),VLOOKUP(A111,Tabell203[],7,FALSE),0) -> 0 | AP111: 0 | AQ111: =IF(ISTEXT($A111),VLOOKUP($A111,Tabell203[],11,FALSE),0) -> 0 | AR111: =IF(ISTEXT($A111),VLOOKUP($A111,Tabell203[],12,FALSE),0) -> 0 | AS111: =IF(ISTEXT($A111),VLOOKUP($A111,Tabell203[],13,FALSE),0) -> 0 | AT111: =IF(ISTEXT($A111),VLOOKUP($A111,Tabell203[],14,FALSE),0) -> 0 | AU111: =IF(ISTEXT($A111),VLOOKUP($A111,Tabell203[],15,FALSE),0) -> 0 | AV111: =IF(AND(ISTEXT($A111),AP111>0),VLOOKUP($A111,Tabell203[],16,FALSE),0) -> 0
F112: =IF(ISTEXT(A112),VLOOKUP(A112,Tabell203[],3,FALSE),"") ->  | M112: =IF(ISTEXT(A112),VLOOKUP(A112,Tabell203[],10,FALSE),"") ->  | N112: 0 | O112: 0 | P112: 0 | Q112: 0 | R112: =IF(ISTEXT(A112),VLOOKUP(A112,Tabell203[],4,FALSE),0) -> 0 | S112: =IF(ISTEXT(A112),VLOOKUP(A112,Tabell203[],6,FALSE),0) -> 0 | T112: =IF(ISTEXT(A112),VLOOKUP(A112,Tabell203[],5,FALSE),0) -> 0 | U112: =IF(ISTEXT(A112),VLOOKUP(A112,Tabell203[],8,FALSE),0) -> 0 | V112: =IF(ISTEXT(A112),VLOOKUP(A112,Tabell203[],9,FALSE),0) -> 0 | W112: =IF(ISTEXT(A112),IF(E112>0.000001,E112,VLOOKUP(A112,Tabell203[],2,FALSE)),0) -> 0 | X112: 0 | Y112: 0 | Z112: 0 | AA112: 0 | AB112: 0 | AC112: 0 | AD112: 0 | AE112: 0 | AF112: 1 | AG112: =IF(X112=1,VLOOKUP(I112,Tabell220[],2,FALSE),0) -> 0 | AH112: =IF(Y112=1,IF(OR(W112<'Teknisk administration'!$P$262,W112>'Teknisk administration'!$P$263),'Teknisk administration'!$Q$262*J112^2+'Teknisk administration'!$R$262*J112+'Teknisk administration'!$S$262,'Teknisk administration'!$Q$263*J112^2+'Teknisk administration'!$R$263*J112+'Teknisk administration'!$S$263),0) -> 0 | AI112: =IF(Z112=1,VLOOKUP(I112,Tabell214[],2,FALSE)*W112+VLOOKUP(I112,Tabell214[],3,FALSE),0) -> 0 | AJ112: =IF(AA112=1,VLOOKUP(I112,Tabell215[],2,FALSE)*W112+VLOOKUP(I112,Tabell215[],3,FALSE),0) -> 0 | AK112: =IF(AB112=1,VLOOKUP(I112,Tabell216[],2,FALSE)*W112,0) -> 0 | AL112: =IF(AC112=1,'Teknisk administration'!$AP$377,0) -> 0 | AM112: =IF(AD112=1,VLOOKUP($I112,Tabell217[],2,FALSE)*$W112,0) -> 0 | AN112: =IF(AE112=1,VLOOKUP($I112,Tabell29[],2,FALSE)*$W112,0) -> 0 | AO112: =IF(ISTEXT(A112),VLOOKUP(A112,Tabell203[],7,FALSE),0) -> 0 | AP112: 0 | AQ112: =IF(ISTEXT($A112),VLOOKUP($A112,Tabell203[],11,FALSE),0) -> 0 | AR112: =IF(ISTEXT($A112),VLOOKUP($A112,Tabell203[],12,FALSE),0) -> 0 | AS112: =IF(ISTEXT($A112),VLOOKUP($A112,Tabell203[],13,FALSE),0) -> 0 | AT112: =IF(ISTEXT($A112),VLOOKUP($A112,Tabell203[],14,FALSE),0) -> 0 | AU112: =IF(ISTEXT($A112),VLOOKUP($A112,Tabell203[],15,FALSE),0) -> 0 | AV112: =IF(AND(ISTEXT($A112),AP112>0),VLOOKUP($A112,Tabell203[],16,FALSE),0) -> 0
F113: =IF(ISTEXT(A113),VLOOKUP(A113,Tabell203[],3,FALSE),"") ->  | M113: =IF(ISTEXT(A113),VLOOKUP(A113,Tabell203[],10,FALSE),"") ->  | N113: 0 | O113: 0 | P113: 0 | Q113: 0 | R113: =IF(ISTEXT(A113),VLOOKUP(A113,Tabell203[],4,FALSE),0) -> 0 | S113: =IF(ISTEXT(A113),VLOOKUP(A113,Tabell203[],6,FALSE),0) -> 0 | T113: =IF(ISTEXT(A113),VLOOKUP(A113,Tabell203[],5,FALSE),0) -> 0 | U113: =IF(ISTEXT(A113),VLOOKUP(A113,Tabell203[],8,FALSE),0) -> 0 | V113: =IF(ISTEXT(A113),VLOOKUP(A113,Tabell203[],9,FALSE),0) -> 0 | W113: =IF(ISTEXT(A113),IF(E113>0.000001,E113,VLOOKUP(A113,Tabell203[],2,FALSE)),0) -> 0 | X113: 0 | Y113: 0 | Z113: 0 | AA113: 0 | AB113: 0 | AC113: 0 | AD113: 0 | AE113: 0 | AF113: 1 | AG113: =IF(X113=1,VLOOKUP(I113,Tabell220[],2,FALSE),0) -> 0 | AH113: =IF(Y113=1,IF(OR(W113<'Teknisk administration'!$P$262,W113>'Teknisk administration'!$P$263),'Teknisk administration'!$Q$262*J113^2+'Teknisk administration'!$R$262*J113+'Teknisk administration'!$S$262,'Teknisk administration'!$Q$263*J113^2+'Teknisk administration'!$R$263*J113+'Teknisk administration'!$S$263),0) -> 0 | AI113: =IF(Z113=1,VLOOKUP(I113,Tabell214[],2,FALSE)*W113+VLOOKUP(I113,Tabell214[],3,FALSE),0) -> 0 | AJ113: =IF(AA113=1,VLOOKUP(I113,Tabell215[],2,FALSE)*W113+VLOOKUP(I113,Tabell215[],3,FALSE),0) -> 0 | AK113: =IF(AB113=1,VLOOKUP(I113,Tabell216[],2,FALSE)*W113,0) -> 0 | AL113: =IF(AC113=1,'Teknisk administration'!$AP$377,0) -> 0 | AM113: =IF(AD113=1,VLOOKUP($I113,Tabell217[],2,FALSE)*$W113,0) -> 0 | AN113: =IF(AE113=1,VLOOKUP($I113,Tabell29[],2,FALSE)*$W113,0) -> 0 | AO113: =IF(ISTEXT(A113),VLOOKUP(A113,Tabell203[],7,FALSE),0) -> 0 | AP113: 0 | AQ113: =IF(ISTEXT($A113),VLOOKUP($A113,Tabell203[],11,FALSE),0) -> 0 | AR113: =IF(ISTEXT($A113),VLOOKUP($A113,Tabell203[],12,FALSE),0) -> 0 | AS113: =IF(ISTEXT($A113),VLOOKUP($A113,Tabell203[],13,FALSE),0) -> 0 | AT113: =IF(ISTEXT($A113),VLOOKUP($A113,Tabell203[],14,FALSE),0) -> 0 | AU113: =IF(ISTEXT($A113),VLOOKUP($A113,Tabell203[],15,FALSE),0) -> 0 | AV113: =IF(AND(ISTEXT($A113),AP113>0),VLOOKUP($A113,Tabell203[],16,FALSE),0) -> 0
F114: =IF(ISTEXT(A114),VLOOKUP(A114,Tabell203[],3,FALSE),"") ->  | M114: =IF(ISTEXT(A114),VLOOKUP(A114,Tabell203[],10,FALSE),"") ->  | N114: 0 | O114: 0 | P114: 0 | Q114: 0 | R114: =IF(ISTEXT(A114),VLOOKUP(A114,Tabell203[],4,FALSE),0) -> 0 | S114: =IF(ISTEXT(A114),VLOOKUP(A114,Tabell203[],6,FALSE),0) -> 0 | T114: =IF(ISTEXT(A114),VLOOKUP(A114,Tabell203[],5,FALSE),0) -> 0 | U114: =IF(ISTEXT(A114),VLOOKUP(A114,Tabell203[],8,FALSE),0) -> 0 | V114: =IF(ISTEXT(A114),VLOOKUP(A114,Tabell203[],9,FALSE),0) -> 0 | W114: =IF(ISTEXT(A114),IF(E114>0.000001,E114,VLOOKUP(A114,Tabell203[],2,FALSE)),0) -> 0 | X114: 0 | Y114: 0 | Z114: 0 | AA114: 0 | AB114: 0 | AC114: 0 | AD114: 0 | AE114: 0 | AF114: 1 | AG114: =IF(X114=1,VLOOKUP(I114,Tabell220[],2,FALSE),0) -> 0 | AH114: =IF(Y114=1,IF(OR(W114<'Teknisk administration'!$P$262,W114>'Teknisk administration'!$P$263),'Teknisk administration'!$Q$262*J114^2+'Teknisk administration'!$R$262*J114+'Teknisk administration'!$S$262,'Teknisk administration'!$Q$263*J114^2+'Teknisk administration'!$R$263*J114+'Teknisk administration'!$S$263),0) -> 0 | AI114: =IF(Z114=1,VLOOKUP(I114,Tabell214[],2,FALSE)*W114+VLOOKUP(I114,Tabell214[],3,FALSE),0) -> 0 | AJ114: =IF(AA114=1,VLOOKUP(I114,Tabell215[],2,FALSE)*W114+VLOOKUP(I114,Tabell215[],3,FALSE),0) -> 0 | AK114: =IF(AB114=1,VLOOKUP(I114,Tabell216[],2,FALSE)*W114,0) -> 0 | AL114: =IF(AC114=1,'Teknisk administration'!$AP$377,0) -> 0 | AM114: =IF(AD114=1,VLOOKUP($I114,Tabell217[],2,FALSE)*$W114,0) -> 0 | AN114: =IF(AE114=1,VLOOKUP($I114,Tabell29[],2,FALSE)*$W114,0) -> 0 | AO114: =IF(ISTEXT(A114),VLOOKUP(A114,Tabell203[],7,FALSE),0) -> 0 | AP114: 0 | AQ114: =IF(ISTEXT($A114),VLOOKUP($A114,Tabell203[],11,FALSE),0) -> 0 | AR114: =IF(ISTEXT($A114),VLOOKUP($A114,Tabell203[],12,FALSE),0) -> 0 | AS114: =IF(ISTEXT($A114),VLOOKUP($A114,Tabell203[],13,FALSE),0) -> 0 | AT114: =IF(ISTEXT($A114),VLOOKUP($A114,Tabell203[],14,FALSE),0) -> 0 | AU114: =IF(ISTEXT($A114),VLOOKUP($A114,Tabell203[],15,FALSE),0) -> 0 | AV114: =IF(AND(ISTEXT($A114),AP114>0),VLOOKUP($A114,Tabell203[],16,FALSE),0) -> 0
F115: =IF(ISTEXT(A115),VLOOKUP(A115,Tabell203[],3,FALSE),"") ->  | M115: =IF(ISTEXT(A115),VLOOKUP(A115,Tabell203[],10,FALSE),"") ->  | N115: 0 | O115: 0 | P115: 0 | Q115: 0 | R115: =IF(ISTEXT(A115),VLOOKUP(A115,Tabell203[],4,FALSE),0) -> 0 | S115: =IF(ISTEXT(A115),VLOOKUP(A115,Tabell203[],6,FALSE),0) -> 0 | T115: =IF(ISTEXT(A115),VLOOKUP(A115,Tabell203[],5,FALSE),0) -> 0 | U115: =IF(ISTEXT(A115),VLOOKUP(A115,Tabell203[],8,FALSE),0) -> 0 | V115: =IF(ISTEXT(A115),VLOOKUP(A115,Tabell203[],9,FALSE),0) -> 0 | W115: =IF(ISTEXT(A115),IF(E115>0.000001,E115,VLOOKUP(A115,Tabell203[],2,FALSE)),0) -> 0 | X115: 0 | Y115: 0 | Z115: 0 | AA115: 0 | AB115: 0 | AC115: 0 | AD115: 0 | AE115: 0 | AF115: 1 | AG115: =IF(X115=1,VLOOKUP(I115,Tabell220[],2,FALSE),0) -> 0 | AH115: =IF(Y115=1,IF(OR(W115<'Teknisk administration'!$P$262,W115>'Teknisk administration'!$P$263),'Teknisk administration'!$Q$262*J115^2+'Teknisk administration'!$R$262*J115+'Teknisk administration'!$S$262,'Teknisk administration'!$Q$263*J115^2+'Teknisk administration'!$R$263*J115+'Teknisk administration'!$S$263),0) -> 0 | AI115: =IF(Z115=1,VLOOKUP(I115,Tabell214[],2,FALSE)*W115+VLOOKUP(I115,Tabell214[],3,FALSE),0) -> 0 | AJ115: =IF(AA115=1,VLOOKUP(I115,Tabell215[],2,FALSE)*W115+VLOOKUP(I115,Tabell215[],3,FALSE),0) -> 0 | AK115: =IF(AB115=1,VLOOKUP(I115,Tabell216[],2,FALSE)*W115,0) -> 0 | AL115: =IF(AC115=1,'Teknisk administration'!$AP$377,0) -> 0 | AM115: =IF(AD115=1,VLOOKUP($I115,Tabell217[],2,FALSE)*$W115,0) -> 0 | AN115: =IF(AE115=1,VLOOKUP($I115,Tabell29[],2,FALSE)*$W115,0) -> 0 | AO115: =IF(ISTEXT(A115),VLOOKUP(A115,Tabell203[],7,FALSE),0) -> 0 | AP115: 0 | AQ115: =IF(ISTEXT($A115),VLOOKUP($A115,Tabell203[],11,FALSE),0) -> 0 | AR115: =IF(ISTEXT($A115),VLOOKUP($A115,Tabell203[],12,FALSE),0) -> 0 | AS115: =IF(ISTEXT($A115),VLOOKUP($A115,Tabell203[],13,FALSE),0) -> 0 | AT115: =IF(ISTEXT($A115),VLOOKUP($A115,Tabell203[],14,FALSE),0) -> 0 | AU115: =IF(ISTEXT($A115),VLOOKUP($A115,Tabell203[],15,FALSE),0) -> 0 | AV115: =IF(AND(ISTEXT($A115),AP115>0),VLOOKUP($A115,Tabell203[],16,FALSE),0) -> 0
M116: Totalt mängd inlagt eller direkttfodrat | N116: =SUM(N104:N115) -> 0 | P116: =SUM(P104:P115) -> 0 | Q116: =SUM(Q104:Q115) -> 0 | Z116: =IF(SUMPRODUCT(Z104:Z115,$G104:$G115)=0,0,SUMPRODUCT($P104:$P115,Z104:Z115)/SUMPRODUCT(Z104:Z115,$G104:$G115)) -> 0 | AA116: =IF(SUMPRODUCT(AA104:AA115,$G104:$G115)=0,0,SUMPRODUCT($P104:$P115,AA104:AA115)/SUMPRODUCT(AA104:AA115,$G104:$G115)) -> 0
A119: ="Övrigt egenproducerat foder "&A73 -> Övrigt egenproducerat foder Period 2
A120: Välj typ av ur lista och mängden bärgat foder aktuell period (enhet visas när du valt ett foder ur listan). Enhet och ts-halt hämtas från en databas. | S120: Nöt och lamm | T120: Växande grisar | U120: Suggor
A121: Typ av foder - välj ur lista | B121: Mängd | C121: Enhet och ts-halt | D121: Egen kommentar | R121: ts-halt | S121: MJ OM | T121: MJ NE | U121: MJ NE | W121: typ av foder | X121: spannmål | Y121: trindsäd | Z121: oljeväxter | AA121: rotfrukter
C122: =IF(ISTEXT(A122),VLOOKUP(A122,'Teknisk administration'!$B$323:$G$340,2,FALSE),"") ->  | R122: =IF(ISTEXT(A122),VLOOKUP(A122,'Teknisk administration'!$B$323:$G$340,3,FALSE),"") ->  | S122: =IF(ISTEXT($A122),VLOOKUP($A122,'Teknisk administration'!$B$323:$I$340,4,FALSE)*$B122*$R122,"") ->  | T122: =IF(ISTEXT($A122),VLOOKUP($A122,'Teknisk administration'!$B$323:$I$340,5,FALSE)*$B122,"") ->  | U122: =IF(ISTEXT($A122),VLOOKUP($A122,'Teknisk administration'!$B$323:$I$340,6,FALSE)*$B122,"") ->  | W122: =IF(ISTEXT(A122),VLOOKUP(A122,'Teknisk administration'!$B$323:$I$340,8,FALSE),"") ->  | X122: =IF($W122=X$58,1,0) -> 0 | Y122: 0 | Z122: 0 | AA122: 0
C123: =IF(ISTEXT(A123),VLOOKUP(A123,'Teknisk administration'!$B$323:$G$340,2,FALSE),"") ->  | R123: =IF(ISTEXT(A123),VLOOKUP(A123,'Teknisk administration'!$B$323:$G$340,3,FALSE),"") ->  | S123: =IF(ISTEXT($A123),VLOOKUP($A123,'Teknisk administration'!$B$323:$I$340,4,FALSE)*$B123*$R123,"") ->  | T123: =IF(ISTEXT($A123),VLOOKUP($A123,'Teknisk administration'!$B$323:$I$340,5,FALSE)*$B123,"") ->  | U123: =IF(ISTEXT($A123),VLOOKUP($A123,'Teknisk administration'!$B$323:$I$340,6,FALSE)*$B123,"") ->  | W123: =IF(ISTEXT(A123),VLOOKUP(A123,'Teknisk administration'!$B$323:$I$340,8,FALSE),"") ->  | X123: 0 | Y123: 0 | Z123: 0 | AA123: 0
C124: =IF(ISTEXT(A124),VLOOKUP(A124,'Teknisk administration'!$B$323:$G$340,2,FALSE),"") ->  | R124: =IF(ISTEXT(A124),VLOOKUP(A124,'Teknisk administration'!$B$323:$G$340,3,FALSE),"") ->  | S124: =IF(ISTEXT($A124),VLOOKUP($A124,'Teknisk administration'!$B$323:$I$340,4,FALSE)*$B124*$R124,"") ->  | T124: =IF(ISTEXT($A124),VLOOKUP($A124,'Teknisk administration'!$B$323:$I$340,5,FALSE)*$B124,"") ->  | U124: =IF(ISTEXT($A124),VLOOKUP($A124,'Teknisk administration'!$B$323:$I$340,6,FALSE)*$B124,"") ->  | W124: =IF(ISTEXT(A124),VLOOKUP(A124,'Teknisk administration'!$B$323:$I$340,8,FALSE),"") ->  | X124: 0 | Y124: 0 | Z124: 0 | AA124: 0
C125: =IF(ISTEXT(A125),VLOOKUP(A125,'Teknisk administration'!$B$323:$G$340,2,FALSE),"") ->  | R125: =IF(ISTEXT(A125),VLOOKUP(A125,'Teknisk administration'!$B$323:$G$340,3,FALSE),"") ->  | S125: =IF(ISTEXT($A125),VLOOKUP($A125,'Teknisk administration'!$B$323:$I$340,4,FALSE)*$B125*$R125,"") ->  | T125: =IF(ISTEXT($A125),VLOOKUP($A125,'Teknisk administration'!$B$323:$I$340,5,FALSE)*$B125,"") ->  | U125: =IF(ISTEXT($A125),VLOOKUP($A125,'Teknisk administration'!$B$323:$I$340,6,FALSE)*$B125,"") ->  | W125: =IF(ISTEXT(A125),VLOOKUP(A125,'Teknisk administration'!$B$323:$I$340,8,FALSE),"") ->  | X125: 0 | Y125: 0 | Z125: 0 | AA125: 0
C126: =IF(ISTEXT(A126),VLOOKUP(A126,'Teknisk administration'!$B$323:$G$340,2,FALSE),"") ->  | R126: =IF(ISTEXT(A126),VLOOKUP(A126,'Teknisk administration'!$B$323:$G$340,3,FALSE),"") ->  | S126: =IF(ISTEXT($A126),VLOOKUP($A126,'Teknisk administration'!$B$323:$I$340,4,FALSE)*$B126*$R126,"") ->  | T126: =IF(ISTEXT($A126),VLOOKUP($A126,'Teknisk administration'!$B$323:$I$340,5,FALSE)*$B126,"") ->  | U126: =IF(ISTEXT($A126),VLOOKUP($A126,'Teknisk administration'!$B$323:$I$340,6,FALSE)*$B126,"") ->  | W126: =IF(ISTEXT(A126),VLOOKUP(A126,'Teknisk administration'!$B$323:$I$340,8,FALSE),"") ->  | X126: 0 | Y126: 0 | Z126: 0 | AA126: 0
C127: =IF(ISTEXT(A127),VLOOKUP(A127,'Teknisk administration'!$B$323:$G$340,2,FALSE),"") ->  | R127: =IF(ISTEXT(A127),VLOOKUP(A127,'Teknisk administration'!$B$323:$G$340,3,FALSE),"") ->  | S127: =IF(ISTEXT($A127),VLOOKUP($A127,'Teknisk administration'!$B$323:$I$340,4,FALSE)*$B127*$R127,"") ->  | T127: =IF(ISTEXT($A127),VLOOKUP($A127,'Teknisk administration'!$B$323:$I$340,5,FALSE)*$B127,"") ->  | U127: =IF(ISTEXT($A127),VLOOKUP($A127,'Teknisk administration'!$B$323:$I$340,6,FALSE)*$B127,"") ->  | W127: =IF(ISTEXT(A127),VLOOKUP(A127,'Teknisk administration'!$B$323:$I$340,8,FALSE),"") ->  | X127: 0 | Y127: 0 | Z127: 0 | AA127: 0
C128: =IF(ISTEXT(A128),VLOOKUP(A128,'Teknisk administration'!$B$323:$G$340,2,FALSE),"") ->  | R128: =IF(ISTEXT(A128),VLOOKUP(A128,'Teknisk administration'!$B$323:$G$340,3,FALSE),"") ->  | S128: =IF(ISTEXT($A128),VLOOKUP($A128,'Teknisk administration'!$B$323:$I$340,4,FALSE)*$B128*$R128,"") ->  | T128: =IF(ISTEXT($A128),VLOOKUP($A128,'Teknisk administration'!$B$323:$I$340,5,FALSE)*$B128,"") ->  | U128: =IF(ISTEXT($A128),VLOOKUP($A128,'Teknisk administration'!$B$323:$I$340,6,FALSE)*$B128,"") ->  | W128: =IF(ISTEXT(A128),VLOOKUP(A128,'Teknisk administration'!$B$323:$I$340,8,FALSE),"") ->  | X128: 0 | Y128: 0 | Z128: 0 | AA128: 0
C129: =IF(ISTEXT(A129),VLOOKUP(A129,'Teknisk administration'!$B$323:$G$340,2,FALSE),"") ->  | R129: =IF(ISTEXT(A129),VLOOKUP(A129,'Teknisk administration'!$B$323:$G$340,3,FALSE),"") ->  | S129: =IF(ISTEXT($A129),VLOOKUP($A129,'Teknisk administration'!$B$323:$I$340,4,FALSE)*$B129*$R129,"") ->  | T129: =IF(ISTEXT($A129),VLOOKUP($A129,'Teknisk administration'!$B$323:$I$340,5,FALSE)*$B129,"") ->  | U129: =IF(ISTEXT($A129),VLOOKUP($A129,'Teknisk administration'!$B$323:$I$340,6,FALSE)*$B129,"") ->  | W129: =IF(ISTEXT(A129),VLOOKUP(A129,'Teknisk administration'!$B$323:$I$340,8,FALSE),"") ->  | X129: 0 | Y129: 0 | Z129: 0 | AA129: 0
C130: =IF(ISTEXT(A130),VLOOKUP(A130,'Teknisk administration'!$B$323:$G$340,2,FALSE),"") ->  | R130: =IF(ISTEXT(A130),VLOOKUP(A130,'Teknisk administration'!$B$323:$G$340,3,FALSE),"") ->  | S130: =IF(ISTEXT($A130),VLOOKUP($A130,'Teknisk administration'!$B$323:$I$340,4,FALSE)*$B130*$R130,"") ->  | T130: =IF(ISTEXT($A130),VLOOKUP($A130,'Teknisk administration'!$B$323:$I$340,5,FALSE)*$B130,"") ->  | U130: =IF(ISTEXT($A130),VLOOKUP($A130,'Teknisk administration'!$B$323:$I$340,6,FALSE)*$B130,"") ->  | W130: =IF(ISTEXT(A130),VLOOKUP(A130,'Teknisk administration'!$B$323:$I$340,8,FALSE),"") ->  | X130: 0 | Y130: 0 | Z130: 0 | AA130: 0
C131: =IF(ISTEXT(A131),VLOOKUP(A131,'Teknisk administration'!$B$323:$G$340,2,FALSE),"") ->  | R131: =IF(ISTEXT(A131),VLOOKUP(A131,'Teknisk administration'!$B$323:$G$340,3,FALSE),"") ->  | S131: =IF(ISTEXT($A131),VLOOKUP($A131,'Teknisk administration'!$B$323:$I$340,4,FALSE)*$B131*$R131,"") ->  | T131: =IF(ISTEXT($A131),VLOOKUP($A131,'Teknisk administration'!$B$323:$I$340,5,FALSE)*$B131,"") ->  | U131: =IF(ISTEXT($A131),VLOOKUP($A131,'Teknisk administration'!$B$323:$I$340,6,FALSE)*$B131,"") ->  | W131: =IF(ISTEXT(A131),VLOOKUP(A131,'Teknisk administration'!$B$323:$I$340,8,FALSE),"") ->  | X131: 0 | Y131: 0 | Z131: 0 | AA131: 0
A132: totalt, kg ts | B132: =SUMPRODUCT(B122:B131,R122:R131) -> 0 | S132: =SUM(S122:S131) -> 0 | T132: =SUM(T122:T131) -> 0 | U132: =SUM(U122:U131) -> 0
A138: =period_3 -> Period 3
A139: Mängd vallfoder, direktutfodrad grönmassa och halm
A140: Skördemängden kan anges med två olika alternativ:
A141: 1. Fyll i färdigt värde om du mätt skörden som lagts in (kg och ts).
A142: 2. Uppskatta mängden (kg och ts) genom att beräkna volymen inlagt grovfoder och direktutfodrad grönmassa.
A143: Du kan ha en kombination av alternativ under en och samma period, t ex om du inte vägt mängden vid varje skörd.
A144: Börja med att välja typ av system (plansilo, rundbal, halm etc. i den vänstraste kolumnen. Då tänds de celler du ska skriva siffror i (gula celler) eller där du ska välja ur en lista (orange celler). Övriga celler i lämnar du tomma.
A145: När det gäller energi i fodret kan du antingen välja ur lista (orange cell) eller skriva in ett eget värde (ljusgul cell)
A146: Du kan lägga in flera rader med samma system, t ex om du vill särkilja 1:a 2:a och 3:e skörd eller vill räkna separat för olika skriften. Om du hellre vill det kan du lägga allt på en rad.
A149: Alternativ 1. Har vägt skörden och har ts-analys | W149: TS-halt
A150: Mängden ts och MJ beräknas först när MJ/kg ts, ts-halt och kg grönmassa fyllts i. | AQ150: Gruppering av system
C151: Energi - välj ur lista eller skriv eget värde | E151: TS-halt (%) | G151: Mängd | H151: Beräknad mängd foder* | AQ151: Plansilo | AR151: Torn | AS151: Storbalar (rund- och fyrkantsbalar) | AT151: Hö | AU151: Direktutfodrad grönmassa | AV151: Halm till foder
A152: System - välj alternativ ur listan! | B152: Egen kommentar | C152: Välj ur lista | D152: Eget värde (MJ/kg ts) | E152: % ts | F152: Förklaring | G152: kg grönmassa | H152: kg ts | I152: MJ | J152: Kolumn1 | K152: Kolumn2 | L152: Kolumn3 | M152: Kolumn4 | N152: Kolumn5 | O152: Kolumn6 | P152: Kolumn7 | Q152: Kolumn8 | R152: Kolumn9 | S152: Kolumn10 | T152: Kolumn11 | U152: Kolumn12 | W152: TS-halt | X152: Kolumn15 | Y152: Kolumn16 | Z152: Kolumn17 | AA152: Kolumn18 | AB152: Kolumn19 | AC152: Kolumn20 | AD152: Kolumn21 | AE152: Kolumn22 | AF152: Kolumn23 | AG152: Kolumn24 | AH152: Kolumn25 | AI152: Kolumn26 | AJ152: Kolumn27 | AK152: Kolumn28 | AL152: Kolumn29 | AM152: Kolumn30 | AN152: Kolumn31 | AO152: Kolumn32 | AP152: MJ/kg ts | AQ152: Plansilo12 | AR152: Torn13 | AS152: Storbalar (rund- och fyrkantsbalar) | AT152: Hö14 | AU152: Direktutfodrad grönmassa15 | AV152: Halm till foder
F153: =IF(ISTEXT(A153),VLOOKUP(A153,Tabell203[],17,FALSE),"") ->  | H153: =W153*G153 -> 0 | I153: =H153*IF(D153>0,D153,IF(AND(ISTEXT(A153),(OR(ISTEXT(C153),ISNUMBER(D153)))),IF(D153>0,D169,VLOOKUP(C153,INDIRECT(A153),2,FALSE)),0)) -> 0 | W153: =IF(ISTEXT(A153),IF(E153>0.000001,E153,VLOOKUP(A153,Tabell203[],2,FALSE)),0) -> 0 | AP153: =IF(AND(ISTEXT(A153),(OR(ISTEXT(C153),ISNUMBER(D153)))),IF(D153>0,D153,VLOOKUP(C153,INDIRECT(A153),2,FALSE)),0) -> 0 | AQ153: =IF(ISTEXT($A153),VLOOKUP($A153,Tabell203[],11,FALSE),0) -> 0 | AR153: =IF(ISTEXT($A153),VLOOKUP($A153,Tabell203[],12,FALSE),0) -> 0 | AS153: =IF(ISTEXT($A153),VLOOKUP($A153,Tabell203[],13,FALSE),0) -> 0 | AT153: =IF(ISTEXT($A153),VLOOKUP($A153,Tabell203[],14,FALSE),0) -> 0 | AU153: =IF(ISTEXT($A153),VLOOKUP($A153,Tabell203[],15,FALSE),0) -> 0 | AV153: =IF(AND(ISTEXT($A153),AP153>0),VLOOKUP($A153,Tabell203[],16,FALSE),0) -> 0
F154: =IF(ISTEXT(A154),VLOOKUP(A154,Tabell203[],17,FALSE),"") ->  | H154: 0 | I154: 0 | W154: =IF(ISTEXT(A154),IF(E154>0.000001,E154,VLOOKUP(A154,Tabell203[],2,FALSE)),0) -> 0 | AP154: 0 | AQ154: =IF(ISTEXT($A154),VLOOKUP($A154,Tabell203[],11,FALSE),0) -> 0 | AR154: =IF(ISTEXT($A154),VLOOKUP($A154,Tabell203[],12,FALSE),0) -> 0 | AS154: =IF(ISTEXT($A154),VLOOKUP($A154,Tabell203[],13,FALSE),0) -> 0 | AT154: =IF(ISTEXT($A154),VLOOKUP($A154,Tabell203[],14,FALSE),0) -> 0 | AU154: =IF(ISTEXT($A154),VLOOKUP($A154,Tabell203[],15,FALSE),0) -> 0 | AV154: =IF(AND(ISTEXT($A154),AP154>0),VLOOKUP($A154,Tabell203[],16,FALSE),0) -> 0
F155: =IF(ISTEXT(A155),VLOOKUP(A155,Tabell203[],17,FALSE),"") ->  | H155: 0 | I155: 0 | W155: =IF(ISTEXT(A155),IF(E155>0.000001,E155,VLOOKUP(A155,Tabell203[],2,FALSE)),0) -> 0 | AP155: 0 | AQ155: =IF(ISTEXT($A155),VLOOKUP($A155,Tabell203[],11,FALSE),0) -> 0 | AR155: =IF(ISTEXT($A155),VLOOKUP($A155,Tabell203[],12,FALSE),0) -> 0 | AS155: =IF(ISTEXT($A155),VLOOKUP($A155,Tabell203[],13,FALSE),0) -> 0 | AT155: =IF(ISTEXT($A155),VLOOKUP($A155,Tabell203[],14,FALSE),0) -> 0 | AU155: =IF(ISTEXT($A155),VLOOKUP($A155,Tabell203[],15,FALSE),0) -> 0 | AV155: =IF(AND(ISTEXT($A155),AP155>0),VLOOKUP($A155,Tabell203[],16,FALSE),0) -> 0
F156: =IF(ISTEXT(A156),VLOOKUP(A156,Tabell203[],17,FALSE),"") ->  | H156: 0 | I156: 0 | W156: =IF(ISTEXT(A156),IF(E156>0.000001,E156,VLOOKUP(A156,Tabell203[],2,FALSE)),0) -> 0 | AP156: 0 | AQ156: =IF(ISTEXT($A156),VLOOKUP($A156,Tabell203[],11,FALSE),0) -> 0 | AR156: =IF(ISTEXT($A156),VLOOKUP($A156,Tabell203[],12,FALSE),0) -> 0 | AS156: =IF(ISTEXT($A156),VLOOKUP($A156,Tabell203[],13,FALSE),0) -> 0 | AT156: =IF(ISTEXT($A156),VLOOKUP($A156,Tabell203[],14,FALSE),0) -> 0 | AU156: =IF(ISTEXT($A156),VLOOKUP($A156,Tabell203[],15,FALSE),0) -> 0 | AV156: =IF(AND(ISTEXT($A156),AP156>0),VLOOKUP($A156,Tabell203[],16,FALSE),0) -> 0
F157: =IF(ISTEXT(A157),VLOOKUP(A157,Tabell203[],17,FALSE),"") ->  | H157: 0 | I157: 0 | W157: =IF(ISTEXT(A157),IF(E157>0.000001,E157,VLOOKUP(A157,Tabell203[],2,FALSE)),0) -> 0 | AP157: 0 | AQ157: =IF(ISTEXT($A157),VLOOKUP($A157,Tabell203[],11,FALSE),0) -> 0 | AR157: =IF(ISTEXT($A157),VLOOKUP($A157,Tabell203[],12,FALSE),0) -> 0 | AS157: =IF(ISTEXT($A157),VLOOKUP($A157,Tabell203[],13,FALSE),0) -> 0 | AT157: =IF(ISTEXT($A157),VLOOKUP($A157,Tabell203[],14,FALSE),0) -> 0 | AU157: =IF(ISTEXT($A157),VLOOKUP($A157,Tabell203[],15,FALSE),0) -> 0 | AV157: =IF(AND(ISTEXT($A157),AP157>0),VLOOKUP($A157,Tabell203[],16,FALSE),0) -> 0
F158: =IF(ISTEXT(A158),VLOOKUP(A158,Tabell203[],17,FALSE),"") ->  | H158: 0 | I158: 0 | W158: =IF(ISTEXT(A158),IF(E158>0.000001,E158,VLOOKUP(A158,Tabell203[],2,FALSE)),0) -> 0 | AP158: 0 | AQ158: =IF(ISTEXT($A158),VLOOKUP($A158,Tabell203[],11,FALSE),0) -> 0 | AR158: =IF(ISTEXT($A158),VLOOKUP($A158,Tabell203[],12,FALSE),0) -> 0 | AS158: =IF(ISTEXT($A158),VLOOKUP($A158,Tabell203[],13,FALSE),0) -> 0 | AT158: =IF(ISTEXT($A158),VLOOKUP($A158,Tabell203[],14,FALSE),0) -> 0 | AU158: =IF(ISTEXT($A158),VLOOKUP($A158,Tabell203[],15,FALSE),0) -> 0 | AV158: =IF(AND(ISTEXT($A158),AP158>0),VLOOKUP($A158,Tabell203[],16,FALSE),0) -> 0
F159: =IF(ISTEXT(A159),VLOOKUP(A159,Tabell203[],17,FALSE),"") ->  | H159: 0 | I159: 0 | W159: =IF(ISTEXT(A159),IF(E159>0.000001,E159,VLOOKUP(A159,Tabell203[],2,FALSE)),0) -> 0 | AP159: 0 | AQ159: =IF(ISTEXT($A159),VLOOKUP($A159,Tabell203[],11,FALSE),0) -> 0 | AR159: =IF(ISTEXT($A159),VLOOKUP($A159,Tabell203[],12,FALSE),0) -> 0 | AS159: =IF(ISTEXT($A159),VLOOKUP($A159,Tabell203[],13,FALSE),0) -> 0 | AT159: =IF(ISTEXT($A159),VLOOKUP($A159,Tabell203[],14,FALSE),0) -> 0 | AU159: =IF(ISTEXT($A159),VLOOKUP($A159,Tabell203[],15,FALSE),0) -> 0 | AV159: =IF(AND(ISTEXT($A159),AP159>0),VLOOKUP($A159,Tabell203[],16,FALSE),0) -> 0
F160: =IF(ISTEXT(A160),VLOOKUP(A160,Tabell203[],17,FALSE),"") ->  | H160: 0 | I160: 0 | W160: =IF(ISTEXT(A160),IF(E160>0.000001,E160,VLOOKUP(A160,Tabell203[],2,FALSE)),0) -> 0 | AP160: 0 | AQ160: =IF(ISTEXT($A160),VLOOKUP($A160,Tabell203[],11,FALSE),0) -> 0 | AR160: =IF(ISTEXT($A160),VLOOKUP($A160,Tabell203[],12,FALSE),0) -> 0 | AS160: =IF(ISTEXT($A160),VLOOKUP($A160,Tabell203[],13,FALSE),0) -> 0 | AT160: =IF(ISTEXT($A160),VLOOKUP($A160,Tabell203[],14,FALSE),0) -> 0 | AU160: =IF(ISTEXT($A160),VLOOKUP($A160,Tabell203[],15,FALSE),0) -> 0 | AV160: =IF(AND(ISTEXT($A160),AP160>0),VLOOKUP($A160,Tabell203[],16,FALSE),0) -> 0
A161: Totalt | H161: =SUM(H153:H160) -> 0 | I161: =SUM(I153:I160) -> 0
H162: * All halm (foder och strö) visas i summan här, men det är bara mängden foderhalm som följer med till kommande beräkningar
A165: Alternativ 2. Har inte vägt skörden, behöver räkna ut mängden skördat | R165: ska dölja
A166: Om det står "Saknas!" eller "0" under rubriken "Beräknad mängd foder" beror det på att någon uppgift saknas. Kontrollera då att du fyllt i alla gula celler på raden samt valt något i alla orange celler på raden | R166: Beskrivning av systemet | W166: TS-halt | X166: Vilket system? 1=ja, 0=nej | AG166: Volymvikt (kg ts/m3) | AP166: Energi | AQ166: Gruppering av system
C167: Energi - välj ur lista eller skriv eget värde | E167: TS-halt (%) | G167: Antal balar eller lass grönmassa | H167: Mängd per lass grönmassa | I167: Teknik - inläggning, pressning etc. | J167: Lagrets respektive balarnas storlek | N167: Beräknad mängd foder* | X167: ='Teknisk administration'!$B$391 -> Plansilo | Y167: ='Teknisk administration'!$B$392 -> Torn | Z167: ='Teknisk administration'!$B$393 -> Rundbalar | AA167: ='Teknisk administration'!$B$394 -> Fyrkantsbalar_ensilage | AB167: ='Teknisk administration'!$B$397 -> Hö | AC167: ='Teknisk administration'!$B$396 -> Direktutfodrad_grönmassa | AD167: ='Teknisk administration'!$B$398 -> Halm | AE167: ='Teknisk administration'!$B$395 -> Fyrkantsbalar_hö | AF167: ='Teknisk administration'!$B$399 -> 0 | AG167: =X167 -> Plansilo | AH167: Torn | AI167: Rundbalar | AJ167: Fyrkantsbalar_ensilage | AK167: Hö | AL167: Direktutfodrad_grönmassa | AM167: Halm | AN167: Fyrkantsbalar_hö | AO167: 0 | AP167: MJ/kg ts | AQ167: Plansilo | AR167: Torn | AS167: Storbalar (rund- och fyrkantsbalar) | AT167: Hö | AU167: Direktutfodrad | AV167: Halm till foder
A168: System - välj alternativ ur listan! | B168: Egen kommentar | C168: Välj ur lista | D168: Eget värde (MJ/kg ts) | E168: % ts | F168: Förklaring | G168: stycken | H168: m3 | I168: välj ur listan i orange celler! | J168: Höjd (m) | K168: Bredd (m) | L168: Längd (m) | M168: Förklaring för volymberäkning | N168: Volym (m3) | O168: Volymvikt (kg ts/m3) | P168: Mängd (kg ts) | Q168: Mängd (MJ) | R168: Antal | S168: Mängd per lass | T168: Teknik | U168: rätblock | V168: cylinder | W168: TS-halt | X168: Plansilo | Y168: Torn | Z168: Rundbalar | AA168: Fyrkantsbalar | AB168: Hö | AC168: Grönfoder | AD168: Halm | AE168: Fyrkantsbalar_hö | AF168: tom | AG168: Plansilo3 | AH168: Torn4 | AI168: Rundbalar5 | AJ168: Fyrkantsbalar6 | AK168: Hö7 | AL168: Direktutfodrat | AM168: Kolumn1 | AN168: Fyrkantsbalar_hö2 | AO168: Visa ts? | AP168: MJ/kg ts | AQ168: Plansilo12 | AR168: Torn13 | AS168: Storbalar (rund- och fyrkantsbalar) | AT168: Hö14 | AU168: Direktutfodrad | AV168: Halm till foder
F169: =IF(ISTEXT(A169),VLOOKUP(A169,Tabell203[],3,FALSE),"") ->  | M169: =IF(ISTEXT(A169),VLOOKUP(A169,Tabell203[],10,FALSE),"") ->  | N169: =IF(ISTEXT(A169),IF(U169=1,J169*K169*L169,IF(V169=1,J169*(K169/2)^2*PI(),1))*IF(R169=1,G169,1)*IF(S169=1,H169,1),0) -> 0 | O169: =SUM(AG169:AN169) -> 0 | P169: =N169*O169 -> 0 | Q169: =P169*AP169 -> 0 | R169: =IF(ISTEXT(A169),VLOOKUP(A169,Tabell203[],4,FALSE),0) -> 0 | S169: =IF(ISTEXT(A169),VLOOKUP(A169,Tabell203[],6,FALSE),0) -> 0 | T169: =IF(ISTEXT(A169),VLOOKUP(A169,Tabell203[],5,FALSE),0) -> 0 | U169: =IF(ISTEXT(A169),VLOOKUP(A169,Tabell203[],8,FALSE),0) -> 0 | V169: =IF(ISTEXT(A169),VLOOKUP(A169,Tabell203[],9,FALSE),0) -> 0 | W169: =IF(ISTEXT(A169),IF(E169>0.000001,E169,VLOOKUP(A169,Tabell203[],2,FALSE)),0) -> 0 | X169: =IF($A169=X$39,1,0) -> 0 | Y169: 0 | Z169: 0 | AA169: 0 | AB169: 0 | AC169: 0 | AD169: 0 | AE169: 0 | AF169: 1 | AG169: =IF(X169=1,VLOOKUP(I169,Tabell220[],2,FALSE),0) -> 0 | AH169: =IF(Y169=1,IF(OR(W169<'Teknisk administration'!$P$262,W169>'Teknisk administration'!$P$263),'Teknisk administration'!$Q$262*J169^2+'Teknisk administration'!$R$262*J169+'Teknisk administration'!$S$262,'Teknisk administration'!$Q$263*J169^2+'Teknisk administration'!$R$263*J169+'Teknisk administration'!$S$263),0) -> 0 | AI169: =IF(Z169=1,VLOOKUP(I169,Tabell214[],2,FALSE)*W169+VLOOKUP(I169,Tabell214[],3,FALSE),0) -> 0 | AJ169: =IF(AA169=1,VLOOKUP(I169,Tabell215[],2,FALSE)*W169+VLOOKUP(I169,Tabell215[],3,FALSE),0) -> 0 | AK169: =IF(AB169=1,VLOOKUP(I169,Tabell216[],2,FALSE)*W169,0) -> 0 | AL169: =IF(AC169=1,'Teknisk administration'!$AP$377,0) -> 0 | AM169: =IF(AD169=1,VLOOKUP($I169,Tabell217[],2,FALSE)*$W169,0) -> 0 | AN169: =IF(AE169=1,VLOOKUP($I169,Tabell29[],2,FALSE)*$W169,0) -> 0 | AO169: =IF(ISTEXT(A169),VLOOKUP(A169,Tabell203[],7,FALSE),0) -> 0 | AP169: =IF(AND(ISTEXT(A169),(OR(ISTEXT(C169),ISNUMBER(D169)))),IF(D169>0,D169,VLOOKUP(C169,INDIRECT(A169),2,FALSE)),0) -> 0 | AQ169: =IF(ISTEXT($A169),VLOOKUP($A169,Tabell203[],11,FALSE),0) -> 0 | AR169: =IF(ISTEXT($A169),VLOOKUP($A169,Tabell203[],12,FALSE),0) -> 0 | AS169: =IF(ISTEXT($A169),VLOOKUP($A169,Tabell203[],13,FALSE),0) -> 0 | AT169: =IF(ISTEXT($A169),VLOOKUP($A169,Tabell203[],14,FALSE),0) -> 0 | AU169: =IF(ISTEXT($A169),VLOOKUP($A169,Tabell203[],15,FALSE),0) -> 0 | AV169: =IF(AND(ISTEXT($A169),AP169>0),VLOOKUP($A169,Tabell203[],16,FALSE),0) -> 0
F170: =IF(ISTEXT(A170),VLOOKUP(A170,Tabell203[],3,FALSE),"") ->  | M170: =IF(ISTEXT(A170),VLOOKUP(A170,Tabell203[],10,FALSE),"") ->  | N170: 0 | O170: 0 | P170: 0 | Q170: 0 | R170: =IF(ISTEXT(A170),VLOOKUP(A170,Tabell203[],4,FALSE),0) -> 0 | S170: =IF(ISTEXT(A170),VLOOKUP(A170,Tabell203[],6,FALSE),0) -> 0 | T170: =IF(ISTEXT(A170),VLOOKUP(A170,Tabell203[],5,FALSE),0) -> 0 | U170: =IF(ISTEXT(A170),VLOOKUP(A170,Tabell203[],8,FALSE),0) -> 0 | V170: =IF(ISTEXT(A170),VLOOKUP(A170,Tabell203[],9,FALSE),0) -> 0 | W170: =IF(ISTEXT(A170),IF(E170>0.000001,E170,VLOOKUP(A170,Tabell203[],2,FALSE)),0) -> 0 | X170: 0 | Y170: 0 | Z170: 0 | AA170: 0 | AB170: 0 | AC170: 0 | AD170: 0 | AE170: 0 | AF170: 1 | AG170: =IF(X170=1,VLOOKUP(I170,Tabell220[],2,FALSE),0) -> 0 | AH170: =IF(Y170=1,IF(OR(W170<'Teknisk administration'!$P$262,W170>'Teknisk administration'!$P$263),'Teknisk administration'!$Q$262*J170^2+'Teknisk administration'!$R$262*J170+'Teknisk administration'!$S$262,'Teknisk administration'!$Q$263*J170^2+'Teknisk administration'!$R$263*J170+'Teknisk administration'!$S$263),0) -> 0 | AI170: =IF(Z170=1,VLOOKUP(I170,Tabell214[],2,FALSE)*W170+VLOOKUP(I170,Tabell214[],3,FALSE),0) -> 0 | AJ170: =IF(AA170=1,VLOOKUP(I170,Tabell215[],2,FALSE)*W170+VLOOKUP(I170,Tabell215[],3,FALSE),0) -> 0 | AK170: =IF(AB170=1,VLOOKUP(I170,Tabell216[],2,FALSE)*W170,0) -> 0 | AL170: =IF(AC170=1,'Teknisk administration'!$AP$377,0) -> 0 | AM170: =IF(AD170=1,VLOOKUP($I170,Tabell217[],2,FALSE)*$W170,0) -> 0 | AN170: =IF(AE170=1,VLOOKUP($I170,Tabell29[],2,FALSE)*$W170,0) -> 0 | AO170: =IF(ISTEXT(A170),VLOOKUP(A170,Tabell203[],7,FALSE),0) -> 0 | AP170: 0 | AQ170: =IF(ISTEXT($A170),VLOOKUP($A170,Tabell203[],11,FALSE),0) -> 0 | AR170: =IF(ISTEXT($A170),VLOOKUP($A170,Tabell203[],12,FALSE),0) -> 0 | AS170: =IF(ISTEXT($A170),VLOOKUP($A170,Tabell203[],13,FALSE),0) -> 0 | AT170: =IF(ISTEXT($A170),VLOOKUP($A170,Tabell203[],14,FALSE),0) -> 0 | AU170: =IF(ISTEXT($A170),VLOOKUP($A170,Tabell203[],15,FALSE),0) -> 0 | AV170: =IF(AND(ISTEXT($A170),AP170>0),VLOOKUP($A170,Tabell203[],16,FALSE),0) -> 0
F171: =IF(ISTEXT(A171),VLOOKUP(A171,Tabell203[],3,FALSE),"") ->  | M171: =IF(ISTEXT(A171),VLOOKUP(A171,Tabell203[],10,FALSE),"") ->  | N171: 0 | O171: 0 | P171: 0 | Q171: 0 | R171: =IF(ISTEXT(A171),VLOOKUP(A171,Tabell203[],4,FALSE),0) -> 0 | S171: =IF(ISTEXT(A171),VLOOKUP(A171,Tabell203[],6,FALSE),0) -> 0 | T171: =IF(ISTEXT(A171),VLOOKUP(A171,Tabell203[],5,FALSE),0) -> 0 | U171: =IF(ISTEXT(A171),VLOOKUP(A171,Tabell203[],8,FALSE),0) -> 0 | V171: =IF(ISTEXT(A171),VLOOKUP(A171,Tabell203[],9,FALSE),0) -> 0 | W171: =IF(ISTEXT(A171),IF(E171>0.000001,E171,VLOOKUP(A171,Tabell203[],2,FALSE)),0) -> 0 | X171: 0 | Y171: 0 | Z171: 0 | AA171: 0 | AB171: 0 | AC171: 0 | AD171: 0 | AE171: 0 | AF171: 1 | AG171: =IF(X171=1,VLOOKUP(I171,Tabell220[],2,FALSE),0) -> 0 | AH171: =IF(Y171=1,IF(OR(W171<'Teknisk administration'!$P$262,W171>'Teknisk administration'!$P$263),'Teknisk administration'!$Q$262*J171^2+'Teknisk administration'!$R$262*J171+'Teknisk administration'!$S$262,'Teknisk administration'!$Q$263*J171^2+'Teknisk administration'!$R$263*J171+'Teknisk administration'!$S$263),0) -> 0 | AI171: =IF(Z171=1,VLOOKUP(I171,Tabell214[],2,FALSE)*W171+VLOOKUP(I171,Tabell214[],3,FALSE),0) -> 0 | AJ171: =IF(AA171=1,VLOOKUP(I171,Tabell215[],2,FALSE)*W171+VLOOKUP(I171,Tabell215[],3,FALSE),0) -> 0 | AK171: =IF(AB171=1,VLOOKUP(I171,Tabell216[],2,FALSE)*W171,0) -> 0 | AL171: =IF(AC171=1,'Teknisk administration'!$AP$377,0) -> 0 | AM171: =IF(AD171=1,VLOOKUP($I171,Tabell217[],2,FALSE)*$W171,0) -> 0 | AN171: =IF(AE171=1,VLOOKUP($I171,Tabell29[],2,FALSE)*$W171,0) -> 0 | AO171: =IF(ISTEXT(A171),VLOOKUP(A171,Tabell203[],7,FALSE),0) -> 0 | AP171: 0 | AQ171: =IF(ISTEXT($A171),VLOOKUP($A171,Tabell203[],11,FALSE),0) -> 0 | AR171: =IF(ISTEXT($A171),VLOOKUP($A171,Tabell203[],12,FALSE),0) -> 0 | AS171: =IF(ISTEXT($A171),VLOOKUP($A171,Tabell203[],13,FALSE),0) -> 0 | AT171: =IF(ISTEXT($A171),VLOOKUP($A171,Tabell203[],14,FALSE),0) -> 0 | AU171: =IF(ISTEXT($A171),VLOOKUP($A171,Tabell203[],15,FALSE),0) -> 0 | AV171: =IF(AND(ISTEXT($A171),AP171>0),VLOOKUP($A171,Tabell203[],16,FALSE),0) -> 0
F172: =IF(ISTEXT(A172),VLOOKUP(A172,Tabell203[],3,FALSE),"") ->  | M172: =IF(ISTEXT(A172),VLOOKUP(A172,Tabell203[],10,FALSE),"") ->  | N172: 0 | O172: 0 | P172: 0 | Q172: 0 | R172: =IF(ISTEXT(A172),VLOOKUP(A172,Tabell203[],4,FALSE),0) -> 0 | S172: =IF(ISTEXT(A172),VLOOKUP(A172,Tabell203[],6,FALSE),0) -> 0 | T172: =IF(ISTEXT(A172),VLOOKUP(A172,Tabell203[],5,FALSE),0) -> 0 | U172: =IF(ISTEXT(A172),VLOOKUP(A172,Tabell203[],8,FALSE),0) -> 0 | V172: =IF(ISTEXT(A172),VLOOKUP(A172,Tabell203[],9,FALSE),0) -> 0 | W172: =IF(ISTEXT(A172),IF(E172>0.000001,E172,VLOOKUP(A172,Tabell203[],2,FALSE)),0) -> 0 | X172: 0 | Y172: 0 | Z172: 0 | AA172: 0 | AB172: 0 | AC172: 0 | AD172: 0 | AE172: 0 | AF172: 1 | AG172: =IF(X172=1,VLOOKUP(I172,Tabell220[],2,FALSE),0) -> 0 | AH172: =IF(Y172=1,IF(OR(W172<'Teknisk administration'!$P$262,W172>'Teknisk administration'!$P$263),'Teknisk administration'!$Q$262*J172^2+'Teknisk administration'!$R$262*J172+'Teknisk administration'!$S$262,'Teknisk administration'!$Q$263*J172^2+'Teknisk administration'!$R$263*J172+'Teknisk administration'!$S$263),0) -> 0 | AI172: =IF(Z172=1,VLOOKUP(I172,Tabell214[],2,FALSE)*W172+VLOOKUP(I172,Tabell214[],3,FALSE),0) -> 0 | AJ172: =IF(AA172=1,VLOOKUP(I172,Tabell215[],2,FALSE)*W172+VLOOKUP(I172,Tabell215[],3,FALSE),0) -> 0 | AK172: =IF(AB172=1,VLOOKUP(I172,Tabell216[],2,FALSE)*W172,0) -> 0 | AL172: =IF(AC172=1,'Teknisk administration'!$AP$377,0) -> 0 | AM172: =IF(AD172=1,VLOOKUP($I172,Tabell217[],2,FALSE)*$W172,0) -> 0 | AN172: =IF(AE172=1,VLOOKUP($I172,Tabell29[],2,FALSE)*$W172,0) -> 0 | AO172: =IF(ISTEXT(A172),VLOOKUP(A172,Tabell203[],7,FALSE),0) -> 0 | AP172: 0 | AQ172: =IF(ISTEXT($A172),VLOOKUP($A172,Tabell203[],11,FALSE),0) -> 0 | AR172: =IF(ISTEXT($A172),VLOOKUP($A172,Tabell203[],12,FALSE),0) -> 0 | AS172: =IF(ISTEXT($A172),VLOOKUP($A172,Tabell203[],13,FALSE),0) -> 0 | AT172: =IF(ISTEXT($A172),VLOOKUP($A172,Tabell203[],14,FALSE),0) -> 0 | AU172: =IF(ISTEXT($A172),VLOOKUP($A172,Tabell203[],15,FALSE),0) -> 0 | AV172: =IF(AND(ISTEXT($A172),AP172>0),VLOOKUP($A172,Tabell203[],16,FALSE),0) -> 0
F173: =IF(ISTEXT(A173),VLOOKUP(A173,Tabell203[],3,FALSE),"") ->  | M173: =IF(ISTEXT(A173),VLOOKUP(A173,Tabell203[],10,FALSE),"") ->  | N173: 0 | O173: 0 | P173: 0 | Q173: 0 | R173: =IF(ISTEXT(A173),VLOOKUP(A173,Tabell203[],4,FALSE),0) -> 0 | S173: =IF(ISTEXT(A173),VLOOKUP(A173,Tabell203[],6,FALSE),0) -> 0 | T173: =IF(ISTEXT(A173),VLOOKUP(A173,Tabell203[],5,FALSE),0) -> 0 | U173: =IF(ISTEXT(A173),VLOOKUP(A173,Tabell203[],8,FALSE),0) -> 0 | V173: =IF(ISTEXT(A173),VLOOKUP(A173,Tabell203[],9,FALSE),0) -> 0 | W173: =IF(ISTEXT(A173),IF(E173>0.000001,E173,VLOOKUP(A173,Tabell203[],2,FALSE)),0) -> 0 | X173: 0 | Y173: 0 | Z173: 0 | AA173: 0 | AB173: 0 | AC173: 0 | AD173: 0 | AE173: 0 | AF173: 1 | AG173: =IF(X173=1,VLOOKUP(I173,Tabell220[],2,FALSE),0) -> 0 | AH173: =IF(Y173=1,IF(OR(W173<'Teknisk administration'!$P$262,W173>'Teknisk administration'!$P$263),'Teknisk administration'!$Q$262*J173^2+'Teknisk administration'!$R$262*J173+'Teknisk administration'!$S$262,'Teknisk administration'!$Q$263*J173^2+'Teknisk administration'!$R$263*J173+'Teknisk administration'!$S$263),0) -> 0 | AI173: =IF(Z173=1,VLOOKUP(I173,Tabell214[],2,FALSE)*W173+VLOOKUP(I173,Tabell214[],3,FALSE),0) -> 0 | AJ173: =IF(AA173=1,VLOOKUP(I173,Tabell215[],2,FALSE)*W173+VLOOKUP(I173,Tabell215[],3,FALSE),0) -> 0 | AK173: =IF(AB173=1,VLOOKUP(I173,Tabell216[],2,FALSE)*W173,0) -> 0 | AL173: =IF(AC173=1,'Teknisk administration'!$AP$377,0) -> 0 | AM173: =IF(AD173=1,VLOOKUP($I173,Tabell217[],2,FALSE)*$W173,0) -> 0 | AN173: =IF(AE173=1,VLOOKUP($I173,Tabell29[],2,FALSE)*$W173,0) -> 0 | AO173: =IF(ISTEXT(A173),VLOOKUP(A173,Tabell203[],7,FALSE),0) -> 0 | AP173: 0 | AQ173: =IF(ISTEXT($A173),VLOOKUP($A173,Tabell203[],11,FALSE),0) -> 0 | AR173: =IF(ISTEXT($A173),VLOOKUP($A173,Tabell203[],12,FALSE),0) -> 0 | AS173: =IF(ISTEXT($A173),VLOOKUP($A173,Tabell203[],13,FALSE),0) -> 0 | AT173: =IF(ISTEXT($A173),VLOOKUP($A173,Tabell203[],14,FALSE),0) -> 0 | AU173: =IF(ISTEXT($A173),VLOOKUP($A173,Tabell203[],15,FALSE),0) -> 0 | AV173: =IF(AND(ISTEXT($A173),AP173>0),VLOOKUP($A173,Tabell203[],16,FALSE),0) -> 0
F174: =IF(ISTEXT(A174),VLOOKUP(A174,Tabell203[],3,FALSE),"") ->  | M174: =IF(ISTEXT(A174),VLOOKUP(A174,Tabell203[],10,FALSE),"") ->  | N174: 0 | O174: 0 | P174: 0 | Q174: 0 | R174: =IF(ISTEXT(A174),VLOOKUP(A174,Tabell203[],4,FALSE),0) -> 0 | S174: =IF(ISTEXT(A174),VLOOKUP(A174,Tabell203[],6,FALSE),0) -> 0 | T174: =IF(ISTEXT(A174),VLOOKUP(A174,Tabell203[],5,FALSE),0) -> 0 | U174: =IF(ISTEXT(A174),VLOOKUP(A174,Tabell203[],8,FALSE),0) -> 0 | V174: =IF(ISTEXT(A174),VLOOKUP(A174,Tabell203[],9,FALSE),0) -> 0 | W174: =IF(ISTEXT(A174),IF(E174>0.000001,E174,VLOOKUP(A174,Tabell203[],2,FALSE)),0) -> 0 | X174: 0 | Y174: 0 | Z174: 0 | AA174: 0 | AB174: 0 | AC174: 0 | AD174: 0 | AE174: 0 | AF174: 1 | AG174: =IF(X174=1,VLOOKUP(I174,Tabell220[],2,FALSE),0) -> 0 | AH174: =IF(Y174=1,IF(OR(W174<'Teknisk administration'!$P$262,W174>'Teknisk administration'!$P$263),'Teknisk administration'!$Q$262*J174^2+'Teknisk administration'!$R$262*J174+'Teknisk administration'!$S$262,'Teknisk administration'!$Q$263*J174^2+'Teknisk administration'!$R$263*J174+'Teknisk administration'!$S$263),0) -> 0 | AI174: =IF(Z174=1,VLOOKUP(I174,Tabell214[],2,FALSE)*W174+VLOOKUP(I174,Tabell214[],3,FALSE),0) -> 0 | AJ174: =IF(AA174=1,VLOOKUP(I174,Tabell215[],2,FALSE)*W174+VLOOKUP(I174,Tabell215[],3,FALSE),0) -> 0 | AK174: =IF(AB174=1,VLOOKUP(I174,Tabell216[],2,FALSE)*W174,0) -> 0 | AL174: =IF(AC174=1,'Teknisk administration'!$AP$377,0) -> 0 | AM174: =IF(AD174=1,VLOOKUP($I174,Tabell217[],2,FALSE)*$W174,0) -> 0 | AN174: =IF(AE174=1,VLOOKUP($I174,Tabell29[],2,FALSE)*$W174,0) -> 0 | AO174: =IF(ISTEXT(A174),VLOOKUP(A174,Tabell203[],7,FALSE),0) -> 0 | AP174: 0 | AQ174: =IF(ISTEXT($A174),VLOOKUP($A174,Tabell203[],11,FALSE),0) -> 0 | AR174: =IF(ISTEXT($A174),VLOOKUP($A174,Tabell203[],12,FALSE),0) -> 0 | AS174: =IF(ISTEXT($A174),VLOOKUP($A174,Tabell203[],13,FALSE),0) -> 0 | AT174: =IF(ISTEXT($A174),VLOOKUP($A174,Tabell203[],14,FALSE),0) -> 0 | AU174: =IF(ISTEXT($A174),VLOOKUP($A174,Tabell203[],15,FALSE),0) -> 0 | AV174: =IF(AND(ISTEXT($A174),AP174>0),VLOOKUP($A174,Tabell203[],16,FALSE),0) -> 0
F175: =IF(ISTEXT(A175),VLOOKUP(A175,Tabell203[],3,FALSE),"") ->  | M175: =IF(ISTEXT(A175),VLOOKUP(A175,Tabell203[],10,FALSE),"") ->  | N175: 0 | O175: 0 | P175: 0 | Q175: 0 | R175: =IF(ISTEXT(A175),VLOOKUP(A175,Tabell203[],4,FALSE),0) -> 0 | S175: =IF(ISTEXT(A175),VLOOKUP(A175,Tabell203[],6,FALSE),0) -> 0 | T175: =IF(ISTEXT(A175),VLOOKUP(A175,Tabell203[],5,FALSE),0) -> 0 | U175: =IF(ISTEXT(A175),VLOOKUP(A175,Tabell203[],8,FALSE),0) -> 0 | V175: =IF(ISTEXT(A175),VLOOKUP(A175,Tabell203[],9,FALSE),0) -> 0 | W175: =IF(ISTEXT(A175),IF(E175>0.000001,E175,VLOOKUP(A175,Tabell203[],2,FALSE)),0) -> 0 | X175: 0 | Y175: 0 | Z175: 0 | AA175: 0 | AB175: 0 | AC175: 0 | AD175: 0 | AE175: 0 | AF175: 1 | AG175: =IF(X175=1,VLOOKUP(I175,Tabell220[],2,FALSE),0) -> 0 | AH175: =IF(Y175=1,IF(OR(W175<'Teknisk administration'!$P$262,W175>'Teknisk administration'!$P$263),'Teknisk administration'!$Q$262*J175^2+'Teknisk administration'!$R$262*J175+'Teknisk administration'!$S$262,'Teknisk administration'!$Q$263*J175^2+'Teknisk administration'!$R$263*J175+'Teknisk administration'!$S$263),0) -> 0 | AI175: =IF(Z175=1,VLOOKUP(I175,Tabell214[],2,FALSE)*W175+VLOOKUP(I175,Tabell214[],3,FALSE),0) -> 0 | AJ175: =IF(AA175=1,VLOOKUP(I175,Tabell215[],2,FALSE)*W175+VLOOKUP(I175,Tabell215[],3,FALSE),0) -> 0 | AK175: =IF(AB175=1,VLOOKUP(I175,Tabell216[],2,FALSE)*W175,0) -> 0 | AL175: =IF(AC175=1,'Teknisk administration'!$AP$377,0) -> 0 | AM175: =IF(AD175=1,VLOOKUP($I175,Tabell217[],2,FALSE)*$W175,0) -> 0 | AN175: =IF(AE175=1,VLOOKUP($I175,Tabell29[],2,FALSE)*$W175,0) -> 0 | AO175: =IF(ISTEXT(A175),VLOOKUP(A175,Tabell203[],7,FALSE),0) -> 0 | AP175: 0 | AQ175: =IF(ISTEXT($A175),VLOOKUP($A175,Tabell203[],11,FALSE),0) -> 0 | AR175: =IF(ISTEXT($A175),VLOOKUP($A175,Tabell203[],12,FALSE),0) -> 0 | AS175: =IF(ISTEXT($A175),VLOOKUP($A175,Tabell203[],13,FALSE),0) -> 0 | AT175: =IF(ISTEXT($A175),VLOOKUP($A175,Tabell203[],14,FALSE),0) -> 0 | AU175: =IF(ISTEXT($A175),VLOOKUP($A175,Tabell203[],15,FALSE),0) -> 0 | AV175: =IF(AND(ISTEXT($A175),AP175>0),VLOOKUP($A175,Tabell203[],16,FALSE),0) -> 0
F176: =IF(ISTEXT(A176),VLOOKUP(A176,Tabell203[],3,FALSE),"") ->  | M176: =IF(ISTEXT(A176),VLOOKUP(A176,Tabell203[],10,FALSE),"") ->  | N176: 0 | O176: 0 | P176: 0 | Q176: 0 | R176: =IF(ISTEXT(A176),VLOOKUP(A176,Tabell203[],4,FALSE),0) -> 0 | S176: =IF(ISTEXT(A176),VLOOKUP(A176,Tabell203[],6,FALSE),0) -> 0 | T176: =IF(ISTEXT(A176),VLOOKUP(A176,Tabell203[],5,FALSE),0) -> 0 | U176: =IF(ISTEXT(A176),VLOOKUP(A176,Tabell203[],8,FALSE),0) -> 0 | V176: =IF(ISTEXT(A176),VLOOKUP(A176,Tabell203[],9,FALSE),0) -> 0 | W176: =IF(ISTEXT(A176),IF(E176>0.000001,E176,VLOOKUP(A176,Tabell203[],2,FALSE)),0) -> 0 | X176: 0 | Y176: 0 | Z176: 0 | AA176: 0 | AB176: 0 | AC176: 0 | AD176: 0 | AE176: 0 | AF176: 1 | AG176: =IF(X176=1,VLOOKUP(I176,Tabell220[],2,FALSE),0) -> 0 | AH176: =IF(Y176=1,IF(OR(W176<'Teknisk administration'!$P$262,W176>'Teknisk administration'!$P$263),'Teknisk administration'!$Q$262*J176^2+'Teknisk administration'!$R$262*J176+'Teknisk administration'!$S$262,'Teknisk administration'!$Q$263*J176^2+'Teknisk administration'!$R$263*J176+'Teknisk administration'!$S$263),0) -> 0 | AI176: =IF(Z176=1,VLOOKUP(I176,Tabell214[],2,FALSE)*W176+VLOOKUP(I176,Tabell214[],3,FALSE),0) -> 0 | AJ176: =IF(AA176=1,VLOOKUP(I176,Tabell215[],2,FALSE)*W176+VLOOKUP(I176,Tabell215[],3,FALSE),0) -> 0 | AK176: =IF(AB176=1,VLOOKUP(I176,Tabell216[],2,FALSE)*W176,0) -> 0 | AL176: =IF(AC176=1,'Teknisk administration'!$AP$377,0) -> 0 | AM176: =IF(AD176=1,VLOOKUP($I176,Tabell217[],2,FALSE)*$W176,0) -> 0 | AN176: =IF(AE176=1,VLOOKUP($I176,Tabell29[],2,FALSE)*$W176,0) -> 0 | AO176: =IF(ISTEXT(A176),VLOOKUP(A176,Tabell203[],7,FALSE),0) -> 0 | AP176: 0 | AQ176: =IF(ISTEXT($A176),VLOOKUP($A176,Tabell203[],11,FALSE),0) -> 0 | AR176: =IF(ISTEXT($A176),VLOOKUP($A176,Tabell203[],12,FALSE),0) -> 0 | AS176: =IF(ISTEXT($A176),VLOOKUP($A176,Tabell203[],13,FALSE),0) -> 0 | AT176: =IF(ISTEXT($A176),VLOOKUP($A176,Tabell203[],14,FALSE),0) -> 0 | AU176: =IF(ISTEXT($A176),VLOOKUP($A176,Tabell203[],15,FALSE),0) -> 0 | AV176: =IF(AND(ISTEXT($A176),AP176>0),VLOOKUP($A176,Tabell203[],16,FALSE),0) -> 0
F177: =IF(ISTEXT(A177),VLOOKUP(A177,Tabell203[],3,FALSE),"") ->  | M177: =IF(ISTEXT(A177),VLOOKUP(A177,Tabell203[],10,FALSE),"") ->  | N177: 0 | O177: 0 | P177: 0 | Q177: 0 | R177: =IF(ISTEXT(A177),VLOOKUP(A177,Tabell203[],4,FALSE),0) -> 0 | S177: =IF(ISTEXT(A177),VLOOKUP(A177,Tabell203[],6,FALSE),0) -> 0 | T177: =IF(ISTEXT(A177),VLOOKUP(A177,Tabell203[],5,FALSE),0) -> 0 | U177: =IF(ISTEXT(A177),VLOOKUP(A177,Tabell203[],8,FALSE),0) -> 0 | V177: =IF(ISTEXT(A177),VLOOKUP(A177,Tabell203[],9,FALSE),0) -> 0 | W177: =IF(ISTEXT(A177),IF(E177>0.000001,E177,VLOOKUP(A177,Tabell203[],2,FALSE)),0) -> 0 | X177: 0 | Y177: 0 | Z177: 0 | AA177: 0 | AB177: 0 | AC177: 0 | AD177: 0 | AE177: 0 | AF177: 1 | AG177: =IF(X177=1,VLOOKUP(I177,Tabell220[],2,FALSE),0) -> 0 | AH177: =IF(Y177=1,IF(OR(W177<'Teknisk administration'!$P$262,W177>'Teknisk administration'!$P$263),'Teknisk administration'!$Q$262*J177^2+'Teknisk administration'!$R$262*J177+'Teknisk administration'!$S$262,'Teknisk administration'!$Q$263*J177^2+'Teknisk administration'!$R$263*J177+'Teknisk administration'!$S$263),0) -> 0 | AI177: =IF(Z177=1,VLOOKUP(I177,Tabell214[],2,FALSE)*W177+VLOOKUP(I177,Tabell214[],3,FALSE),0) -> 0 | AJ177: =IF(AA177=1,VLOOKUP(I177,Tabell215[],2,FALSE)*W177+VLOOKUP(I177,Tabell215[],3,FALSE),0) -> 0 | AK177: =IF(AB177=1,VLOOKUP(I177,Tabell216[],2,FALSE)*W177,0) -> 0 | AL177: =IF(AC177=1,'Teknisk administration'!$AP$377,0) -> 0 | AM177: =IF(AD177=1,VLOOKUP($I177,Tabell217[],2,FALSE)*$W177,0) -> 0 | AN177: =IF(AE177=1,VLOOKUP($I177,Tabell29[],2,FALSE)*$W177,0) -> 0 | AO177: =IF(ISTEXT(A177),VLOOKUP(A177,Tabell203[],7,FALSE),0) -> 0 | AP177: 0 | AQ177: =IF(ISTEXT($A177),VLOOKUP($A177,Tabell203[],11,FALSE),0) -> 0 | AR177: =IF(ISTEXT($A177),VLOOKUP($A177,Tabell203[],12,FALSE),0) -> 0 | AS177: =IF(ISTEXT($A177),VLOOKUP($A177,Tabell203[],13,FALSE),0) -> 0 | AT177: =IF(ISTEXT($A177),VLOOKUP($A177,Tabell203[],14,FALSE),0) -> 0 | AU177: =IF(ISTEXT($A177),VLOOKUP($A177,Tabell203[],15,FALSE),0) -> 0 | AV177: =IF(AND(ISTEXT($A177),AP177>0),VLOOKUP($A177,Tabell203[],16,FALSE),0) -> 0
F178: =IF(ISTEXT(A178),VLOOKUP(A178,Tabell203[],3,FALSE),"") ->  | M178: =IF(ISTEXT(A178),VLOOKUP(A178,Tabell203[],10,FALSE),"") ->  | N178: 0 | O178: 0 | P178: 0 | Q178: 0 | R178: =IF(ISTEXT(A178),VLOOKUP(A178,Tabell203[],4,FALSE),0) -> 0 | S178: =IF(ISTEXT(A178),VLOOKUP(A178,Tabell203[],6,FALSE),0) -> 0 | T178: =IF(ISTEXT(A178),VLOOKUP(A178,Tabell203[],5,FALSE),0) -> 0 | U178: =IF(ISTEXT(A178),VLOOKUP(A178,Tabell203[],8,FALSE),0) -> 0 | V178: =IF(ISTEXT(A178),VLOOKUP(A178,Tabell203[],9,FALSE),0) -> 0 | W178: =IF(ISTEXT(A178),IF(E178>0.000001,E178,VLOOKUP(A178,Tabell203[],2,FALSE)),0) -> 0 | X178: 0 | Y178: 0 | Z178: 0 | AA178: 0 | AB178: 0 | AC178: 0 | AD178: 0 | AE178: 0 | AF178: 1 | AG178: =IF(X178=1,VLOOKUP(I178,Tabell220[],2,FALSE),0) -> 0 | AH178: =IF(Y178=1,IF(OR(W178<'Teknisk administration'!$P$262,W178>'Teknisk administration'!$P$263),'Teknisk administration'!$Q$262*J178^2+'Teknisk administration'!$R$262*J178+'Teknisk administration'!$S$262,'Teknisk administration'!$Q$263*J178^2+'Teknisk administration'!$R$263*J178+'Teknisk administration'!$S$263),0) -> 0 | AI178: =IF(Z178=1,VLOOKUP(I178,Tabell214[],2,FALSE)*W178+VLOOKUP(I178,Tabell214[],3,FALSE),0) -> 0 | AJ178: =IF(AA178=1,VLOOKUP(I178,Tabell215[],2,FALSE)*W178+VLOOKUP(I178,Tabell215[],3,FALSE),0) -> 0 | AK178: =IF(AB178=1,VLOOKUP(I178,Tabell216[],2,FALSE)*W178,0) -> 0 | AL178: =IF(AC178=1,'Teknisk administration'!$AP$377,0) -> 0 | AM178: =IF(AD178=1,VLOOKUP($I178,Tabell217[],2,FALSE)*$W178,0) -> 0 | AN178: =IF(AE178=1,VLOOKUP($I178,Tabell29[],2,FALSE)*$W178,0) -> 0 | AO178: =IF(ISTEXT(A178),VLOOKUP(A178,Tabell203[],7,FALSE),0) -> 0 | AP178: 0 | AQ178: =IF(ISTEXT($A178),VLOOKUP($A178,Tabell203[],11,FALSE),0) -> 0 | AR178: =IF(ISTEXT($A178),VLOOKUP($A178,Tabell203[],12,FALSE),0) -> 0 | AS178: =IF(ISTEXT($A178),VLOOKUP($A178,Tabell203[],13,FALSE),0) -> 0 | AT178: =IF(ISTEXT($A178),VLOOKUP($A178,Tabell203[],14,FALSE),0) -> 0 | AU178: =IF(ISTEXT($A178),VLOOKUP($A178,Tabell203[],15,FALSE),0) -> 0 | AV178: =IF(AND(ISTEXT($A178),AP178>0),VLOOKUP($A178,Tabell203[],16,FALSE),0) -> 0
F179: =IF(ISTEXT(A179),VLOOKUP(A179,Tabell203[],3,FALSE),"") ->  | M179: =IF(ISTEXT(A179),VLOOKUP(A179,Tabell203[],10,FALSE),"") ->  | N179: 0 | O179: 0 | P179: 0 | Q179: 0 | R179: =IF(ISTEXT(A179),VLOOKUP(A179,Tabell203[],4,FALSE),0) -> 0 | S179: =IF(ISTEXT(A179),VLOOKUP(A179,Tabell203[],6,FALSE),0) -> 0 | T179: =IF(ISTEXT(A179),VLOOKUP(A179,Tabell203[],5,FALSE),0) -> 0 | U179: =IF(ISTEXT(A179),VLOOKUP(A179,Tabell203[],8,FALSE),0) -> 0 | V179: =IF(ISTEXT(A179),VLOOKUP(A179,Tabell203[],9,FALSE),0) -> 0 | W179: =IF(ISTEXT(A179),IF(E179>0.000001,E179,VLOOKUP(A179,Tabell203[],2,FALSE)),0) -> 0 | X179: 0 | Y179: 0 | Z179: 0 | AA179: 0 | AB179: 0 | AC179: 0 | AD179: 0 | AE179: 0 | AF179: 1 | AG179: =IF(X179=1,VLOOKUP(I179,Tabell220[],2,FALSE),0) -> 0 | AH179: =IF(Y179=1,IF(OR(W179<'Teknisk administration'!$P$262,W179>'Teknisk administration'!$P$263),'Teknisk administration'!$Q$262*J179^2+'Teknisk administration'!$R$262*J179+'Teknisk administration'!$S$262,'Teknisk administration'!$Q$263*J179^2+'Teknisk administration'!$R$263*J179+'Teknisk administration'!$S$263),0) -> 0 | AI179: =IF(Z179=1,VLOOKUP(I179,Tabell214[],2,FALSE)*W179+VLOOKUP(I179,Tabell214[],3,FALSE),0) -> 0 | AJ179: =IF(AA179=1,VLOOKUP(I179,Tabell215[],2,FALSE)*W179+VLOOKUP(I179,Tabell215[],3,FALSE),0) -> 0 | AK179: =IF(AB179=1,VLOOKUP(I179,Tabell216[],2,FALSE)*W179,0) -> 0 | AL179: =IF(AC179=1,'Teknisk administration'!$AP$377,0) -> 0 | AM179: =IF(AD179=1,VLOOKUP($I179,Tabell217[],2,FALSE)*$W179,0) -> 0 | AN179: =IF(AE179=1,VLOOKUP($I179,Tabell29[],2,FALSE)*$W179,0) -> 0 | AO179: =IF(ISTEXT(A179),VLOOKUP(A179,Tabell203[],7,FALSE),0) -> 0 | AP179: 0 | AQ179: =IF(ISTEXT($A179),VLOOKUP($A179,Tabell203[],11,FALSE),0) -> 0 | AR179: =IF(ISTEXT($A179),VLOOKUP($A179,Tabell203[],12,FALSE),0) -> 0 | AS179: =IF(ISTEXT($A179),VLOOKUP($A179,Tabell203[],13,FALSE),0) -> 0 | AT179: =IF(ISTEXT($A179),VLOOKUP($A179,Tabell203[],14,FALSE),0) -> 0 | AU179: =IF(ISTEXT($A179),VLOOKUP($A179,Tabell203[],15,FALSE),0) -> 0 | AV179: =IF(AND(ISTEXT($A179),AP179>0),VLOOKUP($A179,Tabell203[],16,FALSE),0) -> 0
F180: =IF(ISTEXT(A180),VLOOKUP(A180,Tabell203[],3,FALSE),"") ->  | M180: =IF(ISTEXT(A180),VLOOKUP(A180,Tabell203[],10,FALSE),"") ->  | N180: 0 | O180: 0 | P180: 0 | Q180: 0 | R180: =IF(ISTEXT(A180),VLOOKUP(A180,Tabell203[],4,FALSE),0) -> 0 | S180: =IF(ISTEXT(A180),VLOOKUP(A180,Tabell203[],6,FALSE),0) -> 0 | T180: =IF(ISTEXT(A180),VLOOKUP(A180,Tabell203[],5,FALSE),0) -> 0 | U180: =IF(ISTEXT(A180),VLOOKUP(A180,Tabell203[],8,FALSE),0) -> 0 | V180: =IF(ISTEXT(A180),VLOOKUP(A180,Tabell203[],9,FALSE),0) -> 0 | W180: =IF(ISTEXT(A180),IF(E180>0.000001,E180,VLOOKUP(A180,Tabell203[],2,FALSE)),0) -> 0 | X180: 0 | Y180: 0 | Z180: 0 | AA180: 0 | AB180: 0 | AC180: 0 | AD180: 0 | AE180: 0 | AF180: 1 | AG180: =IF(X180=1,VLOOKUP(I180,Tabell220[],2,FALSE),0) -> 0 | AH180: =IF(Y180=1,IF(OR(W180<'Teknisk administration'!$P$262,W180>'Teknisk administration'!$P$263),'Teknisk administration'!$Q$262*J180^2+'Teknisk administration'!$R$262*J180+'Teknisk administration'!$S$262,'Teknisk administration'!$Q$263*J180^2+'Teknisk administration'!$R$263*J180+'Teknisk administration'!$S$263),0) -> 0 | AI180: =IF(Z180=1,VLOOKUP(I180,Tabell214[],2,FALSE)*W180+VLOOKUP(I180,Tabell214[],3,FALSE),0) -> 0 | AJ180: =IF(AA180=1,VLOOKUP(I180,Tabell215[],2,FALSE)*W180+VLOOKUP(I180,Tabell215[],3,FALSE),0) -> 0 | AK180: =IF(AB180=1,VLOOKUP(I180,Tabell216[],2,FALSE)*W180,0) -> 0 | AL180: =IF(AC180=1,'Teknisk administration'!$AP$377,0) -> 0 | AM180: =IF(AD180=1,VLOOKUP($I180,Tabell217[],2,FALSE)*$W180,0) -> 0 | AN180: =IF(AE180=1,VLOOKUP($I180,Tabell29[],2,FALSE)*$W180,0) -> 0 | AO180: =IF(ISTEXT(A180),VLOOKUP(A180,Tabell203[],7,FALSE),0) -> 0 | AP180: 0 | AQ180: =IF(ISTEXT($A180),VLOOKUP($A180,Tabell203[],11,FALSE),0) -> 0 | AR180: =IF(ISTEXT($A180),VLOOKUP($A180,Tabell203[],12,FALSE),0) -> 0 | AS180: =IF(ISTEXT($A180),VLOOKUP($A180,Tabell203[],13,FALSE),0) -> 0 | AT180: =IF(ISTEXT($A180),VLOOKUP($A180,Tabell203[],14,FALSE),0) -> 0 | AU180: =IF(ISTEXT($A180),VLOOKUP($A180,Tabell203[],15,FALSE),0) -> 0 | AV180: =IF(AND(ISTEXT($A180),AP180>0),VLOOKUP($A180,Tabell203[],16,FALSE),0) -> 0
M181: Totalt mängd inlagt eller direkttfodrat | N181: =SUM(N169:N180) -> 0 | P181: =SUM(P169:P180) -> 0 | Q181: =SUM(Q169:Q180) -> 0 | Z181: =IF(SUMPRODUCT(Z169:Z180,$G169:$G180)=0,0,SUMPRODUCT($P169:$P180,Z169:Z180)/SUMPRODUCT(Z169:Z180,$G169:$G180)) -> 0 | AA181: =IF(SUMPRODUCT(AA169:AA180,$G169:$G180)=0,0,SUMPRODUCT($P169:$P180,AA169:AA180)/SUMPRODUCT(AA169:AA180,$G169:$G180)) -> 0
Q182: * All halm (foder och strö) visas i summan här, men det är bara mängden foderhalm som följer med till kommande beräkningar
A184: ="Övrigt egenproducerat foder "&A138 -> Övrigt egenproducerat foder Period 3
A185: Välj typ av ur lista och mängden bärgat foder aktuell period (enhet visas när du valt ett foder ur listan). Enhet och ts-halt hämtas från en databas. | S185: Nöt och lamm | T185: Växande grisar | U185: Suggor
A186: Typ av foder - välj ur lista | B186: Mängd | C186: Enhet och ts-halt | D186: Egen kommentar | R186: ts-halt | S186: MJ OM | T186: MJ NE | U186: MJ NE | W186: typ av foder | X186: spannmål | Y186: trindsäd | Z186: oljeväxter | AA186: rotfrukter
C187: =IF(ISTEXT(A187),VLOOKUP(A187,'Teknisk administration'!$B$323:$G$340,2,FALSE),"") ->  | R187: =IF(ISTEXT(A187),VLOOKUP(A187,'Teknisk administration'!$B$323:$G$340,3,FALSE),"") ->  | S187: =IF(ISTEXT($A187),VLOOKUP($A187,'Teknisk administration'!$B$323:$I$340,4,FALSE)*$B187*$R187,"") ->  | T187: =IF(ISTEXT($A187),VLOOKUP($A187,'Teknisk administration'!$B$323:$I$340,5,FALSE)*$B187,"") ->  | U187: =IF(ISTEXT($A187),VLOOKUP($A187,'Teknisk administration'!$B$323:$I$340,6,FALSE)*$B187,"") ->  | W187: =IF(ISTEXT(A187),VLOOKUP(A187,'Teknisk administration'!$B$323:$I$340,8,FALSE),"") ->  | X187: =IF($W187=X$58,1,0) -> 0 | Y187: 0 | Z187: 0 | AA187: 0
C188: =IF(ISTEXT(A188),VLOOKUP(A188,'Teknisk administration'!$B$323:$G$340,2,FALSE),"") ->  | R188: =IF(ISTEXT(A188),VLOOKUP(A188,'Teknisk administration'!$B$323:$G$340,3,FALSE),"") ->  | S188: =IF(ISTEXT($A188),VLOOKUP($A188,'Teknisk administration'!$B$323:$I$340,4,FALSE)*$B188*$R188,"") ->  | T188: =IF(ISTEXT($A188),VLOOKUP($A188,'Teknisk administration'!$B$323:$I$340,5,FALSE)*$B188,"") ->  | U188: =IF(ISTEXT($A188),VLOOKUP($A188,'Teknisk administration'!$B$323:$I$340,6,FALSE)*$B188,"") ->  | W188: =IF(ISTEXT(A188),VLOOKUP(A188,'Teknisk administration'!$B$323:$I$340,8,FALSE),"") ->  | X188: 0 | Y188: 0 | Z188: 0 | AA188: 0
C189: =IF(ISTEXT(A189),VLOOKUP(A189,'Teknisk administration'!$B$323:$G$340,2,FALSE),"") ->  | R189: =IF(ISTEXT(A189),VLOOKUP(A189,'Teknisk administration'!$B$323:$G$340,3,FALSE),"") ->  | S189: =IF(ISTEXT($A189),VLOOKUP($A189,'Teknisk administration'!$B$323:$I$340,4,FALSE)*$B189*$R189,"") ->  | T189: =IF(ISTEXT($A189),VLOOKUP($A189,'Teknisk administration'!$B$323:$I$340,5,FALSE)*$B189,"") ->  | U189: =IF(ISTEXT($A189),VLOOKUP($A189,'Teknisk administration'!$B$323:$I$340,6,FALSE)*$B189,"") ->  | W189: =IF(ISTEXT(A189),VLOOKUP(A189,'Teknisk administration'!$B$323:$I$340,8,FALSE),"") ->  | X189: 0 | Y189: 0 | Z189: 0 | AA189: 0
C190: =IF(ISTEXT(A190),VLOOKUP(A190,'Teknisk administration'!$B$323:$G$340,2,FALSE),"") ->  | R190: =IF(ISTEXT(A190),VLOOKUP(A190,'Teknisk administration'!$B$323:$G$340,3,FALSE),"") ->  | S190: =IF(ISTEXT($A190),VLOOKUP($A190,'Teknisk administration'!$B$323:$I$340,4,FALSE)*$B190*$R190,"") ->  | T190: =IF(ISTEXT($A190),VLOOKUP($A190,'Teknisk administration'!$B$323:$I$340,5,FALSE)*$B190,"") ->  | U190: =IF(ISTEXT($A190),VLOOKUP($A190,'Teknisk administration'!$B$323:$I$340,6,FALSE)*$B190,"") ->  | W190: =IF(ISTEXT(A190),VLOOKUP(A190,'Teknisk administration'!$B$323:$I$340,8,FALSE),"") ->  | X190: 0 | Y190: 0 | Z190: 0 | AA190: 0
C191: =IF(ISTEXT(A191),VLOOKUP(A191,'Teknisk administration'!$B$323:$G$340,2,FALSE),"") ->  | R191: =IF(ISTEXT(A191),VLOOKUP(A191,'Teknisk administration'!$B$323:$G$340,3,FALSE),"") ->  | S191: =IF(ISTEXT($A191),VLOOKUP($A191,'Teknisk administration'!$B$323:$I$340,4,FALSE)*$B191*$R191,"") ->  | T191: =IF(ISTEXT($A191),VLOOKUP($A191,'Teknisk administration'!$B$323:$I$340,5,FALSE)*$B191,"") ->  | U191: =IF(ISTEXT($A191),VLOOKUP($A191,'Teknisk administration'!$B$323:$I$340,6,FALSE)*$B191,"") ->  | W191: =IF(ISTEXT(A191),VLOOKUP(A191,'Teknisk administration'!$B$323:$I$340,8,FALSE),"") ->  | X191: 0 | Y191: 0 | Z191: 0 | AA191: 0
C192: =IF(ISTEXT(A192),VLOOKUP(A192,'Teknisk administration'!$B$323:$G$340,2,FALSE),"") ->  | R192: =IF(ISTEXT(A192),VLOOKUP(A192,'Teknisk administration'!$B$323:$G$340,3,FALSE),"") ->  | S192: =IF(ISTEXT($A192),VLOOKUP($A192,'Teknisk administration'!$B$323:$I$340,4,FALSE)*$B192*$R192,"") ->  | T192: =IF(ISTEXT($A192),VLOOKUP($A192,'Teknisk administration'!$B$323:$I$340,5,FALSE)*$B192,"") ->  | U192: =IF(ISTEXT($A192),VLOOKUP($A192,'Teknisk administration'!$B$323:$I$340,6,FALSE)*$B192,"") ->  | W192: =IF(ISTEXT(A192),VLOOKUP(A192,'Teknisk administration'!$B$323:$I$340,8,FALSE),"") ->  | X192: 0 | Y192: 0 | Z192: 0 | AA192: 0
C193: =IF(ISTEXT(A193),VLOOKUP(A193,'Teknisk administration'!$B$323:$G$340,2,FALSE),"") ->  | R193: =IF(ISTEXT(A193),VLOOKUP(A193,'Teknisk administration'!$B$323:$G$340,3,FALSE),"") ->  | S193: =IF(ISTEXT($A193),VLOOKUP($A193,'Teknisk administration'!$B$323:$I$340,4,FALSE)*$B193*$R193,"") ->  | T193: =IF(ISTEXT($A193),VLOOKUP($A193,'Teknisk administration'!$B$323:$I$340,5,FALSE)*$B193,"") ->  | U193: =IF(ISTEXT($A193),VLOOKUP($A193,'Teknisk administration'!$B$323:$I$340,6,FALSE)*$B193,"") ->  | W193: =IF(ISTEXT(A193),VLOOKUP(A193,'Teknisk administration'!$B$323:$I$340,8,FALSE),"") ->  | X193: 0 | Y193: 0 | Z193: 0 | AA193: 0
C194: =IF(ISTEXT(A194),VLOOKUP(A194,'Teknisk administration'!$B$323:$G$340,2,FALSE),"") ->  | R194: =IF(ISTEXT(A194),VLOOKUP(A194,'Teknisk administration'!$B$323:$G$340,3,FALSE),"") ->  | S194: =IF(ISTEXT($A194),VLOOKUP($A194,'Teknisk administration'!$B$323:$I$340,4,FALSE)*$B194*$R194,"") ->  | T194: =IF(ISTEXT($A194),VLOOKUP($A194,'Teknisk administration'!$B$323:$I$340,5,FALSE)*$B194,"") ->  | U194: =IF(ISTEXT($A194),VLOOKUP($A194,'Teknisk administration'!$B$323:$I$340,6,FALSE)*$B194,"") ->  | W194: =IF(ISTEXT(A194),VLOOKUP(A194,'Teknisk administration'!$B$323:$I$340,8,FALSE),"") ->  | X194: 0 | Y194: 0 | Z194: 0 | AA194: 0
C195: =IF(ISTEXT(A195),VLOOKUP(A195,'Teknisk administration'!$B$323:$G$340,2,FALSE),"") ->  | R195: =IF(ISTEXT(A195),VLOOKUP(A195,'Teknisk administration'!$B$323:$G$340,3,FALSE),"") ->  | S195: =IF(ISTEXT($A195),VLOOKUP($A195,'Teknisk administration'!$B$323:$I$340,4,FALSE)*$B195*$R195,"") ->  | T195: =IF(ISTEXT($A195),VLOOKUP($A195,'Teknisk administration'!$B$323:$I$340,5,FALSE)*$B195,"") ->  | U195: =IF(ISTEXT($A195),VLOOKUP($A195,'Teknisk administration'!$B$323:$I$340,6,FALSE)*$B195,"") ->  | W195: =IF(ISTEXT(A195),VLOOKUP(A195,'Teknisk administration'!$B$323:$I$340,8,FALSE),"") ->  | X195: 0 | Y195: 0 | Z195: 0 | AA195: 0
C196: =IF(ISTEXT(A196),VLOOKUP(A196,'Teknisk administration'!$B$323:$G$340,2,FALSE),"") ->  | R196: =IF(ISTEXT(A196),VLOOKUP(A196,'Teknisk administration'!$B$323:$G$340,3,FALSE),"") ->  | S196: =IF(ISTEXT($A196),VLOOKUP($A196,'Teknisk administration'!$B$323:$I$340,4,FALSE)*$B196*$R196,"") ->  | T196: =IF(ISTEXT($A196),VLOOKUP($A196,'Teknisk administration'!$B$323:$I$340,5,FALSE)*$B196,"") ->  | U196: =IF(ISTEXT($A196),VLOOKUP($A196,'Teknisk administration'!$B$323:$I$340,6,FALSE)*$B196,"") ->  | W196: =IF(ISTEXT(A196),VLOOKUP(A196,'Teknisk administration'!$B$323:$I$340,8,FALSE),"") ->  | X196: 0 | Y196: 0 | Z196: 0 | AA196: 0
A197: totalt, kg ts | B197: =SUMPRODUCT(B187:B196,R187:R196) -> 0 | S197: =SUM(S187:S196) -> 0 | T197: =SUM(T187:T196) -> 0 | U197: =SUM(U187:U196) -> 0

Sheet 2.2 Förluster vid lagring
A1: 2.2 Förluster vid lagring | I1: Det här betyder färgerna
A2: =VLOOKUP('2 Intro foder'!B12,'Teknisk administration'!$G$4:$H$6,2,FALSE) -> Obligatoriskt blad | I2: Cell med värden hämtade från annan cell
A3: Under lagring av foder, speciellt av ensilage, kan det ske stora förluster av ts och energi till följd av att mikroorganismer bryter ner foder ("varmgång") och via pressvatten | I3: Fyll i din egen siffra
A4: ="På detta blad beräknas förluster under lagring, före uttag, av fodret som odlats aktuell period. Mängd odlat foder hämtas från bladet " &C_Odling_foder -> På detta blad beräknas förluster under lagring, före uttag, av fodret som odlats aktuell period. Mängd odlat foder hämtas från bladet 2.1 Odling foder | I4: Fyll i egen siffra - frivilligt, t ex om du har tillgång till uppgift eller om du vill räkna med annat värde än schablon
A5: Justera ev värdet som står i gula celler. Grå text = inte aktuellt för dig eftersom du ännu inte registrerat något på den perioden alternativt inte på det foderslaget eller lagringssystemet. | I5: Resultat/uträkning
I6: Schablonvärde
A7: ="Förluster i samband med uttag och utfodring sammanställs på bladet " &'2.5. Kasserat foder och spill'!A1 -> Förluster i samband med uttag och utfodring sammanställs på bladet 2.5. Kasserat foder och spill | I7: Förklaringar till raden
I8: Plats för egna kommentarer
I9: Snabblänkar till bladen i verktyget:
A10: Bärgat grovfoder | I10: Instruktion
A11: ="Sammanställning från bladet " & C_Odling_foder -> Sammanställning från bladet 2.1 Odling foder | I11: Bakgrund
A12: Mängd inlagt i silo, balar och lador | B12: Enhet | C12: =Bakgrund!R$7 -> Period 1 | D12: =Bakgrund!S$7 -> Period 2 | E12: =Bakgrund!T$7 -> Period 3 | F12: Egen kommentar | G12: Förklaring | I12: 1 Intro djuren
A13: Plansilo | B13: kg ts | C13: =SUMPRODUCT('2.1 Odling foder'!P41:P52,'2.1 Odling foder'!AQ41:AQ52)+SUMPRODUCT('2.1 Odling foder'!H25:H32,'2.1 Odling foder'!AQ25:AQ32) -> 0 | D13: =SUMPRODUCT('2.1 Odling foder'!P104:P115,'2.1 Odling foder'!AQ104:AQ115)+SUMPRODUCT('2.1 Odling foder'!H88:H95,'2.1 Odling foder'!AQ88:AQ95) -> 0 | E13: =SUMPRODUCT('2.1 Odling foder'!P169:P180,'2.1 Odling foder'!AQ169:AQ180)+SUMPRODUCT('2.1 Odling foder'!H153:H160,'2.1 Odling foder'!AQ153:AQ160) -> 0 | I13: 1.1 Kött
A14: Torn | C14: =SUMPRODUCT('2.1 Odling foder'!P41:P52,'2.1 Odling foder'!AR41:AR52)+SUMPRODUCT('2.1 Odling foder'!H25:H32,'2.1 Odling foder'!AR25:AR32) -> 0 | D14: =SUMPRODUCT('2.1 Odling foder'!P104:P115,'2.1 Odling foder'!AR104:AR115)+SUMPRODUCT('2.1 Odling foder'!H88:H95,'2.1 Odling foder'!AR88:AR95) -> 0 | E14: =SUMPRODUCT('2.1 Odling foder'!P169:P180,'2.1 Odling foder'!AR169:AR180)+SUMPRODUCT('2.1 Odling foder'!H153:H160,'2.1 Odling foder'!AR153:AR160) -> 0 | I14: 1.2 Tillväxt & förökning
A15: Storbalar (rund- och fyrkantsbalar) | C15: =SUMPRODUCT('2.1 Odling foder'!P41:P52,'2.1 Odling foder'!AS41:AS52)+SUMPRODUCT('2.1 Odling foder'!H25:H32,'2.1 Odling foder'!AS25:AS32) -> 0 | D15: =SUMPRODUCT('2.1 Odling foder'!P104:P115,'2.1 Odling foder'!AS104:AS115)+SUMPRODUCT('2.1 Odling foder'!H88:H95,'2.1 Odling foder'!AS88:AS95) -> 0 | E15: =SUMPRODUCT('2.1 Odling foder'!P169:P180,'2.1 Odling foder'!AS169:AS180)+SUMPRODUCT('2.1 Odling foder'!H153:H160,'2.1 Odling foder'!AS153:AS160) -> 0 | I15: 1.3 Hälsa & dödlighet
A16: Hö | C16: =SUMPRODUCT('2.1 Odling foder'!P41:P52,'2.1 Odling foder'!AT41:AT52)+SUMPRODUCT('2.1 Odling foder'!H25:H32,'2.1 Odling foder'!AT25:AT32) -> 0 | D16: =SUMPRODUCT('2.1 Odling foder'!P104:P115,'2.1 Odling foder'!AT104:AT115)+SUMPRODUCT('2.1 Odling foder'!H88:H95,'2.1 Odling foder'!AT88:AT95) -> 0 | E16: =SUMPRODUCT('2.1 Odling foder'!P169:P180,'2.1 Odling foder'!AT169:AT180)+SUMPRODUCT('2.1 Odling foder'!H153:H160,'2.1 Odling foder'!AT153:AT160) -> 0 | I16: 2 Intro foder
A17: Halm till foder | C17: =SUMPRODUCT('2.1 Odling foder'!P41:P52,'2.1 Odling foder'!AV41:AV52)+SUMPRODUCT('2.1 Odling foder'!H25:H32,'2.1 Odling foder'!AV25:AV32) -> 0 | D17: =SUMPRODUCT('2.1 Odling foder'!P104:P115,'2.1 Odling foder'!AV104:AV115)+SUMPRODUCT('2.1 Odling foder'!H88:H95,'2.1 Odling foder'!AV88:AV95) -> 0 | E17: =SUMPRODUCT('2.1 Odling foder'!P169:P180,'2.1 Odling foder'!AV169:AV180)+SUMPRODUCT('2.1 Odling foder'!H153:H160,'2.1 Odling foder'!AV153:AV160) -> 0 | I17: 2.1 Odling foder
A18: Totalt inlagt | B18: kg ts | C18: =SUM(C13:C17) -> 0 | D18: =SUM(D13:D17) -> 0 | E18: =SUM(E13:E17) -> 0 | G18: Total mängd grönmassa inlagt och direktutfodrat | I18: 2.2 Förluster vid lagring
A19: Plansilo | B19: MJ | C19: =SUMPRODUCT('2.1 Odling foder'!Q41:Q52,'2.1 Odling foder'!AQ41:AQ52)+SUMPRODUCT('2.1 Odling foder'!I25:I32,'2.1 Odling foder'!AQ25:AQ32) -> 0 | D19: =SUMPRODUCT('2.1 Odling foder'!Q104:Q115,'2.1 Odling foder'!AQ104:AQ115)+SUMPRODUCT('2.1 Odling foder'!I88:I95,'2.1 Odling foder'!AQ88:AQ95) -> 0 | E19: =SUMPRODUCT('2.1 Odling foder'!Q169:Q180,'2.1 Odling foder'!AQ169:AQ180)+SUMPRODUCT('2.1 Odling foder'!I153:I160,'2.1 Odling foder'!AQ153:AQ160) -> 0 | I19: 2.3 Inköpt foder (exkl mineral)
A20: Torn | C20: =SUMPRODUCT('2.1 Odling foder'!Q41:Q52,'2.1 Odling foder'!AR41:AR52)+SUMPRODUCT('2.1 Odling foder'!I25:I32,'2.1 Odling foder'!AR25:AR32) -> 0 | D20: =SUMPRODUCT('2.1 Odling foder'!Q104:Q115,'2.1 Odling foder'!AR104:AR115)+SUMPRODUCT('2.1 Odling foder'!I88:I95,'2.1 Odling foder'!AR88:AR95) -> 0 | E20: =SUMPRODUCT('2.1 Odling foder'!Q169:Q180,'2.1 Odling foder'!AR169:AR180)+SUMPRODUCT('2.1 Odling foder'!I153:I160,'2.1 Odling foder'!AR153:AR160) -> 0 | I20: 2.4 Utfodrat
A21: Storbalar (rund- och fyrkantsbalar) | C21: =SUMPRODUCT('2.1 Odling foder'!Q41:Q52,'2.1 Odling foder'!AS41:AS52)+SUMPRODUCT('2.1 Odling foder'!I25:I32,'2.1 Odling foder'!AS25:AS32) -> 0 | D21: =SUMPRODUCT('2.1 Odling foder'!Q104:Q115,'2.1 Odling foder'!AS104:AS115)+SUMPRODUCT('2.1 Odling foder'!I88:I95,'2.1 Odling foder'!AS88:AS95) -> 0 | E21: =SUMPRODUCT('2.1 Odling foder'!Q169:Q180,'2.1 Odling foder'!AS169:AS180)+SUMPRODUCT('2.1 Odling foder'!I153:I160,'2.1 Odling foder'!AS153:AS160) -> 0 | I21: 2.5. Kasserat foder och spill
A22: Hö | C22: =SUMPRODUCT('2.1 Odling foder'!Q41:Q52,'2.1 Odling foder'!AT41:AT52)+SUMPRODUCT('2.1 Odling foder'!I25:I32,'2.1 Odling foder'!AT25:AT32) -> 0 | D22: =SUMPRODUCT('2.1 Odling foder'!Q104:Q115,'2.1 Odling foder'!AT104:AT115)+SUMPRODUCT('2.1 Odling foder'!I88:I95,'2.1 Odling foder'!AT88:AT95) -> 0 | E22: =SUMPRODUCT('2.1 Odling foder'!Q169:Q180,'2.1 Odling foder'!AT169:AT180)+SUMPRODUCT('2.1 Odling foder'!I153:I160,'2.1 Odling foder'!AT153:AT160) -> 0 | I22: 2.6 Bete
A23: Halm till foder | C23: =SUMPRODUCT('2.1 Odling foder'!Q41:Q52,'2.1 Odling foder'!AV41:AV52)+SUMPRODUCT('2.1 Odling foder'!I25:I32,'2.1 Odling foder'!AV25:AV32) -> 0 | D23: =SUMPRODUCT('2.1 Odling foder'!Q104:Q115,'2.1 Odling foder'!AV104:AV115)+SUMPRODUCT('2.1 Odling foder'!I88:I95,'2.1 Odling foder'!AV88:AV95) -> 0 | E23: =SUMPRODUCT('2.1 Odling foder'!Q169:Q180,'2.1 Odling foder'!AV169:AV180)+SUMPRODUCT('2.1 Odling foder'!I153:I160,'2.1 Odling foder'!AV153:AV160) -> 0 | I23: 3 Växtnäringsutnyttjande (1)
A24: Totalt inlagt | B24: MJ | C24: =SUM(C19:C23) -> 0 | D24: =SUM(D19:D23) -> 0 | E24: =SUM(E19:E23) -> 0 | G24: Total mängd grönmassa inlagt omräknat till MJ, fodervärdering idisslare | I24: 3 Växtnäringsutnyttjande (2)
I25: 3 Växtnäringsutnyttjande (3)
I26: 4 Energi och bränsle
I27: 5 Vattenanvändning
A28: I tabellen nedan sammanställs förluster under lagring, d v s efter skörd och före uttag. Fyll i eget värde eller behåll befintligt i prickiga celler. Schabloner i tabellen till höger. | I28: 6 Resultat
A29: Förluster under lagring (andningsförluster) | B29: Enhet | C29: =Bakgrund!R$7 -> Period 1 | D29: =Bakgrund!S$7 -> Period 2 | E29: =Bakgrund!T$7 -> Period 3 | F29: Egen kommentar | G29: Förklaring | J29: låg förlust | K29: medel | L29: hög förlust
A30: Plansilo | B30: % av ts i inlagd grönmassa | C30: 0.15 | D30: 0.15 | E30: 0.15 | G30: Förlusterna är höga vid dålig packning | I30: Plansilo | J30: 0.13 | K30: 0.15 | L30: 0.2
A31: Torn | C31: 0.1 | D31: 0.1 | E31: 0.1 | I31: Torn, slang | J31: 0.08 | K31: 0.1 | L31: 0.15
A32: Storbalar (rund- och fyrkantsbalar) | C32: 0.02 | D32: 0.02 | E32: 0.02 | G32: Generellt låga förluster i storbalar under lagring | I32: Storbalar | J32: 0.01 | K32: 0.02 | L32: 0.05
A33: Hö | C33: 0.01 | D33: 0.01 | E33: 0.01 | G33: Generellt låga förluster under lagring av hö | I33: Hö | J33: 0.01 | K33: 0.02 | L33: 0.03
A34: Halm till foder | C34: 0.02 | D34: 0.02 | E34: 0.02
A35: Beräknade förluster under lagring
A36: Plansilo, förluster | B36: kg ts | C36: =C30*C13 -> 0 | D36: 0 | E36: 0
A37: Torn, förluster | C37: 0 | D37: 0 | E37: 0
A38: Storbalar, förluster | C38: 0 | D38: 0 | E38: 0
A39: Hö, förluster | C39: 0 | D39: 0 | E39: 0
A40: Halm till foder, förluster | C40: =C34*C17 -> 0 | D40: =D34*D17 -> 0 | E40: =E34*E17 -> 0
A41: Totala förluster, ts | B41: kg ts | C41: =ROUND(SUM(C36:C40),3-LEN(INT(SUM(C36:C40)))) -> 0 | D41: =ROUND(SUM(D36:D40),3-LEN(INT(SUM(D36:D40)))) -> 0 | E41: =ROUND(SUM(E36:E40),3-LEN(INT(SUM(E36:E40)))) -> 0
A42: Totala förluster, MJ | B42: MJ | C42: =ROUND(SUMPRODUCT(C19:C23,C30:C34),3-LEN(INT(SUMPRODUCT(C19:C23,C30:C34)))) -> 0 | D42: =ROUND(SUMPRODUCT(D19:D23,D30:D34),3-LEN(INT(SUMPRODUCT(D19:D23,D30:D34)))) -> 0 | E42: =ROUND(SUMPRODUCT(E19:E23,E30:E34),3-LEN(INT(SUMPRODUCT(E19:E23,E30:E34)))) -> 0
A43: Totala förluster | B43: % av ts i inlagd grönmassa | C43: =IF(C41=0,0,C41/C18) -> 0 | D43: =IF(D41=0,0,D41/D18) -> 0 | E43: =IF(E41=0,0,E41/E18) -> 0
A44: Totalt kvar till uttag | B44: kg ts | C44: =C18-C41 -> 0 | D44: =D18-D41 -> 0 | E44: =E18-E41 -> 0
A47: Övrigt egenproducerat foder
A48: I tabellen nedan sammanställs förluster under lagring, d v s efter skörd och före uttag. Fyll i eget värde eller behåll befintligt i prickiga celler. Schabloner i tabellen till höger.
B49: Enhet | C49: =Bakgrund!R$7 -> Period 1 | D49: =Bakgrund!S$7 -> Period 2 | E49: =Bakgrund!T$7 -> Period 3 | F49: Egen kommentar | G49: Förklaring
A50: Skördad mängd | B50: kg ts | C50: ='2.1 Odling foder'!B69 -> 0 | D50: ='2.1 Odling foder'!B132 -> 0 | E50: ='2.1 Odling foder'!B197 -> 0
A51: Förluster under lagring | B51: % | C51: 0.02 | D51: 0.02 | E51: 0.02 | G51: Behåll värde eller skriv över med eget!
A52: Totala förluster | B52: kg ts | C52: =C50*C51 -> 0 | D52: =D50*D51 -> 0 | E52: =E50*E51 -> 0
A53: Totalt kvar till uttag | B53: kg ts | C53: =ROUND(C50-C52,3-LEN(INT(C50-C52))) -> 0 | D53: =ROUND(D50-D52,3-LEN(INT(D50-D52))) -> 0 | E53: =ROUND(E50-E52,3-LEN(INT(E50-E52))) -> 0
A56: Direktutfodrad grönmassa
C57: =Bakgrund!R$7 -> Period 1 | D57: =Bakgrund!S$7 -> Period 2 | E57: =Bakgrund!T$7 -> Period 3 | F57: Egen kommentar | G57: Förklaring
A58: Direktutfodrad grönmassa | B58: kg ts | C58: =SUMPRODUCT('2.1 Odling foder'!P41:P52,'2.1 Odling foder'!AU41:AU52)+SUMPRODUCT('2.1 Odling foder'!H25:H32,'2.1 Odling foder'!AU25:AU32) -> 0 | D58: =SUMPRODUCT('2.1 Odling foder'!P104:P115,'2.1 Odling foder'!AU104:AU115)+SUMPRODUCT('2.1 Odling foder'!H88:H95,'2.1 Odling foder'!AU88:AU95) -> 0 | E58: =SUMPRODUCT('2.1 Odling foder'!P169:P180,'2.1 Odling foder'!AU169:AU180)+SUMPRODUCT('2.1 Odling foder'!H153:H160,'2.1 Odling foder'!AU153:AU160) -> 0
B59: MJ | C59: =SUMPRODUCT('2.1 Odling foder'!Q41:Q52,'2.1 Odling foder'!AU41:AU52)+SUMPRODUCT('2.1 Odling foder'!I25:I32,'2.1 Odling foder'!AU25:AU32) -> 0 | D59: =SUMPRODUCT('2.1 Odling foder'!Q104:Q115,'2.1 Odling foder'!AU104:AU115)+SUMPRODUCT('2.1 Odling foder'!I88:I95,'2.1 Odling foder'!AU88:AU95) -> 0 | E59: =SUMPRODUCT('2.1 Odling foder'!Q169:Q180,'2.1 Odling foder'!AU169:AU180)+SUMPRODUCT('2.1 Odling foder'!I153:I160,'2.1 Odling foder'!AU153:AU160) -> 0

Sheet 2.3 Inköpt foder (exkl mineral)
A1: 2.3 Inköpt foder (exkl mineral) | S1: Det här betyder färgerna:
A2: =VLOOKUP('2 Intro foder'!B13,'Teknisk administration'!$G$4:$H$6,2,FALSE) -> Bladet är inte relevant för dig | S2: Cell med värden hämtade från annan cell
A3: Här beräknas mängden ts och MJ i inköpt foder, exklusive mineralfoder, som förbrukats under perioden. Justera för ev överlagring! | S3: Beräkning
A4: ="Resultatet används sedan på bladet '" &C_N_summering&"' och för att beräkna energi- och ts-förluster vid utfodring. Mineralfoder tas inte upp eftersom de inte har något energiinnehåll" -> Resultatet används sedan på bladet '2.4 Utfodrat' och för att beräkna energi- och ts-förluster vid utfodring. Mineralfoder tas inte upp eftersom de inte har något energiinnehåll | S4: Fyll i din egen siffra | X4: Snabblänkar till bladen i verktyget:
A5: ="På detta blad kan du även beräkna mängden N, P och K i inköpt foder. Resultatet används sedan i växtnäringsberäkningarna på bladet '" & D_vn_1 &"'. Där läggs även mineralfodret till eftersom de innehåller P och K." -> På detta blad kan du även beräkna mängden N, P och K i inköpt foder. Resultatet används sedan i växtnäringsberäkningarna på bladet '3 Växtnäringsutnyttjande period 1, Period 1'. Där läggs även mineralfodret till eftersom de innehåller P och K. | S5: Fyll i egen siffra - frivilligt, t ex om du har tillgång till uppgift eller om du vill räkna med annat värde än det schablonvärde som visas i angränsande cell | X5: Instruktion
S6: Egen uppgift, men välj värde ur rullista. | X6: Bakgrund
A7: Dina svar på ja/nej-frågorna på Bakgrund styr vilka delar som visas. Grå text eller vita celler = inte relevant för dig. | S7: Resultat/uträkning | X7: 1 Intro djuren
A8: Du kan antingen välja ett färdigt foder ur en lista (alternativ 1) eller namnge och beskriva foder med eget namn (alternativ 2) om du inte hittar lämpligt alternativ i listan. Du kan använda båda alternativen samma period | S8: Schablonvärde | X8: 1.1 Kött
A9: Röd cell = välj alternativ ur listan eller fyll i ett värde så släcks varningen! Om cellen fortsätter att vara röd finns inte energiinnehållet i databasen, och du behöver fylla i ett värde för att MJ foder ska kunna beräknas. Varningen släcks när du fyllt i värde. | S9: Förklaringar till raden | X9: 1.2 Tillväxt & förökning
A10: Perioderna ligger under varandra | S10: Plats för egna kommentarer | X10: 1.3 Hälsa & dödlighet
S11: Glöm inte att fylla i värde! (Här krävs ett värde för att andra beräkningar ska fungera | X11: 2 Intro foder
A12: Räcker inte raderna till? Ta bort bladets skrivskydd (Granska/Skydda), inget lösenord krävs. Högerklicka i tabellen och välj Infoga > Infoga rad ovanför | S12: grå text, ev vit bakgrund: Avsnittet är inte relevant för dig baserat på svaren på ja/nej-frågor på bladet Bakgrund | X12: 2.1 Odling foder
A13: Perioderna ligger under varandra på detta blad | X13: 2.2 Förluster vid lagring
S14: Hjälptabeller för inköpt foder | X14: 2.3 Inköpt foder (exkl mineral)
A15: ="Inköpt foder " & Bakgrund!R7 -> Inköpt foder Period 1 | S15: Energiinnehåll foder, exempel. Fyll i eget värde i tabellerna till vänster! | X15: 2.4 Utfodrat
A16: Alternativ 1: Välj färdiga schablonfoder, grovfoder, råvaror eller namngivna kraftfoder ur lista. | S16: Typ | T16: energiinnehåll (MJ per kg ts) | U16: ts-halt | X16: 2.5. Kasserat foder och spill
A17: Foder välj ur lista , eller använd hjälpfunktion till höger! | B17: Enhet | C17: Mängd | D17: ts-halt (%) | E17: Kväve | F17: Fosfor | G17: Kalium | H17: MJ per kg ts, från tabell | I17: MJ per kg ts, eget värde* | J17: Egen kommentar | K17: MJ/kg, använt | L17: grovfoder | M17: kraftfoder, spannmål etc. | S17: Spannmål | T17: 11-13 | U17: 0.86 | X17: 2.6 Bete
B18: =IF(ISTEXT(A18),IF(D18=1,"kg ts","kg"),"") ->  | D18: =AM18 -> 0 | E18: =AN18 -> 0 | F18: =AO18 -> 0 | G18: =AP18 -> 0 | H18: =AQ18 -> 0 | K18: =IF(AND(I18>0,I18<40),I18,AQ18) -> 0 | L18: =IF(ISTEXT(A18),IF(VLOOKUP(A18,'tekn adm - produktlistor'!$AG$6:$AP$631,10,FALSE)=L$17,1,0),0) -> 0 | M18: =IF(ISTEXT(A18),IF(VLOOKUP(A18,'tekn adm - produktlistor'!$AG$6:$AP$631,10,FALSE)=M$17,1,0),0) -> 0 | S18: Koncentrat | T18: 12-13 | U18: 0.88 | X18: 3 Växtnäringsutnyttjande (1) | AM18: =IF(ISTEXT(A18),VLOOKUP(A18,'tekn adm - produktlistor'!$AG$6:$AM$632,7,FALSE),0) -> 0 | AN18: =IF(ISTEXT(A18),VLOOKUP(A18,'tekn adm - produktlistor'!$AG$6:$AM$632,3,FALSE)*C18,0) -> 0 | AO18: =IF(ISTEXT(A18),VLOOKUP($A18,'tekn adm - produktlistor'!$AG$6:$AM$632,4,FALSE)*$C18,0) -> 0 | AP18: =IF(ISTEXT(A18),VLOOKUP($A18,'tekn adm - produktlistor'!$AG$6:$AM$632,5,FALSE)*$C18,0) -> 0 | AQ18: =IF(ISTEXT(A18),VLOOKUP($A18,'tekn adm - produktlistor'!$AG$6:$AO$632,9,FALSE),0) -> 0
B19: =IF(ISTEXT(A19),IF(D19=1,"kg ts","kg"),"") ->  | D19: 0 | E19: =AN19 -> 0 | F19: =AO19 -> 0 | G19: =AP19 -> 0 | H19: =AQ19 -> 0 | K19: 0 | L19: =IF(ISTEXT(A19),IF(VLOOKUP(A19,'tekn adm - produktlistor'!$AG$6:$AP$631,10,FALSE)=L$17,1,0),0) -> 0 | M19: =IF(ISTEXT(A19),IF(VLOOKUP(A19,'tekn adm - produktlistor'!$AG$6:$AP$631,10,FALSE)=M$17,1,0),0) -> 0 | S19: Färdigfoder | T19: 12,7 | U19: 0.88 | X19: 3 Växtnäringsutnyttjande (2) | AM19: =IF(ISTEXT(A19),VLOOKUP(A19,'tekn adm - produktlistor'!$AG$6:$AM$632,7,FALSE),0) -> 0 | AN19: =IF(ISTEXT(A19),VLOOKUP(A19,'tekn adm - produktlistor'!$AG$6:$AM$632,3,FALSE)*C19,0) -> 0 | AO19: =IF(ISTEXT(A19),VLOOKUP($A19,'tekn adm - produktlistor'!$AG$6:$AM$632,4,FALSE)*$C19,0) -> 0 | AP19: =IF(ISTEXT(A19),VLOOKUP($A19,'tekn adm - produktlistor'!$AG$6:$AM$632,5,FALSE)*$C19,0) -> 0 | AQ19: =IF(ISTEXT(A19),VLOOKUP($A19,'tekn adm - produktlistor'!$AG$6:$AO$632,9,FALSE),0) -> 0
D20: 0 | E20: 0 | F20: 0 | G20: 0 | H20: 0 | K20: 0 | L20: =IF(ISTEXT(A20),IF(VLOOKUP(A20,'tekn adm - produktlistor'!$AG$6:$AP$631,10,FALSE)=L$17,1,0),0) -> 0 | M20: =IF(ISTEXT(A20),IF(VLOOKUP(A20,'tekn adm - produktlistor'!$AG$6:$AP$631,10,FALSE)=M$17,1,0),0) -> 0 | S20: Ensilage, blandvall, tidig skörd | T20: 11-12 | U20: 1 | X20: 3 Växtnäringsutnyttjande (3) | AM20: =IF(ISTEXT(A20),VLOOKUP(A20,'tekn adm - produktlistor'!$AG$6:$AM$632,7,FALSE),0) -> 0 | AN20: =IF(ISTEXT(A20),VLOOKUP(A20,'tekn adm - produktlistor'!$AG$6:$AM$632,3,FALSE)*C20,0) -> 0 | AO20: =IF(ISTEXT(A20),VLOOKUP($A20,'tekn adm - produktlistor'!$AG$6:$AM$632,4,FALSE)*$C20,0) -> 0 | AP20: =IF(ISTEXT(A20),VLOOKUP($A20,'tekn adm - produktlistor'!$AG$6:$AM$632,5,FALSE)*$C20,0) -> 0 | AQ20: =IF(ISTEXT(A20),VLOOKUP($A20,'tekn adm - produktlistor'!$AG$6:$AO$632,9,FALSE),0) -> 0
D21: 0 | E21: 0 | F21: 0 | G21: 0 | H21: 0 | K21: 0 | L21: =IF(ISTEXT(A21),IF(VLOOKUP(A21,'tekn adm - produktlistor'!$AG$6:$AP$631,10,FALSE)=L$17,1,0),0) -> 0 | M21: =IF(ISTEXT(A21),IF(VLOOKUP(A21,'tekn adm - produktlistor'!$AG$6:$AP$631,10,FALSE)=M$17,1,0),0) -> 0 | S21: Ensilage, blandvall, medeltidig skörd | T21: 10,2-10,6 | U21: 1 | X21: 4 Energi och bränsle | AM21: =IF(ISTEXT(A21),VLOOKUP(A21,'tekn adm - produktlistor'!$AG$6:$AM$632,7,FALSE),0) -> 0 | AN21: =IF(ISTEXT(A21),VLOOKUP(A21,'tekn adm - produktlistor'!$AG$6:$AM$632,3,FALSE)*C21,0) -> 0 | AO21: =IF(ISTEXT(A21),VLOOKUP($A21,'tekn adm - produktlistor'!$AG$6:$AM$632,4,FALSE)*$C21,0) -> 0 | AP21: =IF(ISTEXT(A21),VLOOKUP($A21,'tekn adm - produktlistor'!$AG$6:$AM$632,5,FALSE)*$C21,0) -> 0 | AQ21: =IF(ISTEXT(A21),VLOOKUP($A21,'tekn adm - produktlistor'!$AG$6:$AO$632,9,FALSE),0) -> 0
D22: 0 | E22: 0 | F22: 0 | G22: 0 | H22: 0 | K22: 0 | L22: =IF(ISTEXT(A22),IF(VLOOKUP(A22,'tekn adm - produktlistor'!$AG$6:$AP$631,10,FALSE)=L$17,1,0),0) -> 0 | M22: =IF(ISTEXT(A22),IF(VLOOKUP(A22,'tekn adm - produktlistor'!$AG$6:$AP$631,10,FALSE)=M$17,1,0),0) -> 0 | S22: Ensilage, blandvall, sen skörd | T22: 8,5-10 | U22: 1 | X22: 5 Vattenanvändning | AM22: =IF(ISTEXT(A22),VLOOKUP(A22,'tekn adm - produktlistor'!$AG$6:$AM$632,7,FALSE),0) -> 0 | AN22: =IF(ISTEXT(A22),VLOOKUP(A22,'tekn adm - produktlistor'!$AG$6:$AM$632,3,FALSE)*C22,0) -> 0 | AO22: =IF(ISTEXT(A22),VLOOKUP($A22,'tekn adm - produktlistor'!$AG$6:$AM$632,4,FALSE)*$C22,0) -> 0 | AP22: =IF(ISTEXT(A22),VLOOKUP($A22,'tekn adm - produktlistor'!$AG$6:$AM$632,5,FALSE)*$C22,0) -> 0 | AQ22: =IF(ISTEXT(A22),VLOOKUP($A22,'tekn adm - produktlistor'!$AG$6:$AO$632,9,FALSE),0) -> 0
D23: 0 | E23: 0 | F23: 0 | G23: 0 | H23: 0 | K23: 0 | L23: =IF(ISTEXT(A23),IF(VLOOKUP(A23,'tekn adm - produktlistor'!$AG$6:$AP$631,10,FALSE)=L$17,1,0),0) -> 0 | M23: =IF(ISTEXT(A23),IF(VLOOKUP(A23,'tekn adm - produktlistor'!$AG$6:$AP$631,10,FALSE)=M$17,1,0),0) -> 0 | S23: Ensilage, gräsvall, tidig skörd | T23: 11,0 | U23: 1 | X23: 6 Resultat | AM23: =IF(ISTEXT(A23),VLOOKUP(A23,'tekn adm - produktlistor'!$AG$6:$AM$632,7,FALSE),0) -> 0 | AN23: =IF(ISTEXT(A23),VLOOKUP(A23,'tekn adm - produktlistor'!$AG$6:$AM$632,3,FALSE)*C23,0) -> 0 | AO23: =IF(ISTEXT(A23),VLOOKUP($A23,'tekn adm - produktlistor'!$AG$6:$AM$632,4,FALSE)*$C23,0) -> 0 | AP23: =IF(ISTEXT(A23),VLOOKUP($A23,'tekn adm - produktlistor'!$AG$6:$AM$632,5,FALSE)*$C23,0) -> 0 | AQ23: =IF(ISTEXT(A23),VLOOKUP($A23,'tekn adm - produktlistor'!$AG$6:$AO$632,9,FALSE),0) -> 0
D24: 0 | E24: 0 | F24: 0 | G24: 0 | H24: 0 | K24: 0 | L24: =IF(ISTEXT(A24),IF(VLOOKUP(A24,'tekn adm - produktlistor'!$AG$6:$AP$631,10,FALSE)=L$17,1,0),0) -> 0 | M24: =IF(ISTEXT(A24),IF(VLOOKUP(A24,'tekn adm - produktlistor'!$AG$6:$AP$631,10,FALSE)=M$17,1,0),0) -> 0 | S24: Ensilage, gräsvall, medeltidig skörd | T24: 10,2-10,6 | U24: 1 | AM24: =IF(ISTEXT(A24),VLOOKUP(A24,'tekn adm - produktlistor'!$AG$6:$AM$632,7,FALSE),0) -> 0 | AN24: =IF(ISTEXT(A24),VLOOKUP(A24,'tekn adm - produktlistor'!$AG$6:$AM$632,3,FALSE)*C24,0) -> 0 | AO24: =IF(ISTEXT(A24),VLOOKUP($A24,'tekn adm - produktlistor'!$AG$6:$AM$632,4,FALSE)*$C24,0) -> 0 | AP24: =IF(ISTEXT(A24),VLOOKUP($A24,'tekn adm - produktlistor'!$AG$6:$AM$632,5,FALSE)*$C24,0) -> 0 | AQ24: =IF(ISTEXT(A24),VLOOKUP($A24,'tekn adm - produktlistor'!$AG$6:$AO$632,9,FALSE),0) -> 0
A25: Summa (kg ts, N, P, K resp MJ) | D25: =SUMPRODUCT(C18:C24,D18:D24) -> 0 | E25: =SUM(E18:E24) -> 0 | F25: =SUM(F18:F24) -> 0 | G25: =SUM(G18:G24) -> 0 | H25: =SUMPRODUCT(C18:C24,D18:D24,K18:K24) -> 0 | S25: Ensilage, gräsvall, sen skörd | T25: 9,5-10 | U25: 1 | AM25: =SUMPRODUCT(C18:C24,AM18:AM24) -> 0 | AN25: =SUM(AN18:AN24) -> 0 | AO25: =SUM(AO18:AO24) -> 0 | AP25: =SUM(AP18:AP24) -> 0 | AQ25: =SUMPRODUCT(C18:C24,AM18:AM24,K18:K24) -> 0
A26: * Om cellen är röd finns inte energiinnehållet i databasen, och du behöver fylla i ett värde för att MJ foder ska kunna beräknas. Varningen släcks när du fyllt i värde. | S26: Hö | T26: 9.3 | U26: 1
A27: Om cellen är prickig innebär det att du kan skriva in eget värde, om du vill.
A29: Alternativ 2: Namnge och beskriv foder själv | S29: Hitta fodermedel (kraftfoder, spanmmål, protein etc.)
A30: Foder, fritext | B30: Enhet | C30: Mängd | D30: ts-halt (%)* | E30: Råprotein (g/kg ts)** | F30: Fosfor (g/kg ts)** | G30: Kalium (g/kg ts)** | H30: Energi (MJ per kg ts)*** | I30: typ av foder - välj alternativ ur lista! | J30: Egen kommentar | K30: Kolumn1 | L30: grovfoder | M30: kraftfoder, spannmål etc. | S30: skriv in ett helt ord (t ex "havre" eller "galant") eller en del av ett ord (t ex "bland") i fodret du letar efter i den gula cellen nedan. Tryck Enter!
B31: kg | D31: 1 | L31: =IF($I31=L$30,1,0) -> 0 | M31: =IF(L31=0,1,0) -> 1 | S31: Alla träffar i databasen visas i listan därunder. Kopiera rätt alternativ och klistra in orange cell i tabellen Fodermedel nöt.
B32: kg | D32: 0.88 | L32: =IF($I32=L$30,1,0) -> 0 | M32: =IF(L32=0,1,0) -> 1 | S32: Hittar du inte rätt? Testa ett annat ord! I databasen finns både foderåvaror (t ex havre) och kraftfoder (t ex L Galant Ordinär). Förkortning framför kraftfoder indikerar foderleverantör (L = Lantmännen)
B33: kg | D33: 0.88 | L33: 0 | M33: 1 | S33: fodermedelet som jag söker efter:
B34: kg | D34: 0.88 | L34: 0 | M34: 1 | S34: galant
B35: kg | D35: 0.88 | L35: 0 | M35: 1
B36: kg | D36: 0.88 | L36: 0 | M36: 1 | S36: Lista över fodermedel att välja på:
A37: Summa (kg ts, N, P, K resp MJ) | D37: =SUMPRODUCT(C31:C36,D31:D36) -> 0 | E37: =SUMPRODUCT(C31:C36,D31:D36,E31:E36)/1000/6.25 -> 0 | F37: =SUMPRODUCT(F31:F36,$C31:$C36,$D31:$D36)/1000 -> 0 | G37: =SUMPRODUCT(G31:G36,$C31:$C36,$D31:$D36)/1000 -> 0 | H37: =SUMPRODUCT(C31:C36,D31:D36,H31:H36) -> 0 | L37: =IF(SUMPRODUCT(C18:C24,AM18:AM24)+SUMPRODUCT(C31:C36,D31:D36)=0,0,(SUMPRODUCT(C18:C24,AM18:AM24,L18:L24)+SUMPRODUCT(C31:C36,D31:D36,L31:L36))/(SUMPRODUCT(C18:C24,AM18:AM24)+SUMPRODUCT(C31:C36,D31:D36))) -> 0 | S37: =IF(ISTEXT(AH38),AH38,"--Inga foder hittade, ändra sökningen---") -> L Galant Grov | AI37: rad nr | AM37: =SUMPRODUCT(C31:C36,D31:D36) -> 0 | AN37: =SUMPRODUCT(C31:C36,D31:D36,E31:E36)/1000/6.25 -> 0 | AO37: =SUMPRODUCT(F31:F36,$C31:$C36,$D31:$D36)/1000 -> 0 | AP37: =SUMPRODUCT(G31:G36,$C31:$C36,$D31:$D36)/1000 -> 0 | AQ37: =SUMPRODUCT(C31:C36,D31:D36,H31:H36) -> 0
A38: *Behåll ts-halten eller skriv över med eget värde | S38: =IF(AJ39=1,AH39,"") -> L Galant N | AH38: =INDEX('tekn adm - produktlistor'!AG6:AG631,MATCH("*"&$S$34&"*",'tekn adm - produktlistor'!AG6:AG631,0)) -> L Galant Grov | AI38: =VLOOKUP(AH38,'tekn adm - produktlistor'!$AG$6:$AL$631,6,FALSE) -> 243 | AJ38: 1
A39: ** Ange råprotein, fosfor och kalium som g per kg ts . 1 kg råprotein = 0,16 kg N | S39: L Galant Nära | AH39: =INDEX(OFFSET('tekn adm - produktlistor'!$AG$6,AI38,0):'tekn adm - produktlistor'!$AG$631,MATCH("*"&$S$34&"*",OFFSET('tekn adm - produktlistor'!$AG$6,AI38,0):'tekn adm - produktlistor'!$AG$631,0)) -> L Galant N | AI39: =VLOOKUP(AH39,'tekn adm - produktlistor'!$AG$6:$AL$631,6,FALSE) -> 244 | AJ39: =IF(ISNUMBER(AI39),IF(AND(AI39>AI38,AJ38=1),1,0),0) -> 1
A40: *** Se hjälptabell till höger! | S40: L Galant Ordinär | AH40: =INDEX(OFFSET('tekn adm - produktlistor'!$AG$6,AI39,0):'tekn adm - produktlistor'!$AG$631,MATCH("*"&$S$34&"*",OFFSET('tekn adm - produktlistor'!$AG$6,AI39,0):'tekn adm - produktlistor'!$AG$631,0)) -> L Galant Nära | AI40: =VLOOKUP(AH40,'tekn adm - produktlistor'!$AG$6:$AL$631,6,FALSE) -> 245 | AJ40: 1
S41: L Galant Snabb | AH41: =INDEX(OFFSET('tekn adm - produktlistor'!$AG$6,AI40,0):'tekn adm - produktlistor'!$AG$631,MATCH("*"&$S$34&"*",OFFSET('tekn adm - produktlistor'!$AG$6,AI40,0):'tekn adm - produktlistor'!$AG$631,0)) -> L Galant Ordinär | AI41: =VLOOKUP(AH41,'tekn adm - produktlistor'!$AG$6:$AL$631,6,FALSE) -> 246 | AJ41: 1
S42: L Galant Stabil | AH42: =INDEX(OFFSET('tekn adm - produktlistor'!$AG$6,AI41,0):'tekn adm - produktlistor'!$AG$631,MATCH("*"&$S$34&"*",OFFSET('tekn adm - produktlistor'!$AG$6,AI41,0):'tekn adm - produktlistor'!$AG$631,0)) -> L Galant Snabb | AI42: =VLOOKUP(AH42,'tekn adm - produktlistor'!$AG$6:$AL$631,6,FALSE) -> 247 | AJ42: 1
B43: kg ts | C43: MJ | AH43: =INDEX(OFFSET('tekn adm - produktlistor'!$AG$6,AI42,0):'tekn adm - produktlistor'!$AG$631,MATCH("*"&$S$34&"*",OFFSET('tekn adm - produktlistor'!$AG$6,AI42,0):'tekn adm - produktlistor'!$AG$631,0)) -> L Galant Stabil | AI43: =VLOOKUP(AH43,'tekn adm - produktlistor'!$AG$6:$AL$631,6,FALSE) -> 248 | AJ43: 1
A44: ="Totalt inköpt " &period_1 -> Totalt inköpt Period 1 | B44: =SUM(B45:B46) -> 0 | C44: =SUM(C45:C46) -> 0 | AH44: =INDEX(OFFSET('tekn adm - produktlistor'!$AG$6,AI43,0):'tekn adm - produktlistor'!$AG$631,MATCH("*"&$S$34&"*",OFFSET('tekn adm - produktlistor'!$AG$6,AI43,0):'tekn adm - produktlistor'!$AG$631,0)) ->  | AI44: =VLOOKUP(AH44,'tekn adm - produktlistor'!$AG$6:$AL$631,6,FALSE) ->  | AJ44: 0
A45: grovfoder | B45: =SUMPRODUCT(C18:C24,AM18:AM24,L18:L24)+SUMPRODUCT(C31:C36,D31:D36,L31:L36) -> 0 | C45: =SUMPRODUCT(C18:C24,AM18:AM24,K18:K24,L18:L24)+SUMPRODUCT(C31:C36,D31:D36,H31:H36,L31:L36) -> 0 | AH45: =INDEX(OFFSET('tekn adm - produktlistor'!$AG$6,AI44,0):'tekn adm - produktlistor'!$AG$631,MATCH("*"&$S$34&"*",OFFSET('tekn adm - produktlistor'!$AG$6,AI44,0):'tekn adm - produktlistor'!$AG$631,0)) ->  | AI45: =VLOOKUP(AH45,'tekn adm - produktlistor'!$AG$6:$AL$631,6,FALSE) ->  | AJ45: 0
A46: kraftfoder, spannmål etc. | B46: =SUMPRODUCT(C18:C24,AM18:AM24,M18:M24)+SUMPRODUCT(C31:C36,D31:D36,M31:M36) -> 0 | C46: =SUMPRODUCT(C18:C24,AM18:AM24,K18:K24,M18:M24)+SUMPRODUCT(C31:C36,D31:D36,H31:H36,M31:M36) -> 0 | AH46: =INDEX(OFFSET('tekn adm - produktlistor'!$AG$6,AI45,0):'tekn adm - produktlistor'!$AG$631,MATCH("*"&$S$34&"*",OFFSET('tekn adm - produktlistor'!$AG$6,AI45,0):'tekn adm - produktlistor'!$AG$631,0)) ->  | AI46: =VLOOKUP(AH46,'tekn adm - produktlistor'!$AG$6:$AL$631,6,FALSE) ->  | AJ46: 0
AH47: =INDEX(OFFSET('tekn adm - produktlistor'!$AG$6,AI46,0):'tekn adm - produktlistor'!$AG$631,MATCH("*"&$S$34&"*",OFFSET('tekn adm - produktlistor'!$AG$6,AI46,0):'tekn adm - produktlistor'!$AG$631,0)) ->  | AI47: =VLOOKUP(AH47,'tekn adm - produktlistor'!$AG$6:$AL$631,6,FALSE) ->  | AJ47: 0
AH48: =INDEX(OFFSET('tekn adm - produktlistor'!$AG$6,AI47,0):'tekn adm - produktlistor'!$AG$631,MATCH("*"&$S$34&"*",OFFSET('tekn adm - produktlistor'!$AG$6,AI47,0):'tekn adm - produktlistor'!$AG$631,0)) ->  | AI48: =VLOOKUP(AH48,'tekn adm - produktlistor'!$AG$6:$AL$631,6,FALSE) ->  | AJ48: 0
AH49: =INDEX(OFFSET('tekn adm - produktlistor'!$AG$6,AI48,0):'tekn adm - produktlistor'!$AG$631,MATCH("*"&$S$34&"*",OFFSET('tekn adm - produktlistor'!$AG$6,AI48,0):'tekn adm - produktlistor'!$AG$631,0)) ->  | AI49: =VLOOKUP(AH49,'tekn adm - produktlistor'!$AG$6:$AL$631,6,FALSE) ->  | AJ49: 0
AH50: =INDEX(OFFSET('tekn adm - produktlistor'!$AG$6,AI49,0):'tekn adm - produktlistor'!$AG$631,MATCH("*"&$S$34&"*",OFFSET('tekn adm - produktlistor'!$AG$6,AI49,0):'tekn adm - produktlistor'!$AG$631,0)) ->  | AI50: =VLOOKUP(AH50,'tekn adm - produktlistor'!$AG$6:$AL$631,6,FALSE) ->  | AJ50: 0
AH51: =INDEX(OFFSET('tekn adm - produktlistor'!$AG$6,AI50,0):'tekn adm - produktlistor'!$AG$631,MATCH("*"&$S$34&"*",OFFSET('tekn adm - produktlistor'!$AG$6,AI50,0):'tekn adm - produktlistor'!$AG$631,0)) ->  | AI51: =VLOOKUP(AH51,'tekn adm - produktlistor'!$AG$6:$AL$631,6,FALSE) ->  | AJ51: 0
AH52: =INDEX(OFFSET('tekn adm - produktlistor'!$AG$6,AI51,0):'tekn adm - produktlistor'!$AG$631,MATCH("*"&$S$34&"*",OFFSET('tekn adm - produktlistor'!$AG$6,AI51,0):'tekn adm - produktlistor'!$AG$631,0)) ->  | AI52: =VLOOKUP(AH52,'tekn adm - produktlistor'!$AG$6:$AL$631,6,FALSE) ->  | AJ52: 0
A53: ="Inköpt foder " & Bakgrund!S7 -> Inköpt foder Period 2 | AH53: =INDEX(OFFSET('tekn adm - produktlistor'!$AG$6,AI52,0):'tekn adm - produktlistor'!$AG$631,MATCH("*"&$S$34&"*",OFFSET('tekn adm - produktlistor'!$AG$6,AI52,0):'tekn adm - produktlistor'!$AG$631,0)) ->  | AI53: =VLOOKUP(AH53,'tekn adm - produktlistor'!$AG$6:$AL$631,6,FALSE) ->  | AJ53: 0
A54: Alternativ 1: Välj färdiga schablonfoder, grovfoder, råvaror eller namngivna kraftfoder ur lista. | AH54: =INDEX(OFFSET('tekn adm - produktlistor'!$AG$6,AI53,0):'tekn adm - produktlistor'!$AG$631,MATCH("*"&$S$34&"*",OFFSET('tekn adm - produktlistor'!$AG$6,AI53,0):'tekn adm - produktlistor'!$AG$631,0)) ->  | AI54: =VLOOKUP(AH54,'tekn adm - produktlistor'!$AG$6:$AL$631,6,FALSE) ->  | AJ54: 0
A55: Foder välj ur lista , eller använd hjälpfunktion till höger! | B55: Enhet | C55: Mängd | D55: ts-halt (%) | E55: Kväve | F55: Fosfor | G55: Kalium | H55: MJ per kg ts, från tabell | I55: MJ per kg ts, eget värde* | J55: Egen kommentar | K55: MJ/kg, använt | L55: grovfoder | M55: kraftfoder, spannmål etc. | AH55: =INDEX(OFFSET('tekn adm - produktlistor'!$AG$6,AI54,0):'tekn adm - produktlistor'!$AG$631,MATCH("*"&$S$34&"*",OFFSET('tekn adm - produktlistor'!$AG$6,AI54,0):'tekn adm - produktlistor'!$AG$631,0)) ->  | AI55: =VLOOKUP(AH55,'tekn adm - produktlistor'!$AG$6:$AL$631,6,FALSE) ->  | AJ55: 0
B56: =IF(ISTEXT(A56),IF(D56=1,"kg ts","kg"),"") ->  | D56: =AM56 -> 0 | E56: =AN56 -> 0 | F56: =AO56 -> 0 | G56: =AP56 -> 0 | H56: =AQ56 -> 0 | K56: =IF(AND(I56>0,I56<40),I56,AQ56) -> 0 | L56: =IF(ISTEXT(A56),IF(VLOOKUP(A56,'tekn adm - produktlistor'!$AG$6:$AP$631,10,FALSE)=L$17,1,0),0) -> 0 | M56: =IF(ISTEXT(A56),IF(VLOOKUP(A56,'tekn adm - produktlistor'!$AG$6:$AP$631,10,FALSE)=M$17,1,0),0) -> 0 | AH56: =INDEX(OFFSET('tekn adm - produktlistor'!$AG$6,AI55,0):'tekn adm - produktlistor'!$AG$631,MATCH("*"&$S$34&"*",OFFSET('tekn adm - produktlistor'!$AG$6,AI55,0):'tekn adm - produktlistor'!$AG$631,0)) ->  | AI56: =VLOOKUP(AH56,'tekn adm - produktlistor'!$AG$6:$AL$631,6,FALSE) ->  | AJ56: 0 | AM56: =IF(ISTEXT(A56),VLOOKUP(A56,'tekn adm - produktlistor'!$AG$6:$AM$632,7,FALSE),0) -> 0 | AN56: =IF(ISTEXT(A56),VLOOKUP(A56,'tekn adm - produktlistor'!$AG$6:$AM$632,3,FALSE)*C56,0) -> 0 | AO56: =IF(ISTEXT(A56),VLOOKUP($A56,'tekn adm - produktlistor'!$AG$6:$AM$632,4,FALSE)*$C56,0) -> 0 | AP56: =IF(ISTEXT(A56),VLOOKUP($A56,'tekn adm - produktlistor'!$AG$6:$AM$632,5,FALSE)*$C56,0) -> 0 | AQ56: =IF(ISTEXT(A56),VLOOKUP($A56,'tekn adm - produktlistor'!$AG$6:$AO$632,9,FALSE),0) -> 0
B57: =IF(ISTEXT(A57),IF(D57=1,"kg ts","kg"),"") ->  | D57: =AM57 -> 0 | E57: =AN57 -> 0 | F57: =AO57 -> 0 | G57: =AP57 -> 0 | H57: =AQ57 -> 0 | K57: 0 | L57: =IF(ISTEXT(A57),IF(VLOOKUP(A57,'tekn adm - produktlistor'!$AG$6:$AP$631,10,FALSE)=L$17,1,0),0) -> 0 | M57: =IF(ISTEXT(A57),IF(VLOOKUP(A57,'tekn adm - produktlistor'!$AG$6:$AP$631,10,FALSE)=M$17,1,0),0) -> 0 | AH57: =INDEX(OFFSET('tekn adm - produktlistor'!$AG$6,AI56,0):'tekn adm - produktlistor'!$AG$631,MATCH("*"&$S$34&"*",OFFSET('tekn adm - produktlistor'!$AG$6,AI56,0):'tekn adm - produktlistor'!$AG$631,0)) ->  | AI57: =VLOOKUP(AH57,'tekn adm - produktlistor'!$AG$6:$AL$631,6,FALSE) ->  | AJ57: 0 | AM57: =IF(ISTEXT(A57),VLOOKUP(A57,'tekn adm - produktlistor'!$AG$6:$AM$632,7,FALSE),0) -> 0 | AN57: =IF(ISTEXT(A57),VLOOKUP(A57,'tekn adm - produktlistor'!$AG$6:$AM$632,3,FALSE)*C57,0) -> 0 | AO57: =IF(ISTEXT(A57),VLOOKUP($A57,'tekn adm - produktlistor'!$AG$6:$AM$632,4,FALSE)*$C57,0) -> 0 | AP57: =IF(ISTEXT(A57),VLOOKUP($A57,'tekn adm - produktlistor'!$AG$6:$AM$632,5,FALSE)*$C57,0) -> 0 | AQ57: =IF(ISTEXT(A57),VLOOKUP($A57,'tekn adm - produktlistor'!$AG$6:$AO$632,9,FALSE),0) -> 0
D58: 0 | E58: 0 | F58: 0 | G58: 0 | H58: 0 | K58: 0 | L58: =IF(ISTEXT(A58),IF(VLOOKUP(A58,'tekn adm - produktlistor'!$AG$6:$AP$631,10,FALSE)=L$17,1,0),0) -> 0 | M58: =IF(ISTEXT(A58),IF(VLOOKUP(A58,'tekn adm - produktlistor'!$AG$6:$AP$631,10,FALSE)=M$17,1,0),0) -> 0 | AH58: =INDEX(OFFSET('tekn adm - produktlistor'!$AG$6,AI57,0):'tekn adm - produktlistor'!$AG$631,MATCH("*"&$S$34&"*",OFFSET('tekn adm - produktlistor'!$AG$6,AI57,0):'tekn adm - produktlistor'!$AG$631,0)) ->  | AI58: =VLOOKUP(AH58,'tekn adm - produktlistor'!$AG$6:$AL$631,6,FALSE) ->  | AJ58: 0 | AM58: =IF(ISTEXT(A58),VLOOKUP(A58,'tekn adm - produktlistor'!$AG$6:$AM$632,7,FALSE),0) -> 0 | AN58: =IF(ISTEXT(A58),VLOOKUP(A58,'tekn adm - produktlistor'!$AG$6:$AM$632,3,FALSE)*C58,0) -> 0 | AO58: =IF(ISTEXT(A58),VLOOKUP($A58,'tekn adm - produktlistor'!$AG$6:$AM$632,4,FALSE)*$C58,0) -> 0 | AP58: =IF(ISTEXT(A58),VLOOKUP($A58,'tekn adm - produktlistor'!$AG$6:$AM$632,5,FALSE)*$C58,0) -> 0 | AQ58: =IF(ISTEXT(A58),VLOOKUP($A58,'tekn adm - produktlistor'!$AG$6:$AO$632,9,FALSE),0) -> 0
D59: 0 | E59: 0 | F59: 0 | G59: 0 | H59: 0 | K59: 0 | L59: =IF(ISTEXT(A59),IF(VLOOKUP(A59,'tekn adm - produktlistor'!$AG$6:$AP$631,10,FALSE)=L$17,1,0),0) -> 0 | M59: =IF(ISTEXT(A59),IF(VLOOKUP(A59,'tekn adm - produktlistor'!$AG$6:$AP$631,10,FALSE)=M$17,1,0),0) -> 0 | AH59: =INDEX(OFFSET('tekn adm - produktlistor'!$AG$6,AI58,0):'tekn adm - produktlistor'!$AG$631,MATCH("*"&$S$34&"*",OFFSET('tekn adm - produktlistor'!$AG$6,AI58,0):'tekn adm - produktlistor'!$AG$631,0)) ->  | AI59: =VLOOKUP(AH59,'tekn adm - produktlistor'!$AG$6:$AL$631,6,FALSE) ->  | AJ59: 0 | AM59: =IF(ISTEXT(A59),VLOOKUP(A59,'tekn adm - produktlistor'!$AG$6:$AM$632,7,FALSE),0) -> 0 | AN59: =IF(ISTEXT(A59),VLOOKUP(A59,'tekn adm - produktlistor'!$AG$6:$AM$632,3,FALSE)*C59,0) -> 0 | AO59: =IF(ISTEXT(A59),VLOOKUP($A59,'tekn adm - produktlistor'!$AG$6:$AM$632,4,FALSE)*$C59,0) -> 0 | AP59: =IF(ISTEXT(A59),VLOOKUP($A59,'tekn adm - produktlistor'!$AG$6:$AM$632,5,FALSE)*$C59,0) -> 0 | AQ59: =IF(ISTEXT(A59),VLOOKUP($A59,'tekn adm - produktlistor'!$AG$6:$AO$632,9,FALSE),0) -> 0
D60: 0 | E60: 0 | F60: 0 | G60: 0 | H60: 0 | K60: 0 | L60: =IF(ISTEXT(A60),IF(VLOOKUP(A60,'tekn adm - produktlistor'!$AG$6:$AP$631,10,FALSE)=L$17,1,0),0) -> 0 | M60: =IF(ISTEXT(A60),IF(VLOOKUP(A60,'tekn adm - produktlistor'!$AG$6:$AP$631,10,FALSE)=M$17,1,0),0) -> 0 | AH60: =INDEX(OFFSET('tekn adm - produktlistor'!$AG$6,AI59,0):'tekn adm - produktlistor'!$AG$631,MATCH("*"&$S$34&"*",OFFSET('tekn adm - produktlistor'!$AG$6,AI59,0):'tekn adm - produktlistor'!$AG$631,0)) ->  | AI60: =VLOOKUP(AH60,'tekn adm - produktlistor'!$AG$6:$AL$631,6,FALSE) ->  | AJ60: 0 | AM60: =IF(ISTEXT(A60),VLOOKUP(A60,'tekn adm - produktlistor'!$AG$6:$AM$632,7,FALSE),0) -> 0 | AN60: =IF(ISTEXT(A60),VLOOKUP(A60,'tekn adm - produktlistor'!$AG$6:$AM$632,3,FALSE)*C60,0) -> 0 | AO60: =IF(ISTEXT(A60),VLOOKUP($A60,'tekn adm - produktlistor'!$AG$6:$AM$632,4,FALSE)*$C60,0) -> 0 | AP60: =IF(ISTEXT(A60),VLOOKUP($A60,'tekn adm - produktlistor'!$AG$6:$AM$632,5,FALSE)*$C60,0) -> 0 | AQ60: =IF(ISTEXT(A60),VLOOKUP($A60,'tekn adm - produktlistor'!$AG$6:$AO$632,9,FALSE),0) -> 0
D61: 0 | E61: 0 | F61: 0 | G61: 0 | H61: 0 | K61: 0 | L61: =IF(ISTEXT(A61),IF(VLOOKUP(A61,'tekn adm - produktlistor'!$AG$6:$AP$631,10,FALSE)=L$17,1,0),0) -> 0 | M61: =IF(ISTEXT(A61),IF(VLOOKUP(A61,'tekn adm - produktlistor'!$AG$6:$AP$631,10,FALSE)=M$17,1,0),0) -> 0 | AH61: =INDEX(OFFSET('tekn adm - produktlistor'!$AG$6,AI60,0):'tekn adm - produktlistor'!$AG$631,MATCH("*"&$S$34&"*",OFFSET('tekn adm - produktlistor'!$AG$6,AI60,0):'tekn adm - produktlistor'!$AG$631,0)) ->  | AI61: =VLOOKUP(AH61,'tekn adm - produktlistor'!$AG$6:$AL$631,6,FALSE) ->  | AJ61: 0 | AM61: =IF(ISTEXT(A61),VLOOKUP(A61,'tekn adm - produktlistor'!$AG$6:$AM$632,7,FALSE),0) -> 0 | AN61: =IF(ISTEXT(A61),VLOOKUP(A61,'tekn adm - produktlistor'!$AG$6:$AM$632,3,FALSE)*C61,0) -> 0 | AO61: =IF(ISTEXT(A61),VLOOKUP($A61,'tekn adm - produktlistor'!$AG$6:$AM$632,4,FALSE)*$C61,0) -> 0 | AP61: =IF(ISTEXT(A61),VLOOKUP($A61,'tekn adm - produktlistor'!$AG$6:$AM$632,5,FALSE)*$C61,0) -> 0 | AQ61: =IF(ISTEXT(A61),VLOOKUP($A61,'tekn adm - produktlistor'!$AG$6:$AO$632,9,FALSE),0) -> 0
D62: 0 | E62: 0 | F62: 0 | G62: 0 | H62: 0 | K62: 0 | L62: =IF(ISTEXT(A62),IF(VLOOKUP(A62,'tekn adm - produktlistor'!$AG$6:$AP$631,10,FALSE)=L$17,1,0),0) -> 0 | M62: =IF(ISTEXT(A62),IF(VLOOKUP(A62,'tekn adm - produktlistor'!$AG$6:$AP$631,10,FALSE)=M$17,1,0),0) -> 0 | AH62: =INDEX(OFFSET('tekn adm - produktlistor'!$AG$6,AI61,0):'tekn adm - produktlistor'!$AG$631,MATCH("*"&$S$34&"*",OFFSET('tekn adm - produktlistor'!$AG$6,AI61,0):'tekn adm - produktlistor'!$AG$631,0)) ->  | AI62: =VLOOKUP(AH62,'tekn adm - produktlistor'!$AG$6:$AL$631,6,FALSE) ->  | AJ62: 0 | AM62: =IF(ISTEXT(A62),VLOOKUP(A62,'tekn adm - produktlistor'!$AG$6:$AM$632,7,FALSE),0) -> 0 | AN62: =IF(ISTEXT(A62),VLOOKUP(A62,'tekn adm - produktlistor'!$AG$6:$AM$632,3,FALSE)*C62,0) -> 0 | AO62: =IF(ISTEXT(A62),VLOOKUP($A62,'tekn adm - produktlistor'!$AG$6:$AM$632,4,FALSE)*$C62,0) -> 0 | AP62: =IF(ISTEXT(A62),VLOOKUP($A62,'tekn adm - produktlistor'!$AG$6:$AM$632,5,FALSE)*$C62,0) -> 0 | AQ62: =IF(ISTEXT(A62),VLOOKUP($A62,'tekn adm - produktlistor'!$AG$6:$AO$632,9,FALSE),0) -> 0
A63: Summa (kg ts, N, P, K resp MJ) | D63: =SUMPRODUCT(C56:C62,D56:D62) -> 0 | E63: =SUM(E56:E62) -> 0 | F63: =SUM(F56:F62) -> 0 | G63: =SUM(G56:G62) -> 0 | H63: =SUMPRODUCT(C56:C62,D56:D62,K56:K62) -> 0 | AH63: =INDEX(OFFSET('tekn adm - produktlistor'!$AG$6,AI62,0):'tekn adm - produktlistor'!$AG$631,MATCH("*"&$S$34&"*",OFFSET('tekn adm - produktlistor'!$AG$6,AI62,0):'tekn adm - produktlistor'!$AG$631,0)) ->  | AI63: =VLOOKUP(AH63,'tekn adm - produktlistor'!$AG$6:$AL$631,6,FALSE) ->  | AJ63: 0 | AM63: =SUMPRODUCT(C56:C62,AM56:AM62) -> 0 | AN63: =SUM(AN56:AN62) -> 0 | AO63: =SUM(AO56:AO62) -> 0 | AP63: =SUM(AP56:AP62) -> 0 | AQ63: =SUMPRODUCT(C56:C62,AM56:AM62,K56:K62) -> 0
A64: * Om cellen är röd finns inte energiinnehållet i databasen, och du behöver fylla i ett värde för att MJ foder ska kunna beräknas. Varningen släcks när du fyllt i värde. | AH64: =INDEX(OFFSET('tekn adm - produktlistor'!$AG$6,AI63,0):'tekn adm - produktlistor'!$AG$631,MATCH("*"&$S$34&"*",OFFSET('tekn adm - produktlistor'!$AG$6,AI63,0):'tekn adm - produktlistor'!$AG$631,0)) ->  | AI64: =VLOOKUP(AH64,'tekn adm - produktlistor'!$AG$6:$AL$631,6,FALSE) ->  | AJ64: 0
A65: Om cellen är prickig innebär det att du kan skriva in eget värde, om du vill. | AH65: =INDEX(OFFSET('tekn adm - produktlistor'!$AG$6,AI64,0):'tekn adm - produktlistor'!$AG$631,MATCH("*"&$S$34&"*",OFFSET('tekn adm - produktlistor'!$AG$6,AI64,0):'tekn adm - produktlistor'!$AG$631,0)) ->  | AI65: =VLOOKUP(AH65,'tekn adm - produktlistor'!$AG$6:$AL$631,6,FALSE) ->  | AJ65: 0
AH66: =INDEX(OFFSET('tekn adm - produktlistor'!$AG$6,AI65,0):'tekn adm - produktlistor'!$AG$631,MATCH("*"&$S$34&"*",OFFSET('tekn adm - produktlistor'!$AG$6,AI65,0):'tekn adm - produktlistor'!$AG$631,0)) ->  | AI66: =VLOOKUP(AH66,'tekn adm - produktlistor'!$AG$6:$AL$631,6,FALSE) ->  | AJ66: 0
A67: Alternativ 2: Namnge och beskriv eget foder | AH67: =INDEX(OFFSET('tekn adm - produktlistor'!$AG$6,AI66,0):'tekn adm - produktlistor'!$AG$631,MATCH("*"&$S$34&"*",OFFSET('tekn adm - produktlistor'!$AG$6,AI66,0):'tekn adm - produktlistor'!$AG$631,0)) ->  | AI67: =VLOOKUP(AH67,'tekn adm - produktlistor'!$AG$6:$AL$631,6,FALSE) ->  | AJ67: 0
A68: typ av foder (fritext) | B68: Enhet | C68: Mängd | D68: ts-halt (%)* | E68: Råprotein (g/kg ts)** | F68: Fosfor (g/kg ts)** | G68: Kalium (g/kg ts)** | H68: Energi (MJ per kg ts)*** | I68: typ av foder - välj alternativ ur lista! | J68: Egen kommentar | K68: Kolumn1 | L68: grovfoder | M68: kraftfoder, spannmål etc. | S68: =IF(AJ68=1,"--Förfina sökningen för att se fler alternativ--","") ->  | AH68: =INDEX(OFFSET('tekn adm - produktlistor'!$AG$6,AI67,0):'tekn adm - produktlistor'!$AG$631,MATCH("*"&$S$34&"*",OFFSET('tekn adm - produktlistor'!$AG$6,AI67,0):'tekn adm - produktlistor'!$AG$631,0)) ->  | AI68: =VLOOKUP(AH68,'tekn adm - produktlistor'!$AG$6:$AL$631,6,FALSE) ->  | AJ68: 0
B69: kg | D69: 1 | L69: =IF($I69=L$30,1,0) -> 0 | M69: =IF(L69=0,1,0) -> 1 | AH69: =INDEX(OFFSET('tekn adm - produktlistor'!$AG$6,AI68,0):'tekn adm - produktlistor'!$AG$631,MATCH("*"&$S$34&"*",OFFSET('tekn adm - produktlistor'!$AG$6,AI68,0):'tekn adm - produktlistor'!$AG$631,0)) ->  | AI69: =VLOOKUP(AH69,'tekn adm - produktlistor'!$AG$6:$AL$631,6,FALSE) ->  | AJ69: 0
B70: kg | D70: 0.88 | L70: =IF($I70=L$30,1,0) -> 0 | M70: =IF(L70=0,1,0) -> 1
B71: kg | D71: 0.88 | L71: 0 | M71: 1
B72: kg | D72: 0.88 | L72: 0 | M72: 1
B73: kg | D73: 0.88 | L73: 0 | M73: 1
B74: kg | D74: 0.88 | L74: 0 | M74: 1
A75: Summa (kg ts, N, P, K resp MJ) | D75: =SUMPRODUCT(C69:C74,D69:D74) -> 0 | E75: =SUMPRODUCT(C69:C74,D69:D74,E69:E74)/1000/6.25 -> 0 | F75: =SUMPRODUCT(F69:F74,$C69:$C74,$D69:$D74)/1000 -> 0 | G75: =SUMPRODUCT(G69:G74,$C69:$C74,$D69:$D74)/1000 -> 0 | H75: =SUMPRODUCT(C69:C74,D69:D74,H69:H74) -> 0 | L75: =IF(SUMPRODUCT(C56:C62,AM56:AM62)+SUMPRODUCT(C69:C74,D69:D74)=0,0,(SUMPRODUCT(C56:C62,AM56:AM62,L56:L62)+SUMPRODUCT(C69:C74,D69:D74,L69:L74))/(SUMPRODUCT(C56:C62,AM56:AM62)+SUMPRODUCT(C69:C74,D69:D74))) -> 0 | AM75: =SUMPRODUCT(C69:C74,D69:D74) -> 0 | AN75: =SUMPRODUCT(C69:C74,D69:D74,E69:E74)/1000/6.25 -> 0 | AO75: =SUMPRODUCT(F69:F74,$C69:$C74,$D69:$D74)/1000 -> 0 | AP75: =SUMPRODUCT(G69:G74,$C69:$C74,$D69:$D74)/1000 -> 0 | AQ75: =SUMPRODUCT(C69:C74,D69:D74,H69:H74) -> 0
A76: *Behåll ts-halten eller skriv över med eget värde
A77: ** Ange råprotein, fosfor och kalium som g per kg ts . 1 kg råprotein = 0,16 kg N
A78: *** Se hjälptabell till höger!
B81: kg ts | C81: MJ
A82: ="Totalt inköpt " &period_1 -> Totalt inköpt Period 1 | B82: =SUM(B83:B84) -> 0 | C82: =SUM(C83:C84) -> 0
A83: grovfoder | B83: =SUMPRODUCT(C56:C62,AM56:AM62,L56:L62)+SUMPRODUCT(C69:C74,D69:D74,L69:L74) -> 0 | C83: =SUMPRODUCT(C56:C62,AM56:AM62,K56:K62,L56:L62)+SUMPRODUCT(C69:C74,D69:D74,H69:H74,L69:L74) -> 0
A84: kraftfoder, spannmål etc. | B84: =SUMPRODUCT(C56:C62,AM56:AM62,M56:M62)+SUMPRODUCT(C69:C74,D69:D74,M69:M74) -> 0 | C84: =SUMPRODUCT(C56:C62,AM56:AM62,K56:K62,M56:M62)+SUMPRODUCT(C69:C74,D69:D74,H69:H74,M69:M74) -> 0
A90: ="Inköpt foder " & Bakgrund!T7 -> Inköpt foder Period 3
A91: Alternativ 1: Välj färdiga schablonfoder, grovfoder, råvaror eller namngivna kraftfoder ur lista.
A92: Foder välj ur lista , eller använd hjälpfunktion till höger! | B92: Enhet | C92: Mängd | D92: ts-halt (%) | E92: Kväve | F92: Fosfor | G92: Kalium | H92: MJ per kg ts, från tabell | I92: MJ per kg ts, eget värde* | J92: Egen kommentar | K92: MJ/kg, använt | L92: grovfoder | M92: kraftfoder, spannmål etc.
B93: =IF(ISTEXT(A93),IF(D93=1,"kg ts","kg"),"") ->  | D93: =AM93 -> 0 | E93: =AN93 -> 0 | F93: =AO93 -> 0 | G93: =AP93 -> 0 | H93: =AQ93 -> 0 | K93: =IF(AND(I93>0,I93<40),I93,AQ93) -> 0 | L93: =IF(ISTEXT(A93),IF(VLOOKUP(A93,'tekn adm - produktlistor'!$AG$6:$AP$631,10,FALSE)=L$17,1,0),0) -> 0 | M93: =IF(ISTEXT(A93),IF(VLOOKUP(A93,'tekn adm - produktlistor'!$AG$6:$AP$631,10,FALSE)=M$17,1,0),0) -> 0 | AM93: =IF(ISTEXT(A93),VLOOKUP(A93,'tekn adm - produktlistor'!$AG$6:$AM$632,7,FALSE),0) -> 0 | AN93: =IF(ISTEXT(A93),VLOOKUP(A93,'tekn adm - produktlistor'!$AG$6:$AM$632,3,FALSE)*C93,0) -> 0 | AO93: =IF(ISTEXT(A93),VLOOKUP($A93,'tekn adm - produktlistor'!$AG$6:$AM$632,4,FALSE)*$C93,0) -> 0 | AP93: =IF(ISTEXT(A93),VLOOKUP($A93,'tekn adm - produktlistor'!$AG$6:$AM$632,5,FALSE)*$C93,0) -> 0 | AQ93: =IF(ISTEXT(A93),VLOOKUP($A93,'tekn adm - produktlistor'!$AG$6:$AO$632,9,FALSE),0) -> 0
B94: =IF(ISTEXT(A94),IF(D94=1,"kg ts","kg"),"") ->  | D94: =AM94 -> 0 | E94: =AN94 -> 0 | F94: =AO94 -> 0 | G94: =AP94 -> 0 | H94: =AQ94 -> 0 | K94: 0 | L94: =IF(ISTEXT(A94),IF(VLOOKUP(A94,'tekn adm - produktlistor'!$AG$6:$AP$631,10,FALSE)=L$17,1,0),0) -> 0 | M94: =IF(ISTEXT(A94),IF(VLOOKUP(A94,'tekn adm - produktlistor'!$AG$6:$AP$631,10,FALSE)=M$17,1,0),0) -> 0 | AM94: =IF(ISTEXT(A94),VLOOKUP(A94,'tekn adm - produktlistor'!$AG$6:$AM$632,7,FALSE),0) -> 0 | AN94: =IF(ISTEXT(A94),VLOOKUP(A94,'tekn adm - produktlistor'!$AG$6:$AM$632,3,FALSE)*C94,0) -> 0 | AO94: =IF(ISTEXT(A94),VLOOKUP($A94,'tekn adm - produktlistor'!$AG$6:$AM$632,4,FALSE)*$C94,0) -> 0 | AP94: =IF(ISTEXT(A94),VLOOKUP($A94,'tekn adm - produktlistor'!$AG$6:$AM$632,5,FALSE)*$C94,0) -> 0 | AQ94: =IF(ISTEXT(A94),VLOOKUP($A94,'tekn adm - produktlistor'!$AG$6:$AO$632,9,FALSE),0) -> 0
D95: 0 | E95: 0 | F95: 0 | G95: 0 | H95: 0 | K95: 0 | L95: =IF(ISTEXT(A95),IF(VLOOKUP(A95,'tekn adm - produktlistor'!$AG$6:$AP$631,10,FALSE)=L$17,1,0),0) -> 0 | M95: =IF(ISTEXT(A95),IF(VLOOKUP(A95,'tekn adm - produktlistor'!$AG$6:$AP$631,10,FALSE)=M$17,1,0),0) -> 0 | AM95: =IF(ISTEXT(A95),VLOOKUP(A95,'tekn adm - produktlistor'!$AG$6:$AM$632,7,FALSE),0) -> 0 | AN95: =IF(ISTEXT(A95),VLOOKUP(A95,'tekn adm - produktlistor'!$AG$6:$AM$632,3,FALSE)*C95,0) -> 0 | AO95: =IF(ISTEXT(A95),VLOOKUP($A95,'tekn adm - produktlistor'!$AG$6:$AM$632,4,FALSE)*$C95,0) -> 0 | AP95: =IF(ISTEXT(A95),VLOOKUP($A95,'tekn adm - produktlistor'!$AG$6:$AM$632,5,FALSE)*$C95,0) -> 0 | AQ95: =IF(ISTEXT(A95),VLOOKUP($A95,'tekn adm - produktlistor'!$AG$6:$AO$632,9,FALSE),0) -> 0
D96: 0 | E96: 0 | F96: 0 | G96: 0 | H96: 0 | K96: 0 | L96: =IF(ISTEXT(A96),IF(VLOOKUP(A96,'tekn adm - produktlistor'!$AG$6:$AP$631,10,FALSE)=L$17,1,0),0) -> 0 | M96: =IF(ISTEXT(A96),IF(VLOOKUP(A96,'tekn adm - produktlistor'!$AG$6:$AP$631,10,FALSE)=M$17,1,0),0) -> 0 | AM96: =IF(ISTEXT(A96),VLOOKUP(A96,'tekn adm - produktlistor'!$AG$6:$AM$632,7,FALSE),0) -> 0 | AN96: =IF(ISTEXT(A96),VLOOKUP(A96,'tekn adm - produktlistor'!$AG$6:$AM$632,3,FALSE)*C96,0) -> 0 | AO96: =IF(ISTEXT(A96),VLOOKUP($A96,'tekn adm - produktlistor'!$AG$6:$AM$632,4,FALSE)*$C96,0) -> 0 | AP96: =IF(ISTEXT(A96),VLOOKUP($A96,'tekn adm - produktlistor'!$AG$6:$AM$632,5,FALSE)*$C96,0) -> 0 | AQ96: =IF(ISTEXT(A96),VLOOKUP($A96,'tekn adm - produktlistor'!$AG$6:$AO$632,9,FALSE),0) -> 0
D97: 0 | E97: 0 | F97: 0 | G97: 0 | H97: 0 | K97: 0 | L97: =IF(ISTEXT(A97),IF(VLOOKUP(A97,'tekn adm - produktlistor'!$AG$6:$AP$631,10,FALSE)=L$17,1,0),0) -> 0 | M97: =IF(ISTEXT(A97),IF(VLOOKUP(A97,'tekn adm - produktlistor'!$AG$6:$AP$631,10,FALSE)=M$17,1,0),0) -> 0 | AM97: =IF(ISTEXT(A97),VLOOKUP(A97,'tekn adm - produktlistor'!$AG$6:$AM$632,7,FALSE),0) -> 0 | AN97: =IF(ISTEXT(A97),VLOOKUP(A97,'tekn adm - produktlistor'!$AG$6:$AM$632,3,FALSE)*C97,0) -> 0 | AO97: =IF(ISTEXT(A97),VLOOKUP($A97,'tekn adm - produktlistor'!$AG$6:$AM$632,4,FALSE)*$C97,0) -> 0 | AP97: =IF(ISTEXT(A97),VLOOKUP($A97,'tekn adm - produktlistor'!$AG$6:$AM$632,5,FALSE)*$C97,0) -> 0 | AQ97: =IF(ISTEXT(A97),VLOOKUP($A97,'tekn adm - produktlistor'!$AG$6:$AO$632,9,FALSE),0) -> 0
